Workbook

Sheet Ноябрь
B2: Отчет по call-центру
C3: 2020-11-04 | D3: 2020-11-05 | E3: 2020-11-06 | F3: 2020-11-07 | G3: 2020-11-08 | H3: 2020-11-09 | I3: 2020-11-10 | J3: 2020-11-11 | K3: 2020-11-12 | L3: 2020-11-13 | M3: 2020-11-14 | N3: 2020-11-15 | O3: 2020-11-16 | P3: 2020-11-17 | Q3: 2020-11-18 | R3: 2020-11-19 | S3: 2020-11-20 | T3: 2020-11-21 | U3: 2020-11-22 | V3: 2020-11-23 | W3: 2020-11-24 | X3: 2020-11-25 | Y3: 2020-11-26 | Z3: 2020-11-27 | AA3: 2020-11-28 | AB3: 2020-11-29 | AC3: 2020-11-30
B4: Кол-во обраб. звонков (Линия КТ Ковид) | C4: 323 | D4: 498 | E4: 426 | F4: 244 | G4: 272 | H4: 579 | I4: 341 | J4: 231 | K4: 212 | L4: 209 | M4: 164 | N4: 121 | O4: 225 | P4: 253 | Q4: 291 | R4: 295 | S4: 303 | T4: 230 | U4: 182 | V4: 376 | W4: 269 | X4: 345 | Y4: 263 | Z4: 249 | AA4: 266 | AB4: 247 | AC4: 388
B5: Кол-во пропущенных | C5: 201 | D5: 697 | E5: 650 | F5: 535 | G5: 167 | H5: 481 | I5: 254 | J5: 256 | K5: 168 | L5: 129 | M5: 114 | N5: 249 | O5: 462 | P5: 390 | Q5: 396 | R5: 330 | S5: 343 | T5: 535 | U5: 172 | V5: 440 | W5: 351 | X5: 364 | Y5: 351 | Z5: 335 | AA5: 377 | AB5: 101 | AC5: 951
B6: Кол-во обраб. звонков (Линия call-центр) | C6: 501 | D6: 661 | E6: 587 | F6: 233 | G6: 238 | H6: 621 | I6: 659 | J6: 638 | K6: 676 | L6: 728 | M6: 181 | N6: 186 | O6: 670 | P6: 548 | Q6: 635 | R6: 614 | S6: 643 | T6: 224 | U6: 213 | V6: 523 | W6: 541 | X6: 658 | Y6: 638 | Z6: 524 | AA6: 209 | AB6: 174 | AC6: 361
B7: Кол-во пропущенных | C7: 145 | D7: 390 | E7: 499 | F7: 295 | G7: 151 | H7: 447 | I7: 390 | J7: 311 | K7: 167 | L7: 242 | M7: 305 | N7: 177 | O7: 352 | P7: 432 | Q7: 188 | R7: 222 | S7: 189 | T7: 206 | U7: 66 | V7: 409 | W7: 676 | X7: 620 | Y7: 587 | Z7: 621 | AA7: 469 | AB7: 560 | AC7: 295
B8: Всего звонков (обе линии) | C8: =SUM(C4+C6) -> 824 | D8: 1159 | E8: 1013 | F8: 477 | G8: 510 | H8: 1200 | I8: 1000 | J8: 869 | K8: 888 | L8: 937 | M8: 345 | N8: 307 | O8: 895 | P8: 801 | Q8: 926 | R8: 909 | S8: 946 | T8: 454 | U8: 395 | V8: 899 | W8: 810 | X8: 1003 | Y8: 901 | Z8: 773 | AA8: 475 | AB8: 421 | AC8: 749
B10: Заявки на сайте:
B11: Количество заявок на сайте (всего) | C11: 66 | D11: 105 | E11: 138 | F11: 113 | G11: 38 | H11: 138 | I11: 154 | J11: 178 | K11: 199 | L11: 225 | M11: 141 | N11: 92 | O11: 251 | P11: 236 | Q11: 234 | R11: 256 | S11: 286 | T11: 134 | U11: 72 | V11: 314 | W11: 371 | X11: 205 | Y11: 206 | Z11: 205 | AA11: 201 | AB11: 128 | AC11: 207
B12: Со статусом "записался" | C12: 35 | D12: 55 | E12: 68 | F12: 57 | G12: 15 | H12: 57 | I12: 72 | J12: 99 | K12: 120 | L12: 161 | M12: 47 | N12: 49 | O12: 140 | P12: 140 | Q12: 137 | R12: 167 | S12: 165 | T12: 57 | U12: 49 | V12: 137 | W12: 181 | X12: 41 | Y12: 72 | Z12: 127 | AA12: 98 | AB12: 45 | AC12: 26
B13: Заявки на сайте КТ Ковид | C13: 40 | D13: 60 | E13: 89 | F13: 68 | G13: 16 | H13: 75 | I13: 87 | J13: 112 | K13: 128 | L13: 156 | M13: 88 | N13: 55 | O13: 171 | P13: 162 | Q13: 154 | R13: 156 | S13: 206 | T13: 93 | U13: 40 | V13: 215 | W13: 262 | X13: 149 | Y13: 144 | Z13: 140 | AA13: 135 | AB13: 78 | AC13: 133
B14: Статус "записался" на КТ Ковид | C14: 26 | D14: 32 | E14: 49 | F14: 38 | G14: 7 | H14: 34 | I14: 48 | J14: 71 | K14: 91 | L14: 120 | M14: 29 | N14: 43 | O14: 104 | P14: 102 | Q14: 108 | R14: 116 | S14: 123 | T14: 43 | U14: 33 | V14: 106 | W14: 141 | X14: 30 | Y14: 60 | Z14: 97 | AA14: 75 | AB14: 34 | AC14: 16
B16: Записались в центр (МРТ+АПО):
B17: МРТ Verio | C17: 29 | D17: 41 | E17: 52 | F17: 18 | G17: 12 | H17: 33 | I17: 48 | J17: 50 | K17: 45 | L17: 28 | M17: 12 | N17: 8 | O17: 27 | P17: 59 | Q17: 37 | R17: 49 | S17: 25 | T17: 13 | U17: 8 | V17: 19 | W17: 31 | X17: 44 | Y17: 51 | Z17: 47 | AA17: 9 | AB17: 20 | AC17: 26
B18: МРТ Skyra | C18: 18 | D18: 32 | E18: 20 | F18: 5 | G18: 11 | H18: 29 | I18: 36 | J18: 25 | K18: 19 | L18: 30 | M18: 11 | N18: 7 | O18: 23 | P18: 27 | Q18: 16 | R18: 22 | S18: 23 | T18: 9 | U18: 14 | V18: 35 | W18: 38 | X18: 40 | Y18: 56 | Z18: 40 | AA18: 15 | AB18: 20 | AC18: 39
B19: МРТ Essenza | C19: 25 | D19: 39 | E19: 20 | F19: 12 | G19: 16 | H19: 32 | I19: 25 | J19: 33 | K19: 26 | L19: 35 | M19: 13 | N19: 9 | O19: 39 | P19: 54 | Q19: 26 | R19: 35 | S19: 28 | T19: 13 | U19: 12 | V19: 25 | W19: 35 | X19: 36 | Y19: 25 | Z19: 28 | AA19: 15 | AB19: 12 | AC19: 19
B20: МРТ Костюшко | C20: 26 | D20: 34 | E20: 24 | F20: 15 | G20: 12 | H20: 47 | I20: 70 | J20: 74 | K20: 31 | L20: 28 | M20: 28 | N20: 12 | O20: 38 | P20: 39 | Q20: 72 | R20: 48 | S20: 76 | T20: 21 | U20: 12 | V20: 52 | W20: 58 | X20: 54 | Y20: 50 | Z20: 49 | AA20: 49 | AB20: 11 | AC20: 42
B21: МРТ Солидарности | C21: 6 | D21: 15 | E21: 38 | F21: 2 | G21: 11 | H21: 24 | I21: 37 | J21: 60 | K21: 32 | L21: 11 | M21: 2 | N21: 5 | O21: 26 | P21: 13 | Q21: 60 | R21: 12 | S21: 32 | T21: 6 | U21: 5 | V21: 18 | W21: 20 | X21: 22 | Y21: 48 | Z21: 8 | AA21: 37 | AB21: 6 | AC21: 13
B22: Всего записано за день МРТ : | C22: =SUM(C17:C21) -> 104 | D22: =SUM(D17:D21) -> 161 | E22: =SUM(E17:E21) -> 154 | F22: 52 | G22: 62 | H22: 165 | I22: 216 | J22: 242 | K22: 153 | L22: 132 | M22: 66 | N22: 41 | O22: 153 | P22: 192 | Q22: 211 | R22: 166 | S22: 184 | T22: 62 | U22: 51 | V22: 149 | W22: 182 | X22: 196 | Y22: 230 | Z22: 172 | AA22: 125 | AB22: 69 | AC22: 139
B23: Отменено клиентом + неявка (все центры МРТ) | AC23: 37
B24: АПО | C24: 78 | D24: 80 | E24: 101 | F24: 34 | G24: 18 | H24: 103 | I24: 104 | J24: 67 | K24: 102 | L24: 71 | M24: 47 | N24: 12 | O24: 87 | P24: 85 | Q24: 92 | R24: 81 | S24: 64 | T24: 37 | U24: 21 | V24: 90 | W24: 73 | X24: 79 | Y24: 64 | Z24: 108 | AA24: 47 | AB24: 16 | AC24: 83
B25: Всего записано за день (МРТ + АПО): | C25: =SUM(C22:C24) -> 182 | D25: =SUM(D22:D24) -> 241 | E25: =SUM(E22:E24) -> 255 | F25: 86 | G25: 80 | H25: 268 | I25: 320 | J25: 309 | K25: 255 | L25: 203 | M25: 113 | N25: 53 | O25: 240 | P25: 277 | Q25: 303 | R25: 247 | S25: 248 | T25: 99 | U25: 72 | V25: 239 | W25: 255 | X25: 275 | Y25: 294 | Z25: 280 | AA25: 172 | AB25: =SUM(AB22+AB24) -> 85 | AC25: =SUM(AC22+AC24) -> 222
B27: Кол-во операторов | C27: 7 | D27: 8 | E27: 7 | F27: 4 | G27: 3 | H27: 8 | I27: 8 | J27: 7 | K27: 8 | L27: 8 | M27: 3 | N27: 3 | O27: 7 | P27: 7 | Q27: 9 | R27: 9 | S27: 8 | T27: 4 | U27: 4 | V27: 8 | W27: 7 | X27: 8 | Y27: 8 | Z27: 8 | AA27: 4 | AB27: 4 | AC27: 7
B28: сумма часов работы операторов | C28: 68 | D28: 76 | E28: 68 | F28: 43 | G28: 36 | H28: 76 | I28: 76 | J28: 71 | K28: 76 | L28: 76 | M28: 36 | N28: 36 | O28: 65 | P28: 68 | Q28: 87 | R28: 88 | S28: 76 | T28: 44 | U28: 48 | V28: 80 | W28: 68 | X28: 85 | Y28: 84 | Z28: 80 | AA28: 44 | AB28: 43 | AC28: 68
B29: Коэффициент интенсивности (звонков/час) | C29: =(C8+C11)/C28 -> 13.08823529 | D29: =(D8+D11)/D28 -> 16.63157895 | E29: =(E8+E11)/E28 -> 16.92647059 | F29: =SUM(F8+F11)/F28 -> 13.72093023 | G29: 15.22222222 | H29: 17.60526316 | I29: 15.18421053 | J29: 14.74647887 | K29: 14.30263158 | L29: 15.28947368 | M29: 13.5 | N29: 11.08333333 | O29: 17.63076923 | P29: 15.25 | Q29: 13.33333333 | R29: 13.23863636 | S29: 16.21052632 | T29: 13.36363636 | U29: 9.729166667 | V29: 15.1625 | W29: 17.36764706 | X29: 14.21176471 | Y29: 13.17857143 | Z29: 12.225 | AA29: 15.36363636 | AB29: 12.76744186 | AC29: 14.05882353
B31: Время ожидания на линии (мин)
B32: 244-00-24 (среднее) | D32: 2,00 | E32: =218/60 -> 3.633333333 | F32: =243/60 -> 4.05 | G32: =90/60 -> 1.5 | H32: 3,05 | I32: 2,3 | J32: =153/60 -> 2.55 | K32: =94/60 -> 1.566666667 | L32: =68/60 -> 1.133333333 | M32: =483/50 -> 9.66 | N32: =131/60 -> 2.183333333 | O32: =113/60 -> 1.883333333 | P32: =124/60 -> 2.066666667 | Q32: =235/60 -> 3.916666667 | R32: =246/60 -> 4.1 | S32: =217/60 -> 3.616666667 | T32: =594/60 -> 9.9 | U32: =102/60 -> 1.7 | V32: =443/60 -> 7.383333333 | W32: =520/60 -> 8.666666667 | X32: =381/60 -> 6.35 | Y32: =530/60 -> 8.833333333 | Z32: =650/60 -> 10.83333333 | AA32: =350/60 -> 5.833333333 | AB32: 0.85 | AC32: =1042/50 -> 20.84
B33: 244-31-27 (КТ Ковид, время максимальное) | D33: 8,25 | E33: =1103/60 -> 18.38333333 | F33: =978/60 -> 16.3 | G33: =144/60 -> 2.4 | H33: 6,85 | I33: 12,8 | J33: =1161/60 -> 19.35 | K33: =1196/60 -> 19.93333333 | L33: =1230/60 -> 20.5 | M33: =1330/60 -> 22.16666667 | N33: =1097/60 -> 18.28333333 | O33: =1693/60 -> 28.21666667 | P33: =1781/60 -> 29.68333333 | Q33: =3060/50 -> 61.2 | R33: =3008/60 -> 50.13333333 | S33: =2900/60 -> 48.33333333 | T33: =2180/60 -> 36.33333333 | U33: =1389/60 -> 23.15 | V33: =2344/60 -> 39.06666667 | W33: =2899/60 -> 48.31666667 | X33: =1692/60 -> 28.2 | Y33: =2915/60 -> 48.58333333 | Z33: =2966/60 -> 49.43333333 | AA33: =3160/60 -> 52.66666667 | AB33: =2061/60 -> 34.35 | AC33: =2295/60 -> 38.25
B35: Нажали кнопку "1" - перевод в Клинику | C35: 31 | D35: 34 | E35: 32 | F35: 0 | G35: 0 | H35: 32 | I35: 44 | J35: 34 | K35: 24 | L35: 27 | M35: 0 | N35: 0 | O35: 52 | P35: 33 | Q35: 23 | R35: 16 | S35: 20 | T35: 0 | U35: 0 | V35: 36 | W35: 47 | X35: 39 | Y35: 33 | Z35: 17 | AA35: 0 | AB35: 0 | AC35: 44
B37: Отчет по КТ-Ковид
B38: Записали КТ Ковид за день:
B39: Записаны сегодня на КТ (Есенина) | C39: 308 | D39: 475 | E39: 528 | F39: 259 | G39: 189 | H39: 470 | I39: 413 | J39: 379 | K39: 342 | L39: 371 | M39: 198 | N39: 150 | O39: 348 | P39: 372 | Q39: 362 | R39: 431 | S39: 384 | T39: 224 | U39: 160 | V39: 432 | W39: 362 | X39: 390 | Y39: 390 | Z39: 377 | AA39: 258 | AB39: 221 | AC39: 398
B40: из них ОМС | C40: 217 | D40: 380 | E40: 442 | F40: 179 | G40: 114 | H40: 405 | I40: 351 | J40: 326 | K40: 247 | L40: 304 | M40: 172 | N40: 96 | O40: 288 | P40: 316 | Q40: 308 | R40: 368 | S40: 339 | T40: 172 | U40: 94 | V40: 374 | W40: 330 | X40: 355 | Y40: 343 | Z40: 348 | AA40: 225 | AB40: 178 | AC40: 360
B41: Записаны сегодня на КТ (Советская) | C41: 166 | D41: 256 | E41: 214 | F41: 101 | G41: 66 | H41: 276 | I41: 195 | J41: 146 | K41: 163 | L41: 175 | M41: 93 | N41: 62 | O41: 151 | P41: 208 | Q41: 204 | R41: 187 | S41: 182 | T41: 141 | U41: 71 | V41: 198 | W41: 198 | X41: 202 | Y41: 222 | Z41: 163 | AA41: 107 | AB41: 99 | AC41: 201
B42: из них ОМС | C42: 158 | D42: 251 | E42: 210 | F42: 99 | G42: 62 | H42: 271 | I42: 191 | J42: 141 | K42: 156 | L42: 163 | M42: 93 | N42: 60 | O42: 140 | P42: 204 | Q42: 196 | R42: 185 | S42: 173 | T42: 139 | U42: 71 | V42: 192 | W42: 196 | X42: 195 | Y42: 216 | Z42: 158 | AA42: 104 | AB42: 94 | AC42: 194
B43: Записано платных (всего) | C43: =(C39-C40)+(C41-C42) -> 99 | D43: =(D39-D40)+(D41-D42) -> 100 | E43: =(E39-E40)+(E41-E42) -> 90 | F43: 82 | G43: 79 | H43: 70 | I43: 66 | J43: 58 | K43: 102 | L43: 79 | M43: 26 | N43: 56 | O43: 71 | P43: 60 | Q43: 62 | R43: 65 | S43: 54 | T43: 54 | U43: 66 | V43: 64 | W43: 34 | X43: 42 | Y43: 53 | Z43: 34 | AA43: 36 | AB43: 48 | AC43: 45
B44: Всего записано за день: | C44: =SUM(C39+C41) -> 474 | D44: 731 | E44: 742 | F44: 360 | G44: 255 | H44: 746 | I44: 608 | J44: 525 | K44: 505 | L44: 546 | M44: 291 | N44: 212 | O44: 499 | P44: 580 | Q44: 566 | R44: 618 | S44: 566 | T44: 365 | U44: 231 | V44: 630 | W44: 560 | X44: 592 | Y44: 612 | Z44: 540 | AA44: 365 | AB44: 320 | AC44: 599
B46: Очередь по записи КТ-Ковид:
B47: Советская | C47: 1374 | D47: 1422 | E47: 1661 | F47: 1555 | G47: 1405 | H47: 1468 | I47: 1466 | J47: 1393 | K47: 1331 | L47: 1294 | M47: 1178 | N47: 1033 | O47: 978 | P47: 982 | Q47: 802 | R47: 988 | S47: 976 | T47: 907 | U47: 776 | V47: 779 | W47: 794 | X47: 796 | Y47: 821 | Z47: 783 | AA47: 699 | AB47: 601 | AC47: 607
B48: Есенина | C48: 1996 | D48: 2160 | E48: 2337 | F48: 2237 | G48: 2077 | H48: 2124 | I48: 2117 | J48: 2045 | K48: 1943 | L48: 1873 | M48: 1663 | N48: 1423 | O48: 1387 | P48: 1381 | Q48: 1359 | R48: 1385 | S48: 1390 | T48: 1213 | U48: 986 | V48: 1044 | W48: 1038 | X48: 1063 | Y48: 1089 | Z48: 1110 | AA48: 995 | AB48: 840 | AC48: 865
B49: Всего в очереди: | C49: =SUM(C47+C48) -> 3370 | D49: =SUM(D47:D48) -> 3582 | E49: 3998 | F49: 3792 | G49: 3482 | H49: 3592 | I49: 3583 | J49: 3438 | K49: 3274 | L49: 3167 | M49: 2841 | N49: 2456 | O49: 2365 | P49: 2363 | Q49: 2161 | R49: 2373 | S49: 2366 | T49: 2120 | U49: 1762 | V49: 1823 | W49: 1832 | X49: 1859 | Y49: 1910 | Z49: 1893 | AA49: 1694 | AB49: 1441 | AC49: 1472
B51: Выполнено КТ-Ковид за день:
B52: Советская | C52: 150 | D52: 159 | E52: 159 | F52: 155 | G52: 150 | H52: 160 | I52: 150 | J52: 149 | K52: 159 | L52: 156 | M52: 155 | N52: 154 | O52: 161 | P52: 159 | Q52: 163 | R52: 160 | S52: 159 | T52: 164 | U52: 158 | V52: 159 | W52: 165 | X52: 162 | Y52: 162 | Z52: 165 | AA52: 166 | AB52: 164 | AC52: 160
B53: Есенина | C53: 222 | D53: 225 | E53: 319 | F53: 230 | G53: 228 | H53: 321 | I53: 310 | J53: 335 | K53: 319 | L53: 313 | M53: 310 | N53: 320 | O53: 311 | P53: 312 | Q53: 312 | R53: 326 | S53: 323 | T53: 321 | U53: 325 | V53: 315 | W53: 312 | X53: 324 | Y53: 323 | Z53: 322 | AA53: 321 | AB53: 329 | AC53: 322
B54: Всего выполнено за день: | C54: =SUM(C52:C53) -> 372 | D54: 384 | E54: 478 | F54: 385 | G54: 378 | H54: 481 | I54: 460 | J54: 484 | K54: 478 | L54: 469 | M54: 465 | N54: 474 | O54: 472 | P54: 471 | Q54: 475 | R54: 486 | S54: 482 | T54: 485 | U54: 483 | V54: 474 | W54: 477 | X54: 486 | Y54: 485 | Z54: 487 | AA54: 487 | AB54: 493 | AC54: 482

Sheet Декабрь
A2: Отчет по call-центру
B3: 2020-12-01 | C3: 2020-12-02 | D3: 2020-12-03 | E3: 2020-12-04 | F3: 2020-12-05 | G3: 2020-12-06 | H3: 2020-12-07 | I3: 2020-12-08 | J3: 2020-12-09 | K3: 2020-12-10 | L3: 2020-12-11 | M3: 2020-12-12 | N3: 2020-12-13 | O3: 2020-12-14 | P3: 2020-12-15 | Q3: 2020-12-16 | R3: 2020-12-17 | S3: 2020-12-18 | T3: 2020-12-19 | U3: 2020-12-20 | V3: 2020-12-21 | W3: 2020-12-22 | X3: 2020-12-23 | Y3: 2020-12-24 | Z3: 2020-12-25 | AA3: 2020-12-26 | AB3: 2020-12-27 | AC3: 2020-12-28 | AD3: 2020-12-29 | AE3: 2020-12-30 | AF3: 2020-12-31
A4: Кол-во обраб. звонков (Линия КТ Ковид) | C4: 293 | D4: 351 | E4: 250 | F4: 156 | G4: 184 | H4: 277 | I4: 331 | J4: 242 | K4: 314 | L4: 304 | M4: 260 | N4: 241 | O4: 252 | P4: 243 | Q4: 226 | R4: 270 | S4: 185 | T4: 278 | U4: 138 | V4: 288 | W4: 312 | X4: 294 | Y4: 226 | Z4: 240 | AA4: 245 | AB4: 259 | AC4: 243 | AD4: 220 | AE4: 201 | AF4: 255
A5: Кол-во пропущенных | B5: 273 | C5: 358 | D5: 79 | E5: 323 | F5: 545 | G5: 627 | H5: 303 | I5: 297 | J5: 361 | K5: 319 | L5: 349 | M5: 777 | N5: 679 | O5: 363 | P5: 345 | Q5: 345 | R5: 575 | S5: 340 | T5: 333 | U5: 577 | V5: 382 | W5: 224 | X5: 276 | Y5: 479 | Z5: 956 | AA5: 506 | AB5: 456 | AC5: 484 | AD5: 301 | AE5: 316 | AF5: 150
A6: Кол-во обраб. звонков (Линия call-центр) | B6: 464 | C6: 768 | D6: 173 | E6: 583 | F6: 286 | G6: 243 | H6: 736 | I6: 571 | J6: 529 | K6: 788 | L6: 730 | M6: 422 | N6: 232 | O6: 817 | P6: 938 | Q6: 880 | R6: 830 | S6: 816 | T6: 559 | U6: 269 | V6: 679 | W6: 943 | X6: 856 | Y6: 834 | Z6: 873 | AA6: 506 | AB6: 253 | AC6: 797 | AD6: 755 | AE6: 608 | AF6: 82
A7: Кол-во пропущенных | B7: 842 | C7: 486 | D7: 737 | E7: 610 | F7: 358 | G7: 96 | H7: 352 | I7: 721 | J7: 742 | K7: 359 | L7: 511 | M7: 152 | N7: 53 | O7: 525 | P7: 411 | Q7: 382 | R7: 448 | S7: 446 | T7: 87 | U7: 100 | V7: 526 | W7: 214 | X7: 318 | Y7: 227 | Z7: 162 | AA7: 156 | AB7: 148 | AC7: 92 | AD7: 110 | AE7: 156 | AF7: 194
A8: Всего звонков (обе линии) | B8: =SUM(B4+B6) -> 464 | C8: 1061 | D8: 524 | E8: 833 | F8: 442 | G8: 427 | H8: 1013 | I8: 902 | J8: 771 | K8: 1102 | L8: 1034 | M8: 682 | N8: 473 | O8: 1069 | P8: 1181 | Q8: 1106 | R8: 1100 | S8: 1001 | T8: 837 | U8: 407 | V8: 967 | W8: 1255 | X8: 1150 | Y8: 1060 | Z8: 1113 | AA8: 751 | AB8: 512 | AC8: 1040 | AD8: 975 | AE8: 809 | AF8: 337
A10: Заявки на сайте:
A11: Количество заявок на сайте (всего) | B11: 216 | C11: 210 | D11: 201 | E11: 211 | F11: 203 | G11: 126 | H11: 207 | I11: 207 | J11: 210 | K11: 205 | L11: 206 | M11: 205 | N11: 109 | O11: 205 | P11: 209 | Q11: 219 | R11: 215 | S11: 211 | T11: 208 | U11: 170 | V11: 207 | W11: 214 | X11: 213 | Y11: 209 | Z11: 209 | AA11: 210 | AB11: 157 | AC11: 208 | AD11: 466 | AE11: 203 | AF11: 203
A12: Со статусом "записался" | B12: 73 | C12: 100 | D12: 115 | E12: 97 | F12: 108 | G12: 70 | H12: 103 | I12: 107 | J12: 100 | K12: 103 | L12: 104 | M12: 120 | N12: 50 | O12: 121 | P12: 114 | Q12: 120 | R12: 139 | S12: 134 | T12: 135 | U12: 94 | V12: 144 | W12: 110 | X12: 137 | Y12: 166 | Z12: 135 | AA12: 140 | AB12: 96 | AC12: 137 | AD12: 335 | AE12: 163 | AF12: 137
A13: Заявки на сайте КТ Ковид | B13: 114 | C13: 129 | D13: 159 | E13: 151 | F13: 157 | G13: 88 | H13: 141 | I13: 148 | J13: 159 | K13: 147 | L13: 163 | M13: 155 | N13: 83 | O13: 173 | P13: 162 | Q13: 146 | R13: 147 | S13: 141 | T13: 162 | U13: 128 | V13: 158 | W13: 154 | X13: 154 | Y13: 156 | Z13: 169 | AA13: 150 | AB13: 117 | AC13: 126 | AD13: 320 | AE13: 133 | AF13: 130
A14: Статус "записался" на КТ Ковид | B14: 55 | C14: 65 | D14: 95 | E14: 77 | F14: 90 | G14: 52 | H14: 81 | I14: 87 | J14: 80 | K14: 78 | L14: 87 | M14: 103 | N14: 36 | O14: 110 | P14: 100 | Q14: 87 | R14: 113 | S14: 95 | T14: 108 | U14: 77 | V14: 117 | W14: 87 | X14: 105 | Y14: 128 | Z14: 111 | AA14: 108 | AB14: 80 | AC14: 89 | AD14: 242 | AE14: 110 | AF14: 97
A16: Записались в центр (МРТ+АПО):
A17: МРТ Verio | B17: 0 | C17: 6 | D17: 20 | E17: 42 | F17: 8 | G17: 9 | H17: 43 | I17: 31 | J17: 43 | K17: 45 | L17: 22 | M17: 8 | N17: 13 | O17: 34 | P17: 51 | Q17: 27 | R17: 75 | S17: 34 | T17: 9 | U17: 10 | V17: 33 | W17: 59 | X17: 36 | Y17: 43 | Z17: 16 | AA17: 9 | AB17: 6 | AC17: 24 | AD17: 36 | AE17: 9 | AF17: 10
A18: МРТ Skyra | B18: 0 | C18: 4 | D18: 7 | E18: 23 | F18: 13 | G18: 10 | H18: 23 | I18: 31 | J18: 31 | K18: 37 | L18: 19 | M18: 16 | N18: 13 | O18: 41 | P18: 28 | Q18: 32 | R18: 34 | S18: 20 | T18: 18 | U18: 5 | V18: 26 | W18: 18 | X18: 7 | Y18: 35 | Z18: 19 | AA18: 13 | AB18: 11 | AC18: 32 | AD18: 19 | AE18: 6 | AF18: 7
A19: МРТ Essenza | B19: 0 | C19: 4 | D19: 4 | E19: 26 | F19: 14 | G19: 7 | H19: 37 | I19: 44 | J19: 27 | K19: 30 | L19: 22 | M19: 13 | N19: 20 | O19: 32 | P19: 32 | Q19: 32 | R19: 35 | S19: 20 | T19: 14 | U19: 8 | V19: 26 | W19: 24 | X19: 26 | Y19: 19 | Z19: 25 | AA19: 22 | AB19: 3 | AC19: 31 | AD19: 12 | AE19: 10 | AF19: 5
A20: МРТ Костюшко | B20: 0 | C20: 7 | D20: 10 | E20: 58 | F20: 29 | G20: 10 | H20: 39 | I20: 58 | J20: 62 | K20: 31 | L20: 62 | M20: 10 | N20: 13 | O20: 30 | P20: 55 | Q20: 52 | R20: 31 | S20: 43 | T20: 16 | U20: 14 | V20: 67 | W20: 51 | X20: 45 | Y20: 33 | Z20: 41 | AA20: 21 | AB20: 18 | AC20: 39 | AD20: 32 | AE20: 20 | AF20: 15
A21: МРТ Солидарности | B21: 0 | C21: 5 | D21: 8 | E21: 52 | F21: 1 | G21: 5 | H21: 12 | I21: 36 | J21: 24 | K21: 17 | L21: 24 | M21: 3 | N21: 7 | O21: 24 | P21: 14 | Q21: 45 | R21: 14 | S21: 41 | T21: 4 | U21: 4 | V21: 18 | W21: 23 | X21: 34 | Y21: 33 | Z21: 24 | AA21: 28 | AB21: 7 | AC21: 23 | AD21: 19 | AE21: 16 | AF21: 1
A22: Всего записано за день МРТ : | B22: =SUM(B17:B21) -> 0 | C22: =SUM(C17:C21) -> 26 | D22: =SUM(D17:D21) -> 49 | E22: =SUM(E17:E21) -> 201 | F22: 65 | G22: 41 | H22: 154 | I22: 200 | J22: 187 | K22: 160 | L22: 149 | M22: 50 | N22: 66 | O22: 161 | P22: 180 | Q22: 188 | R22: 189 | S22: 158 | T22: 61 | U22: 41 | V22: 170 | W22: 175 | X22: 148 | Y22: 163 | Z22: 125 | AA22: 93 | AB22: 45 | AC22: 149 | AD22: 118 | AE22: 61 | AF22: 38
A23: Отменено клиентом + неявка (все центры МРТ) | B23: 0 | C23: 0 | D23: 9 | E23: 31 | F23: 28 | G23: 22 | H23: 22 | I23: 20 | J23: 35 | K23: 21 | L23: 25 | M23: 28 | N23: 32 | O23: 29 | P23: 30 | Q23: 25 | R23: 38 | S23: 27 | T23: 27 | U23: 21 | V23: 45 | W23: 28 | X23: 48 | Y23: 24 | Z23: 36 | AA23: 23 | AB23: 23 | AC23: 38 | AD23: 34 | AE23: 24 | AF23: 17
A24: АПО | B24: 71 | C24: 87 | D24: 67 | E24: 70 | F24: 41 | G24: 9 | H24: 105 | I24: 68 | J24: 70 | K24: 81 | L24: 75 | M24: 38 | N24: 12 | O24: 91 | P24: 73 | Q24: 97 | R24: 66 | S24: 47 | T24: 35 | U24: 7 | V24: 83 | W24: 41 | X24: 48 | Y24: 81 | Z24: 52 | AA24: 36 | AB24: 15 | AC24: 82 | AD24: 58 | AE24: 37 | AF24: 17
A25: Всего записано за день (МРТ + АПО): | B25: =SUM(B22+B24) -> 71 | C25: =SUM(C22+C24) -> 113 | D25: 116 | E25: =SUM(E22+E24) -> 271 | F25: 106 | G25: 50 | H25: 259 | I25: 268 | J25: 257 | K25: 241 | L25: 224 | M25: 88 | N25: 78 | O25: 252 | P25: 253 | Q25: 285 | R25: 255 | S25: 205 | T25: 96 | U25: 48 | V25: 253 | W25: 216 | X25: 196 | Y25: 244 | Z25: 177 | AA25: 129 | AB25: 60 | AC25: 231 | AD25: 176 | AE25: 98 | AF25: 55
A27: Кол-во операторов | B27: 8 | C27: 8 | D27: 8 | E27: 7 | F27: 4 | G27: 4 | H27: 8 | I27: 8 | J27: 8 | K27: 9 | L27: 9 | M27: 5 | N27: 4 | O27: 9 | P27: 9 | Q27: 9 | R27: 9 | S27: 8 | T27: 6 | U27: 3 | V27: 8 | W27: 9 | X27: 8 | Y27: 9 | Z27: 9 | AA27: 7 | AB27: 3 | AC27: 9 | AD27: 9 | AE27: 8 | AF27: 5
A28: сумма часов работы операторов | B28: 80 | C28: 80 | D28: 80 | E28: 68 | F28: 42 | G28: 44 | H28: 80 | I28: 80 | J28: 82 | K28: 90 | L28: 88 | M28: 54 | N28: 48 | O28: 88 | P28: 88 | Q28: 88 | R28: 92 | S28: 84 | T28: 64 | U28: 36 | V28: 84 | W28: 92 | X28: 80 | Y28: 92 | Z28: 92 | AA28: 70 | AB28: 36 | AC28: 92 | AD28: 92 | AE28: 80 | AF28: 28
A29: Коэффициент интенсивности (звонков/час) | B29: =(B8+B11)/B28 -> 8.5 | C29: 15.8875 | D29: 9.0625 | E29: 15.35294118 | F29: 15.35714286 | G29: 12.56818182 | H29: 15.25 | I29: 13.8625 | J29: 11.96341463 | K29: 14.52222222 | L29: 14.09090909 | M29: 16.42592593 | N29: 12.125 | O29: 14.47727273 | P29: 15.79545455 | Q29: 15.05681818 | R29: 14.29347826 | S29: 14.42857143 | T29: 16.328125 | U29: 16.02777778 | V29: 13.97619048 | W29: 15.9673913 | X29: 17.0375 | Y29: 13.79347826 | Z29: 14.36956522 | AA29: 13.72857143 | AB29: 18.58333333 | AC29: 13.56521739 | AD29: 15.66304348 | AE29: 12.65 | AF29: 19.28571429
A31: Время ожидания на линии (мин)
A32: 244-00-24 (среднее) | B32: =994/60 -> 16.56666667 | C32: =463/60 -> 7.716666667 | D32: =83/60 -> 1.383333333 | E32: =674/60 -> 11.23333333 | F32: =938/60 -> 15.63333333 | G32: =197/60 -> 3.283333333 | H32: =224/60 -> 3.733333333 | I32: =777/60 -> 12.95 | J32: =899/60 -> 14.98333333 | K32: =326/60 -> 5.433333333 | L32: =347/60 -> 5.783333333 | M32: =187/60 -> 3.116666667 | N32: =191/60 -> 3.183333333 | O32: =209/60 -> 3.483333333 | P32: =262/60 -> 4.366666667 | Q32: =276/60 -> 4.6 | R32: =400/60 -> 6.666666667 | S32: =178/60 -> 2.966666667 | T32: =41/60 -> 0.6833333333 | U32: =205/60 -> 3.416666667 | V32: =497/60 -> 8.283333333 | W32: =79/60 -> 1.316666667 | X32: =206/60 -> 3.433333333 | Y32: =218/60 -> 3.633333333 | Z32: =122/60 -> 2.033333333 | AA32: =178/60 -> 2.966666667 | AB32: =76/60 -> 1.266666667 | AC32: =71/60 -> 1.183333333 | AD32: =78/60 -> 1.3 | AE32: =123/60 -> 2.05 | AF32: =103/60 -> 1.716666667
A33: 244-31-27 (КТ Ковид, время максимальное) | B33: =2181/60 -> 36.35 | C33: =2667/60 -> 44.45 | D33: =2872/60 -> 47.86666667 | E33: =2938/60 -> 48.96666667 | F33: =3028/60 -> 50.46666667 | G33: =2482/60 -> 41.36666667 | H33: =2991/60 -> 49.85 | I33: =2731/60 -> 45.51666667 | J33: =2822/60 -> 47.03333333 | K33: =2537/60 -> 42.28333333 | L33: =2522/60 -> 42.03333333 | M33: =2261/60 -> 37.68333333 | N33: =1335/60 -> 22.25 | O33: =2870/60 -> 47.83333333 | P33: =3024/60 -> 50.4 | Q33: =2940/60 -> 49 | R33: =2816/60 -> 46.93333333 | S33: =3068/60 -> 51.13333333 | T33: =2952/60 -> 49.2 | U33: =3673/50 -> 73.46 | V33: =2447/60 -> 40.78333333 | W33: =2978/60 -> 49.63333333 | X33: =2752/60 -> 45.86666667 | Y33: =2348/60 -> 39.13333333 | Z33: =2595/60 -> 43.25 | AA33: =3082/60 -> 51.36666667 | AB33: =2745/60 -> 45.75 | AC33: =2670/60 -> 44.5 | AD33: =3287/60 -> 54.78333333 | AE33: =3230/60 -> 53.83333333 | AF33: =4382/60 -> 73.03333333
A35: Нажали кнопку "1" - перевод в Клинику | B35: 25 | C35: 18 | D35: 0 | E35: 41 | F35: 0 | G35: 0 | H35: 30 | I35: 36 | J35: 28 | K35: 10 | L35: 20 | M35: 0 | N35: 0 | O35: 33 | P35: 11 | Q35: 23 | R35: 21 | S35: 21 | T35: 0 | U35: 0 | V35: 31 | W35: 15 | X35: 22 | Y35: 21 | Z35: 29 | AA35: 0 | AB35: 0 | AC35: 37 | AD35: 22 | AE35: 27 | AF35: 6
A37: Отчет по КТ-Ковид
A38: Записали КТ Ковид за день:
A39: Записаны сегодня на КТ (Есенина) | B39: 503 | C39: 497 | D39: 558 | E39: 391 | F39: 336 | G39: 242 | H39: 463 | I39: 490 | J39: 460 | K39: 583 | L39: 506 | M39: 328 | N39: 265 | O39: 477 | P39: 516 | Q39: 534 | R39: 496 | S39: 514 | T39: 387 | U39: 184 | V39: 462 | W39: 536 | X39: 469 | Y39: 518 | Z39: 456 | AA39: 337 | AB39: 290 | AC39: 407 | AD39: 406 | AE39: 406 | AF39: 162
A40: из них ОМС | B40: 466 | C40: 457 | D40: 498 | E40: 355 | F40: 299 | G40: 189 | H40: 414 | I40: 448 | J40: 419 | K40: 540 | L40: 465 | M40: 299 | N40: 221 | O40: 429 | P40: 474 | Q40: 490 | R40: 446 | S40: 477 | T40: 358 | U40: 163 | V40: 413 | W40: 495 | X40: 434 | Y40: 480 | Z40: 414 | AA40: 317 | AB40: 251 | AC40: 362 | AD40: 409 | AE40: 369 | AF40: 151
A41: Записаны сегодня на КТ (Советская) | B41: 307 | C41: 227 | D41: 274 | E41: 209 | F41: 132 | G41: 99 | H41: 192 | I41: 261 | J41: 219 | K41: 298 | L41: 263 | M41: 198 | N41: 131 | O41: 234 | P41: 238 | Q41: 257 | R41: 225 | S41: 173 | T41: 155 | U41: 111 | V41: 207 | W41: 215 | X41: 219 | Y41: 232 | Z41: 209 | AA41: 177 | AB41: 161 | AC41: 175 | AD41: 235 | AE41: 179 | AF41: 72
A42: из них ОМС | B42: 300 | C42: 225 | D42: 263 | E42: 204 | F42: 126 | G42: 96 | H42: 185 | I42: 252 | J42: 213 | K42: 294 | L42: 254 | M42: 192 | N42: 124 | O42: 227 | P42: 228 | Q42: 247 | R42: 217 | S42: 166 | T42: 149 | U42: 101 | V42: 200 | W42: 200 | X42: 215 | Y42: 221 | Z42: 189 | AA42: 176 | AB42: 153 | AC42: 170 | AD42: 222 | AE42: 170 | AF42: 70
A43: Записано платных (всего) | B43: =(B39+B41)-(B40+B42) -> 44 | C43: =(C39+C41)-(C40+C42) -> 42 | D43: =(D39+D41)-(D40+D42) -> 71 | E43: =(E39+E41)-(E40+E42) -> 41 | F43: 43 | G43: 56 | H43: 56 | I43: 51 | J43: 47 | K43: 47 | L43: 50 | M43: 35 | N43: 51 | O43: 55 | P43: 52 | Q43: 54 | R43: 58 | S43: 44 | T43: 35 | U43: 31 | V43: 56 | W43: 56 | X43: 39 | Y43: 49 | Z43: 62 | AA43: 21 | AB43: 47 | AC43: 50 | AD43: 10 | AE43: 46 | AF43: 13
A44: Всего записано за день: | B44: =SUM(B39+B41) -> 810 | C44: =SUM(C39+C41) -> 724 | D44: =SUM(D39+D41) -> 832 | E44: =SUM(E39+E41) -> 600 | F44: 468 | G44: 341 | H44: 655 | I44: 751 | J44: 679 | K44: 881 | L44: 769 | M44: 526 | N44: 396 | O44: 711 | P44: 754 | Q44: 791 | R44: 721 | S44: 687 | T44: 542 | U44: 295 | V44: 669 | W44: 751 | X44: 688 | Y44: 750 | Z44: 665 | AA44: 514 | AB44: 451 | AC44: 582 | AD44: 641 | AE44: 585 | AF44: 234
A46: Очередь по записи КТ-Ковид:
A47: Советская | B47: 716 | C47: 758 | D47: 845 | E47: 869 | F47: 810 | G47: 728 | H47: 737 | I47: 811 | J47: 834 | K47: 944 | L47: 1026 | M47: 1039 | N47: 977 | O47: 1018 | P47: 1065 | Q47: 1122 | R47: 1137 | S47: 1118 | T47: 1083 | U47: 1000 | V47: 1022 | W47: 1044 | X47: 1060 | Y47: 1100 | Z47: 1105 | AA47: 1081 | AB47: 1046 | AC47: 1028 | AD47: 1076 | AE47: 1057 | AF47: 1021
A48: Есенина | B48: 1026 | C48: 1169 | D48: 1367 | E48: 1388 | F48: 1354 | G48: 1211 | H48: 1289 | I48: 1402 | J48: 1472 | K48: 1686 | L48: 1813 | M48: 1760 | N48: 1661 | O48: 1753 | P48: 1885 | Q48: 2016 | R48: 2121 | S48: 2237 | T48: 2236 | U48: 2024 | V48: 2103 | W48: 2210 | X48: 2301 | Y48: 2474 | Z48: 2514 | AA48: 2435 | AB48: 2322 | AC48: 2335 | AD48: 2404 | AE48: 2407 | AF48: 2358
A49: Всего в очереди: | B49: =SUM(B47:B48) -> 1742 | C49: =SUM(C47:C48) -> 1927 | D49: =SUM(D47:D48) -> 2212 | E49: =SUM(E47:E48) -> 2257 | F49: 2164 | G49: =SUM(G47:G48) -> 1939 | H49: 2026 | I49: 2213 | J49: 2306 | K49: 2630 | L49: 2839 | M49: 2799 | N49: 2638 | O49: 2771 | P49: 2950 | Q49: 3138 | R49: 3258 | S49: 3355 | T49: 3319 | U49: 3024 | V49: 3125 | W49: 3254 | X49: 3361 | Y49: 3574 | Z49: 3619 | AA49: 3516 | AB49: 3368 | AC49: 3363 | AD49: 3480 | AE49: 3464 | AF49: 3379
A51: Выполнено КТ-Ковид за день:
A52: Советская | B52: 169 | C52: 165 | D52: 165 | E52: 164 | F52: 167 | G52: 162 | H52: 160 | I52: 164 | J52: 163 | K52: 162 | L52: 166 | M52: 163 | N52: 164 | O52: 171 | P52: 164 | Q52: 165 | R52: 164 | S52: 163 | T52: 169 | U52: 165 | V52: 163 | W52: 162 | X52: 158 | Y52: 167 | Z52: 159 | AA52: 164 | AB52: 166 | AC52: 162 | AD52: 165 | AE52: 164 | AF52: 83
A53: Есенина | B53: 313 | C53: 323 | D53: 321 | E53: 334 | F53: 319 | G53: 327 | H53: 325 | I53: 319 | J53: 317 | K53: 328 | L53: 326 | M53: 327 | N53: 326 | O53: 327 | P53: 319 | Q53: 320 | R53: 327 | S53: 327 | T53: 330 | U53: 321 | V53: 328 | W53: 330 | X53: 326 | Y53: 323 | Z53: 321 | AA53: 328 | AB53: 322 | AC53: 330 | AD53: 323 | AE53: 326 | AF53: 167
A54: Всего выполнено за день: | B54: =SUM(B52:B53) -> 482 | C54: =SUM(C52:C53) -> 488 | D54: =SUM(D52:D53) -> 486 | E54: =SUM(E52:E53) -> 498 | F54: 486 | G54: 489 | H54: 485 | I54: 483 | J54: 480 | K54: 490 | L54: 492 | M54: 490 | N54: 490 | O54: =SUM(O52:O53) -> 498 | P54: 483 | Q54: 485 | R54: 491 | S54: 490 | T54: 499 | U54: 486 | V54: 491 | W54: 492 | X54: =SUM(X52:X53) -> 484 | Y54: =SUM(Y52:Y53) -> 490 | Z54: =SUM(Z52:Z53) -> 480 | AA54: 492 | AB54: 488 | AC54: 492 | AD54: 488 | AE54: 490 | AF54: 250

Sheet Январь 2021
A2: Отчет по call-центру
B3: 2021-01-01 | C3: 2021-01-02 | D3: 2021-01-03 | E3: 2021-01-04 | F3: 2021-01-05 | G3: 2021-01-06 | H3: 2021-01-07 | I3: 2021-01-08 | J3: 2021-01-09 | K3: 2021-01-10 | L3: 2021-01-11 | M3: 2021-01-12 | N3: 2021-01-13 | O3: 2021-01-14 | P3: 2021-01-15 | Q3: 2021-01-16 | R3: 2021-01-17 | S3: 2021-01-18 | T3: 2021-01-19 | U3: 2021-01-20 | V3: 2021-01-21 | W3: 2021-01-22 | X3: 2021-01-23 | Y3: 2021-01-24 | Z3: 2021-01-25 | AA3: 2021-01-26 | AB3: 2021-01-27 | AC3: 2021-01-28 | AD3: 2021-01-29 | AE3: 2021-01-30 | AF3: 2021-01-31
A4: Кол-во обраб. звонков (Линия call-центр) | B4: 0 | C4: 224 | D4: 351 | E4: 540 | F4: 480 | G4: 507 | H4: 336 | I4: 483 | J4: 365 | K4: 302 | L4: 841 | M4: 817 | N4: 699 | O4: 624 | P4: 731 | Q4: 409 | R4: 235 | S4: 749 | T4: 766 | U4: 720 | V4: 617 | W4: 605 | X4: 340 | Y4: 223 | Z4: 572 | AA4: 731 | AB4: 656 | AC4: 614 | AD4: 595 | AE4: 256 | AF4: 198
A5: Кол-во пропущенных | B5: 0 | C5: 253 | D5: 79 | E5: 159 | F5: 84 | G5: 39 | H5: 29 | I5: 61 | J5: 71 | K5: 37 | L5: 319 | M5: 299 | N5: 510 | O5: 384 | P5: 220 | Q5: 74 | R5: 26 | S5: 200 | T5: 100 | U5: 111 | V5: 165 | W5: 109 | X5: 78 | Y5: 71 | Z5: 441 | AA5: 261 | AB5: 143 | AC5: 146 | AD5: 169 | AE5: 119 | AF5: 34
A6: Кол-во обраб. звонков (Линия КТ-Ковид) | B6: 0 | C6: 133 | D6: 173 | E6: 244 | F6: 209 | G6: 252 | H6: 289 | I6: 253 | J6: 190 | K6: 141 | L6: 339 | M6: 216 | N6: 261 | O6: 256 | P6: 264 | Q6: 162 | R6: 156 | S6: 240 | T6: 219 | U6: 374 | V6: 286 | W6: 481 | X6: 190 | Y6: 173 | Z6: 405 | AA6: 386 | AB6: 423 | AC6: 352 | AD6: 544 | AE6: 317 | AF6: 128
A7: Кол-во пропущенных | B7: 0 | C7: 500 | D7: 737 | E7: 325 | F7: 420 | G7: 453 | H7: 448 | I7: 424 | J7: 545 | K7: 534 | L7: 330 | M7: 299 | N7: 262 | O7: 318 | P7: 287 | Q7: 419 | R7: 290 | S7: 393 | T7: 338 | U7: 312 | V7: 439 | W7: 468 | X7: 450 | Y7: 11 | Z7: 413 | AA7: 412 | AB7: 456 | AC7: 487 | AD7: 457 | AE7: 43 | AF7: 8
A8: Всего звонков (обе линии) | B8: 0 | C8: =SUM(C4+C6) -> 357 | D8: 524 | E8: 784 | F8: 689 | G8: 759 | H8: 625 | I8: 736 | J8: 555 | K8: 443 | L8: 1180 | M8: 1033 | N8: 960 | O8: 880 | P8: 995 | Q8: 571 | R8: 391 | S8: 989 | T8: 985 | U8: 1094 | V8: 903 | W8: 1086 | X8: 530 | Y8: 396 | Z8: 977 | AA8: 1117 | AB8: 1079 | AC8: 966 | AD8: 1139 | AE8: 573 | AF8: 326
A10: Заявки на сайте:
A11: Количество заявок на сайте (всего) | B11: 155 | C11: 206 | D11: 201 | E11: 201 | F11: 203 | G11: 201 | H11: 156 | I11: 201 | J11: 181 | K11: 133 | L11: 210 | M11: 211 | N11: 210 | O11: 207 | P11: 206 | Q11: 201 | R11: 71 | S11: 204 | T11: 205 | U11: 206 | V11: 205 | W11: 202 | X11: 115 | Y11: 50 | Z11: 279 | AA11: 240 | AB11: 191 | AC11: 218 | AD11: 189 | AE11: 62 | AF11: 41
A12: Со статусом "записался" | B12: 73 | C12: 100 | D12: 102 | E12: 120 | F12: 130 | G12: 144 | H12: 121 | I12: 139 | J12: 106 | K12: 99 | L12: 151 | M12: 140 | N12: 141 | O12: 145 | P12: 152 | Q12: 166 | R12: 44 | S12: 165 | T12: 170 | U12: 166 | V12: 162 | W12: 163 | X12: 81 | Y12: 22 | Z12: 181 | AA12: 140 | AB12: 128 | AC12: 154 | AD12: 124 | AE12: 34 | AF12: 28
A13: Заявки на сайте КТ Ковид | B13: 114 | C13: 129 | D13: 134 | E13: 127 | F13: 139 | G13: 149 | H13: 108 | I13: 130 | J13: 120 | K13: 90 | L13: 128 | M13: 130 | N13: 131 | O13: 127 | P13: 136 | Q13: 130 | R13: 34 | S13: 130 | T13: 135 | U13: 125 | V13: 132 | W13: 125 | X13: 63 | Y13: 22 | Z13: 151 | AA13: 139 | AB13: 116 | AC13: 124 | AD13: 106 | AE13: 23 | AF13: 15
A14: Статус "записался" на КТ Ковид | B14: 55 | C14: 65 | D14: 71 | E14: 77 | F14: 88 | G14: 113 | H14: 92 | I14: 95 | J14: 69 | K14: 71 | L14: 104 | M14: 92 | N14: 99 | O14: 95 | P14: 108 | Q14: 114 | R14: 22 | S14: 111 | T14: 118 | U14: 112 | V14: 113 | W14: 110 | X14: 49 | Y14: 12 | Z14: 97 | AA14: 84 | AB14: 84 | AC14: 98 | AD14: 79 | AE14: 18 | AF14: 12
A16: Записались в центр (МРТ+АПО):
A17: МРТ Verio | B17: 0 | C17: 6 | D17: 20 | E17: 19 | F17: 11 | G17: 17 | H17: 15 | I17: 12 | J17: 11 | K17: 9 | L17: 46 | M17: 27 | N17: 43 | O17: 49 | P17: 29 | Q17: 18 | R17: 12 | S17: 53 | T17: 26 | U17: 48 | V17: 36 | W17: 35 | X17: 11 | Y17: 11 | Z17: 52 | AA17: 32 | AB17: 43 | AC17: 32 | AD17: 28 | AE17: 13 | AF17: 15
A18: МРТ Skyra | B18: 0 | C18: 4 | D18: 7 | E18: 14 | F18: 16 | G18: 17 | H18: 6 | I18: 16 | J18: 9 | K18: 14 | L18: 43 | M18: 29 | N18: 30 | O18: 26 | P18: 40 | Q18: 14 | R18: 7 | S18: 30 | T18: 32 | U18: 36 | V18: 24 | W18: 25 | X18: 15 | Y18: 7 | Z18: 65 | AA18: 57 | AB18: 53 | AC18: 34 | AD18: 36 | AE18: 14 | AF18: 11
A19: МРТ Essenza | B19: 0 | C19: 4 | D19: 4 | E19: 19 | F19: 27 | G19: 16 | H19: 9 | I19: 17 | J19: 16 | K19: 15 | L19: 27 | M19: 40 | N19: 36 | O19: 43 | P19: 43 | Q19: 20 | R19: 9 | S19: 31 | T19: 26 | U19: 44 | V19: 34 | W19: 37 | X19: 14 | Y19: 13 | Z19: 51 | AA19: 34 | AB19: 26 | AC19: 25 | AD19: 32 | AE19: 15 | AF19: 6
A20: МРТ Костюшко | B20: 0 | C20: 7 | D20: 10 | E20: 21 | F20: 18 | G20: 18 | H20: 11 | I20: 21 | J20: 11 | K20: 10 | L20: 43 | M20: 56 | N20: 49 | O20: 32 | P20: 45 | Q20: 15 | R20: 22 | S20: 65 | T20: 41 | U20: 84 | V20: 33 | W20: 39 | X20: 19 | Y20: 17 | Z20: 90 | AA20: 44 | AB20: 64 | AC20: 37 | AD20: 39 | AE20: 13 | AF20: 17
A21: МРТ Солидарности | B21: 0 | C21: 5 | D21: 8 | E21: 9 | F21: 13 | G21: 8 | H21: 10 | I21: 18 | J21: 11 | K21: 7 | L21: 18 | M21: 20 | N21: 16 | O21: 11 | P21: 42 | Q21: 8 | R21: 8 | S21: 30 | T21: 24 | U21: 29 | V21: 10 | W21: 10 | X21: 5 | Y21: 10 | Z21: 33 | AA21: 15 | AB21: 49 | AC21: 14 | AD21: 10 | AE21: 14 | AF21: 9
A22: Всего записано за день МРТ : | B22: =SUM(B17:B21) -> 0 | C22: 26 | D22: 49 | E22: 82 | F22: 85 | G22: 76 | H22: 51 | I22: 84 | J22: 58 | K22: 55 | L22: 177 | M22: 172 | N22: 174 | O22: 161 | P22: 199 | Q22: 75 | R22: 58 | S22: 209 | T22: 149 | U22: 241 | V22: 137 | W22: 146 | X22: 64 | Y22: 58 | Z22: 291 | AA22: 182 | AB22: 235 | AC22: 142 | AD22: 145 | AE22: 69 | AF22: 58
A23: Отменено клиентом + неявка (все центры МРТ) | B23: 0 | C23: 0 | D23: 9 | E23: 15 | F23: 14 | G23: 24 | H23: 25 | I23: 16 | J23: 21 | K23: 16 | L23: 40 | M23: 30 | N23: 30 | O23: 22 | P23: 19 | Q23: 14 | R23: 13 | S23: 21 | T23: 27 | U23: 31 | V23: 24 | W23: 24 | X23: 22 | Y23: 20 | Z23: 31 | AA23: 18 | AB23: 35 | AC23: 37 | AD23: 34 | AE23: 22 | AF23: 22
A24: АПО | B24: 2 | C24: 16 | D24: 10 | E24: 64 | F24: 50 | G24: 68 | H24: 20 | I24: 35 | J24: 16 | K24: 18 | L24: 98 | M24: 76 | N24: 65 | O24: 61 | P24: 73 | Q24: 59 | R24: 14 | S24: 79 | T24: 48 | U24: 85 | V24: 91 | W24: 59 | X24: 33 | Y24: 10 | Z24: 115 | AA24: 95 | AB24: 121 | AC24: 94 | AD24: 101 | AE24: 43 | AF24: 11
A25: Всего записано за день (МРТ + АПО): | B25: =SUM(B22+B24) -> 2 | C25: =SUM(C22+C24) -> 42 | D25: 59 | E25: 146 | F25: 135 | G25: 144 | H25: 71 | I25: 119 | J25: 74 | K25: 73 | L25: 275 | M25: 248 | N25: 239 | O25: 222 | P25: 272 | Q25: 134 | R25: 72 | S25: 288 | T25: 197 | U25: 326 | V25: 228 | W25: 205 | X25: 97 | Y25: 68 | Z25: 406 | AA25: 277 | AB25: 356 | AC25: 236 | AD25: 246 | AE25: 112 | AF25: 69
A27: Кол-во операторов | B27: 0 | C27: 4 | D27: 4 | E27: 6 | F27: 6 | G27: 8 | H27: 7 | I27: 7 | J27: 5 | K27: 4 | L27: 8 | M27: 8 | N27: 7 | O27: 7 | P27: 8 | Q27: 6 | R27: 4 | S27: 8 | T27: 8 | U27: 9 | V27: 8 | W27: 9 | X27: 5 | Y27: 5 | Z27: 8 | AA27: 8 | AB27: 8 | AC27: 7 | AD27: 9 | AE27: 5 | AF27: 5
A28: сумма часов работы операторов | B28: 0 | C28: 48 | D28: 44 | E28: 64 | F28: 64 | G28: 84 | H28: 76 | I28: 76 | J28: 56 | K28: 48 | L28: 84 | M28: 84 | N28: 72 | O28: 72 | P28: 84 | Q28: 67 | R28: 48 | S28: 84 | T28: 84 | U28: 92 | V28: 84 | W28: 92 | X28: 60 | Y28: 60 | Z28: 84 | AA28: 84 | AB28: 80 | AC28: 70 | AD28: 94 | AE28: 60 | AF28: 56
A30: Время ожидания на линии (мин)
A31: 244-00-24 (среднее) | C31: =666/60 -> 11.1 | D31: =83/60 -> 1.383333333 | E31: =174/60 -> 2.9 | F31: =92/60 -> 1.533333333 | G31: =30/60 -> 0.5 | H31: =28/60 -> 0.4666666667 | I31: =33/60 -> 0.55 | J31: =137/60 -> 2.283333333 | K31: =64/60 -> 1.066666667 | L31: =117/60 -> 1.95 | M31: =204/60 -> 3.4 | N31: =415/60 -> 6.916666667 | O31: =384/60 -> 6.4 | P31: =130/60 -> 2.166666667 | Q31: =44/60 -> 0.7333333333 | R31: =74/60 -> 1.233333333 | S31: =182/60 -> 3.033333333 | T31: =251/60 -> 4.183333333 | U31: =68/60 -> 1.133333333 | V31: =165/60 -> 2.75 | W31: =132/60 -> 2.2 | X31: =80/60 -> 1.333333333 | Y31: =38/60 -> 0.6333333333 | Z31: =475/60 -> 7.916666667 | AA31: =253/60 -> 4.216666667 | AB31: =127/60 -> 2.116666667 | AC31: =142/60 -> 2.366666667 | AD31: =252/60 -> 4.2 | AE31: =243/60 -> 4.05 | AF31: =101/60 -> 1.683333333
A32: 244-31-27 (КТ Ковид, время максимальное) | C32: =3578/60 -> 59.63333333 | D32: =2872/60 -> 47.86666667 | E32: =3274/60 -> 54.56666667 | F32: =2615/60 -> 43.58333333 | G32: =2990/60 -> 49.83333333 | H32: =2228/60 -> 37.13333333 | I32: =2988/60 -> 49.8 | J32: =3422/60 -> 57.03333333 | K32: =2902/60 -> 48.36666667 | L32: =2607/60 -> 43.45 | M32: =3122/60 -> 52.03333333 | N32: =3160/60 -> 52.66666667 | O32: =2999/60 -> 49.98333333 | P32: =3167/60 -> 52.78333333 | Q32: =3148/60 -> 52.46666667 | R32: =2098/60 -> 34.96666667 | S32: =3331/60 -> 55.51666667 | T32: =3378/60 -> 56.3 | U32: =2516/60 -> 41.93333333 | V32: =2694/60 -> 44.9 | W32: =1736/60 -> 28.93333333 | X32: =2269/60 -> 37.81666667 | Y32: =114/60 -> 1.9 | Z32: =1757/60 -> 29.28333333 | AA32: =2235/60 -> 37.25 | AB32: =2029/60 -> 33.81666667 | AC32: =2438/60 -> 40.63333333 | AD32: =1599/60 -> 26.65 | AE32: =265/60 -> 4.416666667 | AF32: 0.6833333333
A34: Нажали кнопку "1" - перевод в Клинику | B34: 1 | C34: 0 | D34: 0 | E34: 23 | F34: 10 | G34: 6 | H34: 5 | I34: 2 | J34: 0 | K34: 0 | L34: 21 | M34: 20 | N34: 29 | O34: 24 | P34: 26 | Q34: 0 | R34: 0 | S34: 39 | T34: 13 | U34: 27 | V34: 19 | W34: 21 | X34: 0 | Y34: 0 | Z34: 28 | AA34: 28 | AB34: 16 | AC34: 28 | AD34: 19 | AE34: 0 | AF34: 0
A36: Отчет по КТ-Ковид
A37: Записали КТ Ковид за день:
A38: Записаны сегодня на КТ (Советская) | B38: 2 | C38: 97 | D38: 140 | E38: 150 | F38: 153 | G38: 163 | H38: 161 | I38: 128 | J38: 140 | K38: 102 | L38: 216 | M38: 213 | N38: 218 | O38: 222 | P38: 197 | Q38: 117 | R38: 91 | S38: 196 | T38: 176 | U38: 226 | V38: 174 | W38: 258 | X38: 77 | Y38: 50 | Z38: 201 | AA38: 177 | AB38: 228 | AC38: 195 | AD38: 236 | AE38: 118 | AF38: 44
A39: из них ОМС | B39: 2 | C39: 95 | D39: 136 | E39: 142 | F39: 142 | G39: 158 | H39: 160 | I39: 120 | J39: 136 | K39: 97 | L39: 208 | M39: 201 | N39: 212 | O39: 216 | P39: 192 | Q39: 116 | R39: 91 | S39: 191 | T39: 167 | U39: 223 | V39: 173 | W39: 250 | X39: 75 | Y39: 48 | Z39: 198 | AA39: 173 | AB39: 224 | AC39: 193 | AD39: 228 | AE39: 117 | AF39: 43
A40: Записаны сегодня на КТ (Есенина) | B40: 2 | C40: 180 | D40: 330 | E40: 318 | F40: 320 | G40: 297 | H40: 277 | I40: 342 | J40: 250 | K40: 191 | L40: 403 | M40: 442 | N40: 487 | O40: 398 | P40: 394 | Q40: 279 | R40: 139 | S40: 300 | T40: 368 | U40: 431 | V40: 295 | W40: 418 | X40: 241 | Y40: 118 | Z40: 349 | AA40: 372 | AB40: 434 | AC40: 309 | AD40: 448 | AE40: 244 | AF40: 69
A41: из них ОМС | B41: 1 | C41: 151 | D41: 288 | E41: 289 | F41: 279 | G41: 269 | H41: 237 | I41: 297 | J41: 212 | K41: 160 | L41: 377 | M41: 417 | N41: 452 | O41: 366 | P41: 375 | Q41: 262 | R41: 123 | S41: 285 | T41: 353 | U41: 422 | V41: 276 | W41: 400 | X41: 217 | Y41: 101 | Z41: 337 | AA41: 353 | AB41: 408 | AC41: 294 | AD41: 425 | AE41: 220 | AF41: 56
A42: Записано платных (всего) | B42: =(B38+B40)-(B39+B41) -> 1 | C42: 31 | D42: 46 | E42: 37 | F42: 52 | G42: 33 | H42: 41 | I42: 53 | J42: 42 | K42: 36 | L42: 34 | M42: 37 | N42: 41 | O42: 38 | P42: 24 | Q42: 18 | R42: 16 | S42: 20 | T42: 24 | U42: 12 | V42: 20 | W42: 26 | X42: 26 | Y42: 19 | Z42: 15 | AA42: 23 | AB42: 30 | AC42: 17 | AD42: 31 | AE42: 25 | AF42: 14
A43: Всего записано за день: | B43: =SUM(B38+B40) -> 4 | C43: 277 | D43: 470 | E43: 468 | F43: 473 | G43: 460 | H43: 438 | I43: 470 | J43: 390 | K43: 293 | L43: 619 | M43: 655 | N43: 705 | O43: 620 | P43: 591 | Q43: 396 | R43: 230 | S43: 496 | T43: 544 | U43: 657 | V43: 469 | W43: =SUM(W38+W40) -> 676 | X43: 318 | Y43: 168 | Z43: 550 | AA43: 549 | AB43: 662 | AC43: 504 | AD43: 684 | AE43: 362 | AF43: 113 | AG43: =SUM(B43:AF43) -> 14311
A45: Очередь по записи КТ-Ковид:
A46: Советская | B46: 933 | C46: 1030 | D46: 1004 | E46: 984 | F46: 1000 | G46: 957 | H46: 923 | I46: 845 | J46: 787 | K46: 685 | L46: 709 | M46: 728 | N46: 761 | O46: 799 | P46: 805 | Q46: 742 | R46: 659 | S46: 665 | T46: 647 | U46: 679 | V46: 669 | W46: 738 | X46: 633 | Y46: 503 | Z46: 517 | AA46: 516 | AB46: 569 | AC46: 592 | AD46: 651 | AE46: 596 | AF46: 461
A47: Есенина | B47: 2259 | C47: 2261 | D47: 2223 | E47: 2199 | F47: 2156 | G47: 2035 | H47: 1900 | I47: 1820 | J47: 1674 | K47: 1467 | L47: 1474 | M47: 1524 | N47: 1611 | O47: 1623 | P47: 1633 | Q47: 1533 | R47: 1306 | S47: 1236 | T47: 1233 | U47: 1288 | V47: 1319 | W47: 1316 | X47: 1203 | Y47: 1016 | Z47: 997 | AA47: 1003 | AB47: 1077 | AC47: 1026 | AD47: 1108 | AE47: 989 | AF47: 693
A48: Всего в очереди: | B48: =SUM(B46:B47) -> 3192 | C48: 3291 | D48: 3227 | E48: 3183 | F48: 3156 | G48: 2992 | H48: 2823 | I48: 2665 | J48: 2461 | K48: 2152 | L48: 2183 | M48: 2252 | N48: 2372 | O48: 2422 | P48: 2438 | Q48: 2275 | R48: 1965 | S48: 1901 | T48: 1880 | U48: 1967 | V48: 1988 | W48: =SUM(W46:W47) -> 2054 | X48: 1836 | Y48: 1519 | Z48: 1514 | AA48: 1519 | AB48: 1646 | AC48: 1618 | AD48: 1759 | AE48: 1585 | AF48: 1154
A50: Выполнено КТ-Ковид за день:
A51: Советская | B51: 77 | C51: 0 | D51: 142 | E51: 131 | F51: 151 | G51: 165 | H51: 162 | I51: 165 | J51: 168 | K51: 168 | L51: 166 | M51: 160 | N51: 164 | O51: 163 | P51: 165 | Q51: 166 | R51: 159 | S51: 167 | T51: 166 | U51: 165 | V51: 168 | W51: 164 | X51: 163 | Y51: 162 | Z51: 167 | AA51: 161 | AB51: 164 | AC51: 162 | AD51: 166 | AE51: 163 | AF51: 159
A52: Есенина | B52: 84 | C52: 139 | D52: 279 | E52: 273 | F52: 268 | G52: 323 | H52: 329 | I52: 323 | J52: 324 | K52: 323 | L52: 320 | M52: 323 | N52: 328 | O52: 325 | P52: 330 | Q52: 322 | R52: 321 | S52: 324 | T52: 331 | U52: 325 | V52: 327 | W52: 328 | X52: 331 | Y52: 272 | Z52: 328 | AA52: 323 | AB52: 324 | AC52: 319 | AD52: 324 | AE52: 319 | AF52: 330
A53: Всего выполнено за день: | B53: =SUM(B51:B52) -> 161 | C53: 139 | D53: 421 | E53: 404 | F53: 419 | G53: 488 | H53: 491 | I53: 488 | J53: 492 | K53: 491 | L53: 486 | M53: 483 | N53: 492 | O53: 488 | P53: 495 | Q53: 488 | R53: 480 | S53: 491 | T53: 497 | U53: 490 | V53: =SUM(V51:V52) -> 495 | W53: 492 | X53: 494 | Y53: 434 | Z53: 495 | AA53: =SUM(AA51:AA52) -> 484 | AB53: 488 | AC53: 481 | AD53: 490 | AE53: 482 | AF53: 489 | AG53: =SUM(B53:AF53) -> 14208

Sheet Февраль
A2: Отчет по call-центру
B3: 2021-02-01 | C3: 2021-02-02 | D3: 2021-02-03 | E3: 2021-02-04 | F3: 2021-02-05 | G3: 2021-02-06 | H3: 2021-02-07 | I3: 2021-02-08 | J3: 2021-02-09 | K3: 2021-02-10 | L3: 2021-02-11 | M3: 2021-02-12 | N3: 2021-02-13 | O3: 2021-02-14 | P3: 2021-02-15 | Q3: 2021-02-16 | R3: 2021-02-17 | S3: 2021-02-18 | T3: 2021-02-19 | U3: 2021-02-20 | V3: 2021-02-21 | W3: 2021-02-22 | X3: 2021-02-23 | Y3: 2021-02-24 | Z3: 2021-02-25 | AA3: 2021-02-26 | AB3: 2021-02-27 | AC3: 2021-02-28
A4: Кол-во обраб. звонков (Линия call-центр) | B4: 601 | C4: 389 | D4: 620 | E4: 604 | F4: 524 | G4: 330 | H4: 233 | I4: 674 | J4: 637 | K4: 533 | L4: 487 | M4: 638 | N4: 324 | O4: 231 | P4: 486 | Q4: 609 | R4: 576 | S4: 533 | T4: 506 | U4: 496 | V4: 271 | W4: 300 | X4: 215 | Y4: 688 | Z4: 536 | AA4: 584 | AB4: 412 | AC4: 252
A5: Кол-во пропущенных | B5: 209 | C5: 743 | D5: 193 | E5: 115 | F5: 204 | G5: 85 | H5: 26 | I5: 155 | J5: 114 | K5: 141 | L5: 189 | M5: 111 | N5: 40 | O5: 17 | P5: 243 | Q5: 95 | R5: 109 | S5: 64 | T5: 73 | U5: 159 | V5: 79 | W5: 7 | X5: 7 | Y5: 234 | Z5: 285 | AA5: 145 | AB5: 31 | AC5: 26
A6: Кол-во обраб. звонков (Линия КТ-Ковид) | B6: 461 | C6: 331 | D6: 388 | E6: 381 | F6: 447 | G6: 182 | H6: 108 | I6: 446 | J6: 356 | K6: 419 | L6: 379 | M6: 416 | N6: 181 | O6: 60 | P6: 385 | Q6: 458 | R6: 403 | S6: 370 | T6: 315 | U6: 343 | V6: 163 | W6: 124 | X6: 83 | Y6: 403 | Z6: 383 | AA6: 463 | AB6: 164 | AC6: 75
A7: Кол-во пропущенных | B7: 382 | C7: 376 | D7: 540 | E7: 524 | F7: 299 | G7: 47 | H7: 14 | I7: 283 | J7: 436 | K7: 113 | L7: 54 | M7: 160 | N7: 18 | O7: 3 | P7: 218 | Q7: 41 | R7: 16 | S7: 9 | T7: 10 | U7: 40 | V7: 18 | W7: 7 | X7: 1 | Y7: 218 | Z7: 175 | AA7: 63 | AB7: 8 | AC7: 4
A8: Всего звонков (обе линии) | B8: =SUM(B4+B6) -> 1062 | C8: =SUM(C4+C6) -> 720 | D8: =SUM(D4+D6) -> 1008 | E8: =SUM(E4+E6) -> 985 | F8: =SUM(F4+F6) -> 971 | G8: 512 | H8: 341 | I8: 1120 | J8: 993 | K8: 952 | L8: 866 | M8: 1054 | N8: 505 | O8: 291 | P8: 871 | Q8: 1067 | R8: 979 | S8: 903 | T8: 821 | U8: 839 | V8: 434 | W8: 424 | X8: 298 | Y8: 1091 | Z8: 919 | AA8: 1047 | AB8: 576 | AC8: 327
A10: Заявки на сайте:
A11: Количество заявок на сайте (всего) | B11: 194 | C11: 230 | D11: 206 | E11: 151 | F11: 131 | G11: 42 | H11: 23 | I11: 162 | J11: 130 | K11: 101 | L11: 110 | M11: 97 | N11: 29 | O11: 24 | P11: 151 | Q11: 90 | R11: 96 | S11: 75 | T11: 102 | U11: 85 | V11: 38 | W11: 31 | X11: 30 | Y11: 134 | Z11: 102 | AA11: 98 | AB11: 50 | AC11: 26
A12: Со статусом "записался" | B12: 133 | C12: 119 | D12: 135 | E12: 101 | F12: 100 | G12: 25 | H12: 13 | I12: 119 | J12: 82 | K12: 57 | L12: 65 | M12: 64 | N12: 19 | O12: 14 | P12: 96 | Q12: 59 | R12: 70 | S12: 54 | T12: 80 | U12: 53 | V12: 16 | W12: 18 | X12: 15 | Y12: 98 | Z12: 76 | AA12: 61 | AB12: 32 | AC12: 16
A13: Заявки на сайте КТ Ковид | B13: 107 | C13: 117 | D13: 115 | E13: 88 | F13: 59 | G13: 17 | H13: 11 | I13: 95 | J13: 68 | K13: 51 | L13: 52 | M13: 55 | N13: 9 | O13: 6 | P13: 81 | Q13: 50 | R13: 46 | S13: 45 | T13: 58 | U13: 46 | V13: 9 | W13: 5 | X13: 10 | Y13: 66 | Z13: 37 | AA13: 53 | AB13: 23 | AC13: 5
A14: Статус "записался" на КТ Ковид | B14: 84 | C14: 66 | D14: 78 | E14: 62 | F14: 49 | G14: 13 | H14: 7 | I14: 75 | J14: 52 | K14: 38 | L14: 39 | M14: 43 | N14: 7 | O14: 5 | P14: 60 | Q14: 40 | R14: 38 | S14: 39 | T14: 49 | U14: 39 | V14: 7 | W14: 3 | X14: 9 | Y14: 60 | Z14: 36 | AA14: 43 | AB14: 11 | AC14: 4
A16: Записались в центр (МРТ+АПО):
A17: МРТ Verio | B17: 34 | C17: 25 | D17: 47 | E17: 44 | F17: 55 | G17: 22 | H17: 14 | I17: 40 | J17: 33 | K17: 31 | L17: 50 | M17: 45 | N17: 21 | O17: 19 | P17: 45 | Q17: 35 | R17: 52 | S17: 27 | T17: 51 | U17: 25 | V17: 12 | W17: 20 | X17: 11 | Y17: 53 | Z17: 37 | AA17: 38 | AB17: 19 | AC17: 12
A18: МРТ Skyra | B18: 45 | C18: 36 | D18: 48 | E18: 25 | F18: 40 | G18: 26 | H18: 17 | I18: 37 | J18: 39 | K18: 30 | L18: 31 | M18: 35 | N18: 11 | O18: 13 | P18: 33 | Q18: 25 | R18: 27 | S18: 32 | T18: 21 | U18: 18 | V18: 9 | W18: 17 | X18: 11 | Y18: 56 | Z18: 82 | AA18: 39 | AB18: 24 | AC18: 10
A19: МРТ Essenza | B19: 31 | C19: 26 | D19: 33 | E19: 28 | F19: 24 | G19: 26 | H19: 16 | I19: 39 | J19: 23 | K19: 29 | L19: 32 | M19: 26 | N19: 15 | O19: 18 | P19: 31 | Q19: 35 | R19: 39 | S19: 28 | T19: 33 | U19: 24 | V19: 8 | W19: 12 | X19: 11 | Y19: 24 | Z19: 29 | AA19: 18 | AB19: 18 | AC19: 10
A20: МРТ Костюшко | B20: 66 | C20: 52 | D20: 88 | E20: 48 | F20: 31 | G20: 16 | H20: 9 | I20: 73 | J20: 45 | K20: 56 | L20: 32 | M20: 47 | N20: 20 | O20: 25 | P20: 66 | Q20: 39 | R20: 46 | S20: 45 | T20: 45 | U20: 34 | V20: 7 | W20: 14 | X20: 16 | Y20: 62 | Z20: 43 | AA20: 51 | AB20: 26 | AC20: 16
A21: МРТ Солидарности | B21: 62 | C21: 17 | D21: 45 | E21: 12 | F21: 17 | G21: 10 | H21: 5 | I21: 52 | J21: 11 | K21: 20 | L21: 19 | M21: 22 | N21: 13 | O21: 8 | P21: 34 | Q21: 10 | R21: 29 | S21: 25 | T21: 10 | U21: 14 | V21: 6 | W21: 4 | X21: 5 | Y21: 55 | Z21: 24 | AA21: 19 | AB21: 10 | AC21: 17
A22: Всего записано за день МРТ : | B22: =SUM(B17:B21) -> 238 | C22: =SUM(C17:C21) -> 156 | D22: =SUM(D17:D21) -> 261 | E22: =SUM(E17:E21) -> 157 | F22: =SUM(F17:F21) -> 167 | G22: 100 | H22: 61 | I22: 241 | J22: 151 | K22: 166 | L22: 164 | M22: 175 | N22: 80 | O22: 83 | P22: 209 | Q22: 144 | R22: 193 | S22: 157 | T22: 160 | U22: 115 | V22: 42 | W22: 67 | X22: 54 | Y22: 250 | Z22: 215 | AA22: 165 | AB22: 97 | AC22: 65
A23: Отменено клиентом + неявка (все центры МРТ) | B23: 28 | C23: 21 | D23: 36 | E23: 28 | F23: 51 | G23: 27 | H23: 26 | I23: 28 | J23: 24 | K23: 27 | L23: 29 | M23: 34 | N23: 25 | O23: 34 | P23: 38 | Q23: 25 | R23: 31 | S23: 44 | T23: 30 | U23: 39 | V23: 42 | W23: 31 | X23: 23 | Y23: 35 | Z23: 30 | AA23: 33 | AB23: 47 | AC23: 46
A24: АПО | B24: 92 | C24: 80 | D24: 100 | E24: 62 | F24: 82 | G24: 58 | H24: 20 | I24: 103 | J24: 105 | K24: 84 | L24: 88 | M24: 91 | N24: 45 | O24: 20 | P24: 75 | Q24: 84 | R24: 67 | S24: 76 | T24: 79 | U24: 57 | V24: 29 | W24: 48 | X24: 32 | Y24: 130 | Z24: 115 | AA24: 108 | AB24: 62 | AC24: 26
A25: Всего записано за день (МРТ + АПО): | B25: =SUM(B22+B24) -> 330 | C25: =SUM(C22+C24) -> 236 | D25: =SUM(D22+D24) -> 361 | E25: =SUM(E22+E24) -> 219 | F25: =SUM(F22+F24) -> 249 | G25: 158 | H25: 81 | I25: 344 | J25: 256 | K25: 250 | L25: 252 | M25: 266 | N25: 125 | O25: 103 | P25: 284 | Q25: 228 | R25: 260 | S25: 233 | T25: 239 | U25: 172 | V25: 71 | W25: 115 | X25: 86 | Y25: 380 | Z25: 330 | AA25: 273 | AB25: 159 | AC25: 91
A27: Кол-во операторов | B27: 7 | C27: 8 | D27: 9 | E27: 8 | F27: 8 | G27: 6 | H27: 4 | I27: 8 | J27: 8 | K27: 8 | L27: 8 | M27: 8 | N27: 6 | O27: 4 | P27: 7 | Q27: 8 | R27: 8 | S27: 8 | T27: 8 | U27: 7 | V27: 4 | W27: 7 | X27: 8 | Y27: 8 | Z27: 7 | AA27: 8 | AB27: 6 | AC27: 6
A28: сумма часов работы операторов | B28: 76 | C28: 84 | D28: 96 | E28: 84 | F28: 80 | G28: 72 | H28: 48 | I28: 88 | J28: 88 | K28: 88 | L28: 88 | M28: 88 | N28: 68 | O28: 48 | P28: 80 | Q28: 87 | R28: 88 | S28: 84 | T28: 92 | U28: 71 | V28: 48 | W28: 80 | X28: 88 | Y28: 84 | Z28: 72 | AA28: 84 | AB28: 72 | AC28: 60
A30: Время ожидания на линии (мин)
A31: 244-00-24 (среднее) | B31: =230/60 -> 3.833333333 | C31: =954/60 -> 15.9 | D31: =226/60 -> 3.766666667 | E31: =71/60 -> 1.183333333 | F31: =178/60 -> 2.966666667 | G31: =188/60 -> 3.133333333 | H31: =68/60 -> 1.133333333 | I31: =95/60 -> 1.583333333 | J31: =69/60 -> 1.15 | K31: =182/60 -> 3.033333333 | L31: =302/60 -> 5.033333333 | M31: =95/60 -> 1.583333333 | N31: =58/60 -> 0.9666666667 | O31: =67/60 -> 1.116666667 | P31: =286/60 -> 4.766666667 | Q31: =88/60 -> 1.466666667 | R31: =61/60 -> 1.016666667 | S31: =67/60 -> 1.116666667 | T31: =86/60 -> 1.433333333 | U31: =136/60 -> 2.266666667 | V31: =52/60 -> 0.8666666667 | W31: =16/60 -> 0.2666666667 | X31: =15/60 -> 0.25 | Y31: =147/60 -> 2.45 | Z31: =321/60 -> 5.35 | AA31: =182/60 -> 3.033333333 | AB31: =53/60 -> 0.8833333333 | AC31: =34/60 -> 0.5666666667
A32: 244-31-27 (КТ Ковид, время максимальное) | B32: =1155/60 -> 19.25 | C32: =1803/60 -> 30.05 | D32: =1929/60 -> 32.15 | E32: =2066/60 -> 34.43333333 | F32: =1177/60 -> 19.61666667 | G32: =411/60 -> 6.85 | H32: =201/60 -> 3.35 | I32: =1095/60 -> 18.25 | J32: =1737/60 -> 28.95 | K32: =655/60 -> 10.91666667 | L32: =351/60 -> 5.85 | M32: =444/60 -> 7.4 | N32: =129/60 -> 2.15 | O32: =85/60 -> 1.416666667 | P32: =792/60 -> 13.2 | Q32: =185/60 -> 3.083333333 | R32: =79/60 -> 1.316666667 | S32: =51/60 -> 0.85 | T32: =42/60 -> 0.7 | U32: =157/60 -> 2.616666667 | V32: =112/60 -> 1.866666667 | W32: =64/60 -> 1.066666667 | X32: =20/60 -> 0.3333333333 | Y32: =920/60 -> 15.33333333 | Z32: =406/60 -> 6.766666667 | AA32: =242/60 -> 4.033333333 | AB32: =44/60 -> 0.7333333333 | AC32: =30/60 -> 0.5
A34: Нажали кнопку "1" - перевод в Клинику | B34: 27 | C34: 18 | D34: 13 | E34: 16 | F34: 23 | G34: 0 | H34: 0 | I34: 11 | J34: 16 | K34: 18 | L34: 12 | M34: 15 | N34: 0 | O34: 0 | P34: 41 | Q34: 46 | R34: 25 | S34: 12 | T34: 24 | U34: 0 | V34: 0 | W34: 4 | X34: 10 | Y34: 22 | Z34: 30 | AA34: 14 | AB34: 0 | AC34: 0
A36: Отчет по КТ-Ковид
A37: Записали КТ Ковид за день:
A38: Записаны сегодня на КТ (Советская) | B38: 194 | C38: 159 | D38: 222 | E38: 233 | F38: 219 | G38: 78 | H38: 41 | I38: 219 | J38: 192 | K38: 173 | L38: 128 | M38: 165 | N38: 75 | O38: 17 | P38: 172 | Q38: 225 | R38: 183 | S38: 213 | T38: 185 | U38: 184 | V38: 62 | W38: 65 | X38: 57 | Y38: 179 | Z38: 195 | AA38: 247 | AB38: 65 | AC38: 50
A39: из них ОМС | B39: 192 | C39: 159 | D39: 215 | E39: 230 | F39: 216 | G39: 75 | H39: 40 | I39: 213 | J39: 188 | K39: 169 | L39: 125 | M39: 157 | N39: 67 | O39: 14 | P39: 169 | Q39: 208 | R39: 173 | S39: 203 | T39: 181 | U39: 176 | V39: 51 | W39: 58 | X39: 45 | Y39: 169 | Z39: 182 | AA39: 228 | AB39: 54 | AC39: 43
A40: Записаны сегодня на КТ (Есенина) | B40: 397 | C40: 270 | D40: 354 | E40: 359 | F40: 329 | G40: 121 | H40: 53 | I40: 342 | J40: 295 | K40: 287 | L40: 268 | M40: 297 | N40: 111 | O40: 42 | P40: 281 | Q40: 301 | R40: 226 | S40: 192 | T40: 176 | U40: 162 | V40: 57 | W40: 62 | X40: 22 | Y40: 320 | Z40: 241 | AA40: 250 | AB40: 98 | AC40: 24
A41: из них ОМС | B41: 366 | C41: 264 | D41: 330 | E41: 355 | F41: 315 | G41: 105 | H41: 38 | I41: 330 | J41: 284 | K41: 270 | L41: 254 | M41: 283 | N41: 99 | O41: 32 | P41: 267 | Q41: 292 | R41: 212 | S41: 182 | T41: 172 | U41: 152 | V41: 55 | W41: 56 | X41: 19 | Y41: 312 | Z41: 233 | AA41: 246 | AB41: 92 | AC41: 21
A42: Записано платных (всего) | B42: =B38+B40-B39-B41 -> 33 | C42: =C38+C40-C39-C41 -> 6 | D42: =D38+D40-D39-D41 -> 31 | E42: =E38+E40-E39-E41 -> 7 | F42: =F38+F40-F39-F41 -> 17 | G42: 19 | H42: 16 | I42: 18 | J42: 15 | K42: 21 | L42: 17 | M42: 22 | N42: 20 | O42: 13 | P42: 17 | Q42: 26 | R42: 24 | S42: 20 | T42: 8 | U42: 18 | V42: 13 | W42: 13 | X42: 15 | Y42: 18 | Z42: 21 | AA42: 23 | AB42: 17 | AC42: 10
A43: Всего записано за день: | B43: =SUM(B38+B40) -> 591 | C43: =SUM(C38+C40) -> 429 | D43: =SUM(D38+D40) -> 576 | E43: =SUM(E38+E40) -> 592 | F43: =SUM(F38+F40) -> 548 | G43: 199 | H43: 94 | I43: 561 | J43: 487 | K43: 460 | L43: 396 | M43: 462 | N43: 186 | O43: 59 | P43: 453 | Q43: 526 | R43: 409 | S43: 405 | T43: 361 | U43: 346 | V43: 119 | W43: 127 | X43: 79 | Y43: 499 | Z43: 436 | AA43: 497 | AB43: 163 | AC43: 74
A45: Очередь по записи КТ-Ковид:
A46: Советская | B46: 473 | C46: 484 | D46: 559 | E46: 641 | F46: 704 | G46: 600 | H46: 458 | I46: 516 | J46: 535 | K46: 521 | L46: 475 | M46: 461 | N46: 385 | O46: 334 | P46: 372 | Q46: 446 | R46: 478 | S46: 531 | T46: 556 | U46: 579 | V46: 480 | W46: 387 | X46: 292 | Y46: 289 | Z46: 423 | AA46: 514 | AB46: 426 | AC46: 315
A47: Есенина | B47: 771 | C47: 755 | D47: 810 | E47: 1018 | F47: 1180 | G47: 1124 | H47: 991 | I47: 971 | J47: 902 | K47: 840 | L47: 757 | M47: 703 | N47: 636 | O47: 522 | P47: 572 | Q47: 724 | R47: 796 | S47: 832 | T47: 842 | U47: 845 | V47: 732 | W47: 642 | X47: 500 | Y47: 661 | Z47: 594 | AA47: 693 | AB47: 640 | AC47: 505
A48: Всего в очереди: | B48: =SUM(B46:B47) -> 1244 | C48: =SUM(C46:C47) -> 1239 | D48: =SUM(D46:D47) -> 1369 | E48: =SUM(E46:E47) -> 1659 | F48: =SUM(F46:F47) -> 1884 | G48: 1724 | H48: 1449 | I48: 1487 | J48: 1437 | K48: 1361 | L48: 1232 | M48: 1164 | N48: 1021 | O48: 856 | P48: 944 | Q48: 1170 | R48: 1274 | S48: 1363 | T48: 1398 | U48: 1424 | V48: 1212 | W48: 1029 | X48: 792 | Y48: 950 | Z48: 1017 | AA48: 1207 | AB48: 1066 | AC48: 820
A50: Выполнено КТ-Ковид за день:
A51: Советская | B51: 158 | C51: 138 | D51: 135 | E51: 138 | F51: 136 | G51: 167 | H51: 165 | I51: 138 | J51: 138 | K51: 166 | L51: 163 | M51: 162 | N51: 142 | O51: 62 | P51: 121 | Q51: 139 | R51: 137 | S51: 132 | T51: 142 | U51: 142 | V51: 137 | W51: 137 | X51: 137 | Y51: 62 | Z51: 136 | AA51: 132 | AB51: 144 | AC51: 138
A52: Есенина | B52: 275 | C52: 253 | D52: 275 | E52: 137 | F52: 138 | G52: 164 | H52: 165 | I52: 332 | J52: 326 | K52: 325 | L52: 325 | M52: 322 | N52: 160 | O52: 137 | P52: 209 | Q52: 139 | R52: 143 | S52: 139 | T52: 141 | U52: 141 | V52: 142 | W52: 141 | X52: 140 | Y52: 142 | Z52: 276 | AA52: 137 | AB52: 140 | AC52: 143
A53: Всего выполнено за день: | B53: =SUM(B51:B52) -> 433 | C53: =SUM(C51:C52) -> 391 | D53: =SUM(D51:D52) -> 410 | E53: =SUM(E51:E52) -> 275 | F53: 274 | G53: 331 | H53: 330 | I53: 470 | J53: 464 | K53: 491 | L53: 488 | M53: 484 | N53: 302 | O53: 199 | P53: 330 | Q53: 278 | R53: =SUM(R51:R52) -> 280 | S53: =SUM(S51:S52) -> 271 | T53: =SUM(T51:T52) -> 283 | U53: =SUM(U51:U52) -> 283 | V53: 279 | W53: 278 | X53: 277 | Y53: 204 | Z53: 412 | AA53: 269 | AB53: 284 | AC53: 281 | AD53: =SUM(B53:AC53) -> 9351

Sheet Март
A2: Отчет по call-центру
B3: 2021-03-01 | C3: 2021-03-02 | D3: 2021-03-03 | E3: 2021-03-04 | F3: 2021-03-05 | G3: 2021-03-06 | H3: 2021-03-07 | I3: 2021-03-08 | J3: 2021-03-09 | K3: 2021-03-10 | L3: 2021-03-11 | M3: 2021-03-12 | N3: 2021-03-13 | O3: 2021-03-14 | P3: 2021-03-15 | Q3: 2021-03-16 | R3: 2021-03-17 | S3: 2021-03-18 | T3: 2021-03-19 | U3: 2021-03-20 | V3: 2021-03-21 | W3: 2021-03-22 | X3: 2021-03-23 | Y3: 2021-03-24 | Z3: 2021-03-25 | AA3: 2021-03-26 | AB3: 2021-03-27 | AC3: 2021-03-28 | AD3: 2021-03-29 | AE3: 2021-03-30 | AF3: 2021-03-31
A4: Кол-во обраб. звонков (Линия call-центр) | B4: 581 | C4: 569 | D4: 540 | E4: 582 | F4: 517 | G4: 338 | H4: 245 | I4: 187 | J4: 611 | K4: 647 | L4: 574 | M4: 574 | N4: 296 | O4: 207 | P4: 653 | Q4: 662 | R4: 622 | S4: 612 | T4: 605 | U4: 340 | V4: 251 | W4: 715 | X4: 650 | Y4: 606 | Z4: 604 | AA4: 539 | AB4: 295 | AC4: 230 | AD4: 700 | AE4: 558
A5: Кол-во пропущенных | B5: 362 | C5: 228 | D5: 118 | E5: 69 | F5: 110 | G5: 31 | H5: 4 | I5: 13 | J5: 264 | K5: 139 | L5: 124 | M5: 128 | N5: 41 | O5: 42 | P5: 182 | Q5: 88 | R5: 84 | S5: 155 | T5: 110 | U5: 96 | V5: 39 | W5: 143 | X5: 124 | Y5: 79 | Z5: 175 | AA5: 272 | AB5: 55 | AC5: 56 | AD5: 343 | AE5: 371
A6: Кол-во обраб. звонков (Линия КТ-Ковид) | B6: 436 | C6: 287 | D6: 456 | E6: 375 | F6: 385 | G6: 148 | H6: 109 | I6: 70 | J6: 337 | K6: 312 | L6: 398 | M6: 385 | N6: 159 | O6: 81 | P6: 404 | Q6: 389 | R6: 383 | S6: 365 | T6: 389 | U6: 129 | V6: 73 | W6: 380 | X6: 350 | Y6: 350 | Z6: 368 | AA6: 410 | AB6: 136 | AC6: 87 | AD6: 359 | AE6: 316
A7: Кол-во пропущенных | B7: 341 | C7: 524 | D7: 59 | E7: 25 | F7: 35 | G7: 12 | H7: 14 | I7: 1 | J7: 107 | K7: 495 | L7: 34 | M7: 47 | N7: 17 | O7: 4 | P7: 57 | Q7: 161 | R7: 136 | S7: 46 | T7: 16 | U7: 35 | V7: 14 | W7: 83 | X7: 111 | Y7: 30 | Z7: 38 | AA7: 42 | AB7: 19 | AC7: 3 | AD7: 364 | AE7: 397
A8: Всего звонков (обе линии) | B8: =SUM(B4+B6) -> 1017 | C8: =SUM(C4+C6) -> 856 | D8: =SUM(D4+D6) -> 996 | E8: =SUM(E4+E6) -> 957 | F8: =SUM(F4+F6) -> 902 | G8: 486 | H8: 354 | I8: 257 | J8: 948 | K8: 959 | L8: 972 | M8: 959 | N8: 455 | O8: 288 | P8: 1057 | Q8: 1051 | R8: 1005 | S8: 977 | T8: 994 | U8: 469 | V8: 324 | W8: 1095 | X8: 1000 | Y8: 956 | Z8: 972 | AA8: 949 | AB8: 431 | AC8: 317 | AD8: 1059 | AE8: 874
A10: Заявки на сайте:
A11: Количество заявок на сайте (всего) | B11: 129 | C11: 119 | D11: 97 | E11: 80 | F11: 103 | G11: 33 | H11: 18 | I11: 17 | J11: 102 | K11: 110 | L11: 70 | M11: 82 | N11: 20 | O11: 23 | P11: 98 | Q11: 120 | R11: 70 | S11: 95 | T11: 82 | U11: 27 | V11: 17 | W11: 91 | X11: 78 | Y11: 60 | Z11: 63 | AA11: 64 | AB11: 34 | AC11: 32 | AD11: 111 | AE11: 104 | AF11: 18
A12: Со статусом "записался" | B12: 84 | C12: 86 | D12: 58 | E12: 52 | F12: 74 | G12: 25 | H12: 8 | I12: 9 | J12: 74 | K12: 78 | L12: 44 | M12: 58 | N12: 13 | O12: 13 | P12: 54 | Q12: 75 | R12: 48 | S12: 58 | T12: 48 | U12: 20 | V12: 8 | W12: 63 | X12: 54 | Y12: 39 | Z12: 39 | AA12: 36 | AB12: 12 | AC12: 15 | AD12: 61 | AE12: 46
A13: Заявки на сайте КТ Ковид | B13: 58 | C13: 49 | D13: 45 | E13: 38 | F13: 53 | G13: 15 | H13: 3 | I13: 5 | J13: 51 | K13: 54 | L13: 28 | M13: 35 | N13: 6 | O13: 5 | P13: 52 | Q13: 50 | R13: 35 | S13: 45 | T13: 35 | U13: 6 | V13: 5 | W13: 48 | X13: 32 | Y13: 24 | Z13: 30 | AA13: 29 | AB13: 9 | AC13: 8 | AD13: 46 | AE13: 42
A14: Статус "записался" на КТ Ковид | B14: 47 | C14: 42 | D14: 37 | E14: 35 | F14: 43 | G14: 13 | H14: 3 | I14: 4 | J14: 43 | K14: 44 | L14: 22 | M14: 31 | N14: 4 | O14: 4 | P14: 42 | Q14: 43 | R14: 32 | S14: 33 | T14: 29 | U14: 5 | V14: 3 | W14: 34 | X14: 27 | Y14: 22 | Z14: 19 | AA14: 18 | AB14: 6 | AC14: 6 | AD14: 30 | AE14: 30
A16: Записались в центр (МРТ+АПО):
A17: МРТ Verio | B17: 54 | C17: 36 | D17: 57 | E17: 44 | F17: 30 | G17: 21 | H17: 16 | I17: 13 | J17: 59 | K17: 42 | L17: 54 | M17: 35 | N17: 26 | O17: 11 | P17: 31 | Q17: 50 | R17: 36 | S17: 56 | T17: 22 | U17: 22 | V17: 19 | W17: 61 | X17: 41 | Y17: 59 | Z17: 27 | AA17: 30 | AB17: 16 | AC17: 7 | AD17: 63 | AE17: 38 | AF17: 60
A18: МРТ Skyra | B18: 44 | C18: 42 | D18: 43 | E18: 29 | F18: 42 | G18: 18 | H18: 14 | I18: 9 | J18: 40 | K18: 31 | L18: 35 | M18: 32 | N18: 14 | O18: 14 | P18: 55 | Q18: 21 | R18: 35 | S18: 27 | T18: 30 | U18: 21 | V18: 6 | W18: 43 | X18: 31 | Y18: 25 | Z18: 29 | AA18: 61 | AB18: 27 | AC18: 19 | AD18: 73 | AE18: 38 | AF18: 42
A19: МРТ Essenza | B19: 31 | C19: 25 | D19: 30 | E19: 31 | F19: 17 | G19: 22 | H19: 6 | I19: 12 | J19: 44 | K19: 34 | L19: 26 | M19: 24 | N19: 16 | O19: 8 | P19: 36 | Q19: 26 | R19: 27 | S19: 33 | T19: 22 | U19: 14 | V19: 7 | W19: 41 | X19: 30 | Y19: 25 | Z19: 32 | AA19: 24 | AB19: 20 | AC19: 9 | AD19: 35 | AE19: 34 | AF19: 31
A20: МРТ Костюшко | B20: 57 | C20: 51 | D20: 51 | E20: 48 | F20: 38 | G20: 19 | H20: 14 | I20: 14 | J20: 65 | K20: 89 | L20: 47 | M20: 40 | N20: 10 | O20: 11 | P20: 83 | Q20: 60 | R20: 53 | S20: 52 | T20: 48 | U20: 22 | V20: 18 | W20: 64 | X20: 59 | Y20: 45 | Z20: 54 | AA20: 41 | AB20: 17 | AC20: 12 | AD20: 64 | AE20: 44 | AF20: 52
A21: МРТ Солидарности | B21: 91 | C21: 28 | D21: 25 | E21: 15 | F21: 17 | G21: 11 | H21: 10 | I21: 10 | J21: 70 | K21: 62 | L21: 37 | M21: 16 | N21: 5 | O21: 8 | P21: 49 | Q21: 28 | R21: 61 | S21: 35 | T21: 17 | U21: 22 | V21: 21 | W21: 76 | X21: 53 | Y21: 43 | Z21: 21 | AA21: 19 | AB21: 6 | AC21: 11 | AD21: 82 | AE21: 31 | AF21: 39
A22: Всего записано за день МРТ : | B22: =SUM(B17:B21) -> 277 | C22: =SUM(C17:C21) -> 182 | D22: =SUM(D17:D21) -> 206 | E22: =SUM(E17:E21) -> 167 | F22: =SUM(F17:F21) -> 144 | G22: 91 | H22: 60 | I22: 58 | J22: 278 | K22: =SUM(K17:K21) -> 258 | L22: =SUM(L17:L21) -> 199 | M22: =SUM(M17:M21) -> 147 | N22: 71 | O22: 52 | P22: 254 | Q22: 185 | R22: 212 | S22: 203 | T22: 139 | U22: 101 | V22: 71 | W22: 285 | X22: =SUM(X17:X21) -> 214 | Y22: =SUM(Y17:Y21) -> 197 | Z22: =SUM(Z17:Z21) -> 163 | AA22: =SUM(AA17:AA21) -> 175 | AB22: 86 | AC22: 58 | AD22: 317 | AE22: 185 | AF22: 224
A23: Отменено клиентом + неявка (все центры МРТ) | B23: 40 | C23: 20 | D23: 36 | E23: 30 | F23: 31 | G23: 34 | H23: 28 | I23: 22 | J23: 24 | K23: 28 | L23: 24 | M23: 28 | N23: 22 | O23: 52 | P23: 42 | Q23: 22 | R23: 40 | S23: 28 | T23: 35 | U23: 24 | V23: 27 | W23: 28 | X23: 34 | Y23: 26 | Z23: 29 | AA23: 28 | AB23: 39 | AC23: 31 | AD23: 22 | AE23: 31 | AF23: 54
A24: АПО | B24: 145 | C24: 97 | D24: 70 | E24: 61 | F24: 97 | G24: 32 | H24: 11 | I24: 32 | J24: 94 | K24: 87 | L24: 101 | M24: 83 | N24: 31 | O24: 34 | P24: 100 | Q24: 132 | R24: 105 | S24: 97 | T24: 98 | U24: 26 | V24: 14 | W24: 113 | X24: 91 | Y24: 62 | Z24: 125 | AA24: 110 | AB24: 45 | AC24: 31 | AD24: 130 | AE24: 103 | AF24: 101
A25: Всего записано за день (МРТ + АПО): | B25: =SUM(B24+B22) -> 422 | C25: =SUM(C24+C22) -> 279 | D25: =SUM(D24+D22) -> 276 | E25: =SUM(E24+E22) -> 228 | F25: =SUM(F24+F22) -> 241 | G25: 123 | H25: 71 | I25: 90 | J25: 372 | K25: =SUM(K24+K22) -> 345 | L25: =SUM(L24+L22) -> 300 | M25: =SUM(M24+M22) -> 230 | N25: 102 | O25: 86 | P25: 354 | Q25: 317 | R25: 317 | S25: 300 | T25: 237 | U25: 127 | V25: 85 | W25: 398 | X25: =SUM(X24+X22) -> 305 | Y25: =SUM(Y24+Y22) -> 259 | Z25: =SUM(Z24+Z22) -> 288 | AA25: =SUM(AA24+AA22) -> 285 | AB25: 131 | AC25: 89 | AD25: 447 | AE25: 288 | AF25: 325
A26: ПЭТ/КТ | Q26: 33 | R26: 32 | S26: 29 | T26: 40 | U26: 4 | V26: 2 | W26: 30 | X26: 45 | Y26: 44 | Z26: 38 | AA26: 39 | AB26: 0 | AC26: 0 | AD26: 58 | AE26: 51 | AF26: 48
A27: Очередь ПЭТ/КТ | Q27: 232 | R27: 216 | S27: 203 | T27: 202 | U27: 205 | V27: 208 | W27: 197 | X27: 198 | Y27: 214 | Z27: 211 | AA27: 226 | AB27: 226 | AC27: 226 | AD27: 239 | AE27: 246 | AF27: 250
A29: Кол-во операторов | B29: 8 | C29: 7 | D29: 8 | E29: 8 | F29: 8 | G29: 5 | H29: 4 | I29: 5 | J29: 8 | K29: 8 | L29: 8 | M29: 8 | N29: 6 | O29: 4 | P29: 8 | Q29: 8 | R29: 8 | S29: 8 | T29: 8 | U29: 5 | V29: 4 | W29: 8 | X29: 8 | Y29: 8 | Z29: 7 | AA29: 8 | AB29: 5 | AC29: 4 | AD29: 7 | AE29: 7 | AF29: 8
A30: сумма часов работы операторов | B30: 84 | C30: 76 | D30: 84 | E30: 84 | F30: 84 | G30: 56 | H30: 48 | I30: 50 | J30: 84 | K30: 88 | L30: 84 | M30: 84 | N30: 66 | O30: 48 | P30: 84 | Q30: 84 | R30: 84 | S30: 84 | T30: 84 | U30: 60 | V30: 48 | W30: 82 | X30: 84 | Y30: 83 | Z30: 76 | AA30: 84 | AB30: 60 | AC30: 48 | AD30: 70 | AE30: 76 | AF30: 84
A32: Время ожидания на линии (мин)
A33: 244-00-24 (среднее) | B33: =202/60 -> 3.366666667 | C33: =258/60 -> 4.3 | D33: =169/60 -> 2.816666667 | E33: =122/60 -> 2.033333333 | F33: =77/60 -> 1.283333333 | G33: =78/60 -> 1.3 | H33: =31/60 -> 0.5166666667 | I33: =27/60 -> 0.45 | J33: =201/60 -> 3.35 | K33: =167/60 -> 2.783333333 | L33: =167/60 -> 2.783333333 | M33: =150/60 -> 2.5 | N33: =61/60 -> 1.016666667 | O33: =108/60 -> 1.8 | P33: =199/60 -> 3.316666667 | Q33: =70/60 -> 1.166666667 | R33: =66/60 -> 1.1 | S33: =187/60 -> 3.116666667 | T33: =116/60 -> 1.933333333 | U33: =65/60 -> 1.083333333 | V33: =26/60 -> 0.4333333333 | W33: =139/60 -> 2.316666667 | X33: =116/60 -> 1.933333333 | Y33: =95/60 -> 1.583333333 | Z33: =105/60 -> 1.75 | AA33: =431/60 -> 7.183333333 | AB33: =174/60 -> 2.9 | AC33: =143/60 -> 2.383333333 | AD33: =274/60 -> 4.566666667 | AE33: =362/60 -> 6.033333333
A34: 244-31-27 (КТ Ковид, время максимальное) | B34: =914/60 -> 15.23333333 | C34: =1778/60 -> 29.63333333 | D34: =193/60 -> 3.216666667 | E34: =176/60 -> 2.933333333 | F34: =164/60 -> 2.733333333 | G34: =46/60 -> 0.7666666667 | H34: =17/60 -> 0.2833333333 | I34: =19/60 -> 0.3166666667 | J34: =400/60 -> 6.666666667 | K34: =1705/60 -> 28.41666667 | L34: =172/60 -> 2.866666667 | M34: =192/60 -> 3.2 | N34: =96/60 -> 1.6 | O34: =69/60 -> 1.15 | P34: =233/60 -> 3.883333333 | Q34: =672/60 -> 11.2 | R34: =564/60 -> 9.4 | S34: =161/60 -> 2.683333333 | T34: =53/60 -> 0.8833333333 | U34: =86/60 -> 1.433333333 | V34: =61/60 -> 1.016666667 | W34: =376/60 -> 6.266666667 | X34: =639/60 -> 10.65 | Y34: =116/60 -> 1.933333333 | Z34: =153/60 -> 2.55 | AA34: =169/60 -> 2.816666667 | AB34: =11/60 -> 0.1833333333 | AC34: =50/60 -> 0.8333333333 | AD34: =1036/60 -> 17.26666667 | AE34: =1119/60 -> 18.65
A36: Нажали кнопку "1" - перевод в Клинику | B36: 43 | C36: 19 | D36: 24 | E36: 15 | F36: 27 | G36: 0 | H36: 0 | I36: 1 | J36: 22 | K36: 19 | L36: 8 | M36: 18 | N36: 0 | O36: 0 | P36: 46 | Q36: 21 | R36: 21 | S36: 13 | T36: 32 | U36: 0 | V36: 0 | W36: 18 | X36: 28 | Y36: 26 | Z36: 18 | AA36: 22 | AB36: 0 | AC36: 0 | AD36: 15 | AE36: 27
A38: Отчет по КТ-Ковид
A39: Записали КТ Ковид за день:
A40: Записаны сегодня на КТ (Советская) | B40: 229 | C40: 203 | D40: 261 | E40: 210 | F40: 242 | G40: 75 | H40: 44 | I40: 29 | J40: 231 | K40: 293 | L40: 193 | M40: 203 | N40: 48 | O40: 36 | P40: 225 | Q40: 229 | R40: 202 | S40: 135 | T40: 69 | U40: 23 | V40: 5 | W40: 148 | X40: 123 | Y40: 87 | Z40: 61 | AA40: 109 | AB40: 5 | AC40: 22 | AD40: 106 | AE40: 105 | AF40: 153 | AG40: Диагностический приём КТ на Советской (ремонт на Приморском)
A41: из них ОМС | B41: 217 | C41: 184 | D41: 241 | E41: 198 | F41: 230 | G41: 65 | H41: 38 | I41: 25 | J41: 227 | K41: 287 | L41: 178 | M41: 196 | N41: 43 | O41: 28 | P41: 216 | Q41: 226 | R41: 196 | S41: 128 | T41: 64 | U41: 22 | V41: 2 | W41: 134 | X41: 105 | Y41: 83 | Z41: 54 | AA41: 95 | AB41: 5 | AC41: 20 | AD41: 103 | AE41: 104 | AF41: 148
A42: Записаны сегодня на КТ (Есенина) | B42: 273 | C42: 242 | D42: 249 | E42: 223 | F42: 209 | G42: 66 | H42: 40 | I42: 30 | J42: 162 | K42: 173 | L42: 249 | M42: 213 | N42: 75 | O42: 30 | P42: 253 | Q42: 232 | R42: 240 | S42: 308 | T42: 332 | U42: 86 | V42: 51 | W42: 330 | X42: 331 | Y42: 272 | Z42: 332 | AA42: 310 | AB42: 106 | AC42: 52 | AD42: 335 | AE42: 304 | AF42: 210
A43: из них ОМС | B43: 266 | C43: 236 | D43: 244 | E43: 213 | F43: 200 | G43: 62 | H43: 37 | I43: 26 | J43: 160 | K43: 166 | L43: 236 | M43: 205 | N43: 69 | O43: 26 | P43: 247 | Q43: 226 | R43: 234 | S43: 303 | T43: 326 | U43: 83 | V43: 42 | W43: 319 | X43: 312 | Y43: 264 | Z43: 314 | AA43: 298 | AB43: 101 | AC43: 47 | AD43: 322 | AE43: 301 | AF43: 205
A44: Записано платных (всего) | B44: =(B40+B42)-(B41+B43) -> 19 | C44: =(C40+C42)-(C41+C43) -> 25 | D44: =(D40+D42)-(D41+D43) -> 25 | E44: =(E40+E42)-(E41+E43) -> 22 | F44: =(F40+F42)-(F41+F43) -> 21 | G44: 14 | H44: 9 | I44: 8 | J44: 6 | K44: =(K40+K42)-(K41+K43) -> 13 | L44: =(L40+L42)-(L41+L43) -> 28 | M44: =(M40+M42)-(M41+M43) -> 15 | N44: 11 | O44: 12 | P44: 15 | Q44: 9 | R44: 12 | S44: 12 | T44: 11 | U44: 4 | V44: 12 | W44: 25 | X44: 37 | Y44: 12 | Z44: 25 | AA44: 26 | AB44: 5 | AC44: 7 | AD44: 16 | AE44: 4 | AF44: 10
A45: Всего записано за день: | B45: =SUM(B40+B42) -> 502 | C45: =SUM(C40+C42) -> 445 | D45: =SUM(D40+D42) -> 510 | E45: =SUM(E40+E42) -> 433 | F45: =SUM(F40+F42) -> 451 | G45: 141 | H45: 84 | I45: 59 | J45: 393 | K45: 466 | L45: 442 | M45: 416 | N45: 123 | O45: 66 | P45: 478 | Q45: 461 | R45: 442 | S45: 443 | T45: 401 | U45: 109 | V45: 56 | W45: 478 | X45: 454 | Y45: 359 | Z45: 393 | AA45: 419 | AB45: 111 | AC45: 74 | AD45: 441 | AE45: 409 | AF45: 363
A47: Очередь по записи КТ-Ковид:
A48: Советская | B48: 389 | C48: 442 | D48: 549 | E48: 607 | F48: 691 | G48: 613 | H48: 497 | I48: 365 | J48: 434 | K48: 567 | L48: 600 | M48: 636 | N48: 528 | O48: 411 | P48: 477 | Q48: 554 | R48: 603 | S48: 585 | T48: 502 | U48: 362 | V48: 289 | W48: 414 | X48: 501 | Y48: 551 | Z48: 583 | AA48: 654 | AB48: 626 | AC48: 623 | AD48: 702 | AE48: 641 | AF48: 625
A49: Есенина | B49: 624 | C49: 705 | D49: 799 | E49: 810 | F49: 917 | G49: 824 | H49: 708 | I49: 586 | J49: 590 | K49: 604 | L49: 687 | M49: 745 | N49: 670 | O49: 546 | P49: 643 | Q49: 719 | R49: 789 | S49: 941 | T49: 1116 | U49: 1043 | V49: 938 | W49: 943 | X49: 963 | Y49: 906 | Z49: 925 | AA49: 917 | AB49: 708 | AC49: 451 | AD49: 467 | AE49: 615 | AF49: 671
A50: Всего в очереди: | B50: =SUM(B48:B49) -> 1013 | C50: =SUM(C48:C49) -> 1147 | D50: =SUM(D48:D49) -> 1348 | E50: =SUM(E48:E49) -> 1417 | F50: =SUM(F48:F49) -> 1608 | G50: =SUM(G48:G49) -> 1437 | H50: 1205 | I50: 951 | J50: 1024 | K50: 1171 | L50: 1287 | M50: 1381 | N50: 1198 | O50: 957 | P50: 1120 | Q50: 1273 | R50: 1392 | S50: 1526 | T50: 1618 | U50: 1405 | V50: 1227 | W50: 1357 | X50: 1464 | Y50: 1457 | Z50: 1508 | AA50: 1571 | AB50: 1334 | AC50: 1074 | AD50: 1169 | AE50: 1256 | AF50: 1296
A52: Выполнено КТ-Ковид за день:
A53: Советская | B53: 126 | C53: 137 | D53: 134 | E53: 141 | F53: 138 | G53: 140 | H53: 140 | I53: 133 | J53: 137 | K53: 133 | L53: 137 | M53: 138 | N53: 143 | O53: 135 | P53: 139 | Q53: 139 | R53: 135 | S53: 142 | T53: 138 | U53: 138 | V53: 70 | W53: 34 | X53: 24 | Y53: 23 | Z53: 20 | AA53: 22 | AB53: 23 | AC53: 18 | AD53: 19 | AE53: 130 | AF53: 135
A54: Есенина | B54: 141 | C54: 139 | D54: 142 | E54: 143 | F54: 142 | G54: 142 | H54: 139 | I54: 142 | J54: 140 | K54: 135 | L54: 138 | M54: 139 | N54: 140 | O54: 140 | P54: 140 | Q54: 135 | R54: 136 | S54: 141 | T54: 138 | U54: 142 | V54: 137 | W54: 272 | X54: 280 | Y54: 278 | Z54: 280 | AA54: 280 | AB54: 280 | AC54: 277 | AD54: 264 | AE54: 136 | AF54: 141
A55: Всего выполнено за день: | B55: =SUM(B53:B54) -> 267 | C55: =SUM(C53:C54) -> 276 | D55: =SUM(D53:D54) -> 276 | E55: =SUM(E53:E54) -> 284 | F55: =SUM(F53:F54) -> 280 | G55: 282 | H55: 279 | I55: 275 | J55: 277 | K55: 268 | L55: 275 | M55: 277 | N55: 283 | O55: 275 | P55: 279 | Q55: 274 | R55: 271 | S55: 283 | T55: 276 | U55: 280 | V55: 207 | W55: 306 | X55: 304 | Y55: 301 | Z55: 300 | AA55: 302 | AB55: 303 | AC55: 295 | AD55: 283 | AE55: 266 | AF55: 276

Sheet Апрель
A1: Отчет по call-центру
B2: 2021-04-01 | C2: 2021-04-02 | D2: 2021-04-03 | E2: 2021-04-04 | F2: 2021-04-05 | G2: 2021-04-06 | H2: 2021-04-07 | I2: 2021-04-08 | J2: 2021-04-09 | K2: 2021-04-10 | L2: 2021-04-11 | M2: 2021-04-12 | N2: 2021-04-13 | O2: 2021-04-14 | P2: 2021-04-15 | Q2: 2021-04-16 | R2: 2021-04-17 | S2: 2021-04-18 | T2: 2021-04-19 | U2: 2021-04-20 | V2: 2021-04-21 | W2: 2021-04-22 | X2: 2021-04-23 | Y2: 2021-04-24 | Z2: 2021-04-25 | AA2: 2021-04-26 | AB2: 2021-04-27 | AC2: 2021-04-28 | AD2: 2021-04-29 | AE2: 2021-04-30
A3: Кол-во обраб. звонков (Линия call-центр) | B3: 631 | C3: 623 | D3: 321 | E3: 244 | F3: 683 | G3: 606 | H3: 554 | I3: 617 | J3: 633 | K3: 331 | L3: 231 | M3: 650 | N3: 576 | O3: 607 | P3: 592 | Q3: 546 | R3: 271 | S3: 212 | T3: 608 | U3: 572 | V3: 509 | W3: 557 | X3: 614 | Y3: 300 | Z3: 242 | AA3: 707 | AB3: 675 | AC3: 542 | AD3: 568 | AE3: 553
A4: Кол-во пропущенных | B4: 75 | C4: 176 | D4: 22 | E4: 16 | F4: 234 | G4: 196 | H4: 97 | I4: 57 | J4: 120 | K4: 40 | L4: 12 | M4: 159 | N4: 115 | O4: 182 | P4: 58 | Q4: 88 | R4: 16 | S4: 23 | T4: 148 | U4: 203 | V4: 214 | W4: 120 | X4: 94 | Y4: 104 | Z4: 78 | AA4: 367 | AB4: 242 | AC4: 182 | AD4: 137 | AE4: 57
A5: Кол-во обраб. звонков (Линия КТ-Ковид) | B5: 299 | C5: 310 | D5: 105 | E5: 69 | F5: 318 | G5: 321 | H5: 307 | I5: 308 | J5: 343 | K5: 122 | L5: 60 | M5: 321 | N5: 298 | O5: 281 | P5: 295 | Q5: 304 | R5: 98 | S5: 64 | T5: 365 | U5: 72 | V5: 272 | W5: 286 | X5: 321 | Y5: 102 | Z5: 64 | AA5: 371 | AB5: 285 | AC5: 319 | AD5: 273 | AE5: 279
A6: Кол-во пропущенных | B6: 87 | C6: 152 | D6: 25 | E6: 13 | F6: 216 | G6: 235 | H6: 117 | I6: 27 | J6: 18 | K6: 13 | L6: 5 | M6: 59 | N6: 52 | O6: 164 | P6: 72 | Q6: 91 | R6: 10 | S6: 4 | T6: 49 | U6: 16 | V6: 189 | W6: 93 | X6: 38 | Y6: 13 | Z6: 8 | AA6: 77 | AB6: 136 | AC6: 103 | AD6: 134 | AE6: 43
A7: Всего звонков (обе линии) | B7: =SUM(B3+B5) -> 930 | C7: =SUM(C3+C5) -> 933 | D7: 426 | E7: 313 | F7: 1001 | G7: 927 | H7: 861 | I7: 925 | J7: 976 | K7: 453 | L7: 291 | M7: 971 | N7: 874 | O7: 888 | P7: 887 | Q7: 850 | R7: 369 | S7: 276 | T7: 973 | U7: 644 | V7: 781 | W7: 843 | X7: 935 | Y7: 402 | Z7: 306 | AA7: 1078 | AB7: 960 | AC7: 861 | AD7: 841 | AE7: 832
A9: Заявки на сайте:
A10: Количество заявок на сайте (всего) | B10: 64 | C10: 73 | D10: 26 | E10: 23 | F10: 90 | G10: 91 | H10: 59 | I10: 58 | J10: 77 | K10: 28 | L10: 23 | M10: 84 | N10: 66 | O10: 80 | P10: 59 | Q10: 68 | R10: 31 | S10: 24 | T10: 65 | U10: 71 | V10: 80 | W10: 93 | X10: 71 | Y10: 45 | Z10: 33 | AA10: 89 | AB10: 84 | AC10: 67 | AD10: 67 | AE10: 59
A11: Со статусом "записался" | B11: 55 | C11: 52 | D11: 13 | E11: 8 | F11: 63 | G11: 66 | H11: 41 | I11: 33 | J11: 54 | K11: 14 | L11: 11 | M11: 48 | N11: 45 | O11: 51 | P11: 30 | Q11: 43 | R11: 18 | S11: 9 | T11: 46 | U11: 40 | V11: 51 | W11: 47 | X11: 47 | Y11: 19 | Z11: 14 | AA11: 46 | AB11: 51 | AC11: 36 | AD11: 48 | AE11: 36
A12: Заявки на сайте КТ Ковид | B12: 32 | C12: 33 | D12: 9 | E12: 3 | F12: 41 | G12: 33 | H12: 26 | I12: 23 | J12: 31 | K12: 7 | L12: 7 | M12: 23 | N12: 20 | O12: 25 | P12: 16 | Q12: 15 | R12: 10 | S12: 5 | T12: 26 | U12: 25 | V12: 23 | W12: 19 | X12: 19 | Y12: 9 | Z12: 8 | AA12: 25 | AB12: 21 | AC12: 15 | AD12: 16 | AE12: 17
A13: Статус "записался" на КТ Ковид | B13: 29 | C13: 31 | D13: 8 | E13: 2 | F13: 34 | G13: 31 | H13: 21 | I13: 18 | J13: 27 | K13: 7 | L13: 7 | M13: 20 | N13: 17 | O13: 24 | P13: 12 | Q13: 15 | R13: 10 | S13: 5 | T13: 23 | U13: 23 | V13: 18 | W13: 15 | X13: 16 | Y13: 6 | Z13: 7 | AA13: 18 | AB13: 20 | AC13: 10 | AD13: 16 | AE13: 14
A15: Записались в центр (МРТ+АПО):
A16: МРТ Verio | B16: 20 | C16: 27 | D16: 18 | E16: 19 | F16: 71 | G16: 34 | H16: 53 | I16: 43 | J16: 48 | K16: 23 | L16: 15 | M16: 42 | N16: 71 | O16: 56 | P16: 34 | Q16: 25 | R16: 15 | S16: 14 | T16: 53 | U16: 21 | V16: 29 | W16: 66 | X16: 31 | Y16: 10 | Z16: 12 | AA16: 47 | AB16: 41 | AC16: 61 | AD16: 37 | AE16: 33
A17: МРТ Skyra | B17: 36 | C17: 39 | D17: 24 | E17: 16 | F17: 49 | G17: 31 | H17: 38 | I17: 37 | J17: 42 | K17: 15 | L17: 15 | M17: 44 | N17: 20 | O17: 42 | P17: 35 | Q17: 14 | R17: 18 | S17: 9 | T17: 32 | U17: 22 | V17: 29 | W17: 29 | X17: 28 | Y17: 20 | Z17: 14 | AA17: 58 | AB17: 76 | AC17: 56 | AD17: 35 | AE17: 37
A18: МРТ Essenza | B18: 22 | C18: 23 | D18: 19 | E18: 8 | F18: 30 | G18: 41 | H18: 32 | I18: 23 | J18: 43 | K18: 19 | L18: 7 | M18: 38 | N18: 32 | O18: 25 | P18: 35 | Q18: 51 | R18: 11 | S18: 5 | T18: 25 | U18: 40 | V18: 27 | W18: 41 | X18: 27 | Y18: 10 | Z18: 9 | AA18: 24 | AB18: 21 | AC18: 24 | AD18: 30 | AE18: 31
A19: МРТ Костюшко | B19: 46 | C19: 59 | D19: 20 | E19: 10 | F19: 77 | G19: 57 | H19: 42 | I19: 44 | J19: 32 | K19: 18 | L19: 10 | M19: 53 | N19: 43 | O19: 61 | P19: 44 | Q19: 40 | R19: 33 | S19: 14 | T19: 46 | U19: 37 | V19: 46 | W19: 39 | X19: 47 | Y19: 13 | Z19: 12 | AA19: 80 | AB19: 55 | AC19: 59 | AD19: 53 | AE19: 36
A20: МРТ Солидарности | B20: 28 | C20: 28 | D20: 10 | E20: 8 | F20: 51 | G20: 38 | H20: 24 | I20: 14 | J20: 22 | K20: 11 | L20: 8 | M20: 48 | N20: 65 | O20: 42 | P20: 19 | Q20: 41 | R20: 23 | S20: 9 | T20: 85 | U20: 25 | V20: 70 | W20: 29 | X20: 30 | Y20: 9 | Z20: 11 | AA20: 55 | AB20: 13 | AC20: 71 | AD20: 65 | AE20: 20
A21: Всего записано за день МРТ : | B21: =SUM(B16:B20) -> 152 | C21: =SUM(C16:C20) -> 176 | D21: 91 | E21: 61 | F21: 278 | G21: 201 | H21: 189 | I21: 161 | J21: 187 | K21: 86 | L21: 55 | M21: 225 | N21: 231 | O21: 226 | P21: 167 | Q21: 171 | R21: 100 | S21: 51 | T21: 241 | U21: 145 | V21: 201 | W21: 204 | X21: 163 | Y21: 62 | Z21: 58 | AA21: 264 | AB21: 206 | AC21: 271 | AD21: 220 | AE21: 157
A22: Отменено клиентом + неявка (все центры МРТ) | B22: 24 | C22: 19 | D22: 28 | E22: 21 | F22: 31 | G22: 27 | H22: 36 | I22: 20 | J22: 23 | K22: 38 | L22: 42 | M22: 30 | N22: 18 | O22: 26 | P22: 27 | Q22: 34 | R22: 28 | S22: 32 | T22: 39 | U22: 38 | V22: 26 | W22: 35 | X22: 26 | Y22: 30 | Z22: 32 | AA22: 34 | AB22: 36 | AC22: 32 | AD22: 28 | AE22: 22
A23: АПО | B23: 117 | C23: 115 | D23: 69 | E23: 22 | F23: 139 | G23: 139 | H23: 109 | I23: 132 | J23: 107 | K23: 30 | L23: 15 | M23: 101 | N23: 103 | O23: 92 | P23: 80 | Q23: 85 | R23: 53 | S23: 13 | T23: 80 | U23: 90 | V23: 83 | W23: 76 | X23: 70 | Y23: 59 | Z23: 31 | AA23: 109 | AB23: 105 | AC23: 112 | AD23: 81 | AE23: 73
A24: Всего записано за день (МРТ + АПО): | B24: =SUM(B21+B23) -> 269 | C24: =SUM(C21+C23) -> 291 | D24: 160 | E24: 83 | F24: 417 | G24: 340 | H24: 298 | I24: 293 | J24: 294 | K24: 116 | L24: 70 | M24: 326 | N24: 334 | O24: 318 | P24: 247 | Q24: 256 | R24: 153 | S24: 64 | T24: 321 | U24: 235 | V24: 284 | W24: 280 | X24: 233 | Y24: 121 | Z24: 89 | AA24: 373 | AB24: 311 | AC24: 383 | AD24: 301 | AE24: 230
A25: ПЭТ/КТ | B25: 48 | C25: 41 | D25: 3 | E25: 0 | F25: 54 | G25: 38 | H25: 47 | I25: 37 | J25: 40 | K25: 1 | L25: 0 | M25: 47 | N25: 45 | O25: 57 | P25: 43 | Q25: 44 | R25: 0 | S25: 1 | T25: 52 | U25: 51 | V25: 55 | W25: 67 | X25: 46 | Y25: 2 | Z25: 2 | AA25: 37 | AB25: 36 | AC25: 54 | AD25: 50 | AE25: 61
A26: Очередь ПЭТ/КТ | B26: 258 | C26: 255 | D26: 258 | E26: 258 | F26: 271 | G26: 266 | H26: 271 | I26: 264 | J26: 261 | K26: 262 | L26: 262 | M26: 265 | N26: 269 | O26: 284 | P26: 288 | Q26: 291 | R26: 291 | S26: 292 | T26: 301 | U26: 311 | V26: 322 | W26: 346 | X26: 351 | Y26: 353 | Z26: 355 | AA26: 348 | AB26: 344 | AC26: 357 | AD26: 362 | AE26: 382
A27: Очередь КТ-Приморский | J27: 490 | K27: 471 | L27: 446 | M27: 498 | N27: 480 | O27: 494 | P27: 466 | Q27: 441 | R27: 406 | S27: 375 | T27: 404 | U27: 417 | V27: 426 | W27: 462 | X27: 463 | Y27: 441 | Z27: 428 | AA27: 453 | AB27: 443 | AC27: 450 | AD27: 431 | AE27: 409
A29: Кол-во операторов | B29: 7 | C29: 7 | D29: 6 | E29: 4 | F29: 7 | G29: 8 | H29: 8 | I29: 8 | J29: 8 | K29: 5 | L29: 4 | M29: 8 | N29: 8 | O29: 7 | P29: 8 | Q29: 7 | R29: 4 | S29: 4 | T29: 8 | U29: 7 | V29: 7 | W29: 8 | X29: 8 | Y29: 4 | Z29: 4 | AA29: 8 | AB29: 8 | AC29: 7 | AD29: 7 | AE29: 8
A30: сумма часов работы операторов | B30: 76 | C30: 76 | D30: 60 | E30: 48 | F30: 76 | G30: 79 | H30: 84 | I30: 80 | J30: 84 | K30: 60 | L30: 48 | M30: 84 | N30: 79 | O30: 72 | P30: 84 | Q30: 76 | R30: 48 | S30: 48 | T30: 80 | U30: 68 | V30: 72 | W30: 80 | X30: 80 | Y30: 48 | Z30: 48 | AA30: 80 | AB30: 80 | AC30: 72 | AD30: 76 | AE30: 84
A32: Время ожидания на линии (мин)
A33: 244-00-24 (среднее) | B33: =71/60 -> 1.183333333 | C33: =115/60 -> 1.916666667 | D33: 1.1 | E33: =37/60 -> 0.6166666667 | F33: =158/60 -> 2.633333333 | G33: =175/60 -> 2.916666667 | H33: =146/60 -> 2.433333333 | I33: =69/60 -> 1.15 | J33: =104/60 -> 1.733333333 | K33: =34/60 -> 0.5666666667 | L33: =47/60 -> 0.7833333333 | M33: =190/60 -> 3.166666667 | N33: =95/60 -> 1.583333333 | O33: =159/60 -> 2.65 | P33: =88/60 -> 1.466666667 | Q33: =120/60 -> 2 | R33: =65/60 -> 1.083333333 | S33: =32/60 -> 0.5333333333 | T33: =166/60 -> 2.766666667 | U33: =259/60 -> 4.316666667 | V33: =267/60 -> 4.45 | W33: =137/60 -> 2.283333333 | X33: =115/60 -> 1.916666667 | Y33: =192/60 -> 3.2 | Z33: =98/60 -> 1.633333333 | AA33: =297/60 -> 4.95 | AB33: =251/60 -> 4.183333333 | AC33: =211/60 -> 3.516666667 | AD33: =94/60 -> 1.566666667 | AE33: =53/60 -> 0.8833333333
A34: 244-31-27 (КТ Ковид, время максимальное) | B34: =504/60 -> 8.4 | C34: =738/60 -> 12.3 | D34: =252/60 -> 4.2 | E34: =100/60 -> 1.666666667 | F34: =912/60 -> 15.2 | G34: =697/60 -> 11.61666667 | H34: =372/60 -> 6.2 | I34: =129/60 -> 2.15 | J34: =106/60 -> 1.766666667 | K34: =111/60 -> 1.85 | L34: =13/60 -> 0.2166666667 | M34: =218/60 -> 3.633333333 | N34: =308/60 -> 5.133333333 | O34: =776/60 -> 12.93333333 | P34: =407/60 -> 6.783333333 | Q34: =348/60 -> 5.8 | R34: =85/60 -> 1.416666667 | S34: =36/60 -> 0.6 | T34: =161/60 -> 2.683333333 | U34: =129/60 -> 2.15 | V34: =654/60 -> 10.9 | W34: =486/60 -> 8.1 | X34: =140/60 -> 2.333333333 | Y34: =188/60 -> 3.133333333 | Z34: =58/60 -> 0.9666666667 | AA34: =358/60 -> 5.966666667 | AB34: =467/60 -> 7.783333333 | AC34: =117/60 -> 1.95 | AD34: =328/60 -> 5.466666667 | AE34: =255/60 -> 4.25
A36: Нажали кнопку "1" - перевод в Клинику | B36: 14 | C36: 21 | D36: 0 | E36: 0 | F36: 22 | G36: 14 | H36: 9 | I36: 30 | J36: 16 | K36: 0 | L36: 0 | M36: 25 | N36: 13 | O36: 28 | P36: 21 | Q36: 27 | R36: 0 | S36: 0 | T36: 8 | U36: 22 | V36: 18 | W36: 14 | X36: 19 | Y36: 0 | Z36: 0 | AA36: 30 | AB36: 29 | AC36: 13 | AD36: 6 | AE36: 19
A38: Отчет по КТ-Ковид
A39: Записали КТ Ковид за день:
A40: Записаны сегодня на КТ (Советская) | B40: 184 | C40: 161 | D40: 40 | E40: 29 | F40: 163 | G40: 190 | H40: 183 | I40: 139 | J40: 170 | K40: 73 | L40: 30 | M40: 178 | N40: 140 | O40: 138 | P40: 138 | Q40: 134 | R40: 35 | S40: 25 | T40: 156 | U40: 167 | V40: 136 | W40: 148 | X40: 130 | Y40: 37 | Z40: 30 | AA40: 192 | AB40: 139 | AC40: 177 | AD40: 90 | AE40: 76
A41: из них ОМС | B41: 164 | C41: 149 | D41: 38 | E41: 26 | F41: 155 | G41: 182 | H41: 180 | I41: 129 | J41: 163 | K41: 67 | L41: 24 | M41: 171 | N41: 137 | O41: 134 | P41: 134 | Q41: 130 | R41: 34 | S41: 22 | T41: 152 | U41: 163 | V41: 135 | W41: 144 | X41: 126 | Y41: 33 | Z41: 28 | AA41: 187 | AB41: 119 | AC41: 158 | AD41: 70 | AE41: 61
A42: Записаны сегодня на КТ (Есенина) | B42: 192 | C42: 199 | D42: 56 | E42: 26 | F42: 225 | G42: 180 | H42: 152 | I42: 170 | J42: 174 | K42: 46 | L42: 23 | M42: 207 | N42: 195 | O42: 187 | P42: 192 | Q42: 193 | R42: 60 | S42: 27 | T42: 229 | U42: 156 | V42: 165 | W42: 197 | X42: 199 | Y42: 52 | Z42: 26 | AA42: 211 | AB42: 178 | AC42: 165 | AD42: 252 | AE42: 255
A43: из них ОМС | B43: 182 | C43: 195 | D43: 52 | E43: 23 | F43: 221 | G43: 178 | H43: 147 | I43: 164 | J43: 170 | K43: 43 | L43: 19 | M43: 199 | N43: 193 | O43: 183 | P43: 189 | Q43: 182 | R43: 56 | S43: 23 | T43: 225 | U43: 150 | V43: 157 | W43: 186 | X43: 190 | Y43: 48 | Z43: 21 | AA43: 207 | AB43: 177 | AC43: 161 | AD43: 247 | AE43: 243
A44: Записано платных (всего) | B44: =(B40+B42)-(B41+B43) -> 30 | C44: =(C40+C42)-(C41+C43) -> 16 | D44: 6 | E44: 6 | F44: 12 | G44: 10 | H44: 8 | I44: 16 | J44: 11 | K44: 9 | L44: 10 | M44: 15 | N44: 5 | O44: 8 | P44: 7 | Q44: 15 | R44: 5 | S44: 7 | T44: 8 | U44: 10 | V44: 9 | W44: 15 | X44: 13 | Y44: 8 | Z44: 7 | AA44: 9 | AB44: 21 | AC44: 23 | AD44: 25 | AE44: 27
A45: Всего записано за день: | B45: =SUM(B40+B42) -> 376 | C45: =SUM(C40+C42) -> 360 | D45: 96 | E45: 55 | F45: 388 | G45: 370 | H45: 335 | I45: 309 | J45: 344 | K45: 119 | L45: 53 | M45: 385 | N45: 335 | O45: 325 | P45: 330 | Q45: 327 | R45: 95 | S45: 52 | T45: 385 | U45: 323 | V45: 301 | W45: 345 | X45: 329 | Y45: 89 | Z45: 56 | AA45: 403 | AB45: 317 | AC45: 342 | AD45: 342 | AE45: 331 | AF45: =SUM(B45:AE45) -> 8217
A47: Очередь по записи КТ-Ковид:
A48: Советская | B48: 639 | C48: 628 | D48: 481 | E48: 356 | F48: 359 | G48: 395 | H48: 425 | I48: 410 | J48: 422 | K48: 343 | L48: 223 | M48: 256 | N48: 323 | O48: 380 | P48: 437 | Q48: 490 | R48: 444 | S48: 386 | T48: 391 | U48: 400 | V48: 380 | W48: 380 | X48: 357 | Y48: 316 | Z48: 265 | AA48: 305 | AB48: 298 | AC48: 396 | AD48: 333 | AE48: 331
A49: Есенина | B49: 714 | C49: 747 | D49: 624 | E49: 497 | F49: 557 | G49: 576 | H49: 568 | I49: 577 | J49: 594 | K49: 493 | L49: 368 | M49: 421 | N49: 464 | O49: 502 | P49: 544 | Q49: 577 | R49: 478 | S49: 348 | T49: 426 | U49: 431 | V49: 441 | W49: 487 | X49: 531 | Y49: 433 | Z49: 303 | AA49: 360 | AB49: 388 | AC49: 398 | AD49: 498 | AE49: 598
A50: Всего в очереди: | B50: =SUM(B48:B49) -> 1353 | C50: =SUM(C48:C49) -> 1375 | D50: 1105 | E50: 853 | F50: 916 | G50: 971 | H50: 993 | I50: 987 | J50: 1016 | K50: 836 | L50: 591 | M50: 677 | N50: 787 | O50: 882 | P50: 981 | Q50: 1067 | R50: 922 | S50: 734 | T50: 817 | U50: 831 | V50: 821 | W50: 867 | X50: 888 | Y50: 749 | Z50: 568 | AA50: 665 | AB50: 686 | AC50: 794 | AD50: 831 | AE50: 929
A52: Выполнено КТ-Ковид за день:
A53: Советская | B53: 141 | C53: 134 | D53: 162 | E53: 138 | F53: 132 | G53: 133 | H53: 136 | I53: 137 | J53: 139 | K53: 133 | L53: 137 | M53: 136 | N53: 65 | O53: 68 | P53: 67 | Q53: 68 | R53: 70 | S53: 70 | T53: 135 | U53: 139 | V53: 138 | W53: 135 | X53: 133 | Y53: 70 | Z53: 71 | AA53: 136 | AB53: 134 | AC53: 69 | AD53: 137 | AE53: 69
A54: Есенина | B54: 135 | C54: 141 | D54: 159 | E54: 137 | F54: 143 | G54: 138 | H54: 141 | I54: 140 | J54: 143 | K54: 130 | L54: 135 | M54: 140 | N54: 136 | O54: 141 | P54: 133 | Q54: 138 | R54: 137 | S54: 140 | T54: 133 | U54: 135 | V54: 140 | W54: 138 | X54: 136 | Y54: 141 | Z54: 138 | AA54: 138 | AB54: 141 | AC54: 136 | AD54: 140 | AE54: 138
A55: Всего выполнено за день: | B55: =SUM(B53:B54) -> 276 | C55: =SUM(C53:C54) -> 275 | D55: 321 | E55: 275 | F55: 275 | G55: 271 | H55: 277 | I55: 277 | J55: 282 | K55: 263 | L55: 272 | M55: 276 | N55: 201 | O55: 209 | P55: 200 | Q55: 206 | R55: 207 | S55: 210 | T55: 268 | U55: 274 | V55: 278 | W55: 273 | X55: 269 | Y55: 211 | Z55: 209 | AA55: 274 | AB55: 275 | AC55: 205 | AD55: 277 | AE55: 207 | AF55: =SUM(B55:AE55) -> 7593

Sheet Май
A1: Отчет по call-центру
B2: 2021-05-01 | C2: 2021-05-02 | D2: 2021-05-03 | E2: 2021-05-04 | F2: 2021-05-05 | G2: 2021-05-06 | H2: 2021-05-07 | I2: 2021-05-08 | J2: 2021-05-09 | K2: 2021-05-10 | L2: 2021-05-11 | M2: 2021-05-12 | N2: 2021-05-13 | O2: 2021-05-14 | P2: 2021-05-15 | Q2: 2021-05-16 | R2: 2021-05-17 | S2: 2021-05-18 | T2: 2021-05-19 | U2: 2021-05-20 | V2: 2021-05-21 | W2: 2021-05-22 | X2: 2021-05-23 | Y2: 2021-05-24 | Z2: 2021-05-25 | AA2: 2021-05-26 | AB2: 2021-05-27 | AC2: 2021-05-28 | AD2: 2021-05-29 | AE2: 2021-05-30 | AF2: 2021-05-31
A3: Кол-во обраб. звонков (Линия call-центр) | B3: 200 | C3: 187 | D3: 302 | E3: 461 | F3: 406 | G3: 431 | H3: 407 | I3: 286 | J3: 158 | K3: 329 | L3: 557 | M3: 577 | N3: 518 | O3: 596 | P3: 310 | Q3: 212 | R3: 667 | S3: 591 | T3: 593 | U3: 526 | V3: 603 | W3: 256 | X3: 187 | Y3: 661 | Z3: 565 | AA3: 572 | AB3: 608 | AC3: 545 | AD3: 284 | AE3: 222 | AF3: 601
A4: Кол-во пропущенных | B4: 31 | C4: 21 | D4: 59 | E4: 161 | F4: 208 | G4: 205 | H4: 194 | I4: 32 | J4: 12 | K4: 29 | L4: 109 | M4: 99 | N4: 67 | O4: 87 | P4: 88 | Q4: 32 | R4: 146 | S4: 83 | T4: 69 | U4: 148 | V4: 81 | W4: 21 | X4: 20 | Y4: 101 | Z4: 157 | AA4: 72 | AB4: 108 | AC4: 93 | AD4: 22 | AE4: 192 | AF4: 329
A5: Кол-во обраб. звонков (Линия КТ-Ковид) | B5: 99 | C5: 83 | D5: 112 | E5: 216 | F5: 228 | G5: 227 | H5: 235 | I5: 136 | J5: 84 | K5: 150 | L5: 345 | M5: 336 | N5: 315 | O5: 347 | P5: 136 | Q5: 79 | R5: 389 | S5: 367 | T5: 354 | U5: 343 | V5: 323 | W5: 162 | X5: 75 | Y5: 314 | Z5: 329 | AA5: 377 | AB5: 326 | AC5: 344 | AD5: 143 | AE5: 78 | AF5: 254
A6: Кол-во пропущенных | B6: 29 | C6: 13 | D6: 33 | E6: 173 | F6: 175 | G6: 314 | H6: 238 | I6: 33 | J6: 9 | K6: 21 | L6: 186 | M6: 94 | N6: 134 | O6: 266 | P6: 123 | Q6: 21 | R6: 36 | S6: 74 | T6: 121 | U6: 89 | V6: 303 | W6: 8 | X6: 8 | Y6: 290 | Z6: 152 | AA6: 155 | AB6: 150 | AC6: 206 | AD6: 54 | AE6: 7 | AF6: 7
A7: Всего звонков (обе линии) | B7: =SUM(B3+B5) -> 299 | C7: =SUM(C3+C5) -> 270 | D7: 414 | E7: 677 | F7: 634 | G7: 658 | H7: 642 | I7: 422 | J7: 242 | K7: 479 | L7: 902 | M7: 913 | N7: 833 | O7: 943 | P7: 446 | Q7: 291 | R7: 1056 | S7: 958 | T7: 947 | U7: 869 | V7: 926 | W7: 418 | X7: 262 | Y7: 975 | Z7: 894 | AA7: 949 | AB7: 934 | AC7: 889 | AD7: 427 | AE7: 300 | AF7: 855
A9: Заявки на сайте:
A10: Количество заявок на сайте (всего) | B10: 34 | C10: 22 | D10: 36 | E10: 76 | F10: 85 | G10: 80 | H10: 67 | I10: 25 | J10: 14 | K10: 36 | L10: 58 | M10: 62 | N10: 72 | O10: 103 | P10: 35 | Q10: 24 | R10: 106 | S10: 70 | T10: 87 | U10: 66 | V10: 68 | W10: 36 | X10: 23 | Y10: 112 | Z10: 65 | AA10: 67 | AB10: 81 | AC10: 82 | AD10: 35 | AE10: 23 | AF10: 134
A11: Со статусом "записался" | B11: 19 | C11: 12 | D11: 22 | E11: 49 | F11: 47 | G11: 44 | H11: 48 | I11: 14 | J11: 11 | K11: 21 | L11: 41 | M11: 40 | N11: 53 | O11: 71 | P11: 21 | Q11: 12 | R11: 58 | S11: 45 | T11: 65 | U11: 42 | V11: 45 | W11: 15 | X11: 10 | Y11: 76 | Z11: 43 | AA11: 40 | AB11: 58 | AC11: 53 | AD11: 15 | AE11: 14 | AF11: 86
A12: Заявки на сайте КТ Ковид | B12: 10 | C12: 4 | D12: 6 | E12: 26 | F12: 21 | G12: 33 | H12: 24 | I12: 7 | J12: 2 | K12: 12 | L12: 18 | M12: 20 | N12: 22 | O12: 41 | P12: 11 | Q12: 7 | R12: 37 | S12: 37 | T12: 37 | U12: 26 | V12: 39 | W12: 13 | X12: 5 | Y12: 39 | Z12: 32 | AA12: 22 | AB12: 37 | AC12: 33 | AD12: 12 | AE12: 12 | AF12: 56
A13: Статус "записался" на КТ Ковид | B13: 7 | C13: 4 | D13: 6 | E13: 25 | F13: 18 | G13: 30 | H13: 21 | I13: 7 | J13: 2 | K13: 12 | L13: 16 | M13: 19 | N13: 18 | O13: 38 | P13: 8 | Q13: 5 | R13: 31 | S13: 28 | T13: 34 | U13: 24 | V13: 31 | W13: 8 | X13: 3 | Y13: 33 | Z13: 27 | AA13: 19 | AB13: 33 | AC13: 28 | AD13: 7 | AE13: 9 | AF13: 44
A15: Записались в центр (МРТ+АПО):
A16: МРТ Verio | B16: 16 | C16: 9 | D16: 22 | E16: 35 | F16: 34 | G16: 27 | H16: 33 | I16: 16 | J16: 9 | K16: 21 | L16: 51 | M16: 38 | N16: 41 | O16: 34 | P16: 16 | Q16: 12 | R16: 70 | S16: 37 | T16: 59 | U16: 28 | V16: 26 | W16: 17 | X16: 8 | Y16: 52 | Z16: 29 | AA16: 56 | AB16: 47 | AC16: 34 | AD16: 21 | AE16: 10 | AF16: 26
A17: МРТ Skyra | B17: 14 | C17: 9 | D17: 22 | E17: 26 | F17: 30 | G17: 25 | H17: 37 | I17: 24 | J17: 10 | K17: 17 | L17: 36 | M17: 45 | N17: 31 | O17: 25 | P17: 21 | Q17: 5 | R17: 34 | S17: 26 | T17: 35 | U17: 30 | V17: 33 | W17: 17 | X17: 6 | Y17: 66 | Z17: 67 | AA17: 48 | AB17: 37 | AC17: 36 | AD17: 15 | AE17: 17 | AF17: 33
A18: МРТ Essenza | B18: 7 | C18: 7 | D18: 19 | E18: 14 | F18: 33 | G18: 22 | H18: 21 | I18: 14 | J18: 6 | K18: 20 | L18: 36 | M18: 34 | N18: 25 | O18: 41 | P18: 14 | Q18: 5 | R18: 31 | S18: 32 | T18: 31 | U18: 19 | V18: 20 | W18: 14 | X18: 6 | Y18: 44 | Z18: 23 | AA18: 36 | AB18: 29 | AC18: 42 | AD18: 11 | AE18: 5 | AF18: 31
A19: МРТ Костюшко | B19: 10 | C19: 8 | D19: 16 | E19: 40 | F19: 35 | G19: 46 | H19: 42 | I19: 13 | J19: 3 | K19: 22 | L19: 54 | M19: 35 | N19: 58 | O19: 49 | P19: 11 | Q19: 12 | R19: 73 | S19: 59 | T19: 47 | U19: 44 | V19: 43 | W19: 13 | X19: 12 | Y19: 63 | Z19: 49 | AA19: 70 | AB19: 56 | AC19: 37 | AD19: 28 | AE19: 22 | AF19: 47
A20: МРТ Солидарности | B20: 12 | C20: 10 | D20: 12 | E20: 31 | F20: 13 | G20: 20 | H20: 9 | I20: 17 | J20: 8 | K20: 15 | L20: 66 | M20: 38 | N20: 20 | O20: 36 | P20: 13 | Q20: 6 | R20: 96 | S20: 17 | T20: 70 | U20: 20 | V20: 14 | W20: 10 | X20: 10 | Y20: 83 | Z20: 53 | AA20: 16 | AB20: 44 | AC20: 16 | AD20: 7 | AE20: 4 | AF20: 13
A21: Всего записано за день МРТ : | B21: =SUM(B16:B20) -> 59 | C21: =SUM(C16:C20) -> 43 | D21: =SUM(D16:D20) -> 91 | E21: =SUM(E16:E20) -> 146 | F21: =SUM(F16:F20) -> 145 | G21: 140 | H21: 142 | I21: 84 | J21: 36 | K21: 95 | L21: 243 | M21: 190 | N21: 175 | O21: 185 | P21: 75 | Q21: 40 | R21: 304 | S21: 171 | T21: 242 | U21: 141 | V21: 136 | W21: 71 | X21: 42 | Y21: 308 | Z21: 221 | AA21: 226 | AB21: 213 | AC21: 165 | AD21: 82 | AE21: 58 | AF21: 150
A22: Отменено клиентом + неявка (все центры МРТ) | B22: 33 | C22: 33 | D22: 43 | E22: 36 | F22: 48 | G22: 25 | H22: 39 | I22: 28 | J22: 23 | K22: 38 | L22: 32 | M22: 18 | N22: 18 | O22: 20 | P22: 27 | Q22: 24 | R22: 21 | S22: 30 | T22: 34 | U22: 38 | V22: 34 | W22: 28 | X22: 22 | Y22: 30 | Z22: 25 | AA22: 24 | AB22: 22 | AC22: 22 | AD22: 27 | AE22: 25 | AF22: 34
A23: АПО | B23: 32 | C23: 18 | D23: 45 | E23: 87 | F23: 59 | G23: 91 | H23: 60 | I23: 37 | J23: 5 | K23: 55 | L23: 106 | M23: 112 | N23: 83 | O23: 97 | P23: 44 | Q23: 15 | R23: 89 | S23: 72 | T23: 66 | U23: 95 | V23: 58 | W23: 27 | X23: 16 | Y23: 106 | Z23: 98 | AA23: 78 | AB23: 87 | AC23: 90 | AD23: 34 | AE23: 13 | AF23: 87
A24: Всего записано за день (МРТ + АПО): | B24: =SUM(B21+B23) -> 91 | C24: =SUM(C21+C23) -> 61 | D24: =SUM(D21+D23) -> 136 | E24: =SUM(E21+E23) -> 233 | F24: =SUM(F21+F23) -> 204 | G24: 231 | H24: 202 | I24: 121 | J24: 41 | K24: 150 | L24: 349 | M24: 302 | N24: 258 | O24: 282 | P24: 119 | Q24: 55 | R24: 393 | S24: 243 | T24: 308 | U24: 236 | V24: 194 | W24: 98 | X24: 58 | Y24: 414 | Z24: 319 | AA24: 304 | AB24: 300 | AC24: 255 | AD24: 116 | AE24: 71 | AF24: 237
A25: ПЭТ/КТ | B25: 2 | C25: 1 | D25: 4 | E25: 40 | F25: 45 | G25: 38 | H25: 42 | I25: 1 | J25: 0 | K25: 1 | L25: 50 | M25: 34 | N25: 39 | O25: 46 | P25: 2 | Q25: 2 | R25: 46 | S25: 38 | T25: 55 | U25: 45 | V25: 50 | W25: 5 | X25: 2 | Y25: 52 | Z25: 40 | AA25: 51 | AB25: 43 | AC25: 60 | AD25: 3 | AE25: 1 | AF25: 67
A26: Очередь ПЭТ/КТ | B26: 384 | C26: 385 | D26: 348 | E26: 346 | F26: 347 | G26: 343 | H26: 338 | I26: 339 | J26: 339 | K26: 293 | L26: 301 | M26: 304 | N26: 307 | O26: 314 | P26: 316 | Q26: 318 | R26: 316 | S26: 309 | T26: 232 | U26: 334 | V26: 337 | W26: 342 | X26: 344 | Y26: 351 | Z26: 349 | AA26: 356 | AB26: 356 | AC26: 375 | AD26: 378 | AE26: 379 | AF26: 404
A27: Очередь КТ-Приморский | B27: 381 | C27: 351 | D27: 328 | E27: 310 | F27: 290 | G27: 275 | H27: 276 | I27: 255 | J27: 232 | K27: 216 | L27: 271 | M27: 324 | N27: 314 | O27: 318 | P27: 293 | Q27: 270 | R27: 305 | S27: 346 | T27: 383 | U27: 379 | V27: 383 | W27: 369 | X27: 341 | Y27: 376 | Z27: 401 | AA27: 413 | AB27: 410 | AC27: 392 | AD27: 367 | AE27: 347 | AF27: 337
A29: Кол-во операторов | B29: 4 | C29: 4 | D29: 6 | E29: 6 | F29: 5 | G29: 5 | H29: 5 | I29: 5 | J29: 3 | K29: 5 | L29: 7 | M29: 8 | N29: 8 | O29: 7 | P29: 4 | Q29: 3 | R29: 8 | S29: 8 | T29: 8 | U29: 7 | V29: 7 | W29: 4 | X29: 4 | Y29: 8 | Z29: 8 | AA29: 8 | AB29: 7 | AC29: 7 | AD29: 4 | AE29: 4 | AF29: 6
A30: сумма часов работы операторов | B30: 48 | C30: 46 | D30: 70 | E30: 70 | F30: 58 | G30: 56 | H30: 60 | I30: 56 | J30: 36 | K30: 60 | L30: 68 | M30: 80 | N30: 84 | O30: 78 | P30: 48 | Q30: 36 | R30: 84 | S30: 84 | T30: 80 | U30: 72 | V30: 72 | W30: 48 | X30: 46 | Y30: 84 | Z30: 88 | AA30: 83 | AB30: 76 | AC30: 76 | AD30: 44 | AE30: 48 | AF30: 64
A32: Время ожидания на линии (мин)
A33: 244-00-24 (среднее) | B33: =62/60 -> 1.033333333 | C33: =65/60 -> 1.083333333 | D33: =164/60 -> 2.733333333 | E33: =221/60 -> 3.683333333 | F33: =259/60 -> 4.316666667 | G33: =287/60 -> 4.783333333 | H33: =317/60 -> 5.283333333 | I33: =73/60 -> 1.216666667 | J33: =51/60 -> 0.85 | K33: =61/60 -> 1.016666667 | L33: =101/60 -> 1.683333333 | M33: =74/60 -> 1.233333333 | N33: =68/60 -> 1.133333333 | O33: =111/60 -> 1.85 | P33: =48/60 -> 0.8 | Q33: =101/60 -> 1.683333333 | R33: =166/60 -> 2.766666667 | S33: =92/60 -> 1.533333333 | T33: =62/60 -> 1.033333333 | U33: =122/60 -> 2.033333333 | V33: =96/60 -> 1.6 | W33: =42/60 -> 0.7 | X33: =36/60 -> 0.6 | Y33: =68/60 -> 1.133333333 | Z33: =235/60 -> 3.916666667 | AA33: =125/60 -> 2.083333333 | AB33: =97/60 -> 1.616666667 | AC33: =58/60 -> 0.9666666667 | AD33: =43/60 -> 0.7166666667 | AE33: =41/60 -> 0.6833333333 | AF33: =273/60 -> 4.55
A34: 244-31-27 (КТ Ковид, время максимальное) | B34: =71/60 -> 1.183333333 | C34: =70/60 -> 1.166666667 | D34: =43/60 -> 0.7166666667 | E34: =717/60 -> 11.95 | F34: =1138/60 -> 18.96666667 | G34: =1092/60 -> 18.2 | H34: =977/60 -> 16.28333333 | I34: =117/60 -> 1.95 | J34: =63/60 -> 1.05 | K34: =160/60 -> 2.666666667 | L34: =276/60 -> 4.6 | M34: =208/60 -> 3.466666667 | N34: =477/60 -> 7.95 | O34: =913/60 -> 15.21666667 | P34: =304/60 -> 5.066666667 | Q34: =24/60 -> 0.4 | R34: =130/60 -> 2.166666667 | S34: =177/60 -> 2.95 | T34: =335/60 -> 5.583333333 | U34: =165/60 -> 2.75 | V34: =1102/60 -> 18.36666667 | W34: =184/60 -> 3.066666667 | X34: =66/60 -> 1.1 | Y34: =947/60 -> 15.78333333 | Z34: =818/60 -> 13.63333333 | AA34: =232/60 -> 3.866666667 | AB34: =557/60 -> 9.283333333 | AC34: =593/60 -> 9.883333333 | AD34: =180/60 -> 3 | AE34: =43/60 -> 0.7166666667 | AF34: =1879/60 -> 31.31666667
A36: Нажали кнопку "1" - перевод в Клинику | B36: 0 | C36: 0 | D36: 9 | E36: 10 | F36: 23 | G36: 18 | H36: 8 | I36: 0 | J36: 0 | K36: 3 | L36: 16 | M36: 22 | N36: 13 | O36: 16 | P36: 0 | Q36: 0 | R36: 23 | S36: 17 | T36: 47 | U36: 39 | V36: 23 | W36: 0 | X36: 0 | Y36: 29 | Z36: 21 | AA36: 26 | AB36: 31 | AC36: 12 | AD36: 0 | AE36: 0 | AF36: 35
A38: Отчет по КТ-Ковид
A39: Записали КТ Ковид за день:
A40: Записаны сегодня на КТ (Советская) | B40: 5 | C40: 6 | D40: 12 | E40: 44 | F40: 66 | G40: 81 | H40: 72 | I40: 48 | J40: 17 | K40: 62 | L40: 171 | M40: 135 | N40: 128 | O40: 172 | P40: 81 | Q40: 31 | R40: 218 | S40: 190 | T40: 177 | U40: 152 | V40: 146 | W40: 61 | X40: 33 | Y40: 194 | Z40: 171 | AA40: 196 | AB40: 169 | AC40: 178 | AD40: 61 | AE40: 31 | AF40: 160
A41: из них ОМС | B41: 3 | C41: 1 | D41: 4 | E41: 27 | F41: 54 | G41: 66 | H41: 54 | I41: 38 | J41: 15 | K41: 58 | L41: 161 | M41: 133 | N41: 122 | O41: 162 | P41: 77 | Q41: 29 | R41: 206 | S41: 169 | T41: 167 | U41: 148 | V41: 142 | W41: 59 | X41: 29 | Y41: 186 | Z41: 159 | AA41: 192 | AB41: 167 | AC41: 171 | AD41: 58 | AE41: 29 | AF41: 157
A42: Записаны сегодня на КТ (Есенина) | B42: 81 | C42: 52 | D42: 103 | E42: 228 | F42: 234 | G42: 208 | H42: 219 | I42: 91 | J42: 59 | K42: 76 | L42: 204 | M42: 209 | N42: 198 | O42: 247 | P42: 69 | Q42: 39 | R42: 239 | S42: 220 | T42: 210 | U42: 175 | V42: 229 | W42: 83 | X42: 31 | Y42: 213 | Z42: 208 | AA42: 178 | AB42: 205 | AC42: 219 | AD42: 91 | AE42: 34 | AF42: 173
A43: из них ОМС | B43: 76 | C43: 45 | D43: 89 | E43: 217 | F43: 228 | G43: 204 | H43: 216 | I43: 84 | J43: 57 | K43: 71 | L43: 196 | M43: 203 | N43: 192 | O43: 239 | P43: 66 | Q43: 35 | R43: 230 | S43: 215 | T43: 205 | U43: 170 | V43: 220 | W43: 81 | X43: 26 | Y43: 209 | Z43: 205 | AA43: 173 | AB43: 196 | AC43: 216 | AD43: 82 | AE43: 31 | AF43: 167
A44: Записано платных (всего) | B44: =(B40+B42)-(B41+B43) -> 7 | C44: =(C40+C42)-(C41+C43) -> 12 | D44: 22 | E44: 28 | F44: 18 | G44: 19 | H44: 21 | I44: 17 | J44: 4 | K44: 9 | L44: 18 | M44: 8 | N44: 12 | O44: 18 | P44: 7 | Q44: 6 | R44: 21 | S44: 26 | T44: 15 | U44: 9 | V44: 13 | W44: 4 | X44: 9 | Y44: 12 | Z44: 15 | AA44: 9 | AB44: 11 | AC44: 10 | AD44: 12 | AE44: 5 | AF44: 9
A45: Всего записано за день: | B45: =SUM(B40+B42) -> 86 | C45: =SUM(C40+C42) -> 58 | D45: 115 | E45: 272 | F45: 300 | G45: 289 | H45: 291 | I45: 139 | J45: 76 | K45: 138 | L45: 375 | M45: 344 | N45: 326 | O45: 419 | P45: 150 | Q45: 70 | R45: 457 | S45: 410 | T45: 387 | U45: 327 | V45: 375 | W45: 144 | X45: 64 | Y45: 407 | Z45: 379 | AA45: 374 | AB45: 374 | AC45: 397 | AD45: 152 | AE45: 65 | AF45: 333 | AG45: =SUM(B45:AF45) -> 8093
A47: Очередь по записи КТ-Ковид:
A48: Советская | B48: 307 | C48: 284 | D48: 272 | E48: 292 | F48: 326 | G48: 380 | H48: 426 | I48: 447 | J48: 448 | K48: 487 | L48: 491 | M48: 443 | N48: 408 | O48: 426 | P48: 349 | Q48: 222 | R48: 293 | S48: 407 | T48: 501 | U48: 493 | V48: 555 | W48: 453 | X48: 405 | Y48: 434 | Z48: 447 | AA48: 470 | AB48: 476 | AC48: 498 | AD48: 401 | AE48: 280 | AF48: 277
A49: Есенина | B49: 513 | C49: 407 | D49: 275 | E49: 353 | F49: 439 | G49: 497 | H49: 555 | I49: 494 | J49: 395 | K49: 311 | L49: 354 | M49: 404 | N49: 449 | O49: 530 | P49: 444 | Q49: 329 | R49: 409 | S49: 478 | T49: 536 | U49: 554 | V49: 621 | W49: 545 | X49: 418 | Y49: 476 | Z49: 516 | AA49: 536 | AB49: 583 | AC49: 640 | AD49: 569 | AE49: 442 | AF49: 459
A50: Всего в очереди: | B50: =SUM(B48:B49) -> 820 | C50: =SUM(C48:C49) -> 691 | D50: 547 | E50: 645 | F50: 765 | G50: 877 | H50: 981 | I50: 941 | J50: 843 | K50: 798 | L50: 845 | M50: 847 | N50: 857 | O50: 956 | P50: 793 | Q50: 551 | R50: 702 | S50: 885 | T50: 1037 | U50: 1047 | V50: 1176 | W50: 998 | X50: 823 | Y50: 910 | Z50: 963 | AA50: =SUM(AA48:AA49) -> 1006 | AB50: =SUM(AB48:AB49) -> 1059 | AC50: =SUM(AC48:AC49) -> 1138 | AD50: 970 | AE50: 722 | AF50: 736
A52: Выполнено КТ-Ковид за день:
A53: Советская | B53: 20 | C53: 21 | D53: 22 | E53: 22 | F53: 24 | G53: 24 | H53: 22 | I53: 23 | J53: 10 | K53: 14 | L53: 137 | M53: 137 | N53: 135 | O53: 140 | P53: 138 | Q53: 138 | R53: 135 | S53: 69 | T53: 69 | U53: 136 | V53: 70 | W53: 140 | X53: 70 | Y53: 132 | Z53: 135 | AA53: 137 | AB53: 133 | AC53: 139 | AD53: 138 | AE53: 139 | AF53: 130
A54: Есенина | B54: 140 | C54: 135 | D54: 204 | E54: 133 | F54: 130 | G54: 137 | H54: 136 | I54: 138 | J54: 138 | K54: 141 | L54: 139 | M54: 138 | N54: 139 | O54: 140 | P54: 138 | Q54: 136 | R54: 139 | S54: 135 | T54: 140 | U54: 136 | V54: 140 | W54: 137 | X54: 140 | Y54: 140 | Z54: 138 | AA54: 140 | AB54: 141 | AC54: 139 | AD54: 139 | AE54: 139 | AF54: 137
A55: Всего выполнено за день: | B55: =SUM(B53:B54) -> 160 | C55: =SUM(C53:C54) -> 156 | D55: 226 | E55: 155 | F55: 154 | G55: 161 | H55: 158 | I55: 161 | J55: 148 | K55: 155 | L55: 276 | M55: 275 | N55: 274 | O55: 280 | P55: 276 | Q55: 274 | R55: 274 | S55: 204 | T55: 209 | U55: 272 | V55: 210 | W55: 277 | X55: =SUM(X53:X54) -> 210 | Y55: =SUM(Y53:Y54) -> 272 | Z55: =SUM(Z53:Z54) -> 273 | AA55: =SUM(AA53:AA54) -> 277 | AB55: =SUM(AB53:AB54) -> 274 | AC55: =SUM(AC53:AC54) -> 278 | AD55: 277 | AE55: 278 | AF55: 267 | AG55: =SUM(B55:AF55) -> 7141

Sheet Июнь
A1: Отчет по call-центру
B2: 2021-06-01 | C2: 2021-06-02 | D2: 2021-06-03 | E2: 2021-06-04 | F2: 2021-06-05 | G2: 2021-06-06 | H2: 2021-06-07 | I2: 2021-06-08 | J2: 2021-06-09 | K2: 2021-06-10 | L2: 2021-06-11 | M2: 2021-06-12 | N2: 2021-06-13 | O2: 2021-06-14 | P2: 2021-06-15 | Q2: 2021-06-16 | R2: 2021-06-17 | S2: 2021-06-18 | T2: 2021-06-19 | U2: 2021-06-20 | V2: 2021-06-21 | W2: 2021-06-22 | X2: 2021-06-23 | Y2: 2021-06-24 | Z2: 2021-06-25 | AA2: 2021-06-26 | AB2: 2021-06-27 | AC2: 2021-06-28 | AD2: 2021-06-29 | AE2: 2021-06-30
A3: Кол-во обраб. звонков (Линия call-центр) | B3: 593 | C3: 492 | D3: 577 | E3: 563 | F3: 300 | G3: 202 | H3: 696 | I3: 641 | J3: 663 | K3: 642 | L3: 618 | M3: 317 | N3: 218 | O3: 348 | P3: 690 | Q3: 773 | R3: 794 | S3: 848 | T3: 371 | U3: 188 | V3: 653 | W3: 786 | X3: 626 | Y3: 805 | Z3: 860 | AA3: 307 | AB3: 184 | AC3: 754 | AD3: 784 | AE3: 570
A4: Кол-во пропущенных | B4: 100 | C4: 79 | D4: 54 | E4: 92 | F4: 35 | G4: 33 | H4: 188 | I4: 176 | J4: 132 | K4: 112 | L4: 124 | M4: 65 | N4: 87 | O4: 39 | P4: 237 | Q4: 239 | R4: 299 | S4: 130 | T4: 156 | U4: 207 | V4: 341 | W4: 244 | X4: 427 | Y4: 200 | Z4: 332 | AA4: 310 | AB4: 222 | AC4: 335 | AD4: 355 | AE4: 436
A5: Кол-во обраб. звонков (Линия КТ-Ковид) | B5: 315 | C5: 450 | D5: 362 | E5: 412 | F5: 279 | G5: 150 | H5: 319 | I5: 541 | J5: 328 | K5: 316 | L5: 432 | M5: 261 | N5: 312 | O5: 327 | P5: 269 | Q5: 428 | R5: 235 | S5: 310 | T5: 154 | U5: 303 | V5: 372 | W5: 358 | X5: 198 | Y5: 223 | Z5: 213 | AA5: 157 | AB5: 179 | AC5: 393 | AD5: 236 | AE5: 371
A6: Кол-во пропущенных | B6: 836 | C6: 176 | D6: 385 | E6: 533 | F6: 132 | G6: 27 | H6: 626 | I6: 696 | J6: 730 | K6: 561 | L6: 553 | M6: 589 | N6: 177 | O6: 292 | P6: 603 | Q6: 490 | R6: 475 | S6: 444 | T6: 642 | U6: 551 | V6: 814 | W6: 451 | X6: 469 | Y6: 489 | Z6: 365 | AA6: 589 | AB6: 722 | AC6: 583 | AD6: 493 | AE6: 396
A7: Всего звонков (обе линии) | B7: =SUM(B3+B5) -> 908 | C7: =SUM(C3+C5) -> 942 | D7: =SUM(D3+D5) -> 939 | E7: =SUM(E3+E5) -> 975 | F7: 579 | G7: 352 | H7: 1015 | I7: 1182 | J7: 991 | K7: 958 | L7: 1050 | M7: 578 | N7: 530 | O7: 675 | P7: 959 | Q7: 1201 | R7: 1029 | S7: 1158 | T7: 525 | U7: 491 | V7: 1025 | W7: 1144 | X7: 824 | Y7: 1028 | Z7: 1073 | AA7: 464 | AB7: 363 | AC7: 1147 | AD7: 1020 | AE7: 941
A9: Заявки на сайте:
A10: Количество заявок на сайте (всего) | B10: 116 | C10: 83 | D10: 99 | E10: 125 | F10: 54 | G10: 38 | H10: 196 | I10: 151 | J10: 165 | K10: 220 | L10: 224 | M10: 134 | N10: 90 | O10: 93 | P10: 310 | Q10: 306 | R10: 207 | S10: 207 | T10: 204 | U10: 130 | V10: 202 | W10: 213 | X10: 220 | Y10: 216 | Z10: 217 | AA10: 202 | AB10: 165 | AC10: 207 | AD10: 217 | AE10: 209
A11: Со статусом "записался" | B11: 88 | C11: 58 | D11: 66 | E11: 93 | F11: 38 | G11: 25 | H11: 131 | I11: 109 | J11: 138 | K11: 167 | L11: 169 | M11: 95 | N11: 66 | O11: 62 | P11: 213 | Q11: 215 | R11: 155 | S11: 166 | T11: 142 | U11: 95 | V11: 161 | W11: 150 | X11: 126 | Y11: 161 | Z11: 145 | AA11: 133 | AB11: 99 | AC11: 146 | AD11: 149 | AE11: 147
A12: Заявки на сайте КТ Ковид | B12: 50 | C12: 39 | D12: 48 | E12: 69 | F12: 30 | G12: 18 | H12: 105 | I12: 103 | J12: 109 | K12: 138 | L12: 138 | M12: 78 | N12: 53 | O12: 48 | P12: 175 | Q12: 168 | R12: 126 | S12: 111 | T12: 111 | U12: 83 | V12: 106 | W12: 116 | X12: 116 | Y12: 116 | Z12: 128 | AA12: 130 | AB12: 89 | AC12: 97 | AD12: 98 | AE12: 108
A13: Статус "записался" на КТ Ковид | B13: 44 | C13: 33 | D13: 43 | E13: 59 | F13: 27 | G13: 16 | H13: 78 | I13: 90 | J13: 110 | K13: 119 | L13: 110 | M13: 60 | N13: 45 | O13: 34 | P13: 136 | Q13: 128 | R13: 102 | S13: 96 | T13: 88 | U13: 64 | V13: 91 | W13: 97 | X13: 82 | Y13: 103 | Z13: 96 | AA13: 88 | AB13: 68 | AC13: 78 | AD13: 79 | AE13: 87
A15: Записались в центр (МРТ+АПО):
A16: МРТ Verio | B16: 36 | C16: 32 | D16: 38 | E16: 32 | F16: 12 | G16: 9 | H16: 56 | I16: 33 | J16: 55 | K16: 28 | L16: 20 | M16: 17 | N16: 15 | O16: 10 | P16: 52 | Q16: 40 | R16: 81 | S16: 36 | T16: 8 | U16: 4 | V16: 46 | W16: 29 | X16: 61 | Y16: 20 | Z16: 41 | AA16: 15 | AB16: 10 | AC16: 35 | AD16: 34 | AE16: 49
A17: МРТ Skyra | B17: 43 | C17: 36 | D17: 38 | E17: 32 | F17: 18 | G17: 9 | H17: 33 | I17: 40 | J17: 26 | K17: 27 | L17: 20 | M17: 18 | N17: 13 | O17: 12 | P17: 33 | Q17: 43 | R17: 24 | S17: 23 | T17: 15 | U17: 6 | V17: 34 | W17: 25 | X17: 40 | Y17: 32 | Z17: 38 | AA17: 20 | AB17: 14 | AC17: 40 | AD17: 33 | AE17: 29
A18: МРТ Essenza | B18: 56 | C18: 43 | D18: 23 | E18: 21 | F18: 13 | G18: 6 | H18: 38 | I18: 30 | J18: 33 | K18: 26 | L18: 17 | M18: 12 | N18: 3 | O18: 12 | P18: 32 | Q18: 15 | R18: 49 | S18: 32 | T18: 13 | U18: 5 | V18: 22 | W18: 19 | X18: 32 | Y18: 24 | Z18: 24 | AA18: 15 | AB18: 7 | AC18: 39 | AD18: 39 | AE18: 31
A19: МРТ Костюшко | B19: 42 | C19: 32 | D19: 39 | E19: 31 | F19: 18 | G19: 11 | H19: 74 | I19: 30 | J19: 63 | K19: 49 | L19: 35 | M19: 27 | N19: 13 | O19: 14 | P19: 59 | Q19: 91 | R19: 55 | S19: 35 | T19: 14 | U19: 15 | V19: 52 | W19: 36 | X19: 60 | Y19: 32 | Z19: 29 | AA19: 17 | AB19: 12 | AC19: 39 | AD19: 35 | AE19: 54
A20: МРТ Солидарности | B20: 11 | C20: 12 | D20: 18 | E20: 15 | F20: 4 | G20: 6 | H20: 96 | I20: 26 | J20: 24 | K20: 8 | L20: 19 | M20: 6 | N20: 5 | O20: 4 | P20: 86 | Q20: 10 | R20: 16 | S20: 24 | T20: 2 | U20: 4 | V20: 46 | W20: 9 | X20: 48 | Y20: 4 | Z20: 8 | AA20: 7 | AB20: 6 | AC20: 24 | AD20: 47 | AE20: 20
A21: Всего записано за день МРТ : | B21: =SUM(B16:B20) -> 188 | C21: =SUM(C16:C20) -> 155 | D21: =SUM(D16:D20) -> 156 | E21: =SUM(E16:E20) -> 131 | F21: 65 | G21: 41 | H21: 297 | I21: 159 | J21: 201 | K21: 138 | L21: 111 | M21: 80 | N21: 49 | O21: 52 | P21: 262 | Q21: 199 | R21: 225 | S21: 150 | T21: 52 | U21: 34 | V21: 200 | W21: 118 | X21: 241 | Y21: 112 | Z21: 140 | AA21: 74 | AB21: 49 | AC21: 177 | AD21: 188 | AE21: 183
A22: Отменено клиентом + неявка (все центры МРТ) | B22: 23 | C22: 29 | D22: 29 | E22: 21 | F22: 20 | G22: 24 | H22: 26 | I22: 11 | J22: 33 | K22: 19 | L22: 37 | M22: 21 | N22: 34 | O22: 24 | P22: 26 | Q22: 28 | R22: 30 | S22: 24 | T22: 25 | U22: 15 | V22: 23 | W22: 27 | X22: 32 | Y22: 38 | Z22: 27 | AA22: 28 | AB22: 17 | AC22: 22 | AD22: 21 | AE22: 27
A23: АПО | B23: 67 | C23: 85 | D23: 96 | E23: 78 | F23: 27 | G23: 20 | H23: 69 | I23: 97 | J23: 76 | K23: 72 | L23: 90 | M23: 32 | N23: 22 | O23: 50 | P23: 107 | Q23: 93 | R23: 76 | S23: 71 | T23: 38 | U23: 11 | V23: 81 | W23: 85 | X23: 65 | Y23: 79 | Z23: 88 | AA23: 34 | AB23: 19 | AC23: 89 | AD23: 72 | AE23: 78
A24: Всего записано за день (МРТ + АПО): | B24: =SUM(B21+B23) -> 255 | C24: =SUM(C21+C23) -> 240 | D24: =SUM(D21+D23) -> 252 | E24: =SUM(E21+E23) -> 209 | F24: 92 | G24: 61 | H24: 366 | I24: 256 | J24: 277 | K24: 210 | L24: 201 | M24: 112 | N24: 71 | O24: 102 | P24: 369 | Q24: 292 | R24: 301 | S24: 221 | T24: 90 | U24: 45 | V24: 281 | W24: 203 | X24: 306 | Y24: 191 | Z24: 228 | AA24: 108 | AB24: 68 | AC24: 266 | AD24: 260 | AE24: 261
A25: ПЭТ/КТ | B25: 51 | C25: 50 | D25: 40 | E25: 53 | F25: 4 | G25: 3 | H25: 69 | I25: 50 | J25: 48 | K25: 49 | L25: 67 | M25: 0 | N25: 0 | O25: 4 | P25: 53 | Q25: 54 | R25: 41 | S25: 47 | T25: 1 | U25: 1 | V25: 40 | W25: 50 | X25: 33 | Y25: 48 | Z25: 58 | AA25: 2 | AB25: 0 | AC25: 58 | AD25: 56 | AE25: 47
A26: Очередь ПЭТ/КТ | B26: 408 | C26: 416 | D26: 7 | E26: 415 | F26: 419 | G26: 422 | H26: 447 | I26: 447 | J26: 450 | K26: 458 | L26: 482 | M26: 482 | N26: 482 | O26: 443 | P26: 450 | Q26: 459 | R26: 458 | S26: 462 | T26: 463 | U26: 464 | V26: 458 | W26: 463 | X26: 448 | Y26: 457 | Z26: 471 | AA26: 426 | AB26: 426 | AC26: 438 | AD26: 447 | AE26: 450
A27: Очередь КТ-Приморский | B27: 327 | C27: 338 | D27: 341 | E27: 330 | F27: 304 | G27: 280 | H27: 318 | I27: 398 | J27: 384 | K27: 380 | L27: 354 | M27: 334 | N27: 307 | O27: 287 | P27: 306 | Q27: 340 | R27: 341 | S27: 331 | T27: 299 | U27: 280 | V27: 340 | W27: 354 | X27: 380 | Y27: 398 | Z27: 390 | AA27: 373 | AB27: 360 | AC27: 370 | AD27: 396 | AE27: 406
A29: Кол-во операторов | B29: 8 | C29: 8 | D29: 9 | E29: 8 | F29: 5 | G29: 4 | H29: 8 | I29: 8 | J29: 8 | K29: 8 | L29: 8 | M29: 4 | N29: 4 | O29: 6 | P29: 8 | Q29: 8 | R29: 7 | S29: 8 | T29: 4 | U29: 3 | V29: 6 | W29: 7 | X29: 7 | Y29: 7 | Z29: 7 | AA29: 4 | AB29: 4 | AC29: 7 | AD29: 7 | AE29: 6
A30: сумма часов работы операторов | B30: 72 | C30: 84 | D30: 92 | E30: 82 | F30: 60 | G30: 44 | H30: 81 | I30: 80 | J30: 80 | K30: 84 | L30: 82 | M30: 48 | N30: 48 | O30: 64 | P30: 84 | Q30: 84 | R30: 72 | S30: 84 | T30: 48 | U30: 36 | V30: 60 | W30: 72 | X30: 72 | Y30: 72 | Z30: 76 | AA30: 48 | AB30: 44 | AC30: 72 | AD30: 72 | AE30: 60
A32: Время ожидания на линии (мин)
A33: 244-00-24 (среднее) | B33: =72/60 -> 1.2 | C33: =107/60 -> 1.783333333 | D33: =45/60 -> 0.75 | E33: =63/60 -> 1.05 | F33: =34/60 -> 0.5666666667 | G33: =47/60 -> 0.7833333333 | H33: =198/60 -> 3.3 | I33: =93/60 -> 1.55 | J33: =79/60 -> 1.316666667 | K33: =138/60 -> 2.3 | L33: =116/60 -> 1.933333333 | M33: =44/60 -> 0.7333333333 | N33: =43/60 -> 0.7166666667 | O33: =42/60 -> 0.7 | P33: =207/60 -> 3.45 | Q33: =140/60 -> 2.333333333 | R33: =204/60 -> 3.4 | S33: =82/60 -> 1.366666667 | T33: =292/60 -> 4.866666667 | U33: =48/60 -> 0.8 | V33: =300/60 -> 5 | W33: =168/60 -> 2.8 | X33: =319/60 -> 5.316666667 | Y33: =96/60 -> 1.6 | Z33: =144/60 -> 2.4 | AA33: =456/60 -> 7.6 | AB33: =321/60 -> 5.35 | AC33: 5.58 | AD33: =208/60 -> 3.466666667 | AE33: =530/60 -> 8.833333333
A34: 244-31-27 (КТ Ковид, время среднее) | B34: =1730/60 -> 28.83333333 | C34: =472/60 -> 7.866666667 | D34: =568/60 -> 9.466666667 | E34: =887/60 -> 14.78333333 | F34: =402/60 -> 6.7 | G34: =136/60 -> 2.266666667 | H34: =1804/60 -> 30.06666667 | I34: =1225/60 -> 20.41666667 | J34: =1890/60 -> 31.5 | K34: =2387/60 -> 39.78333333 | L34: =1856/60 -> 30.93333333 | M34: =2029/60 -> 33.81666667 | N34: =808/60 -> 13.46666667 | O34: =1034/60 -> 17.23333333 | P34: =2338/60 -> 38.96666667 | Q34: =1873/60 -> 31.21666667 | R34: =2468/60 -> 41.13333333 | S34: =2156/60 -> 35.93333333 | T34: =2870/60 -> 47.83333333 | U34: =1402/60 -> 23.36666667 | V34: =1796/60 -> 29.93333333 | W34: =1973/60 -> 32.88333333 | X34: =3189/60 -> 53.15 | Y34: =2921/60 -> 48.68333333 | Z34: =3158/60 -> 52.63333333 | AA34: =2545/60 -> 42.41666667 | AB34: =2435/60 -> 40.58333333 | AC34: 51.6 | AD34: =2608/60 -> 43.46666667 | AE34: =1949/60 -> 32.48333333
A36: Нажали кнопку "1" - перевод в Клинику | B36: 18 | C36: 11 | D36: 30 | E36: 26 | F36: 0 | G36: 0 | H36: 32 | I36: 12 | J36: 5 | K36: 13 | L36: 11 | M36: 0 | N36: 0 | O36: 4 | P36: 33 | Q36: 22 | R36: 19 | S36: 28 | T36: 0 | U36: 0 | V36: 35 | W36: 38 | X36: 35 | Y36: 14 | Z36: 19 | AA36: 0 | AB36: 0 | AC36: 17 | AD36: 45 | AE36: 23
A38: Отчет по КТ-Ковид
A39: Записали КТ Ковид за день:
A40: Записаны сегодня на КТ (Советская) | B40: 238 | C40: 254 | D40: 214 | E40: 225 | F40: 143 | G40: 66 | H40: 226 | I40: 348 | J40: 270 | K40: 288 | L40: 275 | M40: 162 | N40: 141 | O40: 156 | P40: 182 | Q40: 294 | R40: 216 | S40: 247 | T40: 123 | U40: 182 | V40: 252 | W40: 254 | X40: 179 | Y40: 191 | Z40: 191 | AA40: 113 | AB40: 108 | AC40: 229 | AD40: 194 | AE40: 226
A41: из них ОМС | B41: 226 | C41: 242 | D41: 204 | E41: 214 | F41: 133 | G41: 53 | H41: 212 | I41: 331 | J41: 259 | K41: 277 | L41: 263 | M41: 153 | N41: 125 | O41: 135 | P41: 172 | Q41: 279 | R41: 206 | S41: 231 | T41: 117 | U41: 162 | V41: 241 | W41: 248 | X41: 170 | Y41: 178 | Z41: 177 | AA41: 104 | AB41: 99 | AC41: 212 | AD41: 184 | AE41: 222
A42: Записаны сегодня на КТ (Есенина) | B42: 245 | C42: 274 | D42: 241 | E42: 277 | F42: 140 | G42: 72 | H42: 269 | I42: 348 | J42: 322 | K42: 275 | L42: 412 | M42: 229 | N42: 195 | O42: 221 | P42: 348 | Q42: 478 | R42: 379 | S42: 406 | T42: 227 | U42: 209 | V42: 390 | W42: 404 | X42: 312 | Y42: 341 | Z42: 278 | AA42: 273 | AB42: 241 | AC42: 386 | AD42: 370 | AE42: 413
A43: из них ОМС | B43: 242 | C43: 270 | D43: 235 | E43: 258 | F43: 127 | G43: 65 | H43: 257 | I43: 335 | J43: 306 | K43: 267 | L43: 394 | M43: 216 | N43: 177 | O43: 210 | P43: 330 | Q43: 463 | R43: 367 | S43: 389 | T43: 222 | U43: 194 | V43: 376 | W43: 377 | X43: 299 | Y43: 329 | Z43: 274 | AA43: 264 | AB43: 223 | AC43: 369 | AD43: 359 | AE43: 396
A44: Записано платных (всего) | B44: =(B40+B42)-(B41+B43) -> 15 | C44: =(C40+C42)-(C41+C43) -> 16 | D44: =(D40+D42)-(D41+D43) -> 16 | E44: =(E40+E42)-(E41+E43) -> 30 | F44: 23 | G44: 20 | H44: 26 | I44: 30 | J44: 27 | K44: 19 | L44: 30 | M44: 22 | N44: 34 | O44: 32 | P44: 28 | Q44: 30 | R44: 22 | S44: 33 | T44: 11 | U44: 35 | V44: 25 | W44: 33 | X44: 22 | Y44: 25 | Z44: 18 | AA44: 18 | AB44: 27 | AC44: 34 | AD44: 21 | AE44: 21
A45: Всего записано за день: | B45: =SUM(B40+B42) -> 483 | C45: =SUM(C40+C42) -> 528 | D45: =SUM(D40+D42) -> 455 | E45: =SUM(E40+E42) -> 502 | F45: 283 | G45: 138 | H45: 495 | I45: 696 | J45: 592 | K45: 563 | L45: 687 | M45: 391 | N45: 336 | O45: 377 | P45: 530 | Q45: 772 | R45: 595 | S45: 653 | T45: 350 | U45: 391 | V45: 642 | W45: 658 | X45: 491 | Y45: 532 | Z45: 469 | AA45: 386 | AB45: 349 | AC45: 615 | AD45: 564 | AE45: 639 | AF45: =SUM(B45:AE45) -> 15162
A47: Очередь по записи КТ-Ковид:
A48: Советская | B48: 362 | C48: 468 | D48: 528 | E48: 598 | F48: 554 | G48: 426 | H48: 467 | I48: 624 | J48: 705 | K48: 814 | L48: 886 | M48: 849 | N48: 799 | O48: 750 | P48: 735 | Q48: 822 | R48: 826 | S48: 872 | T48: 817 | U48: 804 | V48: 860 | W48: 920 | X48: 891 | Y48: 876 | Z48: 859 | AA48: 757 | AB48: 666 | AC48: 690 | AD48: 687 | AE48: 716
A49: Есенина | B49: 540 | C49: 658 | D49: 739 | E49: 860 | F49: 812 | G49: 695 | H49: 756 | I49: 899 | J49: 1028 | K49: 1096 | L49: 1214 | M49: 1254 | N49: 1251 | O49: 1178 | P49: 1219 | Q49: 1319 | R49: 1310 | S49: 1412 | T49: 1474 | U49: 1393 | V49: 1402 | W49: 1412 | X49: 1329 | Y49: 1285 | Z49: 1265 | AA49: 1323 | AB49: 1175 | AC49: 1162 | AD49: 1148 | AE49: 1180
A50: Всего в очереди: | B50: =SUM(B48:B49) -> 902 | C50: =SUM(C48:C49) -> 1126 | D50: =SUM(D48:D49) -> 1267 | E50: =SUM(E48:E49) -> 1458 | F50: 1366 | G50: 1121 | H50: 1223 | I50: 1523 | J50: 1733 | K50: 1910 | L50: 2100 | M50: 2103 | N50: 2050 | O50: 1928 | P50: 1954 | Q50: 2141 | R50: 2136 | S50: 2284 | T50: 2291 | U50: 2197 | V50: 2262 | W50: 2332 | X50: 2220 | Y50: 2161 | Z50: 2124 | AA50: 2080 | AB50: 1841 | AC50: 1852 | AD50: 1835 | AE50: 1896
A52: Выполнено КТ-Ковид за день:
A53: Советская | B53: 132 | C53: 128 | D53: 132 | E53: 130 | F53: 155 | G53: 153 | H53: 156 | I53: 150 | J53: 161 | K53: 157 | L53: 157 | M53: 158 | N53: 157 | O53: 159 | P53: 155 | Q53: 158 | R53: 150 | S53: 154 | T53: 140 | U53: 156 | V53: 148 | W53: 136 | X53: 155 | Y53: 156 | Z53: 161 | AA53: 160 | AB53: 162 | AC53: 159 | AD53: 163 | AE53: 158
A54: Есенина | B54: 136 | C54: 134 | D54: 137 | E54: 137 | F54: 161 | G54: 155 | H54: 155 | I54: 162 | J54: 160 | K54: 160 | L54: 236 | M54: 156 | N54: 163 | O54: 229 | P54: 238 | Q54: 303 | R54: 316 | S54: 239 | T54: 141 | U54: 237 | V54: 320 | W54: 312 | X54: 321 | Y54: 323 | Z54: 240 | AA54: 163 | AB54: 331 | AC54: 321 | AD54: 316 | AE54: 329
A55: Всего выполнено за день: | B55: =SUM(B53:B54) -> 268 | C55: =SUM(C53:C54) -> 262 | D55: =SUM(D53:D54) -> 269 | E55: =SUM(E53:E54) -> 267 | F55: 316 | G55: 308 | H55: 311 | I55: 312 | J55: 321 | K55: 317 | L55: 393 | M55: 314 | N55: 320 | O55: 388 | P55: 393 | Q55: 461 | R55: 466 | S55: 393 | T55: 281 | U55: 393 | V55: 468 | W55: 448 | X55: 476 | Y55: 479 | Z55: 401 | AA55: 323 | AB55: =SUM(AB53:AB54) -> 493 | AC55: =SUM(AC53:AC54) -> 480 | AD55: =SUM(AD53:AD54) -> 479 | AE55: =SUM(AE53:AE54) -> 487 | AF55: =SUM(B55:AE55) -> 11287

Sheet Июль
A1: Отчет по call-центру
B2: 2021-07-01 | C2: 2021-07-02 | D2: 2021-07-03 | E2: 2021-07-04 | F2: 2021-07-05 | G2: 2021-07-06 | H2: 2021-07-07 | I2: 2021-07-08 | J2: 2021-07-09 | K2: 2021-07-10 | L2: 2021-07-11 | M2: 2021-07-12 | N2: 2021-07-13 | O2: 2021-07-14 | P2: 2021-07-15 | Q2: 2021-07-16 | R2: 2021-07-17 | S2: 2021-07-18 | T2: 2021-07-19 | U2: 2021-07-20 | V2: 2021-07-21 | W2: 2021-07-22 | X2: 2021-07-23 | Y2: 2021-07-24 | Z2: 2021-07-25 | AA2: 2021-07-26 | AB2: 2021-07-27 | AC2: 2021-07-28 | AD2: 2021-07-29 | AE2: 2021-07-30 | AF2: 2021-07-31
A3: Кол-во обраб. звонков (Линия call-центр) | B3: 705 | C3: 662 | D3: 366 | E3: 207 | F3: 491 | G3: 631 | H3: 614 | I3: 495 | J3: 600 | K3: 289 | L3: 197 | M3: 552 | N3: 519 | O3: 493 | P3: 516 | Q3: 514 | R3: 215 | S3: 184 | T3: 547 | U3: 528 | V3: 540 | W3: 472 | X3: 443 | Y3: 206 | Z3: 189 | AA3: 470 | AB3: 455 | AC3: 508 | AD3: 533 | AE3: 477 | AF3: 231
A4: Кол-во пропущенных | B4: 205 | C4: 111 | D4: 91 | E4: 33 | F4: 276 | G4: 129 | H4: 184 | I4: 111 | J4: 164 | K4: 145 | L4: 61 | M4: 78 | N4: 60 | O4: 139 | P4: 141 | Q4: 82 | R4: 19 | S4: 11 | T4: 169 | U4: 58 | V4: 59 | W4: 71 | X4: 83 | Y4: 18 | Z4: 12 | AA4: 276 | AB4: 295 | AC4: 109 | AD4: 112 | AE4: 77 | AF4: 144
A5: Кол-во обраб. звонков (Линия КТ-Ковид) | B5: 353 | C5: 454 | D5: 197 | E5: 222 | F5: 586 | G5: 315 | H5: 406 | I5: 383 | J5: 348 | K5: 161 | L5: 162 | M5: 562 | N5: 408 | O5: 273 | P5: 443 | Q5: 380 | R5: 255 | S5: 136 | T5: 379 | U5: 415 | V5: 375 | W5: 366 | X5: 411 | Y5: 199 | Z5: 69 | AA5: 397 | AB5: 321 | AC5: 324 | AD5: 255 | AE5: 354 | AF5: 181
A6: Кол-во пропущенных | B6: 405 | C6: 485 | D6: 534 | E6: 125 | F6: 317 | G6: 540 | H6: 456 | I6: 380 | J6: 421 | K6: 571 | L6: 229 | M6: 329 | N6: 511 | O6: 544 | P6: 445 | Q6: 642 | R6: 28 | S6: 109 | T6: 477 | U6: 509 | V6: 340 | W6: 304 | X6: 203 | Y6: 21 | Z6: 6 | AA6: 373 | AB6: 337 | AC6: 330 | AD6: 344 | AE6: 222 | AF6: 87
A7: Всего звонков (обе линии) | B7: =SUM(B3+B5) -> 1058 | C7: =SUM(C3+C5) -> 1116 | D7: 563 | E7: =SUM(E3+E5) -> 429 | F7: =SUM(F3+F5) -> 1077 | G7: =SUM(G3+G5) -> 946 | H7: =SUM(H3+H5) -> 1020 | I7: 878 | J7: 948 | K7: 450 | L7: 359 | M7: 1114 | N7: 927 | O7: 766 | P7: 959 | Q7: 894 | R7: 470 | S7: 320 | T7: 926 | U7: 943 | V7: 915 | W7: 838 | X7: 854 | Y7: 405 | Z7: 258 | AA7: 867 | AB7: 776 | AC7: 832 | AD7: 788 | AE7: 831 | AF7: 412
A9: Заявки на сайте:
A10: Количество заявок на сайте (всего) | B10: 205 | C10: 205 | D10: 203 | E10: 54 | F10: 201 | G10: 203 | H10: 205 | I10: 220 | J10: 204 | K10: 168 | L10: 81 | M10: 166 | N10: 170 | O10: 156 | P10: 133 | Q10: 145 | R10: 43 | S10: 29 | T10: 160 | U10: 145 | V10: 129 | W10: 119 | X10: 110 | Y10: 36 | Z10: 28 | AA10: 141 | AB10: 133 | AC10: 105 | AD10: 103 | AE10: 99 | AF10: 74
A11: Со статусом "записался" | B11: 154 | C11: 148 | D11: 160 | E11: 35 | F11: 135 | G11: 156 | H11: 144 | I11: 127 | J11: 127 | K11: 127 | L11: 55 | M11: 113 | N11: 121 | O11: 76 | P11: 99 | Q11: 107 | R11: 26 | S11: 22 | T11: 112 | U11: 89 | V11: 95 | W11: 87 | X11: 64 | Y11: 13 | Z11: 17 | AA11: 78 | AB11: 76 | AC11: 70 | AD11: 62 | AE11: 69 | AF11: 53
A12: Заявки на сайте КТ Ковид | B12: 107 | C12: 116 | D12: 124 | E12: 21 | F12: 110 | G12: 117 | H12: 101 | I12: 113 | J12: 120 | K12: 69 | L12: 45 | M12: 87 | N12: 94 | O12: 81 | P12: 68 | Q12: 80 | R12: 16 | S12: 20 | T12: 83 | U12: 71 | V12: 69 | W12: 64 | X12: 53 | Y12: 13 | Z12: 12 | AA12: 57 | AB12: 56 | AC12: 46 | AD12: 53 | AE12: 51 | AF12: 30
A13: Статус "записался" на КТ Ковид | B13: 89 | C13: 90 | D13: 104 | E13: 17 | F13: 99 | G13: 99 | H13: 87 | I13: 92 | J13: 88 | K13: 57 | L13: 38 | M13: 74 | N13: 78 | O13: 51 | P13: 57 | Q13: 62 | R13: 13 | S13: 16 | T13: 71 | U13: 56 | V13: 59 | W13: 50 | X13: 42 | Y13: 6 | Z13: 10 | AA13: 38 | AB13: 43 | AC13: 39 | AD13: 39 | AE13: 42 | AF13: 26
A15: Записались в центр (МРТ+АПО):
A16: МРТ Verio | B16: 34 | C16: 17 | D16: 12 | E16: 21 | F16: 45 | G16: 31 | H16: 42 | I16: 27 | J16: 27 | K16: 13 | L16: 5 | M16: 51 | N16: 35 | O16: 25 | P16: 32 | Q16: 69 | R16: 9 | S16: 7 | T16: 31 | U16: 37 | V16: 52 | W16: 38 | X16: 18 | Y16: 13 | Z16: 14 | AA16: 14 | AB16: 23 | AC16: 23 | AD16: 18 | AE16: 10 | AF16: 7
A17: МРТ Skyra | B17: 32 | C17: 30 | D17: 13 | E17: 11 | F17: 28 | G17: 46 | H17: 26 | I17: 18 | J17: 19 | K17: 12 | L17: 10 | M17: 38 | N17: 34 | O17: 36 | P17: 35 | Q17: 24 | R17: 13 | S17: 5 | T17: 25 | U17: 37 | V17: 31 | W17: 34 | X17: 38 | Y17: 7 | Z17: 19 | AA17: 58 | AB17: 45 | AC17: 45 | AD17: 38 | AE17: 41 | AF17: 17
A18: МРТ Essenza | B18: 35 | C18: 21 | D18: 15 | E18: 14 | F18: 35 | G18: 19 | H18: 58 | I18: 38 | J18: 19 | K18: 8 | L18: 7 | M18: 48 | N18: 37 | O18: 18 | P18: 35 | Q18: 33 | R18: 5 | S18: 5 | T18: 34 | U18: 34 | V18: 25 | W18: 40 | X18: 21 | Y18: 11 | Z18: 8 | AA18: 36 | AB18: 38 | AC18: 23 | AD18: 34 | AE18: 22 | AF18: 15
A19: МРТ Костюшко | B19: 46 | C19: 27 | D19: 19 | E19: 11 | F19: 64 | G19: 24 | H19: 42 | I19: 54 | J19: 34 | K19: 20 | L19: 10 | M19: 53 | N19: 40 | O19: 32 | P19: 78 | Q19: 32 | R19: 6 | S19: 9 | T19: 30 | U19: 38 | V19: 61 | W19: 54 | X19: 33 | Y19: 9 | Z19: 18 | AA19: 40 | AB19: 58 | AC19: 77 | AD19: 44 | AE19: 28 | AF19: 17
A20: МРТ Солидарности | B20: 18 | C20: 17 | D20: 5 | E20: 4 | F20: 45 | G20: 29 | H20: 9 | I20: 8 | J20: 14 | K20: 3 | L20: 4 | M20: 32 | N20: 12 | O20: 20 | P20: 27 | Q20: 22 | R20: 6 | S20: 6 | T20: 76 | U20: 8 | V20: 23 | W20: 21 | X20: 17 | Y20: 4 | Z20: 6 | AA20: 56 | AB20: 27 | AC20: 15 | AD20: 18 | AE20: 38 | AF20: 6
A21: Всего записано за день МРТ : | B21: =SUM(B16:B20) -> 165 | C21: =SUM(C16:C20) -> 112 | D21: 64 | E21: 61 | F21: 217 | G21: 149 | H21: 177 | I21: 145 | J21: 113 | K21: 56 | L21: 36 | M21: 222 | N21: 158 | O21: 131 | P21: 207 | Q21: 180 | R21: 39 | S21: 32 | T21: 196 | U21: 154 | V21: 192 | W21: 187 | X21: 127 | Y21: 44 | Z21: 65 | AA21: 204 | AB21: 191 | AC21: 183 | AD21: 152 | AE21: 139 | AF21: 62
A22: Отменено клиентом + неявка (все центры МРТ) | B22: 27 | C22: 16 | D22: 20 | E22: 22 | F22: 22 | G22: 29 | H22: 24 | I22: 29 | J22: 16 | K22: 17 | L22: 15 | M22: 30 | N22: 16 | O22: 27 | P22: 25 | Q22: 30 | R22: 24 | S22: 26 | T22: 28 | U22: 30 | V22: 23 | W22: 26 | X22: 36 | Y22: 13 | Z22: 21 | AA22: 21 | AB22: 26 | AC22: 28 | AD22: 26 | AE22: 28 | AF22: 18
A23: АПО | B23: 72 | C23: 42 | D23: 31 | E23: 12 | F23: 59 | G23: 104 | H23: 96 | I23: 75 | J23: 73 | K23: 35 | L23: 11 | M23: 66 | N23: 67 | O23: 52 | P23: 71 | Q23: 60 | R23: 42 | S23: 25 | T23: 89 | U23: 52 | V23: 66 | W23: 161 | X23: 54 | Y23: 33 | Z23: 10 | AA23: 73 | AB23: 84 | AC23: 67 | AD23: 76 | AE23: 58 | AF23: 39
A24: Всего записано за день (МРТ + АПО): | B24: =SUM(B21+B23) -> 237 | C24: =SUM(C21+C23) -> 154 | D24: 95 | E24: 73 | F24: 276 | G24: 253 | H24: 273 | I24: 220 | J24: 186 | K24: 91 | L24: 47 | M24: 288 | N24: 225 | O24: 183 | P24: 278 | Q24: 240 | R24: 81 | S24: 57 | T24: 285 | U24: 206 | V24: 258 | W24: 348 | X24: 181 | Y24: 77 | Z24: 75 | AA24: 277 | AB24: 275 | AC24: 250 | AD24: 228 | AE24: 197 | AF24: 101
A25: ПЭТ/КТ | B25: 35 | C25: 50 | D25: 0 | E25: 1 | F25: 60 | G25: 61 | H25: 50 | I25: 43 | J25: 53 | K25: 3 | L25: 0 | M25: 19 | N25: 66 | O25: 53 | P25: 54 | Q25: 50 | R25: 50 | S25: 4 | T25: 59 | U25: 43 | V25: 49 | W25: 48 | X25: 43 | Y25: 0 | Z25: 0 | AA25: 58 | AB25: 55 | AC25: 51 | AD25: 49 | AE25: 54 | AF25: 0
A26: Очередь ПЭТ/КТ | B26: 450 | C26: 458 | D26: 458 | E26: 459 | F26: 472 | G26: 485 | H26: 493 | I26: 495 | J26: 505 | K26: 508 | L26: 508 | M26: 483 | N26: 508 | O26: 515 | P26: 535 | Q26: 538 | R26: 538 | S26: 542 | T26: 576 | U26: 592 | V26: 610 | W26: 630 | X26: 642 | Y26: 642 | Z26: 642 | AA26: 667 | AB26: 715 | AC26: 741 | AD26: 766 | AE26: 794 | AF26: 768
A27: Очередь КТ-Приморский | B27: 415 | C27: 392 | D27: 359 | E27: 333 | F27: 365 | G27: 358 | H27: 377 | I27: 366 | J27: 371 | K27: 345 | L27: 320 | M27: 336 | N27: 336 | O27: 386 | P27: 392 | Q27: 378 | R27: 357 | S27: 335 | T27: 334 | U27: 355 | V27: 356 | W27: 353 | X27: 373 | Y27: 352 | Z27: 328 | AA27: 349 | AB27: 348 | AC27: 383 | AD27: 375 | AE27: 374 | AF27: 358
A29: Кол-во операторов | B29: 7 | C29: 8 | D29: 5 | E29: 4 | F29: 7 | G29: 7 | H29: 7 | I29: 7 | J29: 7 | K29: 4 | L29: 4 | M29: 8 | N29: 7 | O29: 6 | P29: 7 | Q29: 7 | R29: 4 | S29: 4 | T29: 7 | U29: 7 | V29: 7 | W29: 6 | X29: 7 | Y29: 5 | Z29: 4 | AA29: 6 | AB29: 6 | AC29: 7 | AD29: 7 | AE29: 6 | AF29: 4
A30: сумма часов работы операторов | B30: 72 | C30: 84 | D30: 60 | E30: 48 | F30: 76 | G30: 76 | H30: 74 | I30: 76 | J30: 75 | K30: 48 | L30: 48 | M30: 88 | N30: 76 | O30: 67 | P30: 76 | Q30: 72 | R30: 48 | S30: 48 | T30: 72 | U30: 76 | V30: 76 | W30: 63 | X30: 72 | Y30: 60 | Z30: 48 | AA30: 64 | AB30: 64 | AC30: 76 | AD30: 76 | AE30: 64 | AF30: 48
A32: Время ожидания на линии (мин)
A33: 244-00-24 (среднее) | B33: =229/60 -> 3.816666667 | C33: =113/60 -> 1.883333333 | D33: =69/60 -> 1.15 | E33: =41/60 -> 0.6833333333 | F33: =438/60 -> 7.3 | G33: =73/60 -> 1.216666667 | H33: =90/60 -> 1.5 | I33: =171/60 -> 2.85 | J33: =195/60 -> 3.25 | K33: =52/60 -> 0.8666666667 | L33: =51/60 -> 0.85 | M33: =78/60 -> 1.3 | N33: =98/60 -> 1.633333333 | O33: =103/60 -> 1.716666667 | P33: =89/60 -> 1.483333333 | Q33: =63/60 -> 1.05 | R33: =37/60 -> 0.6166666667 | S33: =20/60 -> 0.3333333333 | T33: =136/60 -> 2.266666667 | U33: =110/60 -> 1.833333333 | V33: =83/60 -> 1.383333333 | W33: =98/60 -> 1.633333333 | X33: =90/60 -> 1.5 | Y33: =20/60 -> 0.3333333333 | Z33: =42/60 -> 0.7 | AA33: =488/60 -> 8.133333333 | AB33: =331/60 -> 5.516666667 | AC33: =137/60 -> 2.283333333 | AD33: =117/60 -> 1.95 | AE33: =113/60 -> 1.883333333 | AF33: =190/60 -> 3.166666667
A34: 244-31-27 (КТ Ковид, время среднее) | B34: =2028/60 -> 33.8 | C34: =1594/60 -> 26.56666667 | D34: =2396/60 -> 39.93333333 | E34: =1001/60 -> 16.68333333 | F34: =1088/60 -> 18.13333333 | G34: =2229/60 -> 37.15 | H34: =1839/60 -> 30.65 | I34: =1757/60 -> 29.28333333 | J34: =2183/60 -> 36.38333333 | K34: =2546/60 -> 42.43333333 | L34: =978/60 -> 16.3 | M34: =1330/60 -> 22.16666667 | N34: =1525/60 -> 25.41666667 | O34: =1938/60 -> 32.3 | P34: =1247/60 -> 20.78333333 | Q34: =1561/60 -> 26.01666667 | R34: =184/60 -> 3.066666667 | S34: =174/60 -> 2.9 | T34: =1489/60 -> 24.81666667 | U34: =1547/60 -> 25.78333333 | V34: =1502/60 -> 25.03333333 | W34: =1272/60 -> 21.2 | X34: =781/60 -> 13.01666667 | Y34: =70/60 -> 1.166666667 | Z34: =35/60 -> 0.5833333333 | AA34: =1158/60 -> 19.3 | AB34: =944/60 -> 15.73333333 | AC34: =1441/60 -> 24.01666667 | AD34: =1925/60 -> 32.08333333 | AE34: =1059/60 -> 17.65 | AF34: =252/50 -> 5.04
A36: Нажали кнопку "1" - перевод в Клинику | B36: 30 | C36: 29 | D36: 0 | E36: 0 | F36: 32 | G36: 41 | H36: 16 | I36: 12 | J36: 14 | K36: 0 | L36: 0 | M36: 31 | N36: 17 | O36: 20 | P36: 31 | Q36: 15 | R36: 0 | S36: 0 | T36: 12 | U36: 14 | V36: 19 | W36: 23 | X36: 14 | Y36: 0 | Z36: 0 | AA36: 21 | AB36: 14 | AC36: 10 | AD36: 34 | AE36: 19 | AF36: 0
A38: Отчет по КТ-Ковид
A39: Записали КТ Ковид за день:
A40: Записаны сегодня на КТ (Советская) | B40: 248 | C40: 253 | D40: 123 | E40: 84 | F40: 283 | G40: 214 | H40: 224 | I40: 208 | J40: 198 | K40: 87 | L40: 72 | M40: 274 | N40: 200 | O40: 151 | P40: 203 | Q40: 190 | R40: 113 | S40: 58 | T40: 187 | U40: 226 | V40: 183 | W40: 227 | X40: 230 | Y40: 97 | Z40: 39 | AA40: 284 | AB40: 187 | AC40: 189 | AD40: 146 | AE40: 154 | AF40: 104
A41: из них ОМС | B41: 240 | C41: 240 | D41: 114 | E41: 76 | F41: 279 | G41: 199 | H41: 220 | I41: 203 | J41: 191 | K41: 80 | L41: 67 | M41: 268 | N41: 191 | O41: 144 | P41: 191 | Q41: 178 | R41: 105 | S41: 51 | T41: 181 | U41: 223 | V41: 174 | W41: 209 | X41: 223 | Y41: 86 | Z41: 29 | AA41: 270 | AB41: 181 | AC41: 183 | AD41: 136 | AE41: 138 | AF41: 101
A42: Записаны сегодня на КТ (Есенина) | B42: 408 | C42: 473 | D42: 271 | E42: 140 | F42: 475 | G42: 340 | H42: 374 | I42: 349 | J42: 398 | K42: 224 | L42: 216 | M42: 412 | N42: 405 | O42: 256 | P42: 368 | Q42: 331 | R42: 160 | S42: 95 | T42: 341 | U42: 310 | V42: 310 | W42: 254 | X42: 235 | Y42: 88 | Z42: 33 | AA42: 152 | AB42: 256 | AC42: 220 | AD42: 192 | AE42: 276 | AF42: 96
A43: из них ОМС | B43: 389 | C43: 433 | D43: 257 | E43: 127 | F43: 452 | G43: 332 | H43: 356 | I43: 332 | J43: 387 | K43: 202 | L43: 189 | M43: 400 | N43: 391 | O43: 250 | P43: 358 | Q43: 312 | R43: 152 | S43: 92 | T43: 334 | U43: 302 | V43: 302 | W43: 243 | X43: 228 | Y43: 81 | Z43: 31 | AA43: 141 | AB43: 250 | AC43: 215 | AD43: 182 | AE43: 267 | AF43: 94
A44: Записано платных (всего) | B44: =(B40+B42)-(B41+B43) -> 27 | C44: =(C40+C42)-(C41+C43) -> 53 | D44: 23 | E44: 21 | F44: 27 | G44: 23 | H44: 22 | I44: 22 | J44: 18 | K44: 29 | L44: 32 | M44: 18 | N44: 23 | O44: 13 | P44: 22 | Q44: 31 | R44: 16 | S44: 10 | T44: 13 | U44: 11 | V44: 17 | W44: 29 | X44: 14 | Y44: 18 | Z44: 12 | AA44: 25 | AB44: 12 | AC44: 11 | AD44: 20 | AE44: 25 | AF44: 5
A45: Всего записано за день: | B45: =SUM(B40+B42) -> 656 | C45: =SUM(C40+C42) -> 726 | D45: 394 | E45: 224 | F45: 758 | G45: 554 | H45: 598 | I45: 557 | J45: 596 | K45: 311 | L45: 288 | M45: 686 | N45: 605 | O45: 407 | P45: 571 | Q45: 521 | R45: 273 | S45: 153 | T45: 528 | U45: 536 | V45: 493 | W45: 481 | X45: 465 | Y45: 185 | Z45: 72 | AA45: 436 | AB45: 443 | AC45: 409 | AD45: 338 | AE45: 430 | AF45: 200
A47: Очередь по записи КТ-Ковид:
A48: Советская | B48: 757 | C48: 800 | D48: 734 | E48: 626 | F48: 721 | G48: 732 | H48: 751 | I48: 769 | J48: 757 | K48: 649 | L48: 529 | M48: 597 | N48: 602 | O48: 560 | P48: 565 | Q48: 562 | R48: 483 | S48: 348 | T48: 345 | U48: 387 | V48: 389 | W48: 432 | X48: 476 | Y48: 386 | Z48: 242 | AA48: 427 | AB48: 462 | AC48: 552 | AD48: 497 | AE48: 464 | AF48: 365
A49: Есенина | B49: 1206 | C49: 1304 | D49: 1170 | E49: 931 | F49: 1028 | G49: 991 | H49: 1085 | I49: 1152 | J49: 1184 | K49: 1024 | L49: 854 | M49: 897 | N49: 999 | O49: 875 | P49: 941 | Q49: 894 | R49: 779 | S49: 577 | T49: 631 | U49: 566 | V49: 608 | W49: 677 | X49: 723 | Y49: 613 | Z49: 458 | AA49: 421 | AB49: 516 | AC49: 634 | AD49: 641 | AE49: 724 | AF49: 633
A50: Всего в очереди: | B50: =SUM(B48:B49) -> 1963 | C50: =SUM(C48:C49) -> 2104 | D50: 1904 | E50: 1557 | F50: 1749 | G50: 1723 | H50: 1836 | I50: 1921 | J50: 1941 | K50: 1673 | L50: 1383 | M50: 1494 | N50: 1601 | O50: 1435 | P50: 1506 | Q50: 1456 | R50: 1262 | S50: 925 | T50: 976 | U50: 953 | V50: 997 | W50: 1109 | X50: 1199 | Y50: 999 | Z50: 700 | AA50: 848 | AB50: 978 | AC50: 1186 | AD50: 1138 | AE50: 1188 | AF50: 998
A52: Выполнено КТ-Ковид за день:
A53: Советская | B53: 160 | C53: 164 | D53: 164 | E53: 162 | F53: 163 | G53: 163 | H53: 164 | I53: 158 | J53: 166 | K53: 162 | L53: 165 | M53: 155 | N53: 165 | O53: 165 | P53: 165 | Q53: 164 | R53: 164 | S53: 165 | T53: 161 | U53: 155 | V53: 159 | W53: 164 | X53: 165 | Y53: 166 | Z53: 161 | AA53: 77 | AB53: 130 | AC53: 84 | AD53: 168 | AE53: 158 | AF53: 165
A54: Есенина | B54: 320 | C54: 331 | D54: 327 | E54: 332 | F54: 313 | G54: 323 | H54: 237 | I54: 247 | J54: 335 | K54: 321 | L54: 326 | M54: 330 | N54: 250 | O54: 320 | P54: 246 | Q54: 330 | R54: 248 | S54: 249 | T54: 246 | U54: 329 | V54: 245 | W54: 168 | X54: 164 | Y54: 167 | Z54: 167 | AA54: 164 | AB54: 135 | AC54: 86 | AD54: 167 | AE54: 162 | AF54: 162
A55: Всего выполнено за день: | B55: =SUM(B53:B54) -> 480 | C55: =SUM(C53:C54) -> 495 | D55: 491 | E55: 494 | F55: 476 | G55: =SUM(G53:G54) -> 486 | H55: =SUM(H53:H54) -> 401 | I55: 405 | J55: 501 | K55: 483 | L55: 491 | M55: 485 | N55: 415 | O55: 485 | P55: 411 | Q55: 494 | R55: 412 | S55: 414 | T55: 407 | U55: 484 | V55: 404 | W55: 332 | X55: 329 | Y55: 333 | Z55: 328 | AA55: 241 | AB55: =SUM(AB53:AB54) -> 265 | AC55: =SUM(AC53:AC54) -> 170 | AD55: =SUM(AD53:AD54) -> 335 | AE55: =SUM(AE53:AE54) -> 320 | AF55: 327

Sheet Август
A1: Отчет по call-центру
B2: 2021-08-01 | C2: 2021-08-02 | D2: 2021-08-03 | E2: 2021-08-04 | F2: 2021-08-05 | G2: 2021-08-06 | H2: 2021-08-07 | I2: 2021-08-08 | J2: 2021-08-09 | K2: 2021-08-10 | L2: 2021-08-11 | M2: 2021-08-12 | N2: 2021-08-13 | O2: 2021-08-14 | P2: 2021-08-15 | Q2: 2021-08-16 | R2: 2021-08-17 | S2: 2021-08-18 | T2: 2021-08-19 | U2: 2021-08-20 | V2: 2021-08-21 | W2: 2021-08-22 | X2: 2021-08-23 | Y2: 2021-08-24 | Z2: 2021-08-25 | AA2: 2021-08-26 | AB2: 2021-08-27 | AC2: 2021-08-28 | AD2: 2021-08-29 | AE2: 2021-08-30 | AF2: 2021-08-31
A3: Кол-во обраб. звонков (Линия call-центр) | B3: 175 | C3: 523 | D3: 501 | E3: 503 | F3: 499 | G3: 398 | H3: 243 | I3: 174 | J3: 483 | K3: 483 | L3: 471 | M3: 466 | N3: 452 | O3: 220 | P3: 188 | Q3: 505 | R3: 485 | S3: 480 | T3: 488 | U3: 472 | V3: 238 | W3: 182 | X3: 614 | Y3: 528 | Z3: 541 | AA3: 556 | AB3: 506 | AC3: 253 | AD3: 192 | AE3: 501 | AF3: 476
A4: Кол-во пропущенных | B4: 4 | C4: 117 | D4: 176 | E4: 58 | F4: 104 | G4: 165 | H4: 44 | I4: 27 | J4: 115 | K4: 110 | L4: 135 | M4: 201 | N4: 66 | O4: 27 | P4: 60 | Q4: 97 | R4: 48 | S4: 55 | T4: 91 | U4: 71 | V4: 15 | W4: 15 | X4: 91 | Y4: 58 | Z4: 51 | AA4: 63 | AB4: 54 | AC4: 151 | AD4: 17 | AE4: 128 | AF4: 109
A5: Кол-во обраб. звонков (Линия КТ-Ковид) | B5: 104 | C5: 343 | D5: 325 | E5: 402 | F5: 308 | G5: 371 | H5: 141 | I5: 85 | J5: 342 | K5: 353 | L5: 353 | M5: 326 | N5: 347 | O5: 145 | P5: 91 | Q5: 328 | R5: 323 | S5: 316 | T5: 319 | U5: 297 | V5: 136 | W5: 68 | X5: 317 | Y5: 282 | Z5: 319 | AA5: 304 | AB5: 268 | AC5: 124 | AD5: 86 | AE5: 277 | AF5: 336
A6: Кол-во пропущенных | B6: 8 | C6: 333 | D6: 390 | E6: 98 | F6: 246 | G6: 65 | H6: 17 | I6: 14 | J6: 240 | K6: 102 | L6: 143 | M6: 159 | N6: 232 | O6: 15 | P6: 12 | Q6: 339 | R6: 63 | S6: 99 | T6: 38 | U6: 154 | V6: 14 | W6: 2 | X6: 72 | Y6: 61 | Z6: 59 | AA6: 37 | AB6: 93 | AC6: 23 | AD6: 6 | AE6: 272 | AF6: 96
A7: Всего звонков (обе линии) | B7: =SUM(B3+B5) -> 279 | C7: =SUM(C3+C5) -> 866 | D7: =SUM(D3+D5) -> 826 | E7: =SUM(E3+E5) -> 905 | F7: =SUM(F3+F5) -> 807 | G7: =SUM(G3+G5) -> 769 | H7: 384 | I7: 259 | J7: 825 | K7: 836 | L7: 824 | M7: 792 | N7: 799 | O7: 365 | P7: 279 | Q7: 833 | R7: 808 | S7: 796 | T7: 807 | U7: 769 | V7: 374 | W7: 250 | X7: =SUM(X3+X5) -> 931 | Y7: =SUM(Y3+Y5) -> 810 | Z7: =SUM(Z3+Z5) -> 860 | AA7: =SUM(AA3+AA5) -> 860 | AB7: =SUM(AB3+AB5) -> 774 | AC7: 377 | AD7: 278 | AE7: 778 | AF7: 812
A9: Заявки на сайте:
A10: Количество заявок на сайте (всего) | B10: 26 | C10: 165 | D10: 117 | E10: 110 | F10: 109 | G10: 76 | H10: 45 | I10: 21 | J10: 109 | K10: 108 | L10: 71 | M10: 97 | N10: 103 | O10: 31 | P10: 34 | Q10: 127 | R10: 94 | S10: 88 | T10: 70 | U10: 71 | V10: 34 | W10: 31 | X10: 76 | Y10: 77 | Z10: 73 | AA10: 70 | AB10: 72 | AC10: 40 | AD10: 20 | AE10: 103 | AF10: 61
A11: Со статусом "записался" | B11: 12 | C11: 102 | D11: 80 | E11: 59 | F11: 72 | G11: 49 | H11: 24 | I11: 8 | J11: 70 | K11: 71 | L11: 45 | M11: 52 | N11: 67 | O11: 18 | P11: 23 | Q11: 89 | R11: 56 | S11: 55 | T11: 46 | U11: 48 | V11: 14 | W11: 18 | X11: 47 | Y11: 41 | Z11: 39 | AA11: 46 | AB11: 49 | AC11: 25 | AD11: 11 | AE11: 64 | AF11: 37
A12: Заявки на сайте КТ Ковид | B12: 10 | C12: 78 | D12: 46 | E12: 44 | F12: 42 | G12: 34 | H12: 18 | I12: 7 | J12: 52 | K12: 52 | L12: 33 | M12: 23 | N12: 54 | O12: 13 | P12: 23 | Q12: 60 | R12: 42 | S12: 34 | T12: 23 | U12: 32 | V12: 11 | W12: 11 | X12: 40 | Y12: 24 | Z12: 26 | AA12: 26 | AB12: 29 | AC12: 16 | AD12: 8 | AE12: 38 | AF12: 14
A13: Статус "записался" на КТ Ковид | B13: 6 | C13: 59 | D13: 38 | E13: 34 | F13: 36 | G13: 29 | H13: 14 | I13: 4 | J13: 47 | K13: 48 | L13: 27 | M13: 18 | N13: 41 | O13: 8 | P13: 11 | Q13: 55 | R13: 34 | S13: 28 | T13: 22 | U13: 26 | V13: 10 | W13: 11 | X13: 30 | Y13: 21 | Z13: 22 | AA13: 22 | AB13: 27 | AC13: 11 | AD13: 6 | AE13: 30 | AF13: 11
A15: Записались в центр (МРТ+АПО):
A16: МРТ Скайра (Есенина) | B16: 2 | C16: замена томографа | W16: 14 | X16: 46 | Y16: 30 | Z16: 41 | AA16: 44 | AB16: 24 | AC16: 18 | AD16: 20 | AE16: 43 | AF16: 39
A17: МРТ Skyra | B17: 11 | C17: 47 | D17: 40 | E17: 29 | F17: 43 | G17: 40 | H17: 19 | I17: 7 | J17: 51 | K17: 52 | L17: 25 | M17: 46 | N17: 22 | O17: 23 | P17: 7 | Q17: 25 | R17: 39 | S17: 38 | T17: 27 | U17: 38 | V17: 17 | W17: 9 | X17: 42 | Y17: 39 | Z17: 33 | AA17: 32 | AB17: 43 | AC17: 38 | AD17: 17 | AE17: 38 | AF17: 39
A18: МРТ Essenza | B18: 8 | C18: 29 | D18: 36 | E18: 15 | F18: 32 | G18: 42 | H18: 17 | I18: 7 | J18: 44 | K18: 23 | L18: 51 | M18: 22 | N18: 17 | O18: 6 | P18: 13 | Q18: 21 | R18: 33 | S18: 18 | T18: 37 | U18: 21 | V18: 15 | W18: 7 | X18: 43 | Y18: 30 | Z18: 25 | AA18: 33 | AB18: 23 | AC18: 8 | AD18: 14 | AE18: 41 | AF18: 33
A19: МРТ Солидарности | B19: 9 | C19: 54 | D19: 39 | E19: 18 | F19: 34 | G19: 11 | H19: 11 | I19: 11 | J19: 27 | K19: 26 | L19: 23 | M19: 23 | N19: 16 | O19: 5 | P19: 5 | Q19: 92 | R19: 27 | S19: 23 | T19: 25 | U19: 12 | V19: 8 | W19: 7 | X19: 74 | Y19: 27 | Z19: 6 | AA19: 54 | AB19: 15 | AC19: 5 | AD19: 4 | AE19: 49 | AF19: 37
A20: МРТ Костюшко | B20: 7 | C20: 78 | D20: 30 | E20: 56 | F20: 76 | G20: 32 | H20: 19 | I20: 6 | J20: 40 | K20: 43 | L20: 38 | M20: 49 | N20: 46 | O20: 25 | P20: 14 | Q20: 81 | R20: 42 | S20: 52 | T20: 93 | U20: 35 | V20: 15 | W20: 19 | X20: 49 | Y20: 44 | Z20: 42 | AA20: 23 | AB20: 39 | AC20: 11 | AD20: 17 | AE20: 68 | AF20: 35
A21: Всего записано за день МРТ : | B21: =SUM(B16:B20) -> 37 | C21: =SUM(C16:C20) -> 208 | D21: =SUM(D16:D20) -> 145 | E21: =SUM(E16:E20) -> 118 | F21: =SUM(F16:F20) -> 185 | G21: =SUM(G16:G20) -> 125 | H21: 66 | I21: 31 | J21: 162 | K21: 144 | L21: 137 | M21: 140 | N21: 101 | O21: 59 | P21: 39 | Q21: 219 | R21: 141 | S21: 131 | T21: 182 | U21: 106 | V21: 55 | W21: 56 | X21: 254 | Y21: 170 | Z21: 147 | AA21: 186 | AB21: 144 | AC21: 80 | AD21: 72 | AE21: 239 | AF21: 183
A22: Отменено клиентом + неявка (все центры МРТ) | B22: 22 | C22: 17 | D22: 18 | E22: 24 | F22: 13 | G22: 22 | H22: 20 | I22: 19 | J22: 37 | K22: 13 | L22: 22 | M22: 16 | N22: 24 | O22: 15 | P22: 19 | Q22: 18 | R22: 19 | S22: 21 | T22: 19 | U22: 26 | V22: 25 | W22: 20 | X22: 32 | Y22: 24 | Z22: 32 | AA22: 23 | AB22: 39 | AC22: 29 | AD22: 26 | AE22: 40 | AF22: 27
A23: АПО | B23: 20 | C23: 94 | D23: 77 | E23: 75 | F23: 67 | G23: 71 | H23: 23 | I23: 15 | J23: 76 | K23: 64 | L23: 53 | M23: 55 | N23: 74 | O23: 21 | P23: 14 | Q23: 89 | R23: 76 | S23: 63 | T23: 39 | U23: 55 | V23: 17 | W23: 12 | X23: 70 | Y23: 64 | Z23: 103 | AA23: 68 | AB23: 79 | AC23: 39 | AD23: 20 | AE23: 111 | AF23: 72
A24: Всего записано за день (МРТ + АПО): | B24: =SUM(B21+B23) -> 57 | C24: =SUM(C21+C23) -> 302 | D24: =SUM(D21+D23) -> 222 | E24: =SUM(E21+E23) -> 193 | F24: =SUM(F21+F23) -> 252 | G24: =SUM(G21+G23) -> 196 | H24: 89 | I24: 46 | J24: 238 | K24: 208 | L24: 190 | M24: 195 | N24: 175 | O24: 80 | P24: 53 | Q24: 308 | R24: 217 | S24: 194 | T24: 221 | U24: 161 | V24: 72 | W24: 68 | X24: 324 | Y24: 234 | Z24: 250 | AA24: 254 | AB24: 223 | AC24: 119 | AD24: 92 | AE24: 350 | AF24: 255
A25: ПЭТ/КТ | B25: 0 | C25: 55 | D25: 56 | E25: 59 | F25: 52 | G25: 44 | H25: 9 | I25: 1 | J25: 50 | K25: 64 | L25: 53 | M25: 37 | N25: 41 | O25: 2 | P25: 3 | Q25: 68 | R25: 42 | S25: 44 | T25: 48 | U25: 63 | V25: 1 | W25: 1 | X25: 63 | Y25: 46 | Z25: 49 | AA25: 41 | AB25: 40 | AC25: 3 | AD25: 0 | AE25: 61 | AF25: 40
A26: Очередь ПЭТ/КТ | B26: 768 | C26: 556 | D26: 789 | E26: 804 | F26: 819 | G26: 811 | H26: 777 | I26: 778 | J26: 778 | K26: 798 | L26: 806 | M26: 798 | N26: 797 | O26: 757 | P26: 760 | Q26: 782 | R26: 776 | S26: 773 | T26: 775 | U26: 792 | V26: 768 | W26: 769 | X26: 792 | Y26: 801 | Z26: 804 | AA26: 786 | AB26: 778 | AC26: 739 | AD26: 739 | AE26: 756 | AF26: 750
A27: Очередь КТ-Приморский | B27: 338 | C27: 394 | D27: 376 | E27: 392 | F27: 396 | G27: 420 | H27: 396 | I27: 372 | J27: 363 | K27: 360 | L27: 356 | M27: 346 | N27: 329 | O27: 307 | P27: 282 | Q27: 280 | R27: 279 | S27: 273 | T27: 253 | U27: 268 | V27: 245 | W27: 221 | X27: 228 | Y27: 223 | Z27: 219 | AA27: 208 | AB27: 214 | AC27: 192 | AD27: 174 | AE27: 191 | AF27: 204
A29: Кол-во операторов | B29: 4 | C29: 7 | D29: 7 | E29: 7 | F29: 7 | G29: 7 | H29: 5 | I29: 4 | J29: 7 | K29: 7 | L29: 6 | M29: 7 | N29: 8 | O29: 5 | P29: 4 | Q29: 7 | R29: 8 | S29: 8 | T29: 8 | U29: 7 | V29: 5 | W29: 4 | X29: 7 | Y29: 7 | Z29: 7 | AA29: 7 | AB29: 7 | AC29: 4 | AD29: 4 | AE29: 7 | AF29: 7
A30: сумма часов работы операторов | B30: 48 | C30: 76 | D30: 76 | E30: 76 | F30: 76 | G30: 76 | H30: 60 | I30: 42 | J30: 80 | K30: 64 | L30: 64 | M30: 70 | N30: 82 | O30: 60 | P30: 48 | Q30: 72 | R30: 84 | S30: 84 | T30: 82 | U30: 75 | V30: 60 | W30: 48 | X30: 76 | Y30: 76 | Z30: 72 | AA30: 76 | AB30: 75 | AC30: 48 | AD30: 48 | AE30: 73 | AF30: 73
A32: Время ожидания на линии (мин)
A33: 244-00-24 (среднее) | B33: =26/60 -> 0.4333333333 | C33: =121/60 -> 2.016666667 | D33: =148/60 -> 2.466666667 | E33: =67/60 -> 1.116666667 | F33: =126/60 -> 2.1 | G33: =201/60 -> 3.35 | H33: =32/60 -> 0.5333333333 | I33: =29/60 -> 0.4833333333 | J33: =116/60 -> 1.933333333 | K33: =137/60 -> 2.283333333 | L33: =77/60 -> 1.283333333 | M33: =111/60 -> 1.85 | N33: =74/60 -> 1.233333333 | O33: =28/60 -> 0.4666666667 | P33: =30/60 -> 0.5 | Q33: =85/60 -> 1.416666667 | R33: =71/60 -> 1.183333333 | S33: =75/60 -> 1.25 | T33: =34/60 -> 0.5666666667 | U33: =38/60 -> 0.6333333333 | V33: =46/60 -> 0.7666666667 | W33: =49/60 -> 0.8166666667 | X33: =93/60 -> 1.55 | Y33: =55/60 -> 0.9166666667 | Z33: =93/60 -> 1.55 | AA33: =90/60 -> 1.5 | AB33: =71/60 -> 1.183333333 | AC33: =68/60 -> 1.133333333 | AD33: =42/60 -> 0.7 | AE33: =188/60 -> 3.133333333 | AF33: =49/60 -> 0.8166666667
A34: 244-31-27 (КТ Ковид, время среднее) | B34: =79/60 -> 1.316666667 | C34: =1296/60 -> 21.6 | D34: =1328/60 -> 22.13333333 | E34: =397/60 -> 6.616666667 | F34: =1048/60 -> 17.46666667 | G34: =437/60 -> 7.283333333 | H34: =41/60 -> 0.6833333333 | I34: =106/60 -> 1.766666667 | J34: =1244/60 -> 20.73333333 | K34: =443/60 -> 7.383333333 | L34: =575/60 -> 9.583333333 | M34: =703/60 -> 11.71666667 | N34: =886/60 -> 14.76666667 | O34: =156/60 -> 2.6 | P34: =29/60 -> 0.4833333333 | Q34: =1040/60 -> 17.33333333 | R34: =440/60 -> 7.333333333 | S34: =523/60 -> 8.716666667 | T34: =235/60 -> 3.916666667 | U34: =766/60 -> 12.76666667 | V34: =165/60 -> 2.75 | W34: =177/60 -> 2.95 | X34: =438/60 -> 7.3 | Y34: =309/60 -> 5.15 | Z34: =403/60 -> 6.716666667 | AA34: =297/60 -> 4.95 | AB34: =474/60 -> 7.9 | AC34: =408/60 -> 6.8 | AD34: =52/60 -> 0.8666666667 | AE34: =1006/60 -> 16.76666667 | AF34: =378/60 -> 6.3
A36: Нажали кнопку "1" - перевод в Клинику | B36: 0 | C36: 15 | D36: 12 | E36: 25 | F36: 13 | G36: 19 | H36: 0 | I36: 0 | J36: 16 | K36: 16 | L36: 11 | M36: 13 | N36: 9 | O36: 0 | P36: 0 | Q36: 23 | R36: 11 | S36: 8 | T36: 9 | U36: 17 | V36: 0 | W36: 0 | X36: 21 | Y36: 3 | Z36: 24 | AA36: 26 | AB36: 15 | AC36: 0 | AD36: 0 | AE36: 29 | AF36: 17
A38: Отчет по КТ-Ковид
A39: Записали КТ Ковид за день:
A40: Записаны сегодня на КТ (Советская) | B40: 48 | C40: 206 | D40: 175 | E40: 365 | F40: 164 | G40: 199 | H40: 64 | I40: 40 | J40: 181 | K40: 177 | L40: 183 | M40: 153 | N40: 193 | O40: 73 | P40: 42 | Q40: 204 | R40: 136 | S40: 132 | T40: 136 | U40: 100 | V40: 27 | W40: 35 | X40: 121 | Y40: 133 | Z40: 122 | AA40: 111 | AB40: 99 | AC40: 35 | AD40: 22 | AE40: 146 | AF40: 169
A41: из них ОМС | B41: 46 | C41: 197 | D41: 169 | E41: 352 | F41: 153 | G41: 191 | H41: 59 | I41: 35 | J41: 166 | K41: 169 | L41: 178 | M41: 146 | N41: 176 | O41: 63 | P41: 34 | Q41: 179 | R41: 117 | S41: 106 | T41: 123 | U41: 90 | V41: 20 | W41: 23 | X41: 103 | Y41: 118 | Z41: 107 | AA41: 98 | AB41: 90 | AC41: 32 | AD41: 17 | AE41: 132 | AF41: 159
A42: Записаны сегодня на КТ (Есенина) | B42: 47 | C42: 250 | D42: 224 | E42: 77 | F42: 225 | G42: 213 | H42: 80 | I42: 41 | J42: 229 | K42: 204 | L42: 210 | M42: 196 | N42: 223 | O42: 69 | P42: 47 | Q42: 233 | R42: 242 | S42: 246 | T42: 224 | U42: 255 | V42: 101 | W42: 34 | X42: 250 | Y42: 216 | Z42: 209 | AA42: 215 | AB42: 210 | AC42: 89 | AD42: 40 | AE42: 190 | AF42: 183
A43: из них ОМС | B43: 45 | C43: 239 | D43: 218 | E43: 72 | F43: 217 | G43: 204 | H43: 73 | I43: 37 | J43: 219 | K43: 199 | L43: 207 | M43: 189 | N43: 213 | O43: 64 | P43: 41 | Q43: 223 | R43: 233 | S43: 232 | T43: 214 | U43: 240 | V43: 95 | W43: 31 | X43: 243 | Y43: 210 | Z43: 204 | AA43: 207 | AB43: 205 | AC43: 80 | AD43: 38 | AE43: 187 | AF43: 177
A44: Записано платных (всего) | B44: =(B40+B42)-(B41+B43) -> 4 | C44: =(C40+C42)-(C41+C43) -> 20 | D44: =(D40+D42)-(D41+D43) -> 12 | E44: =(E40+E42)-(E41+E43) -> 18 | F44: =(F40+F42)-(F41+F43) -> 19 | G44: =(G40+G42)-(G41+G43) -> 17 | H44: 12 | I44: 9 | J44: 25 | K44: 13 | L44: 8 | M44: 14 | N44: 27 | O44: 15 | P44: 14 | Q44: 35 | R44: 28 | S44: 40 | T44: 23 | U44: 25 | V44: 13 | W44: 15 | X44: 25 | Y44: 21 | Z44: 20 | AA44: 21 | AB44: 14 | AC44: 12 | AD44: 7 | AE44: 17 | AF44: 16
A45: Всего записано за день: | B45: =SUM(B40+B42) -> 95 | C45: =SUM(C40+C42) -> 456 | D45: =SUM(D40+D42) -> 399 | E45: =SUM(E40+E42) -> 442 | F45: =SUM(F40+F42) -> 389 | G45: =SUM(G40+G42) -> 412 | H45: 144 | I45: 81 | J45: 410 | K45: 381 | L45: 393 | M45: 349 | N45: 416 | O45: 142 | P45: 89 | Q45: 437 | R45: 378 | S45: 378 | T45: 360 | U45: 355 | V45: 128 | W45: 69 | X45: 371 | Y45: 349 | Z45: 331 | AA45: 326 | AB45: 309 | AC45: 124 | AD45: 62 | AE45: 336 | AF45: 352 | AG45: =SUM(B45:AF45) -> 9263
A47: Очередь по записи КТ-Ковид:
A48: Советская | B48: 320 | C48: 430 | D48: 424 | E48: 601 | F48: 579 | G48: 587 | H48: 452 | I48: 308 | J48: 305 | K48: 387 | L48: 480 | M48: 536 | N48: 634 | O48: 608 | P48: 469 | Q48: 488 | R48: 428 | S48: 383 | T48: 477 | U48: 543 | V48: 544 | W48: 555 | X48: 478 | Y48: 509 | Z48: 524 | AA48: 614 | AB48: 680 | AC48: 684 | AD48: 684 | AE48: 629 | AF48: 597
A49: Есенина | B49: 493 | C49: 646 | D49: 678 | E49: 564 | F49: 594 | G49: 625 | H49: 522 | I49: 384 | J49: 422 | K49: 440 | L49: 467 | M49: 483 | N49: 521 | O49: 407 | P49: 359 | Q49: 503 | R49: 652 | S49: 701 | T49: 755 | U49: 819 | V49: 729 | W49: 662 | X49: 725 | Y49: 749 | Z49: 760 | AA49: 786 | AB49: 810 | AC49: 701 | AD49: 556 | AE49: 560 | AF49: 554
A50: Всего в очереди: | B50: =SUM(B48:B49) -> 813 | C50: =SUM(C48:C49) -> 1076 | D50: =SUM(D48:D49) -> 1102 | E50: =SUM(E48:E49) -> 1165 | F50: =SUM(F48:F49) -> 1173 | G50: =SUM(G48:G49) -> 1212 | H50: 974 | I50: 692 | J50: 727 | K50: 827 | L50: 947 | M50: 1019 | N50: 1155 | O50: 1015 | P50: 828 | Q50: 991 | R50: 1080 | S50: 1084 | T50: 1232 | U50: 1362 | V50: 1273 | W50: 1217 | X50: 1203 | Y50: 1258 | Z50: 1284 | AA50: 1400 | AB50: 1490 | AC50: 1385 | AD50: 1240 | AE50: 1189 | AF50: 1151
A52: Выполнено КТ-Ковид за день:
A53: Советская | B53: 82 | C53: 85 | D53: 159 | E53: 161 | F53: 163 | G53: 161 | H53: 160 | I53: 164 | J53: 162 | K53: 78 | L53: 82 | M53: 82 | N53: 85 | O53: 82 | P53: 158 | Q53: 158 | R53: 151 | S53: 159 | T53: 23 | U53: 22 | V53: 18 | W53: 18 | X53: 158 | Y53: 77 | Z53: 81 | AA53: 25 | AB53: 23 | AC53: 21 | AD53: 19 | AE53: 151 | AF53: 155
A54: Есенина | B54: 170 | C54: 85 | D54: 165 | E54: 160 | F54: 168 | G54: 164 | H54: 162 | I54: 165 | J54: 171 | K54: 163 | L54: 164 | M54: 164 | N54: 163 | O54: 162 | P54: 81 | Q54: 80 | R54: 82 | S54: 159 | T54: 158 | U54: 160 | V54: 163 | W54: 84 | X54: 160 | Y54: 162 | Z54: 158 | AA54: 159 | AB54: 157 | AC54: 159 | AD54: 152 | AE54: 153 | AF54: 157
A55: Всего выполнено за день: | B55: =SUM(B53:B54) -> 252 | C55: =SUM(C53:C54) -> 170 | D55: =SUM(D53:D54) -> 324 | E55: =SUM(E53:E54) -> 321 | F55: =SUM(F53:F54) -> 331 | G55: =SUM(G53:G54) -> 325 | H55: 322 | I55: 329 | J55: 333 | K55: 241 | L55: 246 | M55: 246 | N55: 248 | O55: 244 | P55: 239 | Q55: 238 | R55: 233 | S55: 318 | T55: 181 | U55: 182 | V55: 181 | W55: 102 | X55: 318 | Y55: 239 | Z55: 239 | AA55: 184 | AB55: 180 | AC55: 180 | AD55: 171 | AE55: 304 | AF55: 312 | AG55: =SUM(B55:AF55) -> 7733

Sheet Сентябрь
A1: Отчет по call-центру
B2: 2021-09-01 | C2: 2021-09-02 | D2: 2021-09-03 | E2: 2021-09-04 | F2: 2021-09-05 | G2: 2021-09-06 | H2: 2021-09-07 | I2: 2021-09-08 | J2: 2021-09-09 | K2: 2021-09-10 | L2: 2021-09-11 | M2: 2021-09-12 | N2: 2021-09-13 | O2: 2021-09-14 | P2: 2021-09-15 | Q2: 2021-09-16 | R2: 2021-09-17 | S2: 2021-09-18 | T2: 2021-09-19 | U2: 2021-09-20 | V2: 2021-09-21 | W2: 2021-09-22 | X2: 2021-09-23 | Y2: 2021-09-24 | Z2: 2021-09-25 | AA2: 2021-09-26 | AB2: 2021-09-27 | AC2: 2021-09-28 | AD2: 2021-09-29 | AE2: 2021-09-30
A3: Кол-во обраб. звонков (Линия call-центр) | B3: 480 | C3: 379 | D3: 423 | E3: 246 | F3: 203 | G3: 516 | H3: 486 | I3: 491 | J3: 496 | K3: 446 | L3: 229 | M3: 195 | N3: 579 | O3: 487 | P3: 500 | Q3: 501 | R3: 516 | S3: 216 | T3: 171 | U3: 539 | V3: 544 | W3: 562 | X3: 456 | Y3: 513 | Z3: 251 | AA3: 207 | AB3: 526 | AC3: 527 | AD3: 581 | AE3: 476
A4: Кол-во пропущенных | B4: 67 | C4: 140 | D4: 168 | E4: 35 | F4: 34 | G4: 102 | H4: 163 | I4: 117 | J4: 74 | K4: 145 | L4: 70 | M4: 21 | N4: 101 | O4: 148 | P4: 138 | Q4: 63 | R4: 57 | S4: 18 | T4: 12 | U4: 81 | V4: 68 | W4: 88 | X4: 75 | Y4: 113 | Z4: 123 | AA4: 16 | AB4: 307 | AC4: 93 | AD4: 155 | AE4: 145
A5: Кол-во обраб. звонков (Линия КТ-Ковид) | B5: 277 | C5: 302 | D5: 266 | E5: 126 | F5: 74 | G5: 314 | H5: 313 | I5: 310 | J5: 329 | K5: 360 | L5: 160 | M5: 74 | N5: 304 | O5: 344 | P5: 331 | Q5: 384 | R5: 319 | S5: 188 | T5: 101 | U5: 366 | V5: 280 | W5: 390 | X5: 361 | Y5: 397 | Z5: 213 | AA5: 124 | AB5: 352 | AC5: 364 | AD5: 345 | AE5: 339
A6: Кол-во пропущенных | B6: 110 | C6: 55 | D6: 153 | E6: 41 | F6: 2 | G6: 160 | H6: 41 | I6: 137 | J6: 229 | K6: 151 | L6: 41 | M6: 18 | N6: 300 | O6: 219 | P6: 158 | Q6: 198 | R6: 412 | S6: 64 | T6: 5 | U6: 389 | V6: 592 | W6: 430 | X6: 282 | Y6: 451 | Z6: 44 | AA6: 6 | AB6: 385 | AC6: 397 | AD6: 586 | AE6: 569
A7: Всего звонков (обе линии) | B7: =SUM(B3+B5) -> 757 | C7: =SUM(C3+C5) -> 681 | D7: =SUM(D3+D5) -> 689 | E7: =SUM(E3+E5) -> 372 | F7: 277 | G7: 830 | H7: 799 | I7: 801 | J7: 825 | K7: 806 | L7: 389 | M7: 269 | N7: 883 | O7: 831 | P7: 831 | Q7: 885 | R7: 835 | S7: 404 | T7: 272 | U7: 905 | V7: 824 | W7: 952 | X7: 817 | Y7: 910 | Z7: 464 | AA7: 331 | AB7: 878 | AC7: 891 | AD7: 926 | AE7: 815
A9: Заявки на сайте:
A10: Количество заявок на сайте (всего) | B10: 75 | C10: 80 | D10: 57 | E10: 36 | F10: 25 | G10: 92 | H10: 79 | I10: 71 | J10: 93 | K10: 65 | L10: 40 | M10: 35 | N10: 104 | O10: 87 | P10: 66 | Q10: 84 | R10: 101 | S10: 36 | T10: 38 | U10: 98 | V10: 108 | W10: 104 | X10: 96 | Y10: 115 | Z10: 58 | AA10: 38 | AB10: 142 | AC10: 134 | AD10: 140 | AE10: 149
A11: Со статусом "записался" | B11: 50 | C11: 49 | D11: 35 | E11: 23 | F11: 16 | G11: 56 | H11: 52 | I11: 38 | J11: 57 | K11: 40 | L11: 26 | M11: 18 | N11: 70 | O11: 45 | P11: 37 | Q11: 56 | R11: 71 | S11: 25 | T11: 16 | U11: 52 | V11: 84 | W11: 74 | X11: 64 | Y11: 86 | Z11: 37 | AA11: 17 | AB11: 79 | AC11: 83 | AD11: 99
A12: Заявки на сайте КТ Ковид | B12: 28 | C12: 32 | D12: 17 | E12: 15 | F12: 8 | G12: 38 | H12: 26 | I12: 25 | J12: 30 | K12: 21 | L12: 15 | M12: 13 | N12: 40 | O12: 39 | P12: 30 | Q12: 42 | R12: 42 | S12: 10 | T12: 14 | U12: 48 | V12: 39 | W12: 54 | X12: 41 | Y12: 49 | Z12: 31 | AA12: 8 | AB12: 68 | AC12: 62 | AD12: 68 | AE12: 65
A13: Статус "записался" на КТ Ковид | B13: 24 | C13: 26 | D13: 15 | E13: 13 | F13: 7 | G13: 29 | H13: 20 | I13: 22 | J13: 26 | K13: 16 | L13: 14 | M13: 12 | N13: 37 | O13: 26 | P13: 26 | Q13: 33 | R13: 31 | S13: 10 | T13: 9 | U13: 32 | V13: 35 | W13: 45 | X13: 33 | Y13: 41 | Z13: 24 | AA13: 6 | AB13: 51 | AC13: 50 | AD13: 62
A15: Записались в центр (МРТ+АПО):
A16: МРТ Skyra (Есенина) | B16: 42 | C16: 34 | D16: 33 | E16: 20 | F16: 14 | G16: 44 | H16: 35 | I16: 53 | J16: 31 | K16: 29 | L16: 20 | M16: 11 | N16: 44 | O16: 31 | P16: 38 | Q16: 42 | R16: 34 | S16: 19 | T16: 21 | U16: 39 | V16: 59 | W16: 48 | X16: 39 | Y16: 31 | Z16: 11 | AA16: 8 | AB16: 38 | AC16: 39 | AD16: 33 | AE16: 42
A17: МРТ Skyra (Советская) | B17: 33 | C17: 33 | D17: 29 | E17: 14 | F17: 14 | G17: 39 | H17: 28 | I17: 23 | J17: 27 | K17: 33 | L17: 14 | M17: 10 | N17: 34 | O17: 22 | P17: 26 | Q17: 32 | R17: 38 | S17: 10 | T17: 9 | U17: 39 | V17: 32 | W17: 44 | X17: 20 | Y17: 27 | Z17: 26 | AA17: 17 | AB17: 44 | AC17: 47 | AD17: 32 | AE17: 31
A18: МРТ Essenza | B18: 18 | C18: 21 | D18: 28 | E18: 10 | F18: 8 | G18: 33 | H18: 44 | I18: 24 | J18: 28 | K18: 51 | L18: 14 | M18: 12 | N18: 31 | O18: 35 | P18: 43 | Q18: 33 | R18: 37 | S18: 11 | T18: 11 | U18: 45 | V18: 32 | W18: 37 | X18: 44 | Y18: 26 | Z18: 13 | AA18: 11 | AB18: 34 | AC18: 32 | AD18: 29 | AE18: 27
A19: МРТ Солидарности | B19: 39 | C19: 29 | D19: 19 | E19: 4 | F19: 8 | G19: 56 | H19: 68 | I19: 27 | J19: 82 | K19: 16 | L19: 4 | M19: 8 | N19: 11 | O19: 51 | P19: 30 | Q19: 42 | R19: 18 | S19: 6 | T19: 10 | U19: 99 | V19: 59 | W19: 25 | X19: 17 | Y19: 12 | Z19: 8 | AA19: 6 | AB19: 17 | AC19: 15 | AD19: 14 | AE19: 18
A20: МРТ Костюшко | B20: 38 | C20: 67 | D20: 40 | E20: 14 | F20: 21 | G20: 64 | H20: 43 | I20: 58 | J20: 40 | K20: 32 | L20: 20 | M20: 16 | N20: 51 | O20: 72 | P20: 37 | Q20: 51 | R20: 49 | S20: 19 | T20: 9 | U20: 34 | V20: 51 | W20: 34 | X20: 41 | Y20: 40 | Z20: 19 | AA20: 13 | AB20: 55 | AC20: 43 | AD20: 37 | AE20: 38
A21: Всего записано за день МРТ : | B21: =SUM(B16:B20) -> 170 | C21: =SUM(C16:C20) -> 184 | D21: =SUM(D16:D20) -> 149 | E21: 62 | F21: 65 | G21: 236 | H21: 218 | I21: 185 | J21: 208 | K21: 161 | L21: 72 | M21: 57 | N21: 171 | O21: 211 | P21: 174 | Q21: 200 | R21: 176 | S21: 65 | T21: 60 | U21: 256 | V21: 233 | W21: 188 | X21: 161 | Y21: 136 | Z21: 77 | AA21: 55 | AB21: 188 | AC21: 176 | AD21: 145 | AE21: 156
A22: Отменено клиентом + неявка (все центры МРТ) | B22: 31 | C22: 22 | D22: 27 | E22: 29 | F22: 35 | G22: 31 | H22: 41 | I22: 20 | J22: 23 | K22: 30 | L22: 20 | M22: 34 | N22: 30 | O22: 28 | P22: 27 | Q22: 30 | R22: 36 | S22: 30 | T22: 22 | U22: 20 | V22: 27 | W22: 37 | X22: 33 | Y22: 32 | Z22: 25 | AA22: 22 | AB22: 25 | AC22: 22 | AD22: 30 | AE22: 21
A23: АПО | B23: 40 | C23: 64 | D23: 58 | E23: 41 | F23: 14 | G23: 80 | H23: 74 | I23: 74 | J23: 79 | K23: 56 | L23: 46 | M23: 23 | N23: 91 | O23: 85 | P23: 98 | Q23: 61 | R23: 64 | S23: 42 | T23: 10 | U23: 70 | V23: 74 | W23: 81 | X23: 49 | Y23: 87 | Z23: 46 | AA23: 19 | AB23: 129 | AC23: 73 | AD23: 80 | AE23: 83
A24: Всего записано за день (МРТ + АПО): | B24: =SUM(B21+B23) -> 210 | C24: =SUM(C21+C23) -> 248 | D24: =SUM(D21+D23) -> 207 | E24: 103 | F24: 79 | G24: 316 | H24: 292 | I24: 259 | J24: 287 | K24: 217 | L24: 118 | M24: 80 | N24: 262 | O24: 296 | P24: 272 | Q24: 261 | R24: 240 | S24: 107 | T24: 70 | U24: 326 | V24: 307 | W24: 269 | X24: 210 | Y24: 223 | Z24: 123 | AA24: 74 | AB24: 317 | AC24: 249 | AD24: 225 | AE24: 239
A25: ПЭТ/КТ | B25: 48 | C25: 56 | D25: 48 | E25: 0 | F25: 1 | G25: 37 | H25: 52 | I25: 52 | J25: 48 | K25: 59 | L25: 4 | M25: 0 | N25: 42 | O25: 48 | P25: 53 | Q25: 42 | R25: 48 | S25: 3 | T25: 0 | U25: 62 | V25: 35 | W25: 42 | X25: 36 | Y25: 41 | Z25: 2 | AA25: 0 | AB25: 44 | AC25: 42 | AD25: 48 | AE25: 73
A26: Очередь ПЭТ/КТ | B26: 752 | C26: 768 | D26: 771 | E26: 771 | F26: 772 | G26: 762 | H26: 769 | I26: 778 | J26: 777 | K26: 785 | L26: 744 | M26: 744 | N26: 740 | O26: 745 | P26: 753 | Q26: 757 | R26: 760 | S26: 716 | T26: 716 | U26: 735 | V26: 723 | W26: 719 | X26: 701 | Y26: 679 | Z26: 651 | AA26: 651 | AB26: 652 | AC26: 653 | AD26: 659 | AE26: 686
A27: Очередь КТ-Приморский | B27: 207 | C27: 228 | D27: 217 | E27: 194 | F27: 174 | G27: 204 | H27: 231 | I27: 226 | J27: 276 | K27: 262 | L27: 240 | M27: 219 | N27: 233 | O27: 275 | P27: 286 | Q27: 342 | R27: 364 | S27: 349 | T27: 333 | U27: 336 | V27: 351 | W27: 337 | X27: 327 | Y27: 324 | Z27: 305 | AA27: 289 | AB27: 292 | AC27: 283 | AD27: 279 | AE27: 261
A29: Кол-во операторов | B29: 7 | C29: 6 | D29: 6 | E29: 4 | F29: 4 | G29: 8 | H29: 7 | I29: 7 | J29: 7 | K29: 7 | L29: 4 | M29: 4 | N29: 7 | O29: 7 | P29: 6 | Q29: 7 | R29: 7 | S29: 5 | T29: 4 | U29: 7 | V29: 7 | W29: 7 | X29: 6 | Y29: 6 | Z29: 4 | AA29: 4 | AB29: 6 | AC29: 7 | AD29: 7 | AE29: 6
A30: сумма часов работы операторов | B30: 70 | C30: 64 | D30: 64 | E30: 48 | F30: 48 | G30: 80 | H30: 72 | I30: 72 | J30: 72 | K30: 70 | L30: 48 | M30: 45 | N30: 72 | O30: 76 | P30: 64 | Q30: 76 | R30: 76 | S30: 54 | T30: 48 | U30: 76 | V30: 71 | W30: 76 | X30: 64 | Y30: 62 | Z30: 48 | AA30: 48 | AB30: 64 | AC30: 76 | AD30: 72 | AE30: 60
A32: Время ожидания на линии (мин)
A33: 244-00-24 (среднее) | B33: =103/60 -> 1.716666667 | C33: =290/60 -> 4.833333333 | D33: 4.52 | E33: 0.78 | F33: 0.48 | G33: 2.8 | H33: 4.1 | I33: 1.95 | J33: 1.25 | K33: =212/60 -> 3.533333333 | L33: =167/60 -> 2.783333333 | M33: =32/60 -> 0.5333333333 | N33: =57/60 -> 0.95 | O33: =102/60 -> 1.7 | P33: =127/60 -> 2.116666667 | Q33: =97/60 -> 1.616666667 | R33: =89/60 -> 1.483333333 | S33: =30/60 -> 0.5 | T33: =31/60 -> 0.5166666667 | U33: =91/60 -> 1.516666667 | V33: =83/60 -> 1.383333333 | W33: =119/60 -> 1.983333333 | X33: =154/60 -> 2.566666667 | Y33: =100/60 -> 1.666666667 | Z33: =46/60 -> 0.7666666667 | AA33: =30/60 -> 0.5 | AB33: =419/60 -> 6.983333333 | AC33: =140/60 -> 2.333333333 | AD33: =104/60 -> 1.733333333 | AE33: =243/60 -> 4.05
A34: 244-31-27 (КТ Ковид, время среднее) | B34: =384/60 -> 6.4 | C34: =417/50 -> 8.34 | D34: 17.23 | E34: 1.85 | F34: 1.05 | G34: 10.45 | H34: 4.3 | I34: 6.43 | J34: 4.22 | K34: =535/60 -> 8.916666667 | L34: =178/60 -> 2.966666667 | M34: =43/60 -> 0.7166666667 | N34: =1021/60 -> 17.01666667 | O34: =930/60 -> 15.5 | P34: =719/60 -> 11.98333333 | Q34: =881/60 -> 14.68333333 | R34: =1269/60 -> 21.15 | S34: =809/60 -> 13.48333333 | T34: =78/60 -> 1.3 | U34: =1366/60 -> 22.76666667 | V34: =1736/60 -> 28.93333333 | W34: =1413/60 -> 23.55 | X34: =1235/60 -> 20.58333333 | Y34: =1507/50 -> 30.14 | Z34: =294/60 -> 4.9 | AA34: =67/60 -> 1.116666667 | AB34: =1797/60 -> 29.95 | AC34: =1669/60 -> 27.81666667 | AD34: =1669/60 -> 27.81666667 | AE34: =2039/60 -> 33.98333333
A36: Нажали кнопку "1" - перевод в Клинику | B36: 13 | C36: 17 | D36: 17 | E36: 0 | F36: 0 | G36: 26 | H36: 16 | I36: 15 | J36: 11 | K36: 18 | L36: 0 | M36: 0 | N36: 16 | O36: 21 | P36: 12 | Q36: 11 | R36: 33 | S36: 0 | T36: 0 | U36: 25 | V36: 4 | W36: 14 | X36: 10 | Y36: 19 | Z36: 0 | AA36: 0 | AB36: 16 | AC36: 15 | AD36: 15 | AE36: 31
A38: Отчет по КТ-Ковид
A39: Записали КТ Ковид за день:
A40: Записаны сегодня на КТ (Советская) | B40: 114 | C40: 134 | D40: 90 | E40: 45 | F40: 19 | G40: 143 | H40: 142 | I40: 138 | J40: 139 | K40: 198 | L40: 51 | M40: 29 | N40: 178 | O40: 231 | P40: 169 | Q40: 208 | R40: 171 | S40: 88 | T40: 52 | U40: 209 | V40: 184 | W40: 191 | X40: 150 | Y40: 182 | Z40: 86 | AA40: 41 | AB40: 173 | AC40: 200 | AD40: 211 | AE40: 195
A41: из них ОМС | B41: 104 | C41: 129 | D41: 85 | E41: 41 | F41: 19 | G41: 134 | H41: 131 | I41: 130 | J41: 128 | K41: 189 | L41: 45 | M41: 25 | N41: 161 | O41: 222 | P41: 157 | Q41: 201 | R41: 159 | S41: 78 | T41: 46 | U41: 198 | V41: 176 | W41: 180 | X41: 141 | Y41: 173 | Z41: 77 | AA41: 37 | AB41: 169 | AC41: 186 | AD41: 197 | AE41: 180
A42: Записаны сегодня на КТ (Есенина) | B42: 200 | C42: 200 | D42: 198 | E42: 92 | F42: 39 | G42: 206 | H42: 208 | I42: 187 | J42: 211 | K42: 183 | L42: 100 | M42: 47 | N42: 198 | O42: 179 | P42: 184 | Q42: 237 | R42: 208 | S42: 109 | T42: 38 | U42: 238 | V42: 210 | W42: 275 | X42: 157 | Y42: 217 | Z42: 109 | AA42: 50 | AB42: 261 | AC42: 255 | AD42: 253 | AE42: 256
A43: из них ОМС | B43: 191 | C43: 190 | D43: 194 | E43: 87 | F43: 35 | G43: 199 | H43: 203 | I43: 182 | J43: 204 | K43: 181 | L43: 92 | M43: 43 | N43: 189 | O43: 177 | P43: 180 | Q43: 232 | R43: 203 | S43: 108 | T43: 34 | U43: 231 | V43: 204 | W43: 266 | X43: 150 | Y43: 210 | Z43: 106 | AA43: 46 | AB43: 255 | AC43: 246 | AD43: 249 | AE43: 255
A44: Записано платных (всего) | B44: =(B40+B42)-(B41+B43) -> 19 | C44: =(C40+C42)-(C41+C43) -> 15 | D44: =(D40+D42)-(D41+D43) -> 9 | E44: 9 | F44: 4 | G44: 16 | H44: 16 | I44: 13 | J44: 18 | K44: 11 | L44: 14 | M44: 8 | N44: 26 | O44: 11 | P44: 16 | Q44: 12 | R44: 17 | S44: 11 | T44: 10 | U44: 18 | V44: 14 | W44: 20 | X44: 16 | Y44: 16 | Z44: 12 | AA44: 8 | AB44: 10 | AC44: 23 | AD44: 18 | AE44: 16
A45: Всего записано за день: | B45: =SUM(B40+B42) -> 314 | C45: =SUM(C40+C42) -> 334 | D45: =SUM(D40+D42) -> 288 | E45: 137 | F45: 58 | G45: 349 | H45: 350 | I45: 325 | J45: 350 | K45: 381 | L45: 151 | M45: 76 | N45: 376 | O45: 410 | P45: 353 | Q45: 445 | R45: 379 | S45: 197 | T45: 90 | U45: 447 | V45: 394 | W45: 466 | X45: 307 | Y45: 399 | Z45: 195 | AA45: 91 | AB45: 434 | AC45: 455 | AD45: 464 | AE45: 451
A47: Очередь по записи КТ-Ковид:
A48: Советская | B48: 548 | C48: 512 | D48: 439 | E48: 458 | F48: 456 | G48: 576 | H48: 586 | I48: 563 | J48: 525 | K48: 568 | L48: 461 | M48: 334 | N48: 349 | O48: 426 | P48: 443 | Q48: 492 | R48: 515 | S48: 446 | T48: 344 | U48: 403 | V48: 432 | W48: 469 | X48: 468 | Y48: 621 | Z48: 680 | AA48: 694 | AB48: 701 | AC48: 725 | AD48: 765 | AE48: 786
A49: Есенина | B49: 593 | C49: 643 | D49: 677 | E49: 601 | F49: 480 | G49: 523 | H49: 568 | I49: 594 | J49: 642 | K49: 674 | L49: 612 | M49: 493 | N49: 531 | O49: 558 | P49: 582 | Q49: 658 | R49: 712 | S49: 661 | T49: 534 | U49: 614 | V49: 669 | W49: 779 | X49: 782 | Y49: 837 | Z49: 776 | AA49: 667 | AB49: 754 | AC49: 921 | AD49: 941 | AE49: 1030
A50: Всего в очереди: | B50: =SUM(B48:B49) -> 1141 | C50: =SUM(C48:C49) -> 1155 | D50: =SUM(D48:D49) -> 1116 | E50: 1059 | F50: 936 | G50: 1099 | H50: 1154 | I50: 1157 | J50: 1167 | K50: 1242 | L50: 1073 | M50: 827 | N50: 880 | O50: 984 | P50: 1025 | Q50: 1150 | R50: 1227 | S50: 1107 | T50: 878 | U50: 1017 | V50: 1101 | W50: 1248 | X50: 1250 | Y50: 1458 | Z50: 1456 | AA50: 1361 | AB50: 1455 | AC50: 1646 | AD50: 1706 | AE50: 1816
A52: Выполнено КТ-Ковид за день:
A53: Советская | B53: 134 | C53: 135 | D53: 138 | E53: 16 | F53: 15 | G53: 18 | H53: 81 | I53: 130 | J53: 130 | K53: 132 | L53: 132 | M53: 135 | N53: 134 | O53: 129 | P53: 129 | Q53: 136 | R53: 124 | S53: 138 | T53: 130 | U53: 119 | V53: 125 | W53: 139 | X53: 126 | Y53: 19 | Z53: 18 | AA53: 18 | AB53: 132 | AC53: 134 | AD53: 128 | AE53: 123
A54: Есенина | B54: 137 | C54: 137 | D54: 140 | E54: 138 | F54: 137 | G54: 132 | H54: 138 | I54: 134 | J54: 135 | K54: 139 | L54: 133 | M54: 140 | N54: 142 | O54: 135 | P54: 133 | Q54: 130 | R54: 139 | S54: 141 | T54: 139 | U54: 130 | V54: 134 | W54: 133 | X54: 132 | Y54: 134 | Z54: 138 | AA54: 134 | AB54: 129 | AC54: 202 | AD54: 196 | AE54: 118
A55: Всего выполнено за день: | B55: =SUM(B53:B54) -> 271 | C55: =SUM(C53:C54) -> 272 | D55: =SUM(D53:D54) -> 278 | E55: 154 | F55: 152 | G55: 150 | H55: 219 | I55: 264 | J55: 265 | K55: 271 | L55: 265 | M55: 275 | N55: 276 | O55: 264 | P55: 262 | Q55: 266 | R55: 263 | S55: 279 | T55: 269 | U55: 249 | V55: 259 | W55: 272 | X55: 258 | Y55: 153 | Z55: 156 | AA55: 152 | AB55: 261 | AC55: 336 | AD55: 324 | AE55: 241

Sheet Октябрь
A1: Отчет по call-центру
B2: 2021-10-01 | C2: 2021-10-02 | D2: 2021-10-03 | E2: 2021-10-04 | F2: 2021-10-05 | G2: 2021-10-06 | H2: 2021-10-07 | I2: 2021-10-08 | J2: 2021-10-09 | K2: 2021-10-10 | L2: 2021-10-11 | M2: 2021-10-12 | N2: 2021-10-13 | O2: 2021-10-14 | P2: 2021-10-15 | Q2: 2021-10-16 | R2: 2021-10-17 | S2: 2021-10-18 | T2: 2021-10-19 | U2: 2021-10-20 | V2: 2021-10-21 | W2: 2021-10-22 | X2: 2021-10-23 | Y2: 2021-10-24 | Z2: 2021-10-25 | AA2: 2021-10-26 | AB2: 2021-10-27 | AC2: 2021-10-28 | AD2: 2021-10-29 | AE2: 2021-10-30 | AF2: 2021-10-31
A3: Кол-во обраб. звонков (Линия call-центр) | B3: 498 | C3: 279 | D3: 194 | E3: 513 | F3: 553 | G3: 530 | H3: 527 | I3: 528 | J3: 242 | K3: 224 | L3: 645 | M3: 499 | N3: 609 | O3: 482 | P3: 567 | Q3: 293 | R3: 215 | S3: 640 | T3: 592 | U3: 559 | V3: 589 | W3: 645 | X3: 318 | Y3: 235 | Z3: 518 | AA3: 526 | AB3: 594 | AC3: 534 | AD3: 487 | AE3: 331 | AF3: 217
A4: Кол-во пропущенных | B4: 148 | C4: 36 | D4: 55 | E4: 383 | F4: 141 | G4: 115 | H4: 193 | I4: 134 | J4: 73 | K4: 69 | L4: 155 | M4: 325 | N4: 300 | O4: 252 | P4: 157 | Q4: 20 | R4: 16 | S4: 88 | T4: 155 | U4: 158 | V4: 91 | W4: 98 | X4: 52 | Y4: 13 | Z4: 324 | AA4: 279 | AB4: 166 | AC4: 107 | AD4: 160 | AE4: 87 | AF4: 12
A5: Кол-во обраб. звонков (Линия КТ-Ковид) | B5: 434 | C5: 260 | D5: 126 | E5: 357 | F5: 336 | G5: 346 | H5: 343 | I5: 394 | J5: 215 | K5: 149 | L5: 358 | M5: 370 | N5: 362 | O5: 280 | P5: 424 | Q5: 233 | R5: 178 | S5: 426 | T5: 281 | U5: 371 | V5: 372 | W5: 336 | X5: 189 | Y5: 158 | Z5: 355 | AA5: 302 | AB5: 278 | AC5: 398 | AD5: 345 | AE5: 183 | AF5: 179
A6: Кол-во пропущенных | B6: 455 | C6: 82 | D6: 7 | E6: 410 | F6: 553 | G6: 581 | H6: 587 | I6: 573 | J6: 279 | K6: 5 | L6: 494 | M6: 488 | N6: 477 | O6: 491 | P6: 463 | Q6: 282 | R6: 21 | S6: 366 | T6: 602 | U6: 544 | V6: 478 | W6: 547 | X6: 549 | Y6: 13 | Z6: 441 | AA6: 534 | AB6: 560 | AC6: 429 | AD6: 510 | AE6: 553 | AF6: 28
A7: Всего звонков (обе линии) | B7: =SUM(B3+B5) -> 932 | C7: =SUM(C3+C5) -> 539 | D7: 320 | E7: 870 | F7: 889 | G7: 876 | H7: 870 | I7: 922 | J7: 457 | K7: 373 | L7: 1003 | M7: 869 | N7: 971 | O7: 762 | P7: 991 | Q7: 526 | R7: 393 | S7: 1066 | T7: 873 | U7: 930 | V7: 961 | W7: 981 | X7: 507 | Y7: 393 | Z7: 873 | AA7: 828 | AB7: 872 | AC7: 932 | AD7: 832 | AE7: 514 | AF7: 396
A9: Заявки на сайте:
A10: Количество заявок на сайте (всего) | B10: 142 | C10: 57 | D10: 25 | E10: 176 | F10: 160 | G10: 160 | H10: 178 | I10: 178 | J10: 94 | K10: 46 | L10: 177 | M10: 201 | N10: 183 | O10: 201 | P10: 192 | Q10: 70 | R10: 45 | S10: 162 | T10: 181 | U10: 165 | V10: 165 | W10: 195 | X10: 100 | Y10: 40 | Z10: 180 | AA10: 184 | AB10: 202 | AC10: 141 | AD10: 201 | AE10: 120 | AF10: 54
A11: Со статусом "записался" | B11: 104 | C11: 37 | D11: 13 | E11: 119 | F11: 109 | G11: 123 | H11: 133 | I11: 129 | J11: 53 | K11: 33 | L11: 127 | M11: 132 | N11: 115 | O11: 148 | P11: 121 | Q11: 46 | R11: 32 | S11: 119 | T11: 136 | U11: 126 | V11: 123 | W11: 144 | X11: 62 | Y11: 21 | Z11: 124 | AA11: 131 | AB11: 156 | AC11: 101 | AD11: 152 | AE11: 89 | AF11: 33
A12: Заявки на сайте КТ Ковид | B12: 69 | C12: 15 | D12: 7 | E12: 78 | F12: 86 | G12: 73 | H12: 90 | I12: 78 | J12: 33 | K12: 18 | L12: 81 | M12: 81 | N12: 83 | O12: 92 | P12: 80 | Q12: 33 | R12: 23 | S12: 85 | T12: 84 | U12: 78 | V12: 87 | W12: 93 | X12: 38 | Y12: 12 | Z12: 75 | AA12: 66 | AB12: 96 | AC12: 67 | AD12: 104 | AE12: 66 | AF12: 29
A13: Статус "записался" на КТ Ковид | B13: 59 | C13: 12 | D13: 4 | E13: 66 | F13: 68 | G13: 67 | H13: 78 | I13: 64 | J13: 21 | K13: 14 | L13: 73 | M13: 68 | N13: 65 | O13: 75 | P13: 60 | Q13: 27 | R13: 20 | S13: 65 | T13: 69 | U13: 68 | V13: 75 | W13: 75 | X13: 30 | Y13: 8 | Z13: 64 | AA13: 54 | AB13: 82 | AC13: 54 | AD13: 92 | AE13: 52 | AF13: 24
A15: Записались в центр (МРТ+АПО):
A16: МРТ Skyra (Есенина) | B16: 35 | C16: 17 | D16: 6 | E16: 63 | F16: 46 | G16: 47 | H16: 55 | I16: 51 | J16: 23 | K16: 11 | L16: 58 | M16: 56 | N16: 38 | O16: 47 | P16: 38 | Q16: 18 | R16: 11 | S16: 49 | T16: 46 | U16: 35 | V16: 60 | W16: 46 | X16: 24 | Y16: 14 | Z16: 60 | AA16: 49 | AB16: 36 | AC16: 52 | AD16: 46 | AE16: 21 | AF16: 12
A17: МРТ Skyra (Советская) | B17: 33 | C17: 20 | D17: 13 | E17: 35 | F17: 34 | G17: 27 | H17: 40 | I17: 39 | J17: 20 | K17: 14 | L17: 42 | M17: 32 | N17: 33 | O17: 30 | P17: 35 | Q17: 13 | R17: 9 | S17: 35 | T17: 33 | U17: 36 | V17: 30 | W17: 23 | X17: 16 | Y17: 12 | Z17: 63 | AA17: 57 | AB17: 56 | AC17: 53 | AD17: 28 | AE17: 22 | AF17: 16
A18: МРТ Essenza | B18: 26 | C18: 18 | D18: 9 | E18: 36 | F18: 40 | G18: 37 | H18: 51 | I18: 58 | J18: 16 | K18: 9 | L18: 69 | M18: 59 | N18: 52 | O18: 39 | P18: 36 | Q18: 17 | R18: 7 | S18: 47 | T18: 42 | U18: 43 | V18: 64 | W18: 26 | X18: 11 | Y18: 6 | Z18: 34 | AA18: 36 | AB18: 32 | AC18: 45 | AD18: 33 | AE18: 19 | AF18: 11
A19: МРТ Солидарности | B19: 20 | C19: 15 | D19: 5 | E19: 120 | F19: 71 | G19: 17 | H19: 45 | I19: 32 | J19: 2 | K19: 11 | L19: 20 | M19: 56 | N19: 29 | O19: 41 | P19: 31 | Q19: 11 | R19: 9 | S19: 93 | T19: 33 | U19: 48 | V19: 39 | W19: 43 | X19: 8 | Y19: 4 | Z19: 61 | AA19: 83 | AB19: 18 | AC19: 27 | AD19: 16 | AE19: 14 | AF19: 6
A20: МРТ Костюшко | B20: 37 | C20: 19 | D20: 18 | E20: 93 | F20: 111 | G20: 45 | H20: 39 | I20: 68 | J20: 13 | K20: 15 | L20: 48 | M20: 68 | N20: 61 | O20: 37 | P20: 39 | Q20: 19 | R20: 11 | S20: 36 | T20: 44 | U20: 67 | V20: 80 | W20: 36 | X20: 23 | Y20: 12 | Z20: 77 | AA20: 57 | AB20: 26 | AC20: 49 | AD20: 30 | AE20: 26 | AF20: 14
A21: Всего записано за день МРТ : | B21: =SUM(B16:B20) -> 151 | C21: =SUM(C16:C20) -> 89 | D21: 51 | E21: 347 | F21: 302 | G21: 173 | H21: 230 | I21: 248 | J21: 74 | K21: 60 | L21: 237 | M21: 271 | N21: 213 | O21: 194 | P21: 179 | Q21: 78 | R21: 47 | S21: 260 | T21: 198 | U21: 229 | V21: 273 | W21: 174 | X21: 82 | Y21: 48 | Z21: 295 | AA21: 282 | AB21: 168 | AC21: 226 | AD21: 153 | AE21: 102 | AF21: 59
A22: Отменено клиентом + неявка (все центры МРТ) | B22: 30 | C22: 23 | D22: 29 | E22: 17 | F22: 31 | G22: 24 | H22: 31 | I22: 19 | J22: 22 | K22: 30 | L22: 31 | M22: 24 | N22: 31 | O22: 32 | P22: 43 | Q22: 33 | R22: 26 | S22: 40 | T22: 44 | U22: 27 | V22: 34 | W22: 32 | X22: 19 | Y22: 20 | Z22: 37 | AA22: 31 | AB22: 32 | AC22: 27 | AD22: 39 | AE22: 33 | AF22: 27
A23: АПО | B23: 59 | C23: 35 | D23: 16 | E23: 71 | F23: 99 | G23: 70 | H23: 101 | I23: 74 | J23: 59 | K23: 16 | L23: 84 | M23: 56 | N23: 78 | O23: 60 | P23: 72 | Q23: 37 | R23: 30 | S23: 69 | T23: 74 | U23: 81 | V23: 76 | W23: 74 | X23: 33 | Y23: 14 | Z23: 91 | AA23: 112 | AB23: 94 | AC23: 72 | AD23: 66 | AE23: 45 | AF23: 17
A24: Всего записано за день (МРТ + АПО): | B24: =SUM(B21+B23) -> 210 | C24: =SUM(C21+C23) -> 124 | D24: 67 | E24: 418 | F24: 401 | G24: 243 | H24: 331 | I24: 322 | J24: 133 | K24: 76 | L24: 321 | M24: 327 | N24: 291 | O24: 254 | P24: 251 | Q24: 115 | R24: 77 | S24: 329 | T24: 272 | U24: 310 | V24: 349 | W24: 248 | X24: 115 | Y24: 62 | Z24: 386 | AA24: 394 | AB24: 262 | AC24: 298 | AD24: 219 | AE24: 147 | AF24: 76
A25: ПЭТ/КТ | B25: 60 | C25: 0 | D25: 1 | E25: 82 | F25: 38 | G25: 67 | H25: 64 | I25: 63 | J25: 1 | K25: 1 | L25: 65 | M25: 55 | N25: 40 | O25: 92 | P25: 91 | Q25: 8 | R25: 11 | S25: 55 | T25: 47 | U25: 37 | V25: 62 | W25: 47 | X25: 2 | Y25: 1 | Z25: 56 | AA25: 61 | AB25: 45 | AC25: 36 | AD25: 95 | AE25: 5 | AF25: 1
A26: Очередь ПЭТ/КТ | B26: 708 | C26: 708 | D26: 709 | E26: 744 | F26: 740 | G26: 748 | H26: 752 | I26: 767 | J26: 765 | K26: 766 | L26: 769 | M26: 772 | N26: 758 | O26: 815 | P26: 844 | Q26: 849 | R26: 860 | S26: 863 | T26: 866 | U26: 837 | V26: 847 | W26: 838 | X26: 786 | Y26: 787 | Z26: 786 | AA26: 785 | AB26: 769 | AC26: 741 | AD26: 781 | AE26: 731 | AF26: 732
A27: Очередь КТ-Приморский | B27: 239 | C27: 215 | D27: 187 | E27: 198 | F27: 234 | G27: 261 | H27: 277 | I27: 287 | J27: 261 | K27: 242 | L27: 252 | M27: 256 | N27: 294 | O27: 298 | P27: 305 | Q27: 281 | R27: 257 | S27: 273 | T27: 278 | U27: 306 | V27: 307 | W27: 306 | X27: 281 | Y27: 259 | Z27: 280 | AA27: 294 | AB27: 299 | AC27: 343 | AD27: 330 | AE27: 320 | AF27: 301
A29: Кол-во операторов | B29: 7 | C29: 5 | D29: 4 | E29: 7 | F29: 7 | G29: 7 | H29: 7 | I29: 7 | J29: 4 | K29: 4 | L29: 8 | M29: 7 | N29: 7 | O29: 7 | P29: 8 | Q29: 5 | R29: 4 | S29: 8 | T29: 7 | U29: 8 | V29: 7 | W29: 8 | X29: 5 | Y29: 4 | Z29: 7 | AA29: 8 | AB29: 7 | AC29: 7 | AD29: 7 | AE29: 5 | AF29: 5
A30: сумма часов работы операторов | B30: 72 | C30: 60 | D30: 48 | E30: 72 | F30: 72 | G30: 72 | H30: 72 | I30: 72 | J30: 48 | K30: 48 | L30: 91 | M30: 72 | N30: 76 | O30: 76 | P30: 80 | Q30: 60 | R30: 48 | S30: 84 | T30: 72 | U30: 76 | V30: 72 | W30: 84 | X30: 60 | Y30: 48 | Z30: 76 | AA30: 81 | AB30: 76 | AC30: 76 | AD30: 71 | AE30: 60 | AF30: 60
A32: Время ожидания на линии (мин)
A33: 244-00-24 (среднее) | B33: =267/60 -> 4.45 | C33: =38/60 -> 0.6333333333 | D33: =35/60 -> 0.5833333333 | E33: =503/60 -> 8.383333333 | F33: =183/60 -> 3.05 | G33: =116/60 -> 1.933333333 | H33: =128/60 -> 2.133333333 | I33: =229/60 -> 3.816666667 | J33: =217/60 -> 3.616666667 | K33: =39/60 -> 0.65 | L33: =125/60 -> 2.083333333 | M33: =456/60 -> 7.6 | N33: =398/60 -> 6.633333333 | O33: =306/60 -> 5.1 | P33: =182/60 -> 3.033333333 | Q33: =115/60 -> 1.916666667 | R33: =34/60 -> 0.5666666667 | S33: =73/60 -> 1.216666667 | T33: =126/60 -> 2.1 | U33: =211/60 -> 3.516666667 | V33: =116/60 -> 1.933333333 | W33: =97/60 -> 1.616666667 | X33: =55/60 -> 0.9166666667 | Y33: =35/60 -> 0.5833333333 | Z33: =372/60 -> 6.2 | AA33: =271/60 -> 4.516666667 | AB33: =138/60 -> 2.3 | AC33: =147/60 -> 2.45 | AD33: =237/60 -> 3.95 | AE33: =115/60 -> 1.916666667 | AF33: =25/60 -> 0.4166666667
A34: 244-31-27 (КТ Ковид, время среднее) | B34: =1380/60 -> 23 | C34: =610/60 -> 10.16666667 | D34: =49/60 -> 0.8166666667 | E34: =1294/60 -> 21.56666667 | F34: =2080/60 -> 34.66666667 | G34: =2048/60 -> 34.13333333 | H34: =2200/60 -> 36.66666667 | I34: =1835/60 -> 30.58333333 | J34: =1686/60 -> 28.1 | K34: =42/60 -> 0.7 | L34: =1692/60 -> 28.2 | M34: =1971/60 -> 32.85 | N34: =2000/60 -> 33.33333333 | O34: =2415/60 -> 40.25 | P34: =1841/60 -> 30.68333333 | Q34: =1558/60 -> 25.96666667 | R34: =208/60 -> 3.466666667 | S34: =1070/60 -> 17.83333333 | T34: =2252/60 -> 37.53333333 | U34: =1840/60 -> 30.66666667 | V34: =1789/60 -> 29.81666667 | W34: =1976/60 -> 32.93333333 | X34: =2085/60 -> 34.75 | Y34: =91/60 -> 1.516666667 | Z34: =1069/60 -> 17.81666667 | AA34: =2287/60 -> 38.11666667 | AB34: =2534/60 -> 42.23333333 | AC34: =1830/60 -> 30.5 | AD34: =2000/60 -> 33.33333333 | AE34: =2368/60 -> 39.46666667 | AF34: =139/60 -> 2.316666667
A36: Нажали кнопку "1" - перевод в Клинику | B36: 19 | C36: 0 | D36: 0 | E36: 22 | F36: 24 | G36: 20 | H36: 12 | I36: 24 | J36: 0 | K36: 0 | L36: 19 | M36: 20 | N36: 34 | O36: 16 | P36: 20 | Q36: 0 | R36: 0 | S36: 13 | T36: 36 | U36: 17 | V36: 36 | W36: 28 | X36: 0 | Y36: 0 | Z36: 40 | AA36: 42 | AB36: 19 | AC36: 32 | AD36: 23 | AE36: 0 | AF36: 0
A38: Отчет по КТ-Ковид
A39: Записали КТ Ковид за день:
A40: Записаны сегодня на КТ (Советская) | B40: 216 | C40: 108 | D40: 56 | E40: 166 | F40: 169 | G40: 160 | H40: 181 | I40: 193 | J40: 93 | K40: 55 | L40: 168 | M40: 195 | N40: 188 | O40: 211 | P40: 223 | Q40: 108 | R40: 64 | S40: 189 | T40: 171 | U40: 189 | V40: 221 | W40: 225 | X40: 127 | Y40: 89 | Z40: 193 | AA40: 200 | AB40: 197 | AC40: 226 | AD40: 219 | AE40: 118 | AF40: 72
A41: из них ОМС | B41: 199 | C41: 101 | D41: 47 | E41: 147 | F41: 162 | G41: 152 | H41: 173 | I41: 179 | J41: 90 | K41: 50 | L41: 164 | M41: 188 | N41: 184 | O41: 206 | P41: 218 | Q41: 102 | R41: 57 | S41: 187 | T41: 167 | U41: 178 | V41: 213 | W41: 215 | X41: 111 | Y41: 84 | Z41: 181 | AA41: 191 | AB41: 187 | AC41: 216 | AD41: 212 | AE41: 107 | AF41: 64
A42: Записаны сегодня на КТ (Есенина) | B42: 346 | C42: 162 | D42: 49 | E42: 289 | F42: 310 | G42: 333 | H42: 290 | I42: 345 | J42: 193 | K42: 80 | L42: 301 | M42: 302 | N42: 301 | O42: 252 | P42: 333 | Q42: 177 | R42: 97 | S42: 318 | T42: 272 | U42: 297 | V42: 278 | W42: 257 | X42: 155 | Y42: 78 | Z42: 249 | AA42: 256 | AB42: 265 | AC42: 309 | AD42: 276 | AE42: 163 | AF42: 107
A43: из них ОМС | B43: 341 | C43: 157 | D43: 45 | E43: 281 | F43: 304 | G43: 324 | H43: 283 | I43: 336 | J43: 184 | K43: 73 | L43: 292 | M43: 292 | N43: 297 | O43: 245 | P43: 323 | Q43: 170 | R43: 87 | S43: 308 | T43: 259 | U43: 291 | V43: 271 | W43: 249 | X43: 151 | Y43: 74 | Z43: 241 | AA43: 250 | AB43: 260 | AC43: 301 | AD43: 273 | AE43: 154 | AF43: 95
A44: Записано платных (всего) | B44: =(B40+B42)-(B41+B43) -> 22 | C44: =(C40+C42)-(C41+C43) -> 12 | D44: 13 | E44: 27 | F44: 13 | G44: 17 | H44: 15 | I44: 23 | J44: 12 | K44: 12 | L44: 13 | M44: 17 | N44: 8 | O44: 12 | P44: 15 | Q44: 13 | R44: 17 | S44: 12 | T44: 17 | U44: 17 | V44: 15 | W44: 18 | X44: 20 | Y44: 9 | Z44: 20 | AA44: 15 | AB44: 15 | AC44: 18 | AD44: 10 | AE44: 20 | AF44: 20
A45: Всего записано за день: | B45: =SUM(B40+B42) -> 562 | C45: =SUM(C40+C42) -> 270 | D45: 105 | E45: 455 | F45: 479 | G45: 493 | H45: 471 | I45: 538 | J45: 286 | K45: 135 | L45: 469 | M45: 497 | N45: 489 | O45: 463 | P45: 556 | Q45: 285 | R45: 161 | S45: 507 | T45: 443 | U45: 486 | V45: 499 | W45: 482 | X45: 282 | Y45: 167 | Z45: 442 | AA45: 456 | AB45: 462 | AC45: 535 | AD45: 495 | AE45: 281 | AF45: 179
A47: Очередь по записи КТ-Ковид:
A48: Советская | B48: 836 | C48: 772 | D48: 655 | E48: 659 | F48: 647 | G48: 628 | H48: 641 | I48: 781 | J48: 835 | K48: 851 | L48: 846 | M48: 878 | N48: 886 | O48: 919 | P48: 955 | Q48: 884 | R48: 776 | S48: 769 | T48: 732 | U48: 717 | V48: 730 | W48: 733 | X48: 660 | Y48: 553 | Z48: 556 | AA48: 559 | AB48: 549 | AC48: 573 | AD48: 596 | AE48: 522 | AF48: 412
A49: Есенина | B49: 1238 | C49: 1147 | D49: 1032 | E49: 1059 | F49: 1192 | G49: 1265 | H49: 1382 | I49: 1367 | J49: 1199 | K49: 1034 | L49: 1084 | M49: 1212 | N49: 1257 | O49: 1329 | P49: 1396 | Q49: 1391 | R49: 1308 | S49: 1426 | T49: 1389 | U49: 1477 | V49: 1444 | W49: 1386 | X49: 1219 | Y49: 1002 | Z49: 1051 | AA49: 1026 | AB49: 1002 | AC49: 1103 | AD49: 1174 | AE49: 1128 | AF49: 1034
A50: Всего в очереди: | B50: =SUM(B48:B49) -> 2074 | C50: =SUM(C48:C49) -> 1919 | D50: 1687 | E50: 1718 | F50: 1839 | G50: 1893 | H50: 2023 | I50: 2148 | J50: 2034 | K50: 1885 | L50: 1930 | M50: 2090 | N50: 2143 | O50: 2248 | P50: 2351 | Q50: 2275 | R50: 2084 | S50: 2195 | T50: 2121 | U50: 2194 | V50: 2174 | W50: 2119 | X50: 1879 | Y50: 1555 | Z50: 1607 | AA50: 1585 | AB50: 1551 | AC50: 1676 | AD50: 1770 | AE50: 1650 | AF50: 1446
A52: Выполнено КТ-Ковид за день:
A53: Советская | B53: 129 | C53: 145 | D53: 136 | E53: 131 | F53: 136 | G53: 139 | H53: 133 | I53: 23 | J53: 25 | K53: 21 | L53: 122 | M53: 114 | N53: 133 | O53: 138 | P53: 127 | Q53: 138 | R53: 142 | S53: 150 | T53: 166 | U53: 161 | V53: 157 | W53: 152 | X53: 159 | Y53: 150 | Z53: 148 | AA53: 149 | AB53: 158 | AC53: 158 | AD53: 156 | AE53: 159 | AF53: 164
A54: Есенина | B54: 135 | C54: 209 | D54: 136 | E54: 200 | F54: 139 | G54: 203 | H54: 139 | I54: 267 | J54: 275 | K54: 193 | L54: 202 | M54: 135 | N54: 209 | O54: 140 | P54: 210 | Q54: 137 | R54: 137 | S54: 157 | T54: 246 | U54: 157 | V54: 243 | W54: 239 | X54: 235 | Y54: 231 | Z54: 162 | AA54: 238 | AB54: 235 | AC54: 157 | AD54: 160 | AE54: 163 | AF54: 162
A55: Всего выполнено за день: | B55: =SUM(B53:B54) -> 264 | C55: =SUM(C53:C54) -> 354 | D55: 272 | E55: 331 | F55: 275 | G55: 342 | H55: 272 | I55: 290 | J55: 300 | K55: 214 | L55: 324 | M55: 249 | N55: 342 | O55: 278 | P55: 337 | Q55: 275 | R55: 279 | S55: 307 | T55: 412 | U55: 318 | V55: 400 | W55: 391 | X55: 394 | Y55: 381 | Z55: 310 | AA55: 387 | AB55: 393 | AC55: 315 | AD55: 316 | AE55: 322 | AF55: 326

Sheet Ноябрь2021
A1: Отчет по call-центру
B2: 2021-11-01 | C2: 2021-11-02 | D2: 2021-11-03 | E2: 2021-11-04 | F2: 2021-11-05 | G2: 2021-11-06 | H2: 2021-11-07 | I2: 2021-11-08 | J2: 2021-11-09 | K2: 2021-11-10 | L2: 2021-11-11 | M2: 2021-11-12 | N2: 2021-11-13 | O2: 2021-11-14 | P2: 2021-11-15 | Q2: 2021-11-16 | R2: 2021-11-17 | S2: 2021-11-18 | T2: 2021-11-19 | U2: 2021-11-20 | V2: 2021-11-21 | W2: 2021-11-22 | X2: 2021-11-23 | Y2: 2021-11-24 | Z2: 2021-11-25 | AA2: 2021-11-26 | AB2: 2021-11-27 | AC2: 2021-11-28 | AD2: 2021-11-29 | AE2: 2021-11-30
A3: Кол-во обраб. звонков (Линия call-центр) | B3: 559 | C3: 552 | D3: 560 | E3: 291 | F3: 323 | G3: 226 | H3: 203 | I3: 543 | J3: 559 | K3: 543 | L3: 495 | M3: 570 | N3: 294 | O3: 243 | P3: 535 | Q3: 519 | R3: 566 | S3: 465 | T3: 569 | U3: 279 | V3: 234 | W3: 575 | X3: 645 | Y3: 605 | Z3: 478 | AA3: 498 | AB3: 281 | AC3: 198 | AD3: 620 | AE3: 524
A4: Кол-во пропущенных | B4: 67 | C4: 153 | D4: 253 | E4: 19 | F4: 19 | G4: 22 | H4: 27 | I4: 331 | J4: 81 | K4: 67 | L4: 160 | M4: 167 | N4: 45 | O4: 37 | P4: 231 | Q4: 246 | R4: 126 | S4: 58 | T4: 109 | U4: 75 | V4: 20 | W4: 175 | X4: 71 | Y4: 85 | Z4: 401 | AA4: 257 | AB4: 140 | AC4: 36 | AD4: 71 | AE4: 156
A5: Кол-во обраб. звонков (Линия КТ-Ковид) | B5: 437 | C5: 368 | D5: 346 | E5: 351 | F5: 334 | G5: 238 | H5: 162 | I5: 328 | J5: 364 | K5: 335 | L5: 287 | M5: 298 | N5: 193 | O5: 156 | P5: 313 | Q5: 276 | R5: 342 | S5: 347 | T5: 319 | U5: 181 | V5: 126 | W5: 406 | X5: 335 | Y5: 324 | Z5: 338 | AA5: 335 | AB5: 172 | AC5: 127 | AD5: 414 | AE5: 339
A6: Кол-во пропущенных | B6: 314 | C6: 515 | D6: 476 | E6: 320 | F6: 187 | G6: 158 | H6: 170 | I6: 550 | J6: 454 | K6: 557 | L6: 672 | M6: 532 | N6: 269 | O6: 22 | P6: 322 | Q6: 431 | R6: 277 | S6: 273 | T6: 373 | U6: 104 | V6: 2 | W6: 218 | X6: 365 | Y6: 466 | Z6: 340 | AA6: 415 | AB6: 282 | AC6: 37 | AD6: 46 | AE6: 237
A7: Всего звонков (обе линии) | B7: =SUM(B3+B5) -> 996 | C7: =SUM(C3+C5) -> 920 | D7: =SUM(D3+D5) -> 906 | E7: 642 | F7: 657 | G7: 464 | H7: 365 | I7: 871 | J7: 923 | K7: 878 | L7: 782 | M7: 868 | N7: 487 | O7: 399 | P7: 848 | Q7: 795 | R7: 908 | S7: 812 | T7: 888 | U7: 460 | V7: 360 | W7: =SUM(W3+W5) -> 981 | X7: =SUM(X3+X5) -> 980 | Y7: =SUM(Y3+Y5) -> 929 | Z7: 816 | AA7: 833 | AB7: 453 | AC7: 325 | AD7: 1034 | AE7: 863
A9: Заявки на сайте:
A10: Количество заявок на сайте (всего) | B10: 152 | C10: 148 | D10: 201 | E10: 87 | F10: 82 | G10: 60 | H10: 43 | I10: 202 | J10: 160 | K10: 155 | L10: 187 | M10: 170 | N10: 79 | O10: 35 | P10: 155 | Q10: 116 | R10: 109 | S10: 90 | T10: 92 | U10: 55 | V10: 37 | W10: 136 | X10: 120 | Y10: 115 | Z10: 144 | AA10: 140 | AB10: 56 | AC10: 40 | AD10: 101 | AE10: 82
A11: Со статусом "записался" | B11: 115 | C11: 103 | D11: 151 | E11: 61 | F11: 58 | G11: 36 | H11: 29 | I11: 158 | J11: 116 | K11: 122 | L11: 140 | M11: 95 | N11: 64 | O11: 22 | P11: 91 | Q11: 81 | R11: 79 | S11: 57 | T11: 65 | U11: 38 | V11: 23 | W11: 86 | X11: 82 | Y11: 84 | Z11: 81 | AA11: 83 | AB11: 42 | AC11: 25 | AD11: 63 | AE11: 62
A12: Заявки на сайте КТ Ковид | B12: 84 | C12: 72 | D12: 91 | E12: 50 | F12: 39 | G12: 27 | H12: 21 | I12: 92 | J12: 61 | K12: 70 | L12: 89 | M12: 75 | N12: 38 | O12: 9 | P12: 60 | Q12: 48 | R12: 44 | S12: 42 | T12: 44 | U12: 17 | V12: 12 | W12: 62 | X12: 58 | Y12: 50 | Z12: 44 | AA12: 76 | AB12: 20 | AC12: 18 | AD12: 50 | AE12: 37
A13: Статус "записался" на КТ Ковид | B13: 73 | C13: 61 | D13: 76 | E13: 43 | F13: 33 | G13: 20 | H13: 16 | I13: 81 | J13: 48 | K13: 64 | L13: 75 | M13: 51 | N13: 36 | O13: 7 | P13: 44 | Q13: 40 | R13: 36 | S13: 34 | T13: 37 | U13: 14 | V13: 10 | W13: 49 | X13: 50 | Y13: 43 | Z13: 39 | AA13: 52 | AB13: 18 | AC13: 13 | AD13: 38 | AE13: 32
A15: Записались в центр (МРТ+АПО):
A16: МРТ Skyra (Есенина) | B16: 60 | C16: 38 | D16: 49 | E16: 13 | F16: 16 | G16: 21 | H16: 13 | I16: 39 | J16: 34 | K16: 46 | L16: 43 | M16: 25 | N16: 20 | O16: 16 | P16: 63 | Q16: 60 | R16: 44 | S16: 35 | T16: 44 | U16: 15 | V16: 13 | W16: 40 | X16: 46 | Y16: 40 | Z16: 49 | AA16: 32 | AB16: 24 | AC16: 11 | AD16: 42 | AE16: 26
A17: МРТ Skyra (Советская) | B17: 55 | C17: 41 | D17: 47 | E17: 13 | F17: 20 | G17: 14 | H17: 9 | I17: 34 | J17: 35 | K17: 27 | L17: 35 | M17: 28 | N17: 17 | O17: 11 | P17: 38 | Q17: 42 | R17: 44 | S17: 36 | T17: 28 | U17: 18 | V17: 23 | W17: 35 | X17: 35 | Y17: 48 | Z17: 70 | AA17: 54 | AB17: 31 | AC17: 16 | AD17: 22 | AE17: 37
A18: МРТ Essenza | B18: 39 | C18: 52 | D18: 29 | E18: 18 | F18: 16 | G18: 5 | H18: 9 | I18: 33 | J18: 45 | K18: 68 | L18: 47 | M18: 39 | N18: 16 | O18: 14 | P18: 44 | Q18: 45 | R18: 45 | S18: 43 | T18: 42 | U18: 17 | V18: 21 | W18: 101 | X18: 50 | Y18: 36 | Z18: 36 | AA18: 37 | AB18: 11 | AC18: 6 | AD18: 38 | AE18: 53
A19: МРТ Солидарности | B19: 99 | C19: 43 | D19: 64 | E19: 3 | F19: 8 | G19: 9 | H19: 10 | I19: 60 | J19: 36 | K19: 42 | L19: 89 | M19: 18 | N19: 13 | O19: 3 | P19: 31 | Q19: 82 | R19: 49 | S19: 31 | T19: 42 | U19: 7 | V19: 30 | W19: 144 | X19: 26 | Y19: 30 | Z19: 68 | AA19: 31 | AB19: 11 | AC19: 10 | AD19: 89 | AE19: 48
A20: МРТ Костюшко | B20: 75 | C20: 63 | D20: 36 | E20: 21 | F20: 29 | G20: 20 | H20: 15 | I20: 60 | J20: 41 | K20: 50 | L20: 59 | M20: 41 | N20: 16 | O20: 13 | P20: 62 | Q20: 64 | R20: 52 | S20: 55 | T20: 37 | U20: 16 | V20: 15 | W20: 90 | X20: 54 | Y20: 58 | Z20: 29 | AA20: 23 | AB20: 22 | AC20: 16 | AD20: 57 | AE20: 61
A21: Всего записано за день МРТ : | B21: =SUM(B16:B20) -> 328 | C21: =SUM(C16:C20) -> 237 | D21: =SUM(D16:D20) -> 225 | E21: 68 | F21: 89 | G21: 69 | H21: 56 | I21: 226 | J21: 191 | K21: 233 | L21: 273 | M21: 151 | N21: 82 | O21: 57 | P21: 238 | Q21: 293 | R21: 234 | S21: 200 | T21: 193 | U21: 73 | V21: 102 | W21: 410 | X21: 211 | Y21: 212 | Z21: 252 | AA21: 177 | AB21: 99 | AC21: 59 | AD21: 248 | AE21: 225
A22: Отменено клиентом + неявка (все центры МРТ) | B22: 23 | C22: 37 | D22: 33 | E22: 26 | F22: 28 | G22: 37 | H22: 31 | I22: 40 | J22: 28 | K22: 28 | L22: 27 | M22: 41 | N22: 33 | O22: 22 | P22: 37 | Q22: 39 | R22: 31 | S22: 46 | T22: 29 | U22: 25 | V22: 29 | W22: 32 | X22: 40 | Y22: 33 | Z22: 29 | AA22: 32 | AB22: 25 | AC22: 21 | AD22: 37 | AE22: 39
A23: АПО | B23: 81 | C23: 78 | D23: 86 | E23: 42 | F23: 41 | G23: 13 | H23: 32 | I23: 98 | J23: 103 | K23: 79 | L23: 85 | M23: 71 | N23: 42 | O23: 9 | P23: 107 | Q23: 76 | R23: 68 | S23: 82 | T23: 83 | U23: 56 | V23: 12 | W23: 80 | X23: 87 | Y23: 81 | Z23: 67 | AA23: 120 | AB23: 51 | AC23: 13 | AD23: 104 | AE23: 88
A24: Всего записано за день (МРТ + АПО): | B24: =SUM(B21+B23) -> 409 | C24: =SUM(C21+C23) -> 315 | D24: =SUM(D21+D23) -> 311 | E24: 110 | F24: 130 | G24: 82 | H24: 88 | I24: 324 | J24: 294 | K24: 312 | L24: 358 | M24: 222 | N24: 124 | O24: 66 | P24: 345 | Q24: 369 | R24: 302 | S24: 282 | T24: 276 | U24: 129 | V24: 114 | W24: 490 | X24: 298 | Y24: 293 | Z24: 319 | AA24: 297 | AB24: 150 | AC24: 72 | AD24: 352 | AE24: 313
A25: ПЭТ/КТ | B25: 66 | C25: 40 | D25: 53 | E25: 2 | F25: 6 | G25: 2 | H25: 1 | I25: 51 | J25: 42 | K25: 32 | L25: 49 | M25: 94 | N25: 4 | O25: 3 | P25: 60 | Q25: 65 | R25: 36 | S25: 38 | T25: 51 | U25: 1 | V25: 2 | W25: 61 | X25: 47 | Y25: 64 | Z25: 40 | AA25: 72 | AB25: 1 | AC25: 0 | AD25: 53 | AE25: 45
A26: Очередь ПЭТ/КТ | B26: 733 | C26: 725 | D26: 714 | E26: 661 | F26: 604 | G26: 554 | H26: 555 | I26: 543 | J26: 531 | K26: 503 | L26: 495 | M26: 531 | N26: 486 | O26: 489 | P26: 488 | Q26: 504 | R26: 486 | S26: 468 | T26: 462 | U26: 463 | V26: 465 | W26: 470 | X26: 471 | Y26: 479 | Z26: 466 | AA26: 479 | AB26: 479 | AC26: 479 | AD26: 475 | AE26: 460
A27: Очередь КТ-Приморский | B27: 312 | C27: 232 | D27: 345 | E27: 325 | F27: 307 | G27: 287 | H27: 271 | I27: 270 | J27: 288 | K27: 319 | L27: 317 | M27: 302 | N27: 286 | O27: 268 | P27: 263 | Q27: 263 | R27: 285 | S27: 285 | T27: 275 | U27: 257 | V27: 229 | W27: 239 | X27: 250 | Y27: 247 | Z27: 236 | AA27: 220 | AB27: 194 | AC27: 162 | AD27: 163 | AE27: 158
A29: Кол-во операторов | B29: 8 | C29: 6 | D29: 7 | E29: 7 | F29: 6 | G29: 5 | H29: 4 | I29: 7 | J29: 8 | K29: 8 | L29: 7 | M29: 7 | N29: 5 | O29: 5 | P29: 7 | Q29: 7 | R29: 8 | S29: 8 | T29: 8 | U29: 5 | V29: 4 | W29: 7 | X29: 8 | Y29: 8 | Z29: 7 | AA29: 7 | AB29: 4 | AC29: 4 | AD29: 9 | AE29: 7
A30: сумма часов работы операторов | B30: 88 | C30: 68 | D30: 76 | E30: 76 | F30: 68 | G30: 60 | H30: 48 | I30: 72 | J30: 84 | K30: 84 | L30: 72 | M30: 72 | N30: 60 | O30: 60 | P30: 72 | Q30: 72 | R30: 84 | S30: 84 | T30: 81 | U30: 60 | V30: 48 | W30: 76 | X30: 84 | Y30: 84 | Z30: 73 | AA30: 70 | AB30: 48 | AC30: 48 | AD30: 89 | AE30: 72
A32: Время ожидания на линии (мин)
A33: 244-00-24 (среднее) | B33: =88/60 -> 1.466666667 | C33: =219/60 -> 3.65 | D33: =331/60 -> 5.516666667 | E33: =31/60 -> 0.5166666667 | F33: 0.45 | G33: 0.77 | H33: 0.62 | I33: 5.65 | J33: 1.95 | K33: 1.3 | L33: 5.13 | M33: 2.65 | N33: 1.72 | O33: 1.62 | P33: 5.75 | Q33: 5.01 | R33: 4.13 | S33: 1.25 | T33: =116/60 -> 1.933333333 | U33: =51/60 -> 0.85 | V33: =48/60 -> 0.8 | W33: =288/60 -> 4.8 | X33: =77/60 -> 1.283333333 | Y33: =96/60 -> 1.6 | Z33: =423/60 -> 7.05 | AA33: =369/60 -> 6.15 | AB33: =150/60 -> 2.5 | AC33: =54/60 -> 0.9 | AD33: =101/60 -> 1.683333333 | AE33: =100/60 -> 1.666666667
A34: 244-31-27 (КТ Ковид, время среднее) | B34: =1126/60 -> 18.76666667 | C34: =1901/60 -> 31.68333333 | D34: =2009/60 -> 33.48333333 | E34: =1359/60 -> 22.65 | F34: =584/60 -> 9.733333333 | G34: =1405/60 -> 23.41666667 | H34: 12.97 | I34: 29.33 | J34: 31.88 | K34: 28.06 | L34: 33.05 | M34: 36.55 | N34: 30.92 | O34: 4.65 | P34: 16.98 | Q34: 27.05 | R34: 21.27 | S34: 21.43 | T34: =1628/60 -> 27.13333333 | U34: 10.18333333 | V34: =112/60 -> 1.866666667 | W34: =851/60 -> 14.18333333 | X34: =881/60 -> 14.68333333 | Y34: 17.9 | Z34: =1384/60 -> 23.06666667 | AA34: =1489/60 -> 24.81666667 | AB34: =1302/60 -> 21.7 | AC34: =80/60 -> 1.333333333 | AD34: =316/60 -> 5.266666667 | AE34: =847/60 -> 14.11666667
A36: Нажали кнопку "1" - перевод в Клинику | B36: 13 | C36: 13 | D36: 19 | E36: 6 | F36: 4 | G36: 0 | H36: 0 | I36: 37 | J36: 7 | K36: 9 | L36: 6 | M36: 25 | N36: 0 | O36: 0 | P36: 22 | Q36: 18 | R36: 14 | S36: 10 | T36: 19 | U36: 0 | V36: 0 | W36: 20 | X36: 31 | Y36: 16 | Z36: 20 | AA36: 25 | AB36: 0 | AC36: 0 | AD36: 21 | AE36: 47
A38: Отчет по КТ-Ковид
A39: Записали КТ Ковид за день:
A40: Записаны сегодня на КТ (Советская) | B40: 222 | C40: 193 | D40: 206 | E40: 160 | F40: 150 | G40: 114 | H40: 93 | I40: 200 | J40: 190 | K40: 188 | L40: 162 | M40: 179 | N40: 104 | O40: 49 | P40: 142 | Q40: 139 | R40: 164 | S40: 164 | T40: 170 | U40: 82 | V40: 50 | W40: 233 | X40: 180 | Y40: 168 | Z40: 187 | AA40: 169 | AB40: 86 | AC40: 61 | AD40: 205 | AE40: 186
A41: из них ОМС | B41: 212 | C41: 188 | D41: 198 | E41: 151 | F41: 133 | G41: 103 | H41: 88 | I41: 188 | J41: 186 | K41: 185 | L41: 154 | M41: 174 | N41: 97 | O41: 47 | P41: 130 | Q41: 135 | R41: 157 | S41: 160 | T41: 166 | U41: 75 | V41: 45 | W41: 223 | X41: 178 | Y41: 164 | Z41: 182 | AA41: 164 | AB41: 84 | AC41: 56 | AD41: 201 | AE41: 180
A42: Записаны сегодня на КТ (Есенина) | B42: 352 | C42: 227 | D42: 320 | E42: 267 | F42: 199 | G42: 132 | H42: 76 | I42: 314 | J42: 331 | K42: 284 | L42: 286 | M42: 235 | N42: 166 | O42: 95 | P42: 263 | Q42: 210 | R42: 243 | S42: 222 | T42: 218 | U42: 112 | V42: 56 | W42: 262 | X42: 233 | Y42: 213 | Z42: 208 | AA42: 220 | AB42: 120 | AC42: 61 | AD42: 232 | AE42: 193
A43: из них ОМС | B43: 339 | C43: 223 | D43: 308 | E43: 257 | F43: 189 | G43: 126 | H43: 72 | I43: 304 | J43: 324 | K43: 281 | L43: 282 | M43: 229 | N43: 158 | O43: 89 | P43: 260 | Q43: 208 | R43: 240 | S43: 218 | T43: 214 | U43: 106 | V43: 52 | W43: 252 | X43: 230 | Y43: 207 | Z43: 203 | AA43: 216 | AB43: 117 | AC43: 57 | AD43: 228 | AE43: 188
A44: Записано платных (всего) | B44: =(B40+B42)-(B41+B43) -> 23 | C44: =(C40+C42)-(C41+C43) -> 9 | D44: =(D40+D42)-(D41+D43) -> 20 | E44: 19 | F44: 27 | G44: 17 | H44: 9 | I44: 22 | J44: 11 | K44: 6 | L44: 12 | M44: 11 | N44: 15 | O44: 8 | P44: 15 | Q44: 6 | R44: 10 | S44: 8 | T44: 8 | U44: 13 | V44: 9 | W44: 20 | X44: 5 | Y44: 10 | Z44: 10 | AA44: 9 | AB44: 5 | AC44: 9 | AD44: 8 | AE44: 11
A45: Всего записано за день: | B45: =SUM(B40+B42) -> 574 | C45: =SUM(C40+C42) -> 420 | D45: =SUM(D40+D42) -> 526 | E45: 427 | F45: 349 | G45: 246 | H45: 169 | I45: 514 | J45: 521 | K45: 472 | L45: 448 | M45: 414 | N45: 270 | O45: 144 | P45: 405 | Q45: 349 | R45: 407 | S45: 386 | T45: 388 | U45: 194 | V45: 106 | W45: 495 | X45: 413 | Y45: 381 | Z45: 395 | AA45: 389 | AB45: 206 | AC45: 122 | AD45: 437 | AE45: 379
A47: Очередь по записи КТ-Ковид:
A48: Советская | B48: 441 | C48: 444 | D48: 459 | E48: 434 | F48: 397 | G48: 313 | H48: 227 | I48: 246 | J48: 344 | K48: 452 | L48: 527 | M48: 543 | N48: 478 | O48: 371 | P48: 351 | Q48: 407 | R48: 485 | S48: 563 | T48: 570 | U48: 483 | V48: 375 | W48: 441 | X48: 443 | Y48: 527 | Z48: 552 | AA48: 551 | AB48: 464 | AC48: 357 | AD48: 395 | AE48: 414
A49: Есенина | B49: 1072 | C49: 1004 | D49: 1031 | E49: 1010 | F49: 906 | G49: 756 | H49: 559 | I49: 586 | J49: 636 | K49: 764 | L49: 897 | M49: 974 | N49: 984 | O49: 821 | P49: 833 | Q49: 878 | R49: 958 | S49: 930 | T49: 986 | U49: 852 | V49: 731 | W49: 742 | X49: 806 | Y49: 848 | Z49: 797 | AA49: 852 | AB49: 809 | AC49: 610 | AD49: 671 | AE49: 685
A50: Всего в очереди: | B50: =SUM(B48:B49) -> 1513 | C50: =SUM(C48:C49) -> 1448 | D50: =SUM(D48:D49) -> 1490 | E50: 1444 | F50: 1303 | G50: 1069 | H50: 786 | I50: 832 | J50: 980 | K50: 1216 | L50: 1424 | M50: 1517 | N50: 1462 | O50: 1192 | P50: 1184 | Q50: 1285 | R50: 1443 | S50: 1493 | T50: 1556 | U50: 1335 | V50: 1106 | W50: 1183 | X50: 1249 | Y50: 1375 | Z50: 1349 | AA50: 1403 | AB50: 1273 | AC50: 967 | AD50: 1066 | AE50: 1099
A52: Выполнено КТ-Ковид за день:
A53: Советская | B53: 160 | C53: 155 | D53: 158 | E53: 162 | F53: 155 | G53: 157 | H53: 150 | I53: 151 | J53: 81 | K53: 63 | L53: 71 | M53: 136 | N53: 140 | O53: 133 | P53: 133 | Q53: 64 | R53: 72 | S53: 66 | T53: 128 | U53: 139 | V53: 132 | W53: 130 | X53: 137 | Y53: 73 | Z53: 136 | AA53: 130 | AB53: 140 | AC53: 139 | AD53: 137 | AE53: 129
A54: Есенина | B54: 244 | C54: 244 | D54: 242 | E54: 241 | F54: 242 | G54: 241 | H54: 247 | I54: 234 | J54: 243 | K54: 132 | L54: 140 | M54: 142 | N54: 137 | O54: 209 | P54: 206 | Q54: 140 | R54: 141 | S54: 202 | T54: 140 | U54: 204 | V54: 136 | W54: 212 | X54: 138 | Y54: 130 | Z54: 205 | AA54: 142 | AB54: 142 | AC54: 209 | AD54: 138 | AE54: 134
A55: Всего выполнено за день: | B55: =SUM(B53:B54) -> 404 | C55: =SUM(C53:C54) -> 399 | D55: =SUM(D53:D54) -> 400 | E55: 403 | F55: 397 | G55: 398 | H55: 397 | I55: 385 | J55: 324 | K55: 195 | L55: 211 | M55: 278 | N55: 277 | O55: 342 | P55: 339 | Q55: 204 | R55: 213 | S55: 268 | T55: 268 | U55: 343 | V55: 268 | W55: 342 | X55: 275 | Y55: 203 | Z55: 341 | AA55: 272 | AB55: 282 | AC55: 348 | AD55: 275 | AE55: 263

Sheet Декабрь 2021
A1: Отчет по call-центру
B2: 2021-12-01 | C2: 2021-12-02 | D2: 2021-12-03 | E2: 2021-12-04 | F2: 2021-12-05 | G2: 2021-12-06 | H2: 2021-12-07 | I2: 2021-12-08 | J2: 2021-12-09 | K2: 2021-12-10 | L2: 2021-12-11 | M2: 2021-12-12 | N2: 2021-12-13 | O2: 2021-12-14 | P2: 2021-12-15 | Q2: 2021-12-16 | R2: 2021-12-17 | S2: 2021-12-18 | T2: 2021-12-19 | U2: 2021-12-20 | V2: 2021-12-21 | W2: 2021-12-22 | X2: 2021-12-23 | Y2: 2021-12-24 | Z2: 2021-12-25 | AA2: 2021-12-26 | AB2: 2021-12-27 | AC2: 2021-12-28 | AD2: 2021-12-29 | AE2: 2021-12-30 | AF2: 2021-12-31
A3: Кол-во обраб. звонков (Линия call-центр) | B3: 585 | C3: 534 | D3: 505 | E3: 291 | F3: 213 | G3: 519 | H3: 512 | I3: 505 | J3: 488 | K3: 507 | L3: 254 | M3: 202 | N3: 596 | O3: 535 | P3: 510 | Q3: 485 | R3: 481 | S3: 235 | T3: 203 | U3: 464 | V3: 551 | W3: 515 | X3: 494 | Y3: 424 | Z3: 276 | AA3: 201 | AB3: 500 | AC3: 417 | AD3: 412 | AE3: 310 | AF3: 70
A4: Кол-во пропущенных | B4: 76 | C4: 74 | D4: 87 | E4: 44 | F4: 12 | G4: 63 | H4: 69 | I4: 70 | J4: 46 | K4: 34 | L4: 104 | M4: 28 | N4: 92 | O4: 73 | P4: 89 | Q4: 47 | R4: 107 | S4: 140 | T4: 20 | U4: 198 | V4: 117 | W4: 83 | X4: 117 | Y4: 56 | Z4: 64 | AA4: 11 | AB4: 66 | AC4: 99 | AD4: 47 | AE4: 29 | AF4: 55
A5: Кол-во обраб. звонков (Линия КТ-Ковид) | B5: 342 | C5: 343 | D5: 348 | E5: 209 | F5: 114 | G5: 355 | H5: 398 | I5: 398 | J5: 365 | K5: 353 | L5: 181 | M5: 132 | N5: 275 | O5: 389 | P5: 230 | Q5: 404 | R5: 328 | S5: 216 | T5: 108 | U5: 324 | V5: 298 | W5: 311 | X5: 302 | Y5: 307 | Z5: 168 | AA5: 85 | AB5: 297 | AC5: 232 | AD5: 299 | AE5: 303 | AF5: 88
A6: Кол-во пропущенных | B6: 314 | C6: 499 | D6: 358 | E6: 92 | F6: 36 | G6: 175 | H6: 106 | I6: 159 | J6: 228 | K6: 211 | L6: 164 | M6: 9 | N6: 386 | O6: 224 | P6: 532 | Q6: 105 | R6: 328 | S6: 79 | T6: 5 | U6: 337 | V6: 414 | W6: 363 | X6: 288 | Y6: 219 | Z6: 31 | AA6: 6 | AB6: 236 | AC6: 240 | AD6: 231 | AE6: 81 | AF6: 2
A7: Всего звонков (обе линии) | B7: =SUM(B3+B5) -> 927 | C7: =SUM(C3+C5) -> 877 | D7: =SUM(D3+D5) -> 853 | E7: 500 | F7: 327 | G7: 874 | H7: =SUM(H3+H5) -> 910 | I7: =SUM(I3+I5) -> 903 | J7: =SUM(J3+J5) -> 853 | K7: =SUM(K3+K5) -> 860 | L7: 435 | M7: 334 | N7: 871 | O7: 924 | P7: 740 | Q7: 889 | R7: 809 | S7: 451 | T7: 311 | U7: 788 | V7: =SUM(V3+V5) -> 849 | W7: 826 | X7: 796 | Y7: 731 | Z7: 444 | AA7: 286 | AB7: 797 | AC7: 649 | AD7: 711 | AE7: 613 | AF7: 158
A9: Заявки на сайте:
A10: Количество заявок на сайте (всего) | B10: 104 | C10: 111 | D10: 97 | E10: 45 | F10: 48 | G10: 108 | H10: 100 | I10: 100 | J10: 94 | K10: 85 | L10: 55 | M10: 37 | N10: 125 | O10: 103 | P10: 105 | Q10: 87 | R10: 96 | S10: 57 | T10: 30 | U10: 115 | V10: 104 | W10: 103 | X10: 97 | Y10: 72 | Z10: 53 | AA10: 30 | AB10: 86 | AC10: 96 | AD10: 65 | AE10: 75 | AF10: 29
A11: Со статусом "записался" | B11: 65 | C11: 85 | D11: 73 | E11: 31 | F11: 29 | G11: 75 | H11: 72 | I11: 58 | J11: 59 | K11: 66 | L11: 37 | M11: 20 | N11: 90 | O11: 71 | P11: 65 | Q11: 51 | R11: 71 | S11: 35 | T11: 14 | U11: 80 | V11: 80 | W11: 63 | X11: 70 | Y11: 44 | Z11: 38 | AA11: 15 | AB11: 68 | AC11: 65 | AD11: 50 | AE11: 55 | AF11: 19
A12: Заявки на сайте КТ Ковид | B12: 52 | C12: 52 | D12: 48 | E12: 19 | F12: 13 | G12: 60 | H12: 45 | I12: 45 | J12: 34 | K12: 50 | L12: 29 | M12: 12 | N12: 60 | O12: 55 | P12: 54 | Q12: 47 | R12: 37 | S12: 26 | T12: 9 | U12: 64 | V12: 51 | W12: 50 | X12: 42 | Y12: 30 | Z12: 29 | AA12: 14 | AB12: 39 | AC12: 41 | AD12: 40 | AE12: 38 | AF12: 17
A13: Статус "записался" на КТ Ковид | B13: 39 | C13: 45 | D13: 44 | E13: 17 | F13: 9 | G13: 51 | H13: 39 | I13: 38 | J13: 29 | K13: 46 | L13: 23 | M13: 9 | N13: 49 | O13: 45 | P13: 44 | Q13: 33 | R13: 31 | S13: 22 | T13: 8 | U13: 54 | V13: 45 | W13: 39 | X13: 37 | Y13: 25 | Z13: 27 | AA13: 9 | AB13: 35 | AC13: 37 | AD13: 33 | AE13: 34 | AF13: 16
A15: Записались в центр (МРТ+АПО):
A16: МРТ Skyra (Есенина) | B16: 31 | C16: 44 | D16: 28 | E16: 17 | F16: 7 | G16: 39 | H16: 45 | I16: 34 | J16: 23 | K16: 29 | L16: 15 | M16: 10 | N16: 41 | O16: 29 | P16: 44 | Q16: 39 | R16: 35 | S16: 17 | T16: 10 | U16: 42 | V16: 46 | W16: 42 | X16: 27 | Y16: 23 | Z16: 22 | AA16: 14 | AB16: 51 | AC16: 21 | AD16: 19 | AE16: 8 | AF16: 7
A17: МРТ Skyra (Советская) | B17: 32 | C17: 29 | D17: 21 | E17: 21 | F17: 8 | G17: 38 | H17: 20 | I17: 31 | J17: 31 | K17: 26 | L17: 14 | M17: 10 | N17: 32 | O17: 33 | P17: 32 | Q17: 16 | R17: 25 | S17: 17 | T17: 29 | U17: 21 | V17: 32 | W17: 33 | X17: 46 | Y17: 44 | Z17: 12 | AA17: 11 | AB17: 36 | AC17: 36 | AD17: 30 | AE17: 27 | AF17: 9
A18: МРТ Essenza | B18: 39 | C18: 44 | D18: 41 | E18: 8 | F18: 10 | G18: 35 | H18: 40 | I18: 31 | J18: 24 | K18: 47 | L18: 13 | M18: 13 | N18: 41 | O18: 40 | P18: 26 | Q18: 33 | R18: 45 | S18: 7 | T18: 16 | U18: 59 | V18: 45 | W18: 17 | X18: 35 | Y18: 21 | Z18: 6 | AA18: 6 | AB18: 19 | AC18: 19 | AD18: 20 | AE18: 10 | AF18: 2
A19: МРТ Солидарности | B19: 24 | C19: 49 | D19: 15 | E19: 15 | F19: 3 | G19: 57 | H19: 23 | I19: 78 | J19: 16 | K19: 14 | L19: 6 | M19: 8 | N19: 57 | O19: 35 | P19: 18 | Q19: 68 | R19: 18 | S19: 11 | T19: 3 | U19: 46 | V19: 29 | W19: 37 | X19: 15 | Y19: 16 | Z19: 11 | AA19: 6 | AB19: 84 | AC19: 17 | AD19: 14 | AE19: 12 | AF19: 1
A20: МРТ Костюшко | B20: 55 | C20: 69 | D20: 39 | E20: 24 | F20: 18 | G20: 56 | H20: 38 | I20: 91 | J20: 25 | K20: 29 | L20: 15 | M20: 17 | N20: 54 | O20: 40 | P20: 35 | Q20: 33 | R20: 27 | S20: 15 | T20: 9 | U20: 58 | V20: 39 | W20: 62 | X20: 31 | Y20: 55 | Z20: 22 | AA20: 13 | AB20: 48 | AC20: 43 | AD20: 25 | AE20: 20 | AF20: 2
A21: Всего записано за день МРТ : | B21: =SUM(B16:B20) -> 181 | C21: =SUM(C16:C20) -> 235 | D21: =SUM(D16:D20) -> 144 | E21: 85 | F21: 46 | G21: 225 | H21: 166 | I21: 265 | J21: 119 | K21: 145 | L21: 63 | M21: 58 | N21: 225 | O21: 177 | P21: 155 | Q21: 189 | R21: 150 | S21: 67 | T21: 67 | U21: 226 | V21: =SUM(V16:V20) -> 191 | W21: 191 | X21: 154 | Y21: 159 | Z21: 73 | AA21: 50 | AB21: 238 | AC21: 136 | AD21: 108 | AE21: 77 | AF21: 21
A22: Отменено клиентом + неявка (все центры МРТ) | B22: 46 | C22: 31 | D22: 38 | E22: 30 | F22: 29 | G22: 33 | H22: 40 | I22: 34 | J22: 35 | K22: 43 | L22: 23 | M22: 20 | N22: 44 | O22: 32 | P22: 35 | Q22: 28 | R22: 40 | S22: 27 | T22: 30 | U22: 33 | V22: 36 | W22: 38 | X22: 41 | Y22: 40 | Z22: 34 | AA22: 27 | AB22: 29 | AC22: 47 | AD22: 47 | AE22: 43 | AF22: 19
A23: АПО | B23: 102 | C23: 80 | D23: 50 | E23: 29 | F23: 15 | G23: 90 | H23: 82 | I23: 63 | J23: 59 | K23: 42 | L23: 30 | M23: 22 | N23: 82 | O23: 54 | P23: 92 | Q23: 63 | R23: 59 | S23: 18 | T23: 8 | U23: 70 | V23: 55 | W23: 57 | X23: 53 | Y23: 41 | Z23: 25 | AA23: 9 | AB23: 58 | AC23: 43 | AD23: 37 | AE23: 40 | AF23: 7
A24: Всего записано за день (МРТ + АПО): | B24: =SUM(B21+B23) -> 283 | C24: =SUM(C21+C23) -> 315 | D24: =SUM(D21+D23) -> 194 | E24: 114 | F24: 61 | G24: 315 | H24: 248 | I24: 328 | J24: 178 | K24: 187 | L24: 93 | M24: 80 | N24: 307 | O24: 231 | P24: 247 | Q24: 252 | R24: 209 | S24: 85 | T24: 75 | U24: 296 | V24: =SUM(V21+V23) -> 246 | W24: 248 | X24: 207 | Y24: 200 | Z24: 98 | AA24: 59 | AB24: 296 | AC24: 179 | AD24: 145 | AE24: 117 | AF24: 28
A25: ПЭТ/КТ | B25: 49 | C25: 51 | D25: 63 | E25: 2 | F25: 0 | G25: 49 | H25: 47 | I25: 56 | J25: 45 | K25: 38 | L25: 1 | M25: 0 | N25: 53 | O25: 42 | P25: 46 | Q25: 62 | R25: 53 | S25: 3 | T25: 1 | U25: 67 | V25: 47 | W25: 50 | X25: 48 | Y25: 67 | Z25: 2 | AA25: 0 | AB25: 61 | AC25: 40 | AD25: 57 | AE25: 73 | AF25: 0
A26: Очередь ПЭТ/КТ | B26: 469 | C26: 473 | D26: 492 | E26: 494 | F26: 494 | G26: 497 | H26: 497 | I26: 508 | J26: 506 | K26: 496 | L26: 497 | M26: 497 | N26: 505 | O26: 499 | P26: 504 | Q26: 515 | R26: 522 | S26: 525 | T26: 526 | U26: 547 | V26: 550 | W26: 555 | X26: 559 | Y26: 586 | Z26: 588 | AA26: 588 | AB26: 603 | AC26: 597 | AD26: 612 | AE26: 641 | AF26: 641
A27: Очередь КТ-Приморский | B27: 160 | C27: 154 | D27: 145 | E27: 125 | F27: 107 | G27: 125 | H27: 152 | I27: 160 | J27: 155 | K27: 147 | L27: 135 | M27: 125 | N27: 140 | O27: 174 | P27: 216 | Q27: 205 | R27: 201 | S27: 189 | T27: 174 | U27: 171 | V27: 182 | W27: 194 | X27: 211 | Y27: 228 | Z27: 224 | AA27: 214 | AB27: 223 | AC27: 226 | AD27: 223 | AE27: 221 | AF27: 217
A29: Кол-во операторов | B29: 8 | C29: 7 | D29: 7 | E29: 5 | F29: 4 | G29: 8 | H29: 8 | I29: 8 | J29: 7 | K29: 7 | L29: 5 | M29: 4 | N29: 7 | O29: 8 | P29: 7 | Q29: 8 | R29: 6 | S29: 4 | T29: 4 | U29: 7 | V29: 7 | W29: 7 | X29: 7 | Y29: 7 | Z29: 4 | AA29: 4 | AB29: 7 | AC29: 6 | AD29: 6 | AE29: 6 | AF29: 4
A30: сумма часов работы операторов | B30: 80 | C30: 72 | D30: 76 | E30: 60 | F30: 48 | G30: 84 | H30: 84 | I30: 84 | J30: 76 | K30: 76 | L30: 60 | M30: 48 | N30: 71 | O30: 80 | P30: 72 | Q30: 84 | R30: 63 | S30: 48 | T30: 44 | U30: 72 | V30: 71 | W30: 70 | X30: 66 | Y30: 72 | Z30: 48 | AA30: 48 | AB30: 76 | AC30: 64 | AD30: 64 | AE30: 64 | AF30: 24
A32: Время ожидания на линии (мин)
A33: 244-00-24 (среднее) | B33: =86/60 -> 1.433333333 | C33: =60/60 -> 1 | D33: =121/60 -> 2.016666667 | E33: =53/60 -> 0.8833333333 | F33: =19/60 -> 0.3166666667 | G33: =63/60 -> 1.05 | H33: =109/60 -> 1.816666667 | I33: =156/60 -> 2.6 | J33: =83/60 -> 1.383333333 | K33: =58/60 -> 0.9666666667 | L33: =116/60 -> 1.933333333 | M33: =68/60 -> 1.133333333 | N33: =109/60 -> 1.816666667 | O33: =82/60 -> 1.366666667 | P33: =146/60 -> 2.433333333 | Q33: =72/60 -> 1.2 | R33: =111/60 -> 1.85 | S33: =190/60 -> 3.166666667 | T33: =28/60 -> 0.4666666667 | U33: =239/60 -> 3.983333333 | V33: =170/60 -> 2.833333333 | W33: =108/60 -> 1.8 | X33: =192/60 -> 3.2 | Y33: =101/60 -> 1.683333333 | Z33: =49/60 -> 0.8166666667 | AA33: =26/60 -> 0.4333333333 | AB33: =123/60 -> 2.05 | AC33: =175/60 -> 2.916666667 | AD33: =71/60 -> 1.183333333 | AE33: =38/60 -> 0.6333333333 | AF33: =26/60 -> 0.4333333333
A34: 244-31-27 (КТ Ковид, время среднее) | B34: =905/60 -> 15.08333333 | C34: =884/60 -> 14.73333333 | D34: =1348/60 -> 22.46666667 | E34: =819/60 -> 13.65 | F34: =132/60 -> 2.2 | G34: =346/60 -> 5.766666667 | H34: =563/60 -> 9.383333333 | I34: =701/60 -> 11.68333333 | J34: =850/60 -> 14.16666667 | K34: =876/60 -> 14.6 | L34: =598/60 -> 9.966666667 | M34: =98/60 -> 1.633333333 | N34: =1314/60 -> 21.9 | O34: =833/60 -> 13.88333333 | P34: =2309/60 -> 38.48333333 | Q34: =474/60 -> 7.9 | R34: =1278/60 -> 21.3 | S34: =346/60 -> 5.766666667 | T34: =103/60 -> 1.716666667 | U34: =1294/60 -> 21.56666667 | V34: =1800/60 -> 30 | W34: =1243/60 -> 20.71666667 | X34: =1627/60 -> 27.11666667 | Y34: =1156/60 -> 19.26666667 | Z34: =164/60 -> 2.733333333 | AA34: =34/60 -> 0.5666666667 | AB34: =871/60 -> 14.51666667 | AC34: =1411/60 -> 23.51666667 | AD34: =993/60 -> 16.55 | AE34: =332/60 -> 5.533333333 | AF34: =159/60 -> 2.65
A36: Нажали кнопку "1" - перевод в Клинику | B36: 28 | C36: 12 | D36: 13 | E36: 0 | F36: 0 | G36: 22 | H36: 5 | I36: 5 | J36: 12 | K36: 9 | L36: 0 | M36: 0 | N36: 16 | O36: 14 | P36: 15 | Q36: 11 | R36: 13 | S36: 0 | T36: 0 | U36: 26 | V36: 9 | W36: 30 | X36: 19 | Y36: 12 | Z36: 0 | AA36: 0 | AB36: 6 | AC36: 7 | AD36: 20 | AE36: 6 | AF36: 4
A38: Отчет по КТ-Ковид
A39: Записали КТ Ковид за день:
A40: Записаны сегодня на КТ (Советская) | B40: 175 | C40: 173 | D40: 164 | E40: 98 | F40: 49 | G40: 188 | H40: 187 | I40: 191 | J40: 171 | K40: 184 | L40: 95 | M40: 44 | N40: 154 | O40: 177 | P40: 114 | Q40: 211 | R40: 203 | S40: 100 | T40: 42 | U40: 171 | V40: 193 | W40: 176 | X40: 151 | Y40: 156 | Z40: 78 | AA40: 35 | AB40: 136 | AC40: 133 | AD40: 183 | AE40: 147 | AF40: 55
A41: из них ОМС | B41: 173 | C41: 163 | D41: 160 | E41: 93 | F41: 45 | G41: 182 | H41: 183 | I41: 186 | J41: 165 | K41: 177 | L41: 91 | M41: 39 | N41: 151 | O41: 175 | P41: 110 | Q41: 206 | R41: 198 | S41: 96 | T41: 38 | U41: 158 | V41: 186 | W41: 172 | X41: 149 | Y41: 155 | Z41: 73 | AA41: 33 | AB41: 129 | AC41: 128 | AD41: 173 | AE41: 140 | AF41: 51
A42: Записаны сегодня на КТ (Есенина) | B42: 203 | C42: 247 | D42: 225 | E42: 117 | F42: 50 | G42: 210 | H42: 237 | I42: 225 | J42: 228 | K42: 225 | L42: 101 | M42: 50 | N42: 210 | O42: 249 | P42: 196 | Q42: 250 | R42: 185 | S42: 105 | T42: 49 | U42: 234 | V42: 160 | W42: 198 | X42: 220 | Y42: 199 | Z42: 106 | AA42: 45 | AB42: 237 | AC42: 155 | AD42: 155 | AE42: 187 | AF42: 47
A43: из них ОМС | B43: 194 | C43: 242 | D43: 220 | E43: 112 | F43: 44 | G43: 204 | H43: 235 | I43: 217 | J43: 219 | K43: 220 | L43: 98 | M43: 48 | N43: 210 | O43: 244 | P43: 192 | Q43: 247 | R43: 182 | S43: 103 | T43: 44 | U43: 230 | V43: 153 | W43: 191 | X43: 214 | Y43: 196 | Z43: 103 | AA43: 40 | AB43: 233 | AC43: 152 | AD43: 152 | AE43: 181 | AF43: 44
A44: Записано платных (всего) | B44: =(B40+B42)-(B41+B43) -> 11 | C44: =(C40+C42)-(C41+C43) -> 15 | D44: =(D40+D42)-(D41+D43) -> 9 | E44: 10 | F44: 10 | G44: 12 | H44: 6 | I44: 13 | J44: 15 | K44: 12 | L44: 7 | M44: 7 | N44: 3 | O44: 7 | P44: 8 | Q44: 8 | R44: 8 | S44: 6 | T44: 9 | U44: 17 | V44: 14 | W44: 11 | X44: 8 | Y44: 4 | Z44: 8 | AA44: 7 | AB44: 11 | AC44: 8 | AD44: 13 | AE44: 13 | AF44: 7
A45: Всего записано за день: | B45: =SUM(B40+B42) -> 378 | C45: =SUM(C40+C42) -> 420 | D45: =SUM(D40+D42) -> 389 | E45: 215 | F45: 99 | G45: 398 | H45: 424 | I45: 416 | J45: 399 | K45: 409 | L45: 196 | M45: 94 | N45: 364 | O45: 426 | P45: 310 | Q45: 461 | R45: 388 | S45: 205 | T45: 91 | U45: 405 | V45: 353 | W45: 374 | X45: 371 | Y45: 355 | Z45: 184 | AA45: 80 | AB45: 373 | AC45: 288 | AD45: 338 | AE45: 334 | AF45: 102
A47: Очередь по записи КТ-Ковид:
A48: Советская | B48: 436 | C48: 443 | D48: 445 | E48: 379 | F48: 270 | G48: 378 | H48: 398 | I48: 510 | J48: 524 | K48: 545 | L48: 480 | M48: 365 | N48: 359 | O48: 361 | P48: 360 | Q48: 455 | R48: 505 | S48: 453 | T48: 333 | U48: 336 | V48: 372 | W48: 390 | X48: 463 | Y48: 537 | Z48: 462 | AA48: 342 | AB48: 394 | AC48: 375 | AD48: 405 | AE48: 391 | AF48: 364
A49: Есенина | B49: 639 | C49: 715 | D49: 778 | E49: 725 | F49: 530 | G49: 581 | H49: 642 | I49: 618 | J49: 690 | K49: 759 | L49: 694 | M49: 512 | N49: 567 | O49: 650 | P49: 604 | Q49: 704 | R49: 731 | S49: 628 | T49: 487 | U49: 564 | V49: 568 | W49: 531 | X49: 596 | Y49: 637 | Z49: 588 | AA49: 393 | AB49: 468 | AC49: 460 | AD49: 383 | AE49: 406 | AF49: 372
A50: Всего в очереди: | B50: =SUM(B48:B49) -> 1075 | C50: =SUM(C48:C49) -> 1158 | D50: =SUM(D48:D49) -> 1223 | E50: 1104 | F50: 800 | G50: 959 | H50: 1040 | I50: 1128 | J50: 1214 | K50: 1304 | L50: 1174 | M50: 877 | N50: 926 | O50: 1011 | P50: 964 | Q50: 1159 | R50: 1236 | S50: 1081 | T50: 820 | U50: 900 | V50: 940 | W50: 921 | X50: 1059 | Y50: 1174 | Z50: 1050 | AA50: 735 | AB50: 862 | AC50: 835 | AD50: 788 | AE50: 797 | AF50: 736
A52: Выполнено КТ-Ковид за день:
A53: Советская | B53: 134 | C53: 130 | D53: 139 | E53: 134 | F53: 135 | G53: 66 | H53: 130 | I53: 69 | J53: 128 | K53: 124 | L53: 129 | M53: 125 | N53: 126 | O53: 133 | P53: 127 | Q53: 64 | R53: 128 | S53: 130 | T53: 130 | U53: 127 | V53: 122 | W53: 132 | X53: 56 | Y53: 64 | Z53: 125 | AA53: 123 | AB53: 68 | AC53: 117 | AD53: 119 | AE53: 126 | AF53: 58
A54: Есенина | B54: 205 | C54: 137 | D54: 135 | E54: 140 | F54: 206 | G54: 130 | H54: 134 | I54: 205 | J54: 141 | K54: 136 | L54: 134 | M54: 189 | N54: 136 | O54: 129 | P54: 190 | Q54: 126 | R54: 130 | S54: 135 | T54: 206 | U54: 129 | V54: 129 | W54: 182 | X54: 128 | Y54: 132 | Z54: 131 | AA54: 200 | AB54: 133 | AC54: 126 | AD54: 197 | AE54: 131 | AF54: 67
A55: Всего выполнено за день: | B55: =SUM(B53:B54) -> 339 | C55: =SUM(C53:C54) -> 267 | D55: =SUM(D53:D54) -> 274 | E55: 274 | F55: 341 | G55: 196 | H55: 264 | I55: 274 | J55: 269 | K55: 260 | L55: 263 | M55: 314 | N55: 262 | O55: 262 | P55: 317 | Q55: 190 | R55: 258 | S55: 265 | T55: 336 | U55: 256 | V55: 251 | W55: 314 | X55: 184 | Y55: 196 | Z55: 256 | AA55: 323 | AB55: 201 | AC55: 243 | AD55: 316 | AE55: 257 | AF55: 125

Sheet Январь 2022
A1: Отчет по call-центру
B2: 2022-01-02 | C2: 2022-01-03 | D2: 2022-01-04 | E2: 2022-01-05 | F2: 2022-01-06 | G2: 2022-01-07 | H2: 2022-01-08 | I2: 2022-01-09 | J2: 2022-01-10 | K2: 2022-01-11 | L2: 2022-01-12 | M2: 2022-01-13 | N2: 2022-01-14 | O2: 2022-01-15 | P2: 2022-01-16 | Q2: 2022-01-17 | R2: 2022-01-18 | S2: 2022-01-19 | T2: 2022-01-20 | U2: 2022-01-21 | V2: 2022-01-22 | W2: 2022-01-23 | X2: 2022-01-24 | Y2: 2022-01-25 | Z2: 2022-01-26 | AA2: 2022-01-27 | AB2: 2022-01-28 | AC2: 2022-01-29 | AD2: 2022-01-30 | AE2: 2022-01-31
A3: Кол-во обраб. звонков (Линия call-центр) | B3: 174 | C3: 316 | D3: 314 | E3: 296 | F3: 287 | G3: 182 | H3: 210 | I3: 220 | J3: 499 | L3: 834 | M3: 452 | N3: 554 | O3: 200 | P3: 230 | Q3: 606 | R3: 580 | S3: 551 | T3: 562 | U3: 564 | V3: 308 | W3: 229 | X3: 605 | Y3: 632 | Z3: 646 | AA3: 583 | AB3: 634 | AC3: 314 | AD3: =239 -> 239 | AE3: 620
A4: Кол-во пропущенных | B4: 11 | C4: 25 | D4: 25 | E4: 44 | F4: 30 | G4: 6 | H4: 35 | I4: 33 | J4: 241 | L4: 241 | M4: 110 | N4: 128 | O4: 65 | P4: 16 | Q4: 129 | R4: 141 | S4: 151 | T4: 89 | U4: 83 | V4: 119 | W4: 27 | X4: 45 | Y4: 82 | Z4: 129 | AA4: 173 | AB4: 90 | AC4: 43 | AD4: 74 | AE4: 159
A5: Кол-во обраб. звонков (Линия КТ-Ковид) | B5: 175 | C5: 226 | D5: 231 | E5: 185 | F5: 220 | G5: 181 | H5: 192 | I5: 132 | J5: 363 | L5: 394 | M5: 292 | N5: 290 | O5: 222 | P5: 117 | Q5: 309 | R5: 302 | S5: 349 | T5: 302 | U5: 342 | V5: 234 | W5: 177 | X5: 435 | Y5: 290 | Z5: 311 | AA5: 338 | AB5: 386 | AC5: 258 | AD5: 184 | AE5: 330
A6: Кол-во пропущенных | B6: 29 | C6: 73 | D6: 12 | E6: 145 | F6: 59 | G6: 14 | H6: 35 | I6: 61 | J6: 247 | L6: 390 | M6: 332 | N6: 709 | O6: 76 | P6: 26 | Q6: 329 | R6: 532 | S6: 546 | T6: 492 | U6: 541 | V6: 453 | W6: 18 | X6: 402 | Y6: 575 | Z6: 508 | AA6: 528 | AB6: 562 | AC6: 492 | AD6: 223 | AE6: 494
A7: Всего звонков (обе линии) | B7: =SUM(B3+B5) -> 349 | C7: =SUM(C3+C5) -> 542 | D7: =SUM(D3+D5) -> 545 | E7: =SUM(E3+E5) -> 481 | F7: =SUM(F3+F5) -> 507 | G7: 363 | H7: 402 | I7: 352 | J7: 862 | L7: 1228 | M7: 744 | N7: 844 | O7: 422 | P7: 347 | Q7: 915 | R7: 882 | S7: 900 | T7: 864 | U7: 906 | V7: 542 | W7: 406 | X7: 1040 | Y7: 922 | Z7: 957 | AA7: 921 | AB7: 1020 | AC7: 572 | AD7: 423 | AE7: 950
A9: Заявки на сайте:
A10: Количество заявок на сайте (всего) | B10: =42+38 -> 80 | C10: 63 | D10: 47 | E10: 65 | F10: 61 | G10: 48 | H10: 41 | I10: 40 | J10: 121 | K10: 203 | L10: 156 | M10: 131 | N10: 140 | O10: 69 | P10: 43 | Q10: 147 | R10: 164 | S10: 173 | T10: 202 | U10: 189 | V10: 88 | W10: 59 | X10: 156 | Y10: 205 | Z10: 201 | AA10: 202 | AB10: 204 | AC10: 143 | AD10: 93 | AE10: 203
A11: Со статусом "записался" | B11: 49 | C11: 37 | D11: 33 | E11: 48 | F11: 41 | G11: 36 | H11: 27 | I11: 33 | J11: 81 | K11: 158 | L11: 115 | M11: 95 | N11: 119 | O11: 52 | P11: 33 | Q11: 96 | R11: 131 | S11: 139 | T11: 160 | U11: 161 | V11: 59 | W11: 42 | X11: 117 | Y11: 129 | Z11: 144 | AA11: 165 | AB11: 168 | AC11: 118 | AD11: 74 | AE11: 154
A12: Заявки на сайте КТ Ковид | B12: 30 | C12: 18 | D12: 18 | E12: 22 | F12: 24 | G12: 24 | H12: 17 | I12: 21 | J12: 51 | K12: 83 | L12: 64 | M12: 65 | N12: 69 | O12: 18 | P12: 23 | Q12: 70 | R12: 74 | S12: 95 | T12: 91 | U12: 99 | V12: 40 | W12: 28 | X12: 83 | Y12: 113 | Z12: 104 | AA12: 107 | AB12: 97 | AC12: 81 | AD12: 60 | AE12: 103
A13: Статус "записался" на КТ Ковид | B13: 24 | C13: 13 | D13: 16 | E13: 14 | F13: 19 | G13: 20 | H13: 15 | I13: 19 | J13: 45 | K13: 77 | L13: 52 | M13: 51 | N13: 64 | O13: 15 | P13: 21 | Q13: 59 | R13: 65 | S13: 80 | T13: 82 | U13: 87 | V13: 29 | W13: 22 | X13: 69 | Y13: 86 | Z13: 83 | AA13: 94 | AB13: 86 | AC13: 73 | AD13: 53 | AE13: 86
A15: Записались в центр (МРТ+АПО):
A16: МРТ Skyra (Есенина) | B16: 14 | C16: 13 | D16: 14 | E16: 22 | F16: 14 | G16: 14 | H16: 18 | I16: 10 | J16: 56 | K16: 48 | L16: 38 | M16: 31 | N16: 38 | O16: 14 | P16: 26 | Q16: 59 | R16: 48 | S16: 48 | T16: 38 | U16: 27 | V16: 18 | W16: 14 | X16: 54 | Y16: 38 | Z16: 63 | AA16: 64 | AB16: 44 | AC16: 11 | AD16: 11 | AE16: 53
A17: МРТ Skyra (Советская) | B17: 12 | C17: 27 | D17: 16 | E17: 23 | F17: 18 | G17: 11 | H17: 14 | I17: 16 | J17: 36 | K17: 26 | L17: 34 | M17: 38 | N17: 41 | O17: 20 | P17: 13 | Q17: 40 | R17: 40 | S17: 35 | T17: 39 | U17: 47 | V17: 28 | W17: 20 | X17: 36 | Y17: 52 | Z17: 33 | AA17: 43 | AB17: 32 | AC17: 27 | AD17: 12 | AE17: 33
A18: МРТ Essenza | B18: 13 | C18: 22 | D18: 14 | E18: 21 | F18: 10 | G18: 11 | H18: 11 | I18: 8 | J18: 36 | K18: 17 | L18: 28 | M18: 46 | N18: 24 | O18: 17 | P18: 17 | Q18: 20 | R18: 26 | S18: 31 | T18: 37 | U18: 24 | V18: 19 | W18: 13 | X18: 32 | Y18: 27 | Z18: 24 | AA18: 33 | AB18: 18 | AC18: 12 | AD18: 16 | AE18: 21
A19: МРТ Солидарности | B19: 5 | C19: 12 | D19: 13 | E19: 12 | F19: 10 | G19: 14 | H19: 8 | I19: 14 | J19: 58 | K19: 59 | L19: 38 | M19: 53 | N19: 28 | O19: 7 | P19: 9 | Q19: 18 | R19: 107 | S19: 17 | T19: 71 | U19: 21 | V19: 8 | W19: 6 | X19: 84 | Y19: 58 | Z19: 38 | AA19: 81 | AB19: 30 | AC19: 11 | AD19: 13 | AE19: 25
A20: МРТ Костюшко | B20: 10 | C20: 26 | D20: 20 | E20: 19 | F20: 25 | G20: 19 | H20: 23 | I20: 15 | J20: 69 | K20: 48 | L20: 32 | M20: 60 | N20: 37 | O20: 14 | P20: 14 | Q20: 83 | R20: 51 | S20: 64 | T20: 42 | U20: 33 | V20: 22 | W20: 12 | X20: 55 | Y20: 45 | Z20: 53 | AA20: 40 | AB20: 28 | AC20: 17 | AD20: 16 | AE20: 65
A21: Всего записано за день МРТ : | B21: =SUM(B16:B20) -> 54 | C21: =SUM(C16:C20) -> 100 | D21: 77 | E21: 97 | F21: 77 | G21: 69 | H21: 74 | I21: 63 | J21: 255 | K21: 198 | L21: 170 | M21: 228 | N21: 168 | O21: 72 | P21: 79 | Q21: 220 | R21: 272 | S21: 195 | T21: 227 | U21: 152 | V21: 95 | W21: 65 | X21: 261 | Y21: 220 | Z21: 211 | AA21: 261 | AB21: 152 | AC21: 78 | AD21: 68 | AE21: 197
A22: Отменено клиентом + неявка (все центры МРТ) | B22: 0 | C22: 26 | D22: 27 | E22: 22 | F22: 24 | G22: 8 | H22: 16 | I22: 16 | J22: 31 | K22: 19 | L22: 19 | M22: 29 | N22: 36 | O22: 26 | P22: 33 | Q22: 27 | R22: 25 | S22: 39 | T22: 34 | U22: 34 | V22: 29 | W22: 35 | X22: 25 | Y22: 39 | Z22: 34 | AA22: 37 | AB22: 41 | AC22: 31 | AD22: 33 | AE22: 38
A23: АПО | B23: 6 | C23: 41 | D23: 35 | E23: 48 | F23: 32 | G23: 10 | H23: 23 | I23: 20 | J23: 91 | K23: 61 | L23: 62 | M23: 58 | N23: 61 | O23: 44 | P23: 19 | Q23: 93 | R23: 44 | S23: 65 | T23: 80 | U23: 86 | V23: 29 | W23: 15 | X23: 80 | Y23: 64 | Z23: 48 | AA23: 60 | AB23: 66 | AC23: 32 | AD23: 14 | AE23: 89
A24: Всего записано за день (МРТ + АПО): | B24: =SUM(B21+B23) -> 60 | C24: =SUM(C21+C23) -> 141 | D24: 112 | E24: 145 | F24: 109 | G24: 79 | H24: 97 | I24: 83 | J24: 346 | K24: 259 | L24: 232 | M24: 286 | N24: 229 | O24: 116 | P24: 98 | Q24: 313 | R24: 316 | S24: 260 | T24: 307 | U24: 238 | V24: 124 | W24: 80 | X24: 341 | Y24: 284 | Z24: 259 | AA24: 321 | AB24: 218 | AC24: 110 | AD24: 82 | AE24: 286
A25: ПЭТ/КТ | B25: 2 | C25: 2 | D25: 4 | E25: 2 | F25: 3 | G25: 1 | H25: 0 | I25: 0 | J25: 57 | K25: 11 | L25: 63 | M25: 54 | N25: 58 | O25: 1 | P25: 2 | Q25: 69 | R25: 42 | S25: 65 | T25: 60 | U25: 85 | V25: 2 | W25: 0 | X25: 74 | Y25: 51 | Z25: 50 | AA25: 50 | AB25: 56 | AC25: 1 | AD25: 1 | AE25: 52
A26: Очередь ПЭТ/КТ | B26: 643 | C26: 615 | D26: 592 | E26: 566 | F26: 546 | G26: 517 | H26: 517 | I26: 517 | J26: 527 | K26: 498 | L26: 516 | M26: 522 | N26: 536 | O26: 537 | P26: 539 | Q26: 558 | R26: 549 | S26: 569 | T26: 586 | U26: 626 | V26: 628 | W26: 628 | X26: 656 | Y26: 664 | Z26: 673 | AA26: 675 | AB26: 685 | AC26: 686 | AD26: 687 | AE26: 683
A27: Очередь КТ-Приморский | B27: 222 | C27: 213 | D27: 203 | E27: 191 | F27: 177 | G27: 167 | H27: 154 | I27: 138 | J27: 189 | K27: 201 | L27: 200 | M27: 208 | N27: 206 | O27: 190 | P27: 178 | Q27: 217 | R27: 219 | S27: 252 | T27: 243 | U27: 229 | V27: 210 | W27: 195 | X27: 237 | Y27: 287 | Z27: 292 | AA27: 301 | AB27: 303 | AC27: 292 | AD27: 270 | AE27: 296
A29: Кол-во операторов | B29: 7 | C29: 5 | D29: 5 | E29: 5 | F29: 5 | G29: 5 | H29: 3 | I29: 4 | J29: 6 | K29: 5 | L29: 6 | M29: 6 | N29: 6 | O29: 4 | P29: 4 | Q29: 7 | R29: 7 | S29: 7 | T29: 7 | U29: 7 | V29: 4 | W29: 4 | X29: 9 | Y29: 8 | Z29: 7 | AA29: 7 | AB29: 8 | AC29: 5 | AD29: 4 | AE29: 7
A30: сумма часов работы операторов | B30: 73 | C30: 56 | D30: 56 | E30: 56 | F30: 56 | G30: 52 | H30: 36 | I30: 48 | J30: 64 | K30: 55 | L30: 69 | M30: 68 | N30: 70 | O30: 48 | P30: 48 | Q30: 73 | R30: 73 | S30: 73 | T30: 76 | U30: 76 | V30: 48 | W30: 44 | X30: 96 | Y30: 84 | Z30: 72 | AA30: 72 | AB30: 84 | AC30: 60 | AD30: 48 | AE30: 72
A32: Время ожидания на линии (мин)
A33: 244-00-24 (среднее) | B33: =15/60 -> 0.25 | C33: =37/60 -> 0.6166666667 | D33: =66/60 -> 1.1 | E33: =134/60 -> 2.233333333 | F33: =48/60 -> 0.8 | G33: =31/60 -> 0.5166666667 | H33: =143/60 -> 2.383333333 | I33: =57/60 -> 0.95 | J33: =383/60 -> 6.383333333 | L33: =182/60 -> 3.033333333 | M33: =180/60 -> 3 | N33: =108/60 -> 1.8 | O33: =144/60 -> 2.4 | P33: =35/60 -> 0.5833333333 | Q33: =191/60 -> 3.183333333 | R33: =135/60 -> 2.25 | S33: =183/60 -> 3.05 | T33: =110/60 -> 1.833333333 | U33: =110/60 -> 1.833333333 | V33: =133/60 -> 2.216666667 | W33: =43/60 -> 0.7166666667 | X33: =72/60 -> 1.2 | Y33: =91/60 -> 1.516666667 | Z33: =147/60 -> 2.45 | AA33: =138/60 -> 2.3 | AB33: =115/60 -> 1.916666667 | AC33: =116/60 -> 1.933333333 | AD33: =68/60 -> 1.133333333 | AE33: =187/60 -> 3.116666667
A34: 244-31-27 (КТ Ковид, время среднее) | B34: =121/60 -> 2.016666667 | C34: =268/60 -> 4.466666667 | D34: =103/60 -> 1.716666667 | E34: =842/60 -> 14.03333333 | F34: =608/60 -> 10.13333333 | G34: =120/60 -> 2 | H34: =334/60 -> 5.566666667 | I34: =649/60 -> 10.81666667 | J34: =866/60 -> 14.43333333 | L34: =1887/60 -> 31.45 | M34: =1406/60 -> 23.43333333 | N34: =2565/60 -> 42.75 | O34: =565/60 -> 9.416666667 | P34: =268/60 -> 4.466666667 | Q34: =1273/60 -> 21.21666667 | R34: =2025/60 -> 33.75 | S34: =1947/60 -> 32.45 | T34: =2578/60 -> 42.96666667 | U34: =2539/60 -> 42.31666667 | V34: =2014/60 -> 33.56666667 | W34: =108/60 -> 1.8 | X34: =1375/60 -> 22.91666667 | Y34: =2728/60 -> 45.46666667 | Z34: =2812/60 -> 46.86666667 | AA34: =2506/60 -> 41.76666667 | AB34: =2309/60 -> 38.48333333 | AC34: =2543/60 -> 42.38333333 | AD34: =1596/60 -> 26.6 | AE34: =2231/60 -> 37.18333333
A36: Нажали кнопку "1" - перевод в Клинику | B36: 0 | C36: 5 | D36: 11 | E36: 11 | F36: 7 | G36: 5 | H36: 0 | I36: 0 | J36: 21 | L36: 0 | M36: 7 | N36: 0 | O36: 0 | P36: 0 | Q36: 0 | R36: 2 | Z36: 12 | AA36: 19 | AB36: 20 | AC36: 5 | AD36: 0 | AE36: 11
A38: Отчет по КТ-Ковид
A39: Записали КТ Ковид за день:
A40: Записаны сегодня на КТ (Советская) | B40: 77 | C40: 92 | D40: 103 | E40: 84 | F40: 77 | G40: 53 | H40: 58 | I40: 44 | J40: 171 | K40: 81 | L40: 234 | M40: 171 | N40: 176 | O40: 92 | P40: 56 | Q40: 172 | R40: 163 | S40: 226 | T40: 196 | U40: 223 | V40: 161 | W40: 82 | X40: 281 | Y40: 191 | Z40: 198 | AA40: 244 | AB40: 246 | AC40: 117 | AD40: 103 | AE40: 190
A41: из них ОМС | B41: 67 | C41: 82 | D41: 91 | E41: 74 | F41: 68 | G41: 48 | H41: 52 | I41: 41 | J41: 163 | K41: 72 | L41: 230 | M41: 165 | N41: 170 | O41: 87 | P41: 53 | Q41: 165 | R41: 162 | S41: 215 | T41: 193 | U41: 213 | V41: 156 | W41: 80 | X41: 262 | Y41: 183 | Z41: 188 | AA41: 226 | AB41: 219 | AC41: 104 | AD41: 94 | AE41: 176
A42: Записаны сегодня на КТ (Есенина) | B42: 129 | C42: 114 | D42: 113 | E42: 135 | F42: 164 | G42: 130 | H42: 114 | I42: 102 | J42: 273 | K42: 154 | L42: 289 | M42: 225 | N42: 233 | O42: 164 | P42: 55 | Q42: 235 | R42: 284 | S42: 296 | T42: 311 | U42: 289 | V42: 153 | W42: 109 | X42: 303 | Y42: 281 | Z42: 272 | AA42: 322 | AB42: 366 | AC42: 238 | AD42: 138 | AE42: 289
A43: из них ОМС | B43: 122 | C43: 109 | D43: 111 | E43: 130 | F43: 152 | G43: 127 | H43: 106 | I43: 96 | J43: 264 | K43: 146 | L43: 284 | M43: 223 | N43: 230 | O43: 158 | P43: 54 | Q43: 228 | R43: 282 | S43: 294 | T43: 302 | U43: 285 | V43: 149 | W43: 107 | X43: 296 | Y43: 264 | Z43: 267 | AA43: 317 | AB43: 350 | AC43: 229 | AD43: 128 | AE43: 276
A44: Записано платных (всего) | B44: =(B40+B42)-(B41+B43) -> 17 | C44: =(C40+C42)-(C41+C43) -> 15 | D44: 14 | E44: 15 | F44: 21 | G44: 8 | H44: 14 | I44: 9 | J44: 17 | K44: 17 | L44: 9 | M44: 8 | N44: 9 | O44: 11 | P44: 4 | Q44: 14 | R44: 3 | S44: 13 | T44: 12 | U44: 14 | V44: 9 | W44: 4 | X44: 26 | Y44: 25 | Z44: 15 | AA44: 23 | AB44: 43 | AC44: 22 | AD44: 19 | AE44: 27
A45: Всего записано за день: | B45: =B40+B42 -> 206 | C45: =C40+C42 -> 206 | D45: 216 | E45: 219 | F45: 241 | G45: 183 | H45: 172 | I45: 146 | J45: 444 | K45: 235 | L45: 523 | M45: 396 | N45: 409 | O45: 256 | P45: 111 | Q45: 407 | R45: 447 | S45: 522 | T45: 507 | U45: 512 | V45: 314 | W45: 191 | X45: 584 | Y45: 472 | Z45: 470 | AA45: 566 | AB45: 612 | AC45: 355 | AD45: 241 | AE45: 479
A47: Очередь по записи КТ-Ковид:
A48: Советская | B48: 441 | C48: 375 | D48: 307 | E48: 232 | F48: 280 | G48: 310 | H48: 345 | I48: 215 | J48: 229 | K48: 236 | L48: 322 | M48: 346 | N48: 363 | O48: 300 | P48: 274 | Q48: 282 | R48: 292 | S48: 442 | T48: 477 | U48: 545 | V48: 549 | W48: 464 | X48: 579 | Y48: 597 | Z48: 629 | AA48: 701 | AB48: 777 | AC48: 718 | AD48: 652 | AE48: 664
A49: Есенина | B49: 501 | C49: 438 | D49: 391 | E49: 362 | F49: 363 | G49: 329 | H49: 281 | I49: 217 | J49: 264 | K49: 342 | L49: 484 | M49: 559 | N49: 630 | O49: 634 | P49: 524 | Q49: 598 | R49: 724 | S49: 862 | T49: 941 | U49: 1065 | V49: 977 | W49: 926 | X49: 997 | Y49: 956 | Z49: 983 | AA49: 1065 | AB49: 1190 | AC49: 1193 | AD49: 1085 | AE49: 1043
A50: Всего в очереди: | B50: =SUM(B48:B49) -> 942 | C50: =SUM(C48:C49) -> 813 | D50: 698 | E50: 594 | F50: 643 | G50: 639 | H50: 626 | I50: 432 | J50: 493 | K50: 578 | L50: 806 | M50: 905 | N50: 993 | O50: 934 | P50: 798 | Q50: 880 | R50: 1016 | S50: 1304 | T50: 1418 | U50: 1610 | V50: 1526 | W50: 1390 | X50: 1576 | Y50: 1553 | Z50: =SUM(Z48:Z49) -> 1612 | AA50: =SUM(AA48:AA49) -> 1766 | AB50: =SUM(AB48:AB49) -> 1967 | AC50: 1911 | AD50: 1737 | AE50: 1707
A52: Выполнено КТ-Ковид за день:
A53: Советская | B53: 0 | C53: 115 | D53: 128 | E53: 133 | F53: 23 | G53: 17 | H53: 17 | I53: 132 | J53: 129 | K53: 61 | L53: 136 | M53: 132 | N53: 129 | O53: 124 | P53: 64 | Q53: 128 | R53: 123 | S53: 67 | T53: 135 | U53: 133 | V53: 131 | W53: 142 | X53: 136 | Y53: 141 | Z53: 136 | AA53: 135 | AB53: 141 | AC53: 143 | AD53: 141 | AE53: 130
A54: Есенина | B54: 0 | C54: 131 | D54: 132 | E54: 134 | F54: 130 | G54: 139 | H54: 136 | I54: 132 | J54: 134 | K54: 128 | L54: 133 | M54: 130 | N54: 133 | O54: 130 | P54: 138 | Q54: 139 | R54: 138 | S54: 126 | T54: 206 | U54: 139 | V54: 208 | W54: 144 | X54: 202 | Y54: 274 | Z54: 208 | AA54: 206 | AB54: 202 | AC54: 204 | AD54: 206 | AE54: 274
A55: Всего выполнено за день: | B55: =SUM(B53:B54) -> 0 | C55: =SUM(C53:C54) -> 246 | D55: 260 | E55: 267 | F55: 153 | G55: 156 | H55: 153 | I55: 264 | J55: 263 | K55: 189 | L55: 269 | M55: 262 | N55: 262 | O55: 254 | P55: 202 | Q55: 267 | R55: 261 | S55: 193 | T55: 341 | U55: 272 | V55: 339 | W55: 286 | X55: 338 | Y55: 415 | Z55: 344 | AA55: =SUM(AA53:AA54) -> 341 | AB55: 343 | AC55: 347 | AD55: 347 | AE55: 404

Sheet Февраль 2022
A1: Отчет по call-центру
B2: 2022-02-01 | C2: 2022-02-02 | D2: 2022-02-03 | E2: 2022-02-04 | F2: 2022-02-05 | G2: 2022-02-06 | H2: 2022-02-07 | I2: 2022-02-08 | J2: 2022-02-09 | K2: 2022-02-10 | L2: 2022-02-11 | M2: 2022-02-12 | N2: 2022-02-13 | O2: 2022-02-14 | P2: 2022-02-15 | Q2: 2022-02-16 | R2: 2022-02-17 | S2: 2022-02-18 | T2: 2022-02-19 | U2: 2022-02-20 | V2: 2022-02-21 | W2: 2022-02-22 | X2: 2022-02-23 | Y2: 2022-02-24 | Z2: 2022-02-25 | AA2: 2022-02-26 | AB2: 2022-02-27 | AC2: 2022-02-28
A3: Кол-во обраб. звонков (Линия call-центр) | B3: 641 | C3: 628 | D3: 616 | E3: 584 | F3: 307 | G3: 245 | H3: 601 | I3: 584 | J3: 649 | K3: 632 | L3: 654 | M3: 324 | N3: 260 | O3: 721 | P3: 595 | Q3: 651 | R3: 625 | S3: 522 | T3: 288 | U3: 258 | V3: 608 | W3: 599 | X3: 302 | Y3: 493 | Z3: 461 | AA3: 274 | AB3: 208 | AC3: 523
A4: Кол-во пропущенных | B4: 70 | C4: 107 | D4: 144 | E4: 115 | F4: 67 | G4: 25 | H4: 196 | I4: 278 | J4: 199 | K4: 252 | L4: 462 | M4: 130 | N4: 18 | O4: 158 | P4: 481 | Q4: 280 | R4: 175 | S4: 134 | T4: 46 | U4: 71 | V4: 143 | W4: 94 | X4: 20 | Y4: 183 | Z4: 183 | AA4: 38 | AB4: 27 | AC4: 97
A5: Кол-во обраб. звонков (Линия КТ-Ковид) | B5: 329 | C5: 405 | D5: 345 | E5: 349 | F5: 260 | G5: 174 | H5: 303 | I5: 369 | J5: 325 | K5: 314 | L5: 295 | M5: 247 | N5: 164 | O5: 301 | P5: 371 | Q5: 358 | R5: 387 | S5: 412 | T5: 243 | U5: 136 | V5: 369 | W5: 372 | X5: 163 | Y5: 363 | Z5: 324 | AA5: 149 | AB5: 68 | AC5: 291
A6: Кол-во пропущенных | B6: 523 | C6: 471 | D6: 474 | E6: 55 | F6: 404 | G6: 114 | H6: 481 | I6: 562 | J6: 448 | K6: 372 | L6: 370 | M6: 508 | N6: 273 | O6: 472 | P6: 425 | Q6: 630 | R6: 506 | S6: 538 | T6: 172 | U6: 21 | V6: 351 | W6: 347 | X6: 31 | Y6: 38 | Z6: 145 | AA6: 17 | AB6: 9 | AC6: 110
A7: Всего звонков (обе линии) | B7: =SUM(B3+B5) -> 970 | C7: =SUM(C3+C5) -> 1033 | D7: =SUM(D3+D5) -> 961 | E7: =SUM(E3+E5) -> 933 | F7: 567 | G7: 419 | H7: 904 | I7: 953 | J7: 974 | K7: 946 | L7: 949 | M7: 571 | N7: 424 | O7: 1022 | P7: 966 | Q7: 1009 | R7: 1012 | S7: 934 | T7: 531 | U7: 394 | V7: 977 | W7: 971 | X7: 465 | Y7: 856 | Z7: 785 | AA7: 423 | AB7: 276 | AC7: 814
A9: Заявки на сайте:
A10: Количество заявок на сайте (всего) | B10: 202 | C10: 201 | D10: 207 | E10: 204 | F10: 152 | G10: 50 | H10: 276 | I10: 254 | J10: 301 | K10: 208 | L10: 215 | M10: 203 | N10: 107 | O10: 205 | P10: 212 | Q10: 205 | R10: 203 | S10: 171 | T10: 70 | U10: 43 | V10: 153 | W10: 112 | X10: 38 | Y10: 85 | Z10: 107 | AA10: 37 | AB10: 17 | AC10: 88
A11: Со статусом "записался" | B11: 169 | C11: 146 | D11: 173 | E11: 168 | F11: 121 | G11: 38 | H11: 205 | I11: 205 | J11: 248 | K11: 159 | L11: 158 | M11: 141 | N11: 79 | O11: 164 | P11: 157 | Q11: 163 | R11: 163 | S11: 122 | T11: 51 | U11: 25 | V11: 104 | W11: 86 | X11: 28 | Y11: 57 | Z11: 69 | AA11: 21 | AB11: 8 | AC11: 61
A12: Заявки на сайте КТ Ковид | B12: 108 | C12: 113 | D12: 119 | E12: 113 | F12: 79 | G12: 22 | H12: 142 | I12: 127 | J12: 158 | K12: 93 | L12: 104 | M12: 114 | N12: 55 | O12: 116 | P12: 105 | Q12: 84 | R12: 107 | S12: 79 | T12: 31 | U12: 12 | V12: 63 | W12: 48 | X12: 14 | Y12: 44 | Z12: 50 | AA12: 10 | AB12: 2 | AC12: 28
A13: Статус "записался" на КТ Ковид | B13: 98 | C13: 89 | D13: 104 | E13: 99 | F13: 71 | G13: 17 | H13: 117 | I13: 111 | J13: 132 | K13: 78 | L13: 87 | M13: 91 | N13: 44 | O13: 99 | P13: 86 | Q13: 72 | R13: 92 | S13: 73 | T13: 27 | U13: 8 | V13: 50 | W13: 41 | X13: 13 | Y13: 34 | Z13: 37 | AA13: 8 | AB13: 2 | AC13: 23
A15: Записались в центр (МРТ+АПО):
A16: МРТ Skyra (Есенина) | B16: 52 | C16: 26 | D16: 33 | E16: 28 | F16: 19 | G16: 15 | H16: 36 | I16: 37 | J16: 35 | K16: 39 | L16: 22 | M16: 9 | N16: 18 | O16: 69 | P16: 42 | Q16: 37 | R16: 36 | S16: 22 | T16: 18 | U16: 19 | V16: 68 | W16: 30 | X16: 15 | Y16: 24 | Z16: 29 | AA16: 18 | AB16: 16 | AC16: 44
A17: МРТ Skyra (Советская) | B17: 36 | C17: 29 | D17: 38 | E17: 28 | F17: 18 | G17: 16 | H17: 47 | I17: 31 | J17: 40 | K17: 26 | L17: 29 | M17: 30 | N17: 13 | O17: 40 | P17: 40 | Q17: 35 | R17: 72 | S17: 34 | T17: 17 | U17: 18 | V17: 40 | W17: 30 | X17: 26 | Y17: 26 | Z17: 62 | AA17: 35 | AB17: 13 | AC17: 46
A18: МРТ Essenza | B18: 22 | C18: 12 | D18: 60 | E18: 16 | F18: 13 | G18: 13 | H18: 48 | I18: 36 | J18: 65 | K18: 27 | L18: 20 | M18: 16 | N18: 6 | O18: 53 | P18: 24 | Q18: 51 | R18: 27 | S18: 30 | T18: 10 | U18: 15 | V18: 38 | W18: 37 | X18: 15 | Y18: 37 | Z18: 38 | AA18: 12 | AB18: 14 | AC18: 51
A19: МРТ Солидарности | B19: 48 | C19: 20 | D19: 75 | E19: 11 | F19: 7 | G19: 8 | H19: 36 | I19: 44 | J19: 63 | K19: 43 | L19: 39 | M19: 5 | N19: 15 | O19: 27 | P19: 15 | Q19: 74 | R19: 33 | S19: 15 | T19: 12 | U19: 12 | V19: 30 | W19: 106 | X19: 13 | Y19: 77 | Z19: 21 | AA19: 5 | AB19: 7 | AC19: 38
A20: МРТ Костюшко | B20: 40 | C20: 38 | D20: 56 | E20: 31 | F20: 24 | G20: 12 | H20: 71 | I20: 57 | J20: 76 | K20: 48 | L20: 26 | M20: 16 | N20: 12 | O20: 68 | P20: 33 | Q20: 42 | R20: 39 | S20: 33 | T20: 19 | U20: 19 | V20: 76 | W20: 54 | X20: 15 | Y20: 52 | Z20: 50 | AA20: 25 | AB20: 14 | AC20: 54
A21: Всего записано за день МРТ : | B21: =SUM(B16:B20) -> 198 | C21: =SUM(C16:C20) -> 125 | D21: =SUM(D16:D20) -> 262 | E21: =SUM(E16:E20) -> 114 | F21: 81 | G21: 64 | H21: 238 | I21: 205 | J21: 279 | K21: 183 | L21: 136 | M21: 76 | N21: 64 | O21: 257 | P21: 154 | Q21: 239 | R21: 207 | S21: 134 | T21: 76 | U21: 83 | V21: 252 | W21: 257 | X21: 84 | Y21: 216 | Z21: 200 | AA21: 95 | AB21: 64 | AC21: 233
A22: Отменено клиентом + неявка (все центры МРТ) | B22: 34 | C22: 38 | D22: 41 | E22: 30 | F22: 37 | G22: 29 | H22: 29 | I22: 20 | J22: 23 | K22: 26 | L22: 18 | M22: 34 | N22: 29 | O22: 31 | P22: 41 | Q22: 25 | R22: 47 | S22: 24 | T22: 31 | U22: 21 | V22: 40 | W22: 34 | X22: 31 | Y22: 29 | Z22: 33 | AA22: 25 | AB22: 33 | AC22: 31
A23: АПО | B23: 53 | C23: 76 | D23: 76 | E23: 50 | F23: 36 | G23: 31 | H23: 98 | I23: 64 | J23: 69 | K23: 67 | L23: 63 | M23: 46 | N23: 18 | O23: 72 | P23: 107 | Q23: 85 | R23: 86 | S23: 68 | T23: 37 | U23: 8 | V23: 67 | W23: 56 | X23: 91 | Y23: 95 | Z23: 55 | AA23: 43 | AB23: 27 | AC23: 95
A24: Всего записано за день (МРТ + АПО): | B24: =SUM(B21+B23) -> 251 | C24: =SUM(C21+C23) -> 201 | D24: =SUM(D21+D23) -> 338 | E24: =SUM(E21+E23) -> 164 | F24: 117 | G24: 95 | H24: 336 | I24: 269 | J24: 348 | K24: 250 | L24: 199 | M24: 122 | N24: 82 | O24: 329 | P24: 261 | Q24: 324 | R24: 293 | S24: 202 | T24: 113 | U24: 91 | V24: 319 | W24: 313 | X24: 175 | Y24: 311 | Z24: 255 | AA24: 138 | AB24: 91 | AC24: 328
A25: ПЭТ/КТ | B25: 41 | C25: 54 | D25: 51 | E25: 55 | F25: 4 | G25: 1 | H25: 62 | I25: 40 | J25: 53 | K25: 40 | L25: 52 | M25: 1 | N25: 0 | O25: 56 | P25: 45 | Q25: 46 | R25: 74 | S25: 57 | T25: 4 | U25: 2 | V25: 64 | W25: 44 | X25: 2 | Y25: 50 | Z25: 76 | AA25: 4 | AB25: 0 | AC25: 56
A26: Очередь ПЭТ/КТ | B26: 671 | C26: 672 | D26: 667 | E26: 670 | F26: 674 | G26: 675 | H26: 681 | I26: 662 | J26: 660 | K26: 652 | L26: 652 | M26: 653 | N26: 653 | O26: 653 | P26: 651 | Q26: 654 | R26: 675 | S26: 679 | T26: 683 | U26: 685 | V26: 693 | W26: 690 | X26: 637 | Y26: 642 | Z26: 660 | AA26: 664 | AB26: 664 | AC26: 662
A27: Очередь КТ-Приморский | B27: 302 | C27: 320 | D27: 334 | E27: 335 | F27: 307 | G27: 286 | H27: 285 | I27: 304 | J27: 300 | K27: 300 | L27: 296 | M27: 274 | N27: 243 | O27: 282 | P27: 282 | Q27: 289 | R27: 307 | S27: 287 | T27: 260 | U27: 241 | V27: 264 | W27: 294 | X27: 268 | Y27: 268 | Z27: 271 | AA27: 249 | AB27: 220 | AC27: 239
A29: Кол-во операторов | B29: 8 | C29: 8 | D29: 8 | E29: 8 | F29: 5 | G29: 4 | H29: 7 | I29: 7 | J29: 7 | K29: 7 | L29: 7 | M29: 6 | N29: 4 | O29: 8 | P29: 8 | Q29: 8 | R29: 8 | S29: 8 | T29: 4 | U29: 3 | V29: 8 | W29: 8 | X29: 6 | Y29: 8 | Z29: 8 | AA29: 5 | AB29: 4 | AC29: 8
A30: сумма часов работы операторов | B30: 84 | C30: 84 | D30: 84 | E30: 84 | F30: 60 | G30: 44 | H30: 73 | I30: 76 | J30: 76 | K30: 76 | L30: 72 | M30: 68 | N30: 48 | O30: 84 | P30: 80 | Q30: 80 | R30: 84 | S30: 79 | T30: 48 | U30: 36 | V30: 84 | W30: 72 | X30: 64 | Y30: 84 | Z30: 84 | AA30: 56 | AB30: 48 | AC30: 84
A32: Время ожидания на линии (мин)
A33: 244-00-24 (среднее) | B33: =72/60 -> 1.2 | C33: =133/60 -> 2.216666667 | D33: =184/60 -> 3.066666667 | E33: =79/60 -> 1.316666667 | F33: =187/60 -> 3.116666667 | G33: =32/60 -> 0.5333333333 | H33: =214/60 -> 3.566666667 | I33: =298/60 -> 4.966666667 | J33: =246/60 -> 4.1 | K33: =216/60 -> 3.6 | L33: =436/60 -> 7.266666667 | M33: =271/60 -> 4.516666667 | N33: =27/60 -> 0.45 | O33: =154/60 -> 2.566666667 | P33: =497/60 -> 8.283333333 | Q33: =215/60 -> 3.583333333 | R33: =200/60 -> 3.333333333 | S33: =187/60 -> 3.116666667 | T33: =74/60 -> 1.233333333 | U33: =141/60 -> 2.35 | V33: =164/60 -> 2.733333333 | W33: =130/60 -> 2.166666667 | X33: =25/60 -> 0.4166666667 | Y33: =287/60 -> 4.783333333 | Z33: =313/60 -> 5.216666667 | AA33: =82/60 -> 1.366666667 | AB33: =33/60 -> 0.55 | AC33: =106/60 -> 1.766666667
A34: 244-31-27 (КТ Ковид, время среднее) | B34: =2680/60 -> 44.66666667 | C34: =2264/60 -> 37.73333333 | D34: =2444/60 -> 40.73333333 | E34: =2451/60 -> 40.85 | F34: =2638/60 -> 43.96666667 | G34: =817/60 -> 13.61666667 | H34: =2923/60 -> 48.71666667 | I34: =2204/60 -> 36.73333333 | J34: =2599/60 -> 43.31666667 | K34: =2940/60 -> 49 | L34: =2905/60 -> 48.41666667 | M34: =2514/60 -> 41.9 | N34: =2104/60 -> 35.06666667 | O34: =2768/60 -> 46.13333333 | P34: =2341/60 -> 39.01666667 | Q34: =2221/60 -> 37.01666667 | R34: =2051/60 -> 34.18333333 | S34: =2149/60 -> 35.81666667 | T34: =1107/60 -> 18.45 | U34: =234/60 -> 3.9 | V34: =1511/60 -> 25.18333333 | W34: =1822/60 -> 30.36666667 | X34: =254/60 -> 4.233333333 | Y34: =252/60 -> 4.2 | Z34: =506/60 -> 8.433333333 | AA34: =191/60 -> 3.183333333 | AB34: =81/60 -> 1.35 | AC34: =437/60 -> 7.283333333
A36: Нажали кнопку "1" - перевод в Клинику | B36: 7 | C36: 21 | D36: 7 | E36: 13 | F36: 7 | G36: 0 | H36: 17 | I36: 10 | J36: 20 | K36: 23 | L36: 21 | M36: 3 | N36: 0 | O36: 21 | P36: 19 | Q36: 13 | R36: 13 | S36: 13 | T36: 5 | U36: 0 | V36: 17 | W36: 9 | X36: 6 | Y36: 13 | Z36: 12 | AA36: 6 | AB36: 0 | AC36: 12
A38: Отчет по КТ-Ковид
A39: Записали КТ Ковид за день:
A40: Записаны сегодня на КТ (Советская) | B40: 219 | C40: 237 | D40: 167 | E40: 207 | F40: 107 | G40: 83 | H40: 163 | I40: 230 | J40: 184 | K40: 132 | L40: 165 | M40: 104 | N40: 74 | O40: 187 | P40: 206 | Q40: 212 | R40: 237 | S40: 198 | T40: 97 | U40: 53 | V40: 165 | W40: 184 | X40: 70 | Y40: 148 | Z40: 83 | AA40: 44 | AB40: 27 | AC40: 139
A41: из них ОМС | B41: 207 | C41: 228 | D41: 160 | E41: 204 | F41: 96 | G41: 69 | H41: 159 | I41: 220 | J41: 173 | K41: 122 | L41: 155 | M41: 97 | N41: 64 | O41: 175 | P41: 199 | Q41: 207 | R41: 228 | S41: 187 | T41: 93 | U41: 47 | V41: 154 | W41: 175 | X41: 62 | Y41: 144 | Z41: 76 | AA41: 36 | AB41: 21 | AC41: 132
A42: Записаны сегодня на КТ (Есенина) | B42: 343 | C42: 374 | D42: 375 | E42: 336 | F42: 267 | G42: 114 | H42: 275 | I42: 429 | J42: 405 | K42: 405 | L42: 403 | M42: 312 | N42: 163 | O42: 329 | P42: 369 | Q42: 330 | R42: 359 | S42: 313 | T42: 162 | U42: 68 | V42: 266 | W42: 242 | X42: 87 | Y42: 213 | Z42: 238 | AA42: 83 | AB42: 29 | AC42: 149
A43: из них ОМС | B43: 333 | C43: 368 | D43: 368 | E43: 328 | F43: 241 | G43: 100 | H43: 264 | I43: 417 | J43: 387 | K43: 390 | L43: 386 | M43: 297 | N43: 157 | O43: 323 | P43: 366 | Q43: 313 | R43: 353 | S43: 303 | T43: 159 | U43: 65 | V43: 260 | W43: 239 | X43: 83 | Y43: 208 | Z43: 230 | AA43: 80 | AB43: 26 | AC43: 147
A44: Записано платных (всего) | B44: =(B40+B42)-(B41+B43) -> 22 | C44: =(C40+C42)-(C41+C43) -> 15 | D44: =(D40+D42)-(D41+D43) -> 14 | E44: =(E40+E42)-(E41+E43) -> 11 | F44: 37 | G44: 28 | H44: 15 | I44: 22 | J44: 29 | K44: 25 | L44: 27 | M44: 22 | N44: 16 | O44: 18 | P44: 10 | Q44: 22 | R44: 15 | S44: 21 | T44: 7 | U44: 9 | V44: 17 | W44: 12 | X44: 12 | Y44: 9 | Z44: 15 | AA44: 11 | AB44: 9 | AC44: 9
A45: Всего записано за день: | B45: =SUM(B40+B42) -> 562 | C45: =SUM(C40+C42) -> 611 | D45: =SUM(D40+D42) -> 542 | E45: =SUM(E40+E42) -> 543 | F45: 374 | G45: 197 | H45: 438 | I45: 659 | J45: 589 | K45: 537 | L45: 568 | M45: 416 | N45: 237 | O45: 516 | P45: 575 | Q45: 542 | R45: 596 | S45: 511 | T45: 259 | U45: 121 | V45: 431 | W45: 426 | X45: 157 | Y45: 361 | Z45: 321 | AA45: 127 | AB45: 56 | AC45: 288
A47: Очередь по записи КТ-Ковид:
A48: Советская | B48: 686 | C48: 733 | D48: 711 | E48: 719 | F48: 635 | G48: 541 | H48: 515 | I48: 550 | J48: 552 | K48: 503 | L48: 481 | M48: 549 | N48: 582 | O48: 723 | P48: 715 | Q48: 738 | R48: 781 | S48: 786 | T48: 692 | U48: 561 | V48: 538 | W48: 531 | X48: 405 | Y48: 369 | Z48: 282 | AA48: 291 | AB48: 295 | AC48: 405
A49: Есенина | B49: 1010 | C49: 1019 | D49: 1019 | E49: 985 | F49: 886 | G49: 629 | H49: 535 | I49: 602 | J49: 744 | K49: 799 | L49: 927 | M49: 882 | N49: 685 | O49: 741 | P49: 829 | Q49: 876 | R49: 956 | S49: 994 | T49: 877 | U49: 672 | V49: 668 | W49: 633 | X49: 451 | Y49: 396 | Z49: 367 | AA49: 270 | AB49: 211 | AC49: 186
A50: Всего в очереди: | B50: =SUM(B48:B49) -> 1696 | C50: =SUM(C48:C49) -> 1752 | D50: =SUM(D48:D49) -> 1730 | E50: =SUM(E48:E49) -> 1704 | F50: 1521 | G50: 1170 | H50: 1050 | I50: 1152 | J50: 1296 | K50: 1302 | L50: 1408 | M50: 1431 | N50: 1267 | O50: 1464 | P50: 1544 | Q50: 1614 | R50: 1737 | S50: 1780 | T50: 1569 | U50: 1233 | V50: 1206 | W50: 1164 | X50: 856 | Y50: 765 | Z50: 649 | AA50: 561 | AB50: 506 | AC50: 591
A52: Выполнено КТ-Ковид за день:
A53: Советская | B53: 160 | C53: 159 | D53: 160 | E53: 163 | F53: 163 | G53: 163 | H53: 169 | I53: 159 | J53: 159 | K53: 165 | L53: 168 | M53: 24 | N53: 18 | O53: 24 | P53: 168 | Q53: 162 | R53: 163 | S53: 164 | T53: 163 | U53: 163 | V53: 160 | W53: 163 | X53: 158 | Y53: 161 | Z53: 160 | AA53: 22 | AB53: 18 | AC53: 22
A54: Есенина | B54: 324 | C54: 315 | D54: 319 | E54: 318 | F54: 325 | G54: 323 | H54: 328 | I54: 321 | J54: 249 | K54: 321 | L54: 240 | M54: 325 | N54: 326 | O54: 244 | P54: 248 | Q54: 244 | R54: 247 | S54: 251 | T54: 239 | U54: 238 | V54: 245 | W54: 239 | X54: 231 | Y54: 248 | Z54: 241 | AA54: 164 | AB54: 79 | AC54: 154
A55: Всего выполнено за день: | B55: =SUM(B53:B54) -> 484 | C55: =SUM(C53:C54) -> 474 | D55: =SUM(D53:D54) -> 479 | E55: =SUM(E53:E54) -> 481 | F55: 488 | G55: 486 | H55: 497 | I55: 480 | J55: 408 | K55: 486 | L55: 408 | M55: 349 | N55: 344 | O55: 268 | P55: 416 | Q55: 406 | R55: 410 | S55: 415 | T55: 402 | U55: 401 | V55: 405 | W55: 402 | X55: 389 | Y55: 409 | Z55: 401 | AA55: 186 | AB55: 97 | AC55: 176

Sheet Март 2022
A1: Отчет по call-центру
B2: 2022-03-01 | C2: 2022-03-02 | D2: 2022-03-03 | E2: 2022-03-04 | F2: 2022-03-05 | G2: 2022-03-06 | H2: 2022-03-07 | I2: 2022-03-08 | J2: 2022-03-09 | K2: 2022-03-10 | L2: 2022-03-11 | M2: 2022-03-12 | N2: 2022-03-13 | O2: 2022-03-14 | P2: 2022-03-15 | Q2: 2022-03-16 | R2: 2022-03-17 | S2: 2022-03-18 | T2: 2022-03-19 | U2: 2022-03-20 | V2: 2022-03-21 | W2: 2022-03-22 | X2: 2022-03-23 | Y2: 2022-03-24 | Z2: 2022-03-25 | AA2: 2022-03-26 | AB2: 2022-03-27 | AC2: 2022-03-28 | AD2: 2022-03-29 | AE2: 2022-03-30 | AF2: 2022-03-31
A3: Кол-во обраб. звонков (Линия call-центр) | B3: 517 | C3: 521 | D3: 444 | E3: 463 | F3: 379 | G3: 203 | H3: 235 | I3: 168 | J3: 528 | K3: 499 | L3: 505 | M3: 275 | N3: 236 | O3: 568 | P3: 478 | Q3: 515 | R3: 482 | S3: 539 | T3: 260 | U3: 220 | V3: 585 | W3: 583 | X3: 538 | Y3: 595 | Z3: 554 | AA3: 272 | AB3: 230 | AC3: 551 | AD3: 547 | AE3: 603 | AF3: 545
A4: Кол-во пропущенных | B4: 37 | C4: 46 | D4: 111 | E4: 63 | F4: 37 | G4: 7 | H4: 25 | I4: 16 | J4: 68 | K4: 66 | L4: 108 | M4: 60 | N4: 16 | O4: 58 | P4: 172 | Q4: 44 | R4: 38 | S4: 24 | T4: 56 | U4: 41 | V4: 58 | W4: 57 | X4: 154 | Y4: 67 | Z4: 72 | AA4: 41 | AB4: 28 | AC4: 201 | AD4: 69 | AE4: 97 | AF4: 45
A5: Кол-во обраб. звонков (Линия КТ-Ковид) | B5: 248 | C5: 239 | D5: 217 | E5: 181 | F5: 155 | G5: 66 | H5: 68 | I5: 28 | J5: 226 | K5: 163 | L5: 183 | M5: 60 | N5: 30 | O5: 147 | P5: 159 | Q5: 129 | R5: 120 | S5: 124 | T5: 50 | U5: 24 | V5: 145 | W5: 118 | X5: 124 | Y5: 115 | Z5: 99 | AA5: 42 | AB5: 30 | AC5: 111 | AD5: 104 | AE5: 80 | AF5: 99
A6: Кол-во пропущенных | B6: 50 | C6: 19 | D6: 11 | E6: 11 | F6: 15 | G6: 0 | H6: 5 | I6: 4 | J6: 15 | K6: 6 | L6: 12 | M6: 9 | N6: 0 | O6: 7 | P6: 3 | Q6: 8 | R6: 7 | S6: 5 | T6: 5 | U6: 3 | V6: 3 | W6: 5 | X6: 8 | Y6: 10 | Z6: 7 | AA6: 1 | AB6: 2 | AC6: 12 | AD6: 8 | AE6: 25 | AF6: 9
A7: Всего звонков (обе линии) | B7: =SUM(B3+B5) -> 765 | C7: =SUM(C3+C5) -> 760 | D7: =SUM(D3+D5) -> 661 | E7: =SUM(E3+E5) -> 644 | F7: =SUM(F3+F5) -> 534 | G7: 269 | H7: 303 | I7: 196 | J7: 754 | K7: 662 | L7: 688 | M7: 335 | N7: 266 | O7: 715 | P7: 637 | Q7: 644 | R7: 602 | S7: 663 | T7: 310 | U7: 244 | V7: 730 | W7: 701 | X7: 662 | Y7: 710 | Z7: 653 | AA7: 314 | AB7: 260 | AC7: 662 | AD7: 651 | AE7: 683 | AF7: 644
A9: Заявки на сайте:
A10: Количество заявок на сайте (всего) | B10: 44 | C10: 68 | D10: 58 | E10: 44 | F10: 37 | G10: 22 | H10: 38 | I10: 15 | J10: 67 | K10: 64 | L10: 43 | M10: 21 | N10: 21 | O10: 55 | P10: 45 | Q10: 55 | R10: 40 | S10: 34 | T10: 15 | U10: 17 | V10: 48 | W10: 39 | X10: 37 | Y10: 51 | Z10: 49 | AA10: 26 | AB10: 24 | AC10: 63 | AD10: 38 | AE10: 51 | AF10: 30
A11: Со статусом "записался" | B11: 32 | C11: 33 | D11: 34 | E11: 40 | F11: 25 | G11: 12 | H11: 20 | I11: 11 | J11: 44 | K11: 31 | L11: 28 | M11: 11 | N11: 14 | O11: 32 | P11: 27 | Q11: 31 | R11: 20 | S11: 14 | T11: 6 | U11: 6 | V11: 26 | W11: 13 | X11: 19 | Y11: 25 | Z11: 27 | AA11: 13 | AB11: 10 | AC11: 32 | AD11: 24 | AE11: 30 | AF11: 11
A12: Заявки на сайте КТ Ковид | B12: 15 | C12: 18 | D12: 22 | E12: 17 | F12: 9 | G12: 5 | H12: 8 | I12: 4 | J12: 22 | K12: 22 | L12: 13 | M12: 6 | N12: 2 | O12: 14 | P12: 8 | Q12: 19 | R12: 8 | S12: 9 | T12: 1 | U12: 1 | V12: 10 | W12: 4 | X12: 8 | Y12: 12 | Z12: 9 | AA12: 2 | AB12: 1 | AC12: 7 | AD12: 4 | AE12: 10 | AF12: 5
A13: Статус "записался" на КТ Ковид | B13: 12 | C13: 8 | D13: 17 | E13: 13 | F13: 8 | G13: 5 | H13: 5 | I13: 4 | J13: 15 | K13: 12 | L13: 10 | M13: 5 | N13: 2 | O13: 13 | P13: 6 | Q13: 13 | R13: 4 | S13: 7 | T13: 1 | U13: 1 | V13: 8 | W13: 3 | X13: 5 | Y13: 9 | Z13: 5 | AA13: 2 | AB13: 1 | AC13: 7 | AD13: 4 | AE13: 9 | AF13: 3
A15: Записались в центр (МРТ+АПО):
A16: МРТ Skyra (Есенина) | B16: 37 | C16: 53 | D16: 46 | E16: 30 | F16: 22 | G16: 10 | H16: 19 | I16: 14 | J16: 53 | K16: 65 | L16: 32 | M16: 31 | N16: 11 | O16: 47 | P16: 47 | Q16: 37 | R16: 27 | S16: 35 | T16: 12 | U16: 14 | V16: 41 | W16: 63 | X16: 37 | Y16: 34 | Z16: 45 | AA16: 25 | AB16: 13 | AC16: 60 | AD16: 36 | AE16: 42 | AF16: 33
A17: МРТ Skyra (Советская) | B17: 38 | C17: 35 | D17: 43 | E17: 31 | F17: 29 | G17: 7 | H17: 11 | I17: 8 | J17: 42 | K17: 32 | L17: 29 | M17: 15 | N17: 15 | O17: 48 | P17: 49 | Q17: 29 | R17: 31 | S17: 24 | T17: 33 | U17: 12 | V17: 23 | W17: 36 | X17: 35 | Y17: 83 | Z17: 59 | AA17: 22 | AB17: 12 | AC17: 41 | AD17: 38 | AE17: 53 | AF17: 22
A18: МРТ Essenza | B18: 28 | C18: 51 | D18: 35 | E18: 45 | F18: 27 | G18: 13 | H18: 12 | I18: 14 | J18: 44 | K18: 31 | L18: 45 | M18: 8 | N18: 9 | O18: 31 | P18: 37 | Q18: 44 | R18: 38 | S18: 55 | T18: 18 | U18: 9 | V18: 43 | W18: 38 | X18: 40 | Y18: 34 | Z18: 35 | AA18: 13 | AB18: 12 | AC18: 46 | AD18: 39 | AE18: 33 | AF18: 30
A19: МРТ Солидарности | B19: 55 | C19: 27 | D19: 44 | E19: 30 | F19: 15 | G19: 10 | H19: 8 | I19: 5 | J19: 27 | K19: 44 | L19: 27 | M19: 13 | N19: 10 | O19: 37 | P19: 71 | Q19: 44 | R19: 68 | S19: 20 | T19: 5 | U19: 5 | V19: 31 | W19: 111 | X19: 26 | Y19: 91 | Z19: 22 | AA19: 10 | AB19: 16 | AC19: 17 | AD19: 95 | AE19: 36 | AF19: 22
A20: МРТ Костюшко | B20: 46 | C20: 49 | D20: 54 | E20: 75 | F20: 15 | G20: 19 | H20: 15 | I20: 10 | J20: 60 | K20: 37 | L20: 40 | M20: 16 | N20: 22 | O20: 58 | P20: 36 | Q20: 62 | R20: 36 | S20: 38 | T20: 19 | U20: 10 | V20: 83 | W20: 47 | X20: 38 | Y20: 38 | Z20: 39 | AA20: 17 | AB20: 18 | AC20: 72 | AD20: 57 | AE20: 54 | AF20: 53
A21: Всего записано за день МРТ : | B21: =SUM(B16:B20) -> 204 | C21: =SUM(C16:C20) -> 215 | D21: =SUM(D16:D20) -> 222 | E21: =SUM(E16:E20) -> 211 | F21: =SUM(F16:F20) -> 108 | G21: 59 | H21: 65 | I21: 51 | J21: 226 | K21: 209 | L21: 173 | M21: 83 | N21: 67 | O21: 221 | P21: 240 | Q21: 216 | R21: 200 | S21: 172 | T21: 87 | U21: 50 | V21: 221 | W21: 295 | X21: 176 | Y21: 280 | Z21: 200 | AA21: 87 | AB21: 71 | AC21: 236 | AD21: 265 | AE21: 218 | AF21: 160
A22: Отменено клиентом + неявка (все центры МРТ) | B22: 30 | C22: 36 | D22: 23 | E22: 43 | F22: 18 | G22: 29 | H22: 26 | I22: 25 | J22: 16 | K22: 25 | L22: 23 | M22: 22 | N22: 26 | O22: 39 | P22: 25 | Q22: 42 | R22: 32 | S22: 29 | T22: 31 | U22: 27 | V22: 28 | W22: 32 | X22: 28 | Y22: 27 | Z22: 33 | AA22: 32 | AB22: 27 | AC22: 29 | AD22: 29 | AE22: 28 | AF22: 32
A23: АПО | B23: 47 | C23: 60 | D23: 79 | E23: 54 | F23: 61 | G23: 27 | H23: 45 | I23: 21 | J23: 79 | K23: 89 | L23: 88 | M23: 56 | N23: 19 | O23: 126 | P23: 92 | Q23: 74 | R23: 70 | S23: 95 | T23: 36 | U23: 16 | V23: 76 | W23: 70 | X23: 63 | Y23: 70 | Z23: 118 | AA23: 39 | AB23: 25 | AC23: 105 | AD23: 107 | AE23: 90 | AF23: 55
A24: Всего записано за день (МРТ + АПО): | B24: =SUM(B21+B23) -> 251 | C24: =SUM(C21+C23) -> 275 | D24: =SUM(D21+D23) -> 301 | E24: =SUM(E21+E23) -> 265 | F24: =SUM(F21+F23) -> 169 | G24: 86 | H24: 110 | I24: 72 | J24: 305 | K24: 298 | L24: 261 | M24: 139 | N24: 86 | O24: 347 | P24: 332 | Q24: 290 | R24: 270 | S24: 267 | T24: 123 | U24: 66 | V24: 297 | W24: 365 | X24: 239 | Y24: 350 | Z24: 318 | AA24: 126 | AB24: 96 | AC24: 341 | AD24: 372 | AE24: 308 | AF24: 215
A25: ПЭТ/КТ | B25: 64 | C25: 61 | D25: 50 | E25: 57 | F25: 58 | G25: 1 | H25: 2 | I25: 0 | J25: 76 | K25: 55 | L25: 61 | M25: 21 | N25: 2 | O25: 74 | P25: 54 | Q25: 44 | R25: 58 | S25: 56 | T25: 1 | U25: 1 | V25: 80 | W25: 57 | X25: 53 | Y25: 51 | Z25: 55 | AA25: 2 | AB25: 0 | AC25: 62 | AD25: 45 | AE25: 56 | AF25: 52
A26: ПЭТ/КТ ОМС | V26: 50 | W26: 34 | X26: 33 | Y26: 35 | Z26: 43 | AA26: 0 | AB26: 0 | AC26: 44 | AD26: 31 | AE26: 33 | AF26: 37
A27: Очередь ПЭТ/КТ | B27: 669 | C27: 671 | D27: 668 | E27: 664 | F27: 722 | G27: 723 | H27: 667 | I27: 610 | J27: 630 | K27: 644 | L27: 666 | M27: 638 | N27: 640 | O27: 654 | P27: 644 | Q27: 633 | R27: 637 | S27: 635 | T27: 584 | U27: 585 | V27: 608 | W27: 604 | X27: 600 | Y27: 609 | Z27: 612 | AA27: 614 | AB27: 614 | AC27: 622 | AD27: 620 | AE27: 621 | AF27: 616
A28: Очередь КТ-Приморский | B28: 255 | C28: 259 | D28: 252 | E28: 255 | F28: 240 | G28: 220 | H28: 200 | I28: 179 | J28: 195 | K28: 183 | L28: 183 | M28: 165 | N28: 138 | O28: 159 | P28: 170 | Q28: 165 | R28: 193 | S28: 199 | T28: 172 | U28: 155 | V28: 178 | W28: 204 | X28: 212 | Y28: 254 | Z28: 242 | AA28: 231 | AB28: 210 | AC28: 225 | AD28: 264 | AE28: 286 | AF28: 276
A30: Кол-во операторов | B30: 8 | C30: 8 | D30: 7 | E30: 8 | F30: 7 | G30: 5 | H30: 5 | I30: 5 | J30: 8 | K30: 8 | L30: 7 | M30: 4 | N30: 4 | O30: 7 | P30: 7 | Q30: 8 | R30: 8 | S30: 8 | T30: 4 | U30: 4 | V30: 8 | W30: 8 | X30: 6 | Y30: 8 | Z30: 8 | AA30: 4 | AB30: 4 | AC30: 6 | AD30: 7 | AE30: 7 | AF30: 7
A31: сумма часов работы операторов | B31: 79 | C31: 78 | D31: 69 | E31: 78 | F31: 67 | G31: 60 | H31: 60 | I31: 56 | J31: 84 | K31: 84 | L31: 72 | M31: 48 | N31: 48 | O31: 76 | P31: 76 | Q31: 77 | R31: 84 | S31: 84 | T31: 48 | U31: 48 | V31: 84 | W31: 84 | X31: 60 | Y31: 84 | Z31: 84 | AA31: 48 | AB31: 48 | AC31: 64 | AD31: 76 | AE31: 73 | AF31: 76
A33: Время ожидания на линии (мин)
A34: 244-00-24 (среднее) | B34: =66/60 -> 1.1 | C34: =66/60 -> 1.1 | D34: =168/60 -> 2.8 | E34: =103/60 -> 1.716666667 | F34: =73/60 -> 1.216666667 | G34: =32/60 -> 0.5333333333 | H34: =53/60 -> 0.8833333333 | I34: =24/60 -> 0.4 | J34: =97/60 -> 1.616666667 | K34: =100/60 -> 1.666666667 | L34: =121/60 -> 2.016666667 | M34: =80/60 -> 1.333333333 | N34: =54/60 -> 0.9 | O34: =123/60 -> 2.05 | P34: =186/60 -> 3.1 | Q34: =69/60 -> 1.15 | R34: =61/60 -> 1.016666667 | S34: =48/60 -> 0.8 | T34: =85/60 -> 1.416666667 | U34: =42/60 -> 0.7 | V34: =76/60 -> 1.266666667 | W34: =85/60 -> 1.416666667 | X34: =136/60 -> 2.266666667 | Y34: =84/60 -> 1.4 | Z34: =132/60 -> 2.2 | AA34: =95/60 -> 1.583333333 | AB34: =37/60 -> 0.6166666667 | AC34: =199/60 -> 3.316666667 | AD34: =117/60 -> 1.95 | AE34: =129/60 -> 2.15 | AF34: =57/60 -> 0.95
A35: 244-31-27 (КТ Ковид, время среднее) | B35: =281/60 -> 4.683333333 | C35: =188/60 -> 3.133333333 | D35: =121/60 -> 2.016666667 | E35: =94/60 -> 1.566666667 | F35: =101/60 -> 1.683333333 | G35: =66/60 -> 1.1 | H35: =88/60 -> 1.466666667 | I35: =17/60 -> 0.2833333333 | J35: =130/60 -> 2.166666667 | K35: =66/60 -> 1.1 | L35: =179/60 -> 2.983333333 | M35: =56/60 -> 0.9333333333 | N35: =8/60 -> 0.1333333333 | O35: =50/60 -> 0.8333333333 | P35: =30/60 -> 0.5 | Q35: =86/60 -> 1.433333333 | R35: =88/60 -> 1.466666667 | S35: =83/60 -> 1.383333333 | T35: =37/60 -> 0.6166666667 | U35: =17/60 -> 0.2833333333 | V35: =27/60 -> 0.45 | W35: =79/60 -> 1.316666667 | X35: =91/60 -> 1.516666667 | Y35: =101/60 -> 1.683333333 | Z35: =180/60 -> 3 | AA35: =21/60 -> 0.35 | AB35: =19/60 -> 0.3166666667 | AC35: =105/60 -> 1.75 | AD35: =58/60 -> 0.9666666667 | AE35: =114/60 -> 1.9 | AF35: =60/60 -> 1
A37: Нажали кнопку "1" - перевод в Клинику | B37: 7 | C37: 12 | D37: 18 | E37: 16 | F37: 8 | G37: 0 | H37: 3 | I37: 3 | J37: 12 | K37: 14 | L37: 10 | M37: 5 | N37: 0 | O37: 27 | P37: 13 | Q37: 11 | R37: 11 | S37: 14 | T37: 7 | U37: 0 | V37: 17 | W37: 20 | X37: 15 | Y37: 19 | Z37: 19 | AA37: 5 | AB37: 0 | AC37: 13 | AD37: 9 | AE37: 5 | AF37: 9
A39: Отчет по КТ-Ковид
A40: Записали КТ Ковид за день:
A41: Записаны сегодня на КТ (Советская) | B41: 114 | C41: 72 | D41: 85 | E41: 56 | F41: 60 | G41: 22 | H41: 20 | I41: 11 | J41: 95 | K41: 47 | L41: 53 | M41: 31 | N41: 10 | O41: 66 | P41: 62 | Q41: 64 | R41: 73 | S41: 31 | T41: 16 | U41: 12 | V41: 57 | W41: 67 | X41: 86 | Y41: 56 | Z41: 36 | AA41: 13 | AB41: 14 | AC41: 71 | AD41: 65 | AE41: 48 | AF41: 36
A42: из них ОМС | B42: 108 | C42: 65 | D42: 75 | E42: 46 | F42: 49 | G42: 20 | H42: 14 | I42: 9 | J42: 81 | K42: 27 | L42: 41 | M42: 23 | N42: 3 | O42: 39 | P42: 51 | Q42: 52 | R42: 48 | S42: 21 | T42: 12 | U42: 6 | V42: 35 | W42: 53 | X42: 76 | Y42: 36 | Z42: 18 | AA42: 3 | AB42: 6 | AC42: 57 | AD42: 48 | AE42: 34 | AF42: 17
A43: Записаны сегодня на КТ (Есенина) | B43: 107 | C43: 124 | D43: 120 | E43: 108 | F43: 96 | G43: 34 | H43: 41 | I43: 14 | J43: 122 | K43: 116 | L43: 111 | M43: 29 | N43: 10 | O43: 81 | P43: 79 | Q43: 77 | R43: 58 | S43: 84 | T43: 22 | U43: 13 | V43: 99 | W43: 79 | X43: 73 | Y43: 64 | Z43: 63 | AA43: 24 | AB43: 11 | AC43: 95 | AD43: 45 | AE43: 65 | AF43: 64
A44: из них ОМС | B44: 105 | C44: 124 | D44: 118 | E44: 105 | F44: 92 | G44: 32 | H44: 41 | I44: 14 | J44: 119 | K44: 114 | L44: 104 | M44: 28 | N44: 10 | O44: 80 | P44: 78 | Q44: 71 | R44: 55 | S44: 78 | T44: 22 | U44: 11 | V44: 93 | W44: 75 | X44: 72 | Y44: 58 | Z44: 59 | AA44: 20 | AB44: 10 | AC44: 89 | AD44: 35 | AE44: 55 | AF44: 57
A45: Записано платных (всего) | B45: =(B41+B43)-(B42+B44) -> 8 | C45: =(C41+C43)-(C42+C44) -> 7 | D45: =(D41+D43)-(D42+D44) -> 12 | E45: =(E41+E43)-(E42+E44) -> 13 | F45: =(F41+F43)-(F42+F44) -> 15 | G45: 4 | H45: 6 | I45: 2 | J45: 17 | K45: 22 | L45: 19 | M45: 9 | N45: 7 | O45: 28 | P45: 12 | Q45: 18 | R45: 28 | S45: 16 | T45: 4 | U45: 8 | V45: 28 | W45: 18 | X45: 11 | Y45: 26 | Z45: 22 | AA45: 14 | AB45: 9 | AC45: 20 | AD45: 27 | AE45: 24 | AF45: 26
A46: Всего записано за день: | B46: =SUM(B41+B43) -> 221 | C46: =SUM(C41+C43) -> 196 | D46: =SUM(D41+D43) -> 205 | E46: =SUM(E41+E43) -> 164 | F46: =SUM(F41+F43) -> 156 | G46: 56 | H46: 61 | I46: 25 | J46: 217 | K46: 163 | L46: 164 | M46: 60 | N46: 20 | O46: 147 | P46: 141 | Q46: 141 | R46: 131 | S46: 115 | T46: 38 | U46: 25 | V46: 156 | W46: 146 | X46: 159 | Y46: 120 | Z46: 99 | AA46: 37 | AB46: 25 | AC46: =SUM(AC41+AC43) -> 166 | AD46: =SUM(AD41+AD43) -> 110 | AE46: =SUM(AE41+AE43) -> 113 | AF46: =SUM(AF41+AF43) -> 100
A48: Очередь по записи КТ-Ковид:
A49: Советская | B49: 354 | C49: 279 | D49: 214 | E49: 203 | F49: 241 | G49: 244 | H49: 243 | I49: 180 | J49: 200 | K49: 173 | L49: 195 | M49: 201 | N49: 182 | O49: 223 | P49: 139 | Q49: 154 | R49: 198 | S49: 194 | T49: 181 | U49: 171 | V49: 199 | W49: 180 | X49: 190 | Y49: 221 | Z49: 232 | AA49: 215 | AB49: 206 | AC49: 251 | AD49: 237 | AE49: 206 | AF49: 215
A50: Есенина | B50: 218 | C50: 269 | D50: 234 | E50: 267 | F50: 216 | G50: 171 | H50: 133 | I50: 69 | J50: 137 | K50: 179 | L50: 142 | M50: 96 | N50: 64 | O50: 97 | P50: 99 | Q50: 106 | R50: 102 | S50: 110 | T50: 68 | U50: 81 | V50: 124 | W50: 183 | X50: 240 | Y50: 225 | Z50: 208 | AA50: 153 | AB50: 89 | AC50: 165 | AD50: 186 | AE50: 221 | AF50: 200
A51: Всего в очереди: | B51: =SUM(B49:B50) -> 572 | C51: =SUM(C49:C50) -> 548 | D51: =SUM(D49:D50) -> 448 | E51: =SUM(E49:E50) -> 470 | F51: =SUM(F49:F50) -> 457 | G51: 415 | H51: 376 | I51: 249 | J51: 337 | K51: 352 | L51: 337 | M51: 297 | N51: 246 | O51: 320 | P51: 238 | Q51: 260 | R51: 300 | S51: 304 | T51: 249 | U51: 252 | V51: 323 | W51: 363 | X51: 430 | Y51: 446 | Z51: 440 | AA51: 368 | AB51: 295 | AC51: 416 | AD51: 423 | AE51: 427 | AF51: 415
A53: Выполнено КТ-Ковид за день:
A54: Советская | B54: 138 | C54: 134 | D54: 137 | E54: 59 | F54: 18 | G54: 15 | H54: 18 | I54: 69 | J54: 60 | K54: 70 | L54: 21 | M54: 19 | N54: 20 | O54: 19 | P54: 124 | Q54: 43 | R54: 23 | S54: 28 | T54: 21 | U54: 16 | V54: 18 | W54: 69 | X54: 69 | Y54: 20 | Z54: 19 | AA54: 23 | AB54: 17 | AC54: 20 | AD54: 65 | AE54: 65 | AF54: 21 | AG54: диагностика (зеленая зона)
A55: Есенина | B55: 70 | C55: 72 | D55: 139 | E55: 69 | F55: 132 | G55: 71 | H55: 68 | I55: 68 | J55: 46 | K55: 69 | L55: 136 | M55: 68 | N55: 40 | O55: 39 | P55: 67 | Q55: 63 | R55: 54 | S55: 69 | T55: 56 | U55: 0 | V55: 52 | W55: 13 | X55: 12 | Y55: 68 | Z55: 70 | AA55: 70 | AB55: 65 | AC55: 13 | AD55: 17 | AE55: 21 | AF55: 69
A56: Всего выполнено за день: | B56: =SUM(B54:B55) -> 208 | C56: =SUM(C54:C55) -> 206 | D56: =SUM(D54:D55) -> 276 | E56: =SUM(E54:E55) -> 128 | F56: =SUM(F54:F55) -> 150 | G56: 86 | H56: 86 | I56: 137 | J56: 106 | K56: 139 | L56: 157 | M56: 87 | N56: 60 | O56: 58 | P56: 191 | Q56: 106 | R56: 77 | S56: 97 | T56: 77 | U56: 16 | V56: 70 | W56: 82 | X56: 81 | Y56: 88 | Z56: 89 | AA56: 93 | AB56: 82 | AC56: 33 | AD56: 82 | AE56: 86 | AF56: 90

Sheet Апрель 2022
A1: Отчет по call-центру
B2: 2022-04-01 | C2: 2022-04-02 | D2: 2022-04-03 | E2: 2022-04-04 | F2: 2022-04-05 | G2: 2022-04-06 | H2: 2022-04-07 | I2: 2022-04-08 | J2: 2022-04-09 | K2: 2022-04-10 | L2: 2022-04-11 | M2: 2022-04-12 | N2: 2022-04-13 | O2: 2022-04-14 | P2: 2022-04-15 | Q2: 2022-04-16 | R2: 2022-04-17 | S2: 2022-04-18 | T2: 2022-04-19 | U2: 2022-04-20 | V2: 2022-04-21 | W2: 2022-04-22 | X2: 2022-04-23 | Y2: 2022-04-24 | Z2: 2022-04-25 | AA2: 2022-04-26 | AB2: 2022-04-27 | AC2: 2022-04-28 | AD2: 2022-04-29 | AE2: 2022-04-30
A3: Кол-во обраб. звонков (Линия call-центр) | B3: 485 | C3: 294 | D3: 238 | E3: 561 | F3: 535 | G3: 539 | H3: 554 | I3: 516 | J3: 299 | K3: 212 | L3: 648 | M3: 555 | N3: 551 | O3: 604 | P3: 583 | Q3: 306 | R3: 213 | S3: 627 | T3: 513 | U3: 609 | V3: 553 | W3: 503 | X3: 243 | Y3: 190 | Z3: 638 | AA3: 636 | AB3: 570 | AC3: 517 | AD3: 521 | AE3: 261
A4: Кол-во пропущенных | B4: 55 | C4: 28 | D4: 10 | E4: 158 | F4: 51 | G4: 49 | H4: 48 | I4: 73 | J4: 71 | K4: 6 | L4: 111 | M4: 25 | N4: 32 | O4: 79 | P4: 40 | Q4: 28 | R4: 26 | S4: 75 | T4: 24 | U4: 67 | V4: 33 | W4: 27 | X4: 4 | Y4: 18 | Z4: 60 | AA4: 33 | AB4: 50 | AC4: 48 | AD4: 97 | AE4: 11
A5: Кол-во обраб. звонков (Линия КТ-Ковид) | B5: 98 | C5: 41 | D5: 15 | E5: 108 | F5: 94 | G5: 79 | H5: 83 | I5: 103 | J5: 40 | K5: 9 | L5: 105 | M5: 82 | N5: 75 | O5: 62 | P5: 70 | Q5: 49 | R5: 10 | S5: 92 | T5: 92 | U5: 96 | V5: 78 | W5: 59 | X5: 12 | Y5: 8 | Z5: 85 | AA5: 67 | AB5: 63 | AC5: 67 | AD5: 65 | AE5: 25
A6: Кол-во пропущенных | B6: 11 | C6: 1 | D6: 1 | E6: 6 | F6: 3 | G6: 11 | H6: 5 | I6: 12 | J6: 3 | K6: 0 | L6: 12 | M6: 4 | N6: 8 | O6: 4 | P6: 10 | Q6: 1 | R6: 0 | S6: 16 | T6: 9 | U6: 8 | V6: 4 | W6: 10 | X6: 0 | Y6: 1 | Z6: 2 | AA6: 3 | AB6: 4 | AC6: 4 | AD6: 3 | AE6: 1
A7: Всего звонков (обе линии) | B7: =SUM(B3+B5) -> 583 | C7: =SUM(C3+C5) -> 335 | D7: 253 | E7: 669 | F7: 629 | G7: 618 | H7: 637 | I7: 619 | J7: 339 | K7: 221 | L7: 753 | M7: 637 | N7: 626 | O7: 666 | P7: 653 | Q7: 355 | R7: 223 | S7: 719 | T7: 605 | U7: 705 | V7: 631 | W7: 562 | X7: 255 | Y7: 198 | Z7: 723 | AA7: 703 | AB7: 633 | AC7: 584 | AD7: 586 | AE7: 286
A9: Заявки на сайте:
A10: Количество заявок на сайте (всего) | B10: 30 | C10: 16 | D10: 20 | E10: 44 | F10: 37 | G10: 24 | H10: 29 | I10: 33 | J10: 15 | K10: 19 | L10: 58 | M10: 34 | N10: 32 | O10: 41 | P10: 30 | Q10: 17 | R10: 15 | S10: 35 | T10: 38 | U10: 33 | V10: 19 | W10: 30 | X10: 14 | Y10: 13 | Z10: 35 | AA10: 36 | AB10: 34 | AC10: 31 | AD10: 39 | AE10: 21
A11: Со статусом "записался" | B11: 19 | C11: 7 | D11: 11 | E11: 34 | F11: 21 | G11: 13 | H11: 17 | I11: 15 | J11: 9 | K11: 7 | L11: 25 | M11: 13 | N11: 16 | O11: 17 | P11: 15 | Q11: 11 | R11: 6 | S11: 17 | T11: 20 | U11: 14 | V11: 7 | W11: 19 | X11: 6 | Y11: 4 | Z11: 19 | AA11: 15 | AB11: 12 | AC11: 16 | AD11: 27 | AE11: 9
A12: Заявки на сайте КТ Ковид | B12: 6 | C12: 0 | D12: 1 | E12: 12 | F12: 5 | G12: 2 | H12: 3 | I12: 8 | J12: 1 | K12: 1 | L12: 6 | M12: 3 | N12: 5 | O12: 9 | P12: 5 | Q12: 0 | R12: 0 | S12: 2 | T12: 2 | U12: 3 | V12: 1 | W12: 6 | X12: 3 | Y12: 0 | Z12: 2 | AA12: 0 | AB12: 2 | AC12: 2 | AD12: 3 | AE12: 2
A13: Статус "записался" на КТ Ковид | B13: 5 | C13: 0 | D13: 1 | E13: 10 | F13: 4 | G13: 2 | H13: 2 | I13: 4 | J13: 1 | K13: 0 | L13: 4 | M13: 1 | N13: 4 | O13: 6 | P13: 5 | Q13: 0 | R13: 0 | S13: 2 | T13: 2 | U13: 3 | V13: 0 | W13: 5 | X13: 3 | Y13: 0 | Z13: 2 | AA13: 0 | AB13: 2 | AC13: 1 | AD13: 1 | AE13: 2
A15: Записались в центр (МРТ+АПО):
A16: МРТ Skyra (Есенина) | B16: 29 | C16: 22 | D16: 8 | E16: 45 | F16: 43 | G16: 61 | H16: 29 | I16: 37 | J16: 15 | K16: 15 | L16: 56 | M16: 31 | N16: 42 | O16: 51 | P16: 40 | Q16: 18 | R16: 22 | S16: 62 | T16: 27 | U16: 28 | V16: 27 | W16: 34 | X16: 14 | Y16: 11 | Z16: 58 | AA16: 48 | AB16: 44 | AC16: 41 | AD16: 39 | AE16: 17
A17: МРТ Skyra (Советская) | B17: 25 | C17: 21 | D17: 16 | E17: 34 | F17: 33 | G17: 43 | H17: 33 | I17: 28 | J17: 19 | K17: 15 | L17: 45 | M17: 30 | N17: 24 | O17: 27 | P17: 36 | Q17: 27 | R17: 9 | S17: 27 | T17: 26 | U17: 22 | V17: 28 | W17: 45 | X17: 16 | Y17: 4 | Z17: 65 | AA17: 61 | AB17: 43 | AC17: 47 | AD17: 38 | AE17: 16
A18: МРТ Essenza | B18: 25 | C18: 16 | D18: 14 | E18: 52 | F18: 49 | G18: 37 | H18: 24 | I18: 36 | J18: 16 | K18: 15 | L18: 44 | M18: 31 | N18: 29 | O18: 35 | P18: 27 | Q18: 11 | R18: 11 | S18: 99 | T18: 43 | U18: 37 | V18: 23 | W18: 42 | X18: 10 | Y18: 9 | Z18: 41 | AA18: 42 | AB18: 28 | AC18: 35 | AD18: 44 | AE18: 15
A19: МРТ Солидарности | B19: 25 | C19: 13 | D19: 12 | E19: 43 | F19: 78 | G19: 19 | H19: 17 | I19: 29 | J19: 12 | K19: 10 | L19: 30 | M19: 101 | N19: 34 | O19: 31 | P19: 31 | Q19: 14 | R19: 8 | S19: 24 | T19: 98 | U19: 34 | V19: 23 | W19: 19 | X19: 7 | Y19: 8 | Z19: 97 | AA19: 127 | AB19: 37 | AC19: 22 | AD19: 21 | AE19: 9
A20: МРТ Костюшко | B20: 43 | C20: 14 | D20: 13 | E20: 74 | F20: 57 | G20: 54 | H20: 46 | I20: 43 | J20: 14 | K20: 19 | L20: 87 | M20: 39 | N20: 43 | O20: 34 | P20: 27 | Q20: 19 | R20: 16 | S20: 98 | T20: 57 | U20: 39 | V20: 36 | W20: 26 | X20: 19 | Y20: 12 | Z20: 65 | AA20: 53 | AB20: 49 | AC20: 48 | AD20: 27 | AE20: 16
A21: Всего записано за день МРТ : | B21: =SUM(B16:B20) -> 147 | C21: =SUM(C16:C20) -> 86 | D21: 63 | E21: 248 | F21: 260 | G21: 214 | H21: 149 | I21: 173 | J21: 76 | K21: 74 | L21: 262 | M21: 232 | N21: 172 | O21: 178 | P21: 161 | Q21: 89 | R21: 66 | S21: 310 | T21: 251 | U21: 160 | V21: 137 | W21: 166 | X21: 66 | Y21: 44 | Z21: 326 | AA21: 331 | AB21: 201 | AC21: 193 | AD21: 169 | AE21: 73
A22: Отменено клиентом + неявка (все центры МРТ) | B22: 39 | C22: 35 | D22: 38 | E22: 20 | F22: 40 | G22: 31 | H22: 26 | I22: 32 | J22: 29 | K22: 37 | L22: 33 | M22: 34 | N22: 35 | O22: 36 | P22: 42 | Q22: 28 | R22: 42 | S22: 25 | T22: 43 | U22: 32 | V22: 30 | W22: 42 | X22: 35 | Y22: 34 | Z22: 40 | AA22: 39 | AB22: 30 | AC22: 34 | AD22: 48 | AE22: 26
A23: АПО | B23: 62 | C23: 49 | D23: 17 | E23: 75 | F23: 73 | G23: 87 | H23: 88 | I23: 89 | J23: 46 | K23: 25 | L23: 88 | M23: 78 | N23: 99 | O23: 58 | P23: 81 | Q23: 42 | R23: 17 | S23: 106 | T23: 70 | U23: 104 | V23: 65 | W23: 53 | X23: 41 | Y23: 11 | Z23: 67 | AA23: 67 | AB23: 84 | AC23: 96 | AD23: 83 | AE23: 44
A24: Всего записано за день (МРТ + АПО): | B24: =SUM(B21+B23) -> 209 | C24: =SUM(C21+C23) -> 135 | D24: 80 | E24: 323 | F24: 333 | G24: 301 | H24: 237 | I24: 262 | J24: 122 | K24: 99 | L24: 350 | M24: 310 | N24: 271 | O24: 236 | P24: 242 | Q24: 131 | R24: 83 | S24: 416 | T24: 321 | U24: 264 | V24: 202 | W24: 219 | X24: 107 | Y24: 55 | Z24: 393 | AA24: 398 | AB24: 285 | AC24: 289 | AD24: 252 | AE24: 117
A25: ПЭТ/КТ | B25: 65 | C25: 1 | D25: 0 | E25: 53 | F25: 48 | G25: 42 | H25: 53 | I25: 44 | J25: 0 | K25: 2 | L25: 53 | M25: 54 | N25: 36 | O25: 40 | P25: 52 | Q25: 4 | R25: 2 | S25: 82 | T25: 55 | U25: 80 | V25: 51 | W25: 53 | X25: 0 | Y25: 1 | Z25: 61 | AA25: 58 | AB25: 60 | AC25: 64 | AD25: 55 | AE25: 9
A26: ПЭТ/КТ ОМС | B26: 38 | C26: 0 | D26: 0 | E26: 41 | F26: 28 | G26: 34 | H26: 41 | I26: 32 | J26: 0 | K26: 0 | L26: 38 | M26: 29 | N26: 29 | O26: 28 | P26: 27 | Q26: 0 | R26: 0 | S26: 36 | T26: 45 | U26: 47 | V26: 38 | W26: 40 | X26: 0 | Y26: 0 | Z26: 45 | AA26: 43 | AB26: 43 | AC26: 48 | AD26: 38 | AE26: 7
A27: Очередь ПЭТ/КТ | B27: 634 | C27: 635 | D27: 635 | E27: 637 | F27: 634 | G27: 624 | H27: 633 | I27: 632 | J27: 632 | K27: 634 | L27: 633 | M27: 642 | N27: 621 | O27: 610 | P27: 610 | Q27: 614 | R27: 616 | S27: 641 | T27: 650 | U27: 698 | V27: 707 | W27: 709 | X27: 709 | Y27: 710 | Z27: 727 | AA27: 740 | AB27: 753 | AC27: 773 | AD27: 780 | AE27: 789
A28: Очередь КТ-Приморский | B28: 262 | C28: 247 | D28: 227 | E28: 236 | F28: 261 | G28: 262 | H28: 248 | I28: 241 | J28: 216 | K28: 202 | L28: 242 | M28: 273 | N28: 288 | O28: 274 | P28: 272 | Q28: 248 | R28: 229 | S28: 242 | T28: 258 | U28: 263 | V28: 246 | W28: 230 | X28: 211 | Y28: 193 | Z28: 243 | AA28: 265 | AB28: 272 | AC28: 273 | AD28: 255 | AE28: 233
A30: Кол-во операторов | B30: 6 | C30: 4 | D30: 4 | E30: 7 | F30: 7 | G30: 7 | H30: 7 | I30: 7 | J30: 4 | K30: 4 | L30: 8 | M30: 7 | N30: 8 | O30: 7 | P30: 8 | Q30: 4 | R30: 4 | S30: 7 | T30: 8 | U30: 7 | V30: 8 | W30: 8 | X30: 5 | Y30: 5 | Z30: 8 | AA30: 8 | AB30: 8 | AC30: 7 | AD30: 8 | AE30: 5
A31: сумма часов работы операторов | B31: 68 | C31: 48 | D31: 48 | E31: 72 | F31: 72 | G31: 72 | H31: 72 | I31: 72 | J31: 48 | K31: 48 | L31: 83 | M31: 72 | N31: 84 | O31: 72 | P31: 84 | Q31: 48 | R31: 48 | S31: 76 | T31: 84 | U31: 72 | V31: 84 | W31: 84 | X31: 60 | Y31: 53 | Z31: 84 | AA31: 84 | AB31: 84 | AC31: 73 | AD31: 84 | AE31: 60
A33: Время ожидания на линии (мин)
A34: 244-00-24 (среднее) | B34: =64/60 -> 1.066666667 | C34: =104/60 -> 1.733333333 | D34: =47/60 -> 0.7833333333 | E34: =122/60 -> 2.033333333 | F34: =85/60 -> 1.416666667 | G34: =67/60 -> 1.116666667 | H34: =61/60 -> 1.016666667 | I34: =137/60 -> 2.283333333 | J34: =130/60 -> 2.166666667 | K34: =29/60 -> 0.4833333333 | L34: =133/60 -> 2.216666667 | M34: =42/60 -> 0.7 | N34: =41/60 -> 0.6833333333 | O34: =108/60 -> 1.8 | P34: =59/60 -> 0.9833333333 | Q34: =54/60 -> 0.9 | R34: =45/60 -> 0.75 | S34: =103/60 -> 1.716666667 | T34: =39/60 -> 0.65 | U34: =68/60 -> 1.133333333 | V34: =35/60 -> 0.5833333333 | W34: =48/60 -> 0.8 | X34: =23/60 -> 0.3833333333 | Y34: =28/60 -> 0.4666666667 | Z34: =84/60 -> 1.4 | AA34: =48/60 -> 0.8 | AB34: =79/60 -> 1.316666667 | AC34: =56/50 -> 1.12 | AD34: =136/60 -> 2.266666667 | AE34: =15/60 -> 0.25
A35: 244-31-27 (КТ Ковид, время среднее) | B35: =55/50 -> 1.1 | C35: =30/60 -> 0.5 | D35: =18/60 -> 0.3 | E35: =85/60 -> 1.416666667 | F35: =66/60 -> 1.1 | G35: =67/60 -> 1.116666667 | H35: =67/60 -> 1.116666667 | I35: =107/60 -> 1.783333333 | J35: =23/60 -> 0.3833333333 | K35: =10/60 -> 0.1666666667 | L35: =243/60 -> 4.05 | M35: =29/60 -> 0.4833333333 | N35: =91/60 -> 1.516666667 | O35: =108/60 -> 1.8 | P35: =98/60 -> 1.633333333 | Q35: =41/60 -> 0.6833333333 | R35: =18/60 -> 0.3 | S35: =176/60 -> 2.933333333 | T35: =96/60 -> 1.6 | U35: =71/60 -> 1.183333333 | V35: =58/60 -> 0.9666666667 | W35: =135/60 -> 2.25 | X35: =6/60 -> 0.1 | Y35: =8/60 -> 0.1333333333 | Z35: =56/60 -> 0.9333333333 | AA35: =78/60 -> 1.3 | AB35: =48/60 -> 0.8 | AC35: =31/60 -> 0.5166666667 | AD35: =46/60 -> 0.7666666667 | AE35: =15/60 -> 0.25
A37: Нажали кнопку "1" - перевод в Клинику | B37: 9 | C37: 8 | D37: 0 | E37: 12 | F37: 20 | G37: 15 | H37: 14 | I37: 16 | J37: 5 | K37: 0 | L37: 10 | M37: 6 | N37: 11 | O37: 12 | P37: 7 | Q37: 5 | R37: 0 | S37: 18 | T37: 11 | U37: 15 | V37: 10 | W37: 10 | X37: 2 | Y37: 0 | Z37: 9 | AA37: 14 | AB37: 9 | AC37: 8 | AD37: 11 | AE37: 6
A39: Отчет по КТ
A40: Записали КТ за день:
A41: Записаны сегодня на КТ (Советская) | B41: 42 | C41: 15 | D41: 11 | E41: 73 | F41: 70 | G41: 34 | H41: 32 | I41: 44 | J41: 29 | K41: 6 | L41: 67 | M41: 70 | N41: 33 | O41: 22 | P41: 20 | Q41: 17 | R41: 5 | S41: 64 | T41: 81 | U41: 38 | V41: 50 | W41: 46 | X41: 10 | Y41: 7 | Z41: 43 | AA41: 64 | AB41: 25 | AC41: 56 | AD41: 36 | AE41: 13
A42: из них ОМС | B42: 27 | C42: 7 | D42: 4 | E42: 60 | F42: 61 | G42: 25 | H42: 12 | I42: 30 | J42: 14 | K42: 2 | L42: 50 | M42: 61 | N42: 21 | O42: 10 | P42: 9 | Q42: 8 | R42: 2 | S42: 51 | T42: 72 | U42: 29 | V42: 41 | W42: 30 | X42: 7 | Y42: 4 | Z42: 33 | AA42: 52 | AB42: 14 | AC42: 40 | AD42: 21 | AE42: 4
A43: Записаны сегодня на КТ (Есенина) | B43: 46 | C43: 18 | D43: 8 | E43: 102 | F43: 62 | G43: 60 | H43: 52 | I43: 43 | J43: 21 | K43: 8 | L43: 86 | M43: 47 | N43: 56 | O43: 42 | P43: 51 | Q43: 24 | R43: 5 | S43: 89 | T43: 44 | U43: 82 | V43: 59 | W43: 30 | X43: 11 | Y43: 3 | Z43: 111 | AA43: 76 | AB43: 47 | AC43: 26 | AD43: 34 | AE43: 25
A44: из них ОМС | B44: 43 | C44: 14 | D44: 6 | E44: 97 | F44: 61 | G44: 57 | H44: 47 | I44: 41 | J44: 19 | K44: 4 | L44: 78 | M44: 41 | N44: 50 | O44: 35 | P44: 48 | Q44: 20 | R44: 5 | S44: 81 | T44: 41 | U44: 75 | V44: 51 | W44: 27 | X44: 9 | Y44: 0 | Z44: 106 | AA44: 69 | AB44: 40 | AC44: 20 | AD44: 24 | AE44: 18
A45: Записано платных (всего) | B45: =(B41+B43)-(B42+B44) -> 18 | C45: =(C41+C43)-(C42+C44) -> 12 | D45: 9 | E45: 18 | F45: 10 | G45: 12 | H45: 25 | I45: 16 | J45: 17 | K45: 8 | L45: 25 | M45: 15 | N45: 18 | O45: 19 | P45: 14 | Q45: 13 | R45: 3 | S45: 21 | T45: 12 | U45: 16 | V45: 17 | W45: 19 | X45: 5 | Y45: 6 | Z45: 15 | AA45: 19 | AB45: 18 | AC45: 22 | AD45: 25 | AE45: 16
A46: Всего записано за день: | B46: =SUM(B41+B43) -> 88 | C46: =SUM(C41+C43) -> 33 | D46: 19 | E46: 175 | F46: 132 | G46: 94 | H46: 84 | I46: 87 | J46: 50 | K46: 14 | L46: 153 | M46: 117 | N46: 89 | O46: 64 | P46: 71 | Q46: 41 | R46: 10 | S46: 153 | T46: 125 | U46: 120 | V46: 109 | W46: 76 | X46: 21 | Y46: 10 | Z46: 154 | AA46: 140 | AB46: 72 | AC46: 82 | AD46: 70 | AE46: 38
A48: Очередь по записи КТ:
A49: Советская | B49: 228 | C49: 216 | D49: 202 | E49: 251 | F49: 248 | G49: 227 | H49: 235 | I49: 255 | J49: 258 | K49: 229 | L49: 265 | M49: 259 | N49: 244 | O49: 237 | P49: 223 | Q49: 219 | R49: 196 | S49: 236 | T49: 235 | U49: 254 | V49: 280 | W49: 307 | X49: 290 | Y49: 281 | Z49: 301 | AA49: 336 | AB49: 279 | AC49: 308 | AD49: 314 | AE49: 296
A50: Есенина | B50: 169 | C50: 132 | D50: 92 | E50: 166 | F50: 204 | G50: 248 | H50: 220 | I50: 188 | J50: 133 | K50: 141 | L50: 204 | M50: 233 | N50: 264 | O50: 219 | P50: 198 | Q50: 146 | R50: 129 | S50: 196 | T50: 219 | U50: 278 | V50: 255 | W50: 201 | X50: 191 | Y50: 172 | Z50: 257 | AA50: 315 | AB50: 342 | AC50: 284 | AD50: 240 | AE50: 237
A51: Всего в очереди: | B51: =SUM(B49:B50) -> 397 | C51: =SUM(C49:C50) -> 348 | D51: 294 | E51: 417 | F51: 452 | G51: 475 | H51: 455 | I51: 443 | J51: 391 | K51: 370 | L51: 469 | M51: 492 | N51: 508 | O51: 456 | P51: 421 | Q51: 365 | R51: 325 | S51: 432 | T51: 454 | U51: 532 | V51: 535 | W51: 508 | X51: 481 | Y51: 453 | Z51: 558 | AA51: 651 | AB51: 621 | AC51: 592 | AD51: 554 | AE51: 533
A53: Выполнено КТ за день:
A54: Советская | B54: 19 | C54: 20 | D54: 19 | E54: 18 | F54: 57 | G54: 56 | H54: 18 | I54: 18 | J54: 20 | K54: 24 | L54: 23 | M54: 64 | N54: 42 | O54: 23 | P54: 25 | Q54: 16 | R54: 18 | S54: 20 | T54: 65 | U54: 20 | V54: 16 | W54: 14 | X54: 23 | Y54: 14 | Z54: 20 | AA54: 23 | AB54: 64 | AC54: 20 | AD54: 21 | AE54: 24 | AF54: диагностика(зеленая зона)
A55: Есенина | B55: 69 | C55: 43 | D55: 40 | E55: 21 | F55: 17 | G55: 15 | H55: 65 | I55: 65 | J55: 64 | K55: 0 | L55: 20 | M55: 17 | N55: 21 | O55: 67 | P55: 65 | Q55: 61 | R55: 12 | S55: 17 | T55: 17 | U55: 16 | V55: 62 | W55: 72 | X55: 19 | Y55: 15 | Z55: 20 | AA55: 15 | AB55: 16 | AC55: 65 | AD55: 67 | AE55: 18
A56: Всего выполнено за день: | B56: =SUM(B54:B55) -> 88 | C56: =SUM(C54:C55) -> 63 | D56: 59 | E56: 39 | F56: 74 | G56: 71 | H56: 83 | I56: 83 | J56: 84 | K56: 24 | L56: 43 | M56: 81 | N56: 63 | O56: 90 | P56: 90 | Q56: 77 | R56: 30 | S56: 37 | T56: 82 | U56: 36 | V56: 78 | W56: 86 | X56: 42 | Y56: 29 | Z56: 40 | AA56: 38 | AB56: 80 | AC56: 85 | AD56: 88 | AE56: 42

Sheet Май 2022
A1: Отчет по call-центру
B2: 2022-05-01 | C2: 2022-05-02 | D2: 2022-05-03 | E2: 2022-05-04 | F2: 2022-05-05 | G2: 2022-05-06 | H2: 2022-05-07 | I2: 2022-05-08 | J2: 2022-05-09 | K2: 2022-05-10 | L2: 2022-05-11 | M2: 2022-05-12 | N2: 2022-05-13 | O2: 2022-05-14 | P2: 2022-05-15 | Q2: 2022-05-16 | R2: 2022-05-17 | S2: 2022-05-18 | T2: 2022-05-19 | U2: 2022-05-20 | V2: 2022-05-21 | W2: 2022-05-22 | X2: 2022-05-23 | Y2: 2022-05-24 | Z2: 2022-05-25 | AA2: 2022-05-26 | AB2: 2022-05-27 | AC2: 2022-05-28 | AD2: 2022-05-29 | AE2: 2022-05-30 | AF2: 2022-05-31
A3: Кол-во обраб. звонков (Линия call-центр) | B3: 146 | C3: 296 | D3: 281 | E3: 528 | F3: 617 | G3: 559 | H3: 267 | I3: 224 | J3: 167 | K3: 279 | L3: 611 | M3: 577 | N3: 609 | O3: 301 | P3: 166 | Q3: 608 | R3: 602 | S3: 621 | T3: 625 | U3: 533 | V3: 259 | W3: 200 | X3: 687 | Y3: 593 | Z3: 574 | AA3: 565 | AB3: 559 | AC3: 296 | AD3: 244 | AE3: 565 | AF3: 629
A4: Кол-во пропущенных | B4: 7 | C4: 16 | D4: 10 | F4: 38 | G4: 33 | H4: 23 | I4: 9 | J4: 5 | K4: 14 | L4: 109 | M4: 25 | N4: 43 | O4: 22 | P4: 17 | Q4: 37 | R4: 16 | S4: 35 | T4: 22 | U4: 106 | V4: 6 | W4: 11 | X4: 39 | Y4: 26 | Z4: 22 | AA4: 31 | AB4: 20 | AC4: 14 | AD4: 7 | AE4: 55 | AF4: 28
A5: Кол-во обраб. звонков (Линия КТ-Ковид) | B5: 12 | C5: 16 | D5: 24 | F5: 59 | G5: 65 | H5: 26 | I5: 26 | J5: 17 | K5: 23 | L5: 85 | M5: 84 | N5: 73 | O5: 29 | P5: 10 | Q5: 39 | R5: 57 | S5: 45 | T5: 34 | U5: 51 | V5: 8 | W5: 5 | X5: 41 | Y5: 42 | Z5: 35 | AA5: 34 | AB5: 42 | AC5: 9 | AD5: 7 | AE5: 39 | AF5: 33
A6: Всего звонков (обе линии) | B6: =SUM(B3+B5) -> 158 | C6: =SUM(C3+C5) -> 312 | D6: =SUM(D3+D5) -> 305 | E6: =E3 -> 528 | F6: =F3 -> 617 | G6: 559 | H6: 267 | I6: 224 | J6: 167 | K6: 279 | L6: 611 | M6: 577 | N6: 609 | O6: 301 | P6: 166 | Q6: 608 | R6: 602 | S6: 621 | T6: 625 | U6: 533 | V6: 259 | W6: 200 | X6: 687 | Y6: 593 | Z6: 574 | AA6: 565 | AB6: 559 | AC6: 296 | AD6: 244 | AE6: 565 | AF6: 629
A8: Заявки на сайте:
A9: Количество заявок на сайте (всего) | B9: 15 | C9: 22 | D9: 22 | E9: 42 | F9: 33 | G9: 30 | H9: 15 | I9: 14 | J9: 13 | K9: 16 | L9: 38 | M9: 38 | N9: 25 | O9: 18 | P9: 11 | Q9: 32 | R9: 33 | S9: 38 | T9: 37 | U9: 29 | V9: 11 | W9: 10 | X9: 31 | Y9: 26 | Z9: 25 | AA9: 28 | AB9: 22 | AC9: 12 | AD9: 19 | AE9: 38 | AF9: 31
A10: Со статусом "записался" | B10: 6 | C10: 11 | D10: 11 | E10: 23 | F10: 16 | G10: 9 | H10: 8 | I10: 11 | J10: 6 | K10: 10 | L10: 21 | M10: 20 | N10: 10 | O10: 6 | P10: 3 | Q10: 13 | R10: 18 | S10: 17 | T10: 21 | U10: 16 | V10: 4 | W10: 3 | X10: 17 | Y10: 13 | Z10: 8 | AA10: 12 | AB10: 12 | AC10: 4 | AD10: 8 | AE10: 24
A11: Заявки на сайте КТ Ковид | B11: 0 | C11: 2 | D11: 1 | E11: 3 | F11: 1 | G11: 3 | H11: 2 | I11: 1 | J11: 1 | K11: 3 | L11: 2 | M11: 4 | N11: 1 | O11: 0 | P11: 1 | Q11: 2 | R11: 1 | S11: 0 | T11: 4 | U11: 4 | V11: 2 | W11: 0 | X11: 1 | Y11: 1 | Z11: 1 | AA11: 0 | AB11: 1 | AC11: 0 | AD11: 1 | AE11: 2 | AF11: 2
A12: Статус "записался" на КТ Ковид | B12: 0 | C12: 1 | D12: 0 | E12: 0 | F12: 0 | G12: 3 | H12: 1 | I12: 1 | J12: 1 | K12: 3 | L12: 2 | M12: 3 | N12: 1 | O12: 0 | P12: 1 | Q12: 2 | R12: 0 | S12: 0 | T12: 3 | U12: 4 | V12: 1 | W12: 0 | X12: 1 | Y12: 0 | Z12: 1 | AA12: 0 | AB12: 1 | AC12: 0 | AD12: 0 | AE12: 2 | AF12: 2
A14: Записались в центр (МРТ+АПО):
A15: МРТ Skyra (Есенина) | B15: 12 | C15: 24 | D15: 20 | E15: 47 | F15: 44 | G15: 39 | H15: 25 | I15: 14 | J15: 12 | K15: 19 | L15: 57 | M15: 48 | N15: 46 | O15: 21 | P15: 18 | Q15: 78 | R15: 40 | S15: 34 | T15: 49 | U15: 26 | V15: 20 | W15: 19 | X15: 34 | Y15: 35 | Z15: 36 | AA15: 39 | AB15: 41 | AC15: 22 | AD15: 23 | AE15: 42 | AF15: 44
A16: МРТ Skyra (Советская) | B16: 14 | C16: 16 | D16: 17 | E16: 39 | F16: 37 | G16: 28 | H16: 15 | I16: 4 | J16: 12 | K16: 15 | L16: 35 | M16: 22 | N16: 30 | O16: 14 | P16: 10 | Q16: 28 | R16: 39 | S16: 23 | T16: 48 | U16: 101 | V16: 16 | W16: 11 | X16: 55 | Y16: 36 | Z16: 37 | AA16: 43 | AB16: 41 | AC16: 16 | AD16: 14 | AE16: 44 | AF16: 37
A17: МРТ Essenza | B17: 13 | C17: 11 | D17: 18 | E17: 55 | F17: 40 | G17: 37 | H17: 11 | I17: 12 | J17: 8 | K17: 19 | L17: 34 | M17: 63 | N17: 40 | O17: 14 | P17: 11 | Q17: 53 | R17: 46 | S17: 32 | T17: 32 | U17: 43 | V17: 18 | W17: 8 | X17: 42 | Y17: 40 | Z17: 38 | AA17: 40 | AB17: 44 | AC17: 31 | AD17: 9 | AE17: 37 | AF17: 26
A18: МРТ Солидарности | B18: 5 | C18: 11 | D18: 10 | E18: 72 | F18: 34 | G18: 30 | H18: 7 | I18: 19 | J18: 9 | K18: 7 | L18: 90 | M18: 32 | N18: 34 | O18: 15 | P18: 10 | Q18: 122 | R18: 24 | S18: 25 | T18: 24 | U18: 37 | V18: 18 | W18: 9 | X18: 31 | Y18: 33 | Z18: 26 | AA18: 18 | AB18: 116 | AC18: 12 | AD18: 13 | AE18: 61 | AF18: 60
A19: МРТ Костюшко | B19: 11 | C19: 17 | D19: 16 | E19: 38 | F19: 75 | G19: 39 | H19: 25 | I19: 16 | J19: 9 | K19: 2 | L19: 35 | M19: 84 | N19: 34 | O19: 17 | P19: 14 | Q19: 78 | R19: 47 | S19: 51 | T19: 52 | U19: 46 | V19: 11 | W19: 22 | X19: 54 | Y19: 37 | Z19: 39 | AA19: 29 | AB19: 57 | AC19: 63 | AD19: 18 | AE19: 59 | AF19: 44
A20: МРТ Удельный | B20: 4 | C20: 4 | D20: 8 | E20: 32 | F20: 13 | G20: 8 | H20: 5 | I20: 2 | J20: 1 | K20: 9 | L20: 36 | M20: 8 | N20: 15 | O20: 3 | P20: 4 | Q20: 31 | R20: 5 | S20: 13 | T20: 12 | U20: 16 | V20: 6 | W20: 3 | X20: 11 | Y20: 13 | Z20: 13 | AA20: 10 | AB20: 58 | AC20: 27 | AD20: 9 | AE20: 37 | AF20: 21
A21: Всего записано за день МРТ : | B21: =SUM(B15:B20) -> 59 | C21: =SUM(C15:C20) -> 83 | D21: 89 | E21: 283 | F21: 243 | G21: 181 | H21: 88 | I21: 67 | J21: 51 | K21: 71 | L21: 287 | M21: 257 | N21: 199 | O21: 84 | P21: 67 | Q21: 390 | R21: 201 | S21: 178 | T21: 217 | U21: 269 | V21: 89 | W21: 72 | X21: 227 | Y21: 194 | Z21: 189 | AA21: 179 | AB21: 357 | AC21: 171 | AD21: 86 | AE21: 280 | AF21: 232
A22: Отменено клиентом + неявка (все центры МРТ) | B22: 34 | C22: 30 | D22: 27 | E22: 35 | F22: 24 | G22: 30 | H22: 19 | I22: 27 | J22: 22 | K22: 26 | L22: 22 | M22: 28 | N22: 43 | O22: 35 | P22: 33 | Q22: 26 | R22: 25 | S22: 33 | T22: 26 | U22: 42 | V22: 32 | W22: 33 | X22: 37 | Y22: 32 | Z22: 39 | AA22: 43 | AB22: 25 | AC22: 36 | AD22: 22 | AE22: 37 | AF22: 36
A23: АПО | B23: 16 | C23: 43 | D23: 42 | E23: 78 | F23: 77 | G23: 70 | H23: 37 | I23: 14 | J23: 9 | K23: 27 | L23: 96 | M23: 97 | N23: 79 | O23: 40 | P23: 15 | Q23: 89 | R23: 67 | S23: 87 | T23: 72 | U23: 66 | V23: 48 | W23: 11 | X23: 95 | Y23: 90 | Z23: 99 | AA23: 120 | AB23: 70 | AC23: 50 | AD23: 11 | AE23: 88 | AF23: 104
A24: Всего записано за день (МРТ + АПО): | B24: =SUM(B21+B23) -> 75 | C24: =SUM(C21+C23) -> 126 | D24: 131 | E24: 361 | F24: 320 | G24: 251 | H24: 125 | I24: 81 | J24: 60 | K24: 98 | L24: 383 | M24: 354 | N24: 278 | O24: 124 | P24: 82 | Q24: 479 | R24: 268 | S24: 265 | T24: 289 | U24: 335 | V24: 137 | W24: 83 | X24: 322 | Y24: 284 | Z24: 288 | AA24: 299 | AB24: 427 | AC24: 221 | AD24: 97 | AE24: 368 | AF24: 336
A25: ПЭТ/КТ | B25: 0 | C25: 7 | D25: 8 | E25: 52 | F25: 47 | G25: 40 | H25: 2 | I25: 1 | J25: 1 | K25: 5 | L25: 62 | M25: 54 | N25: 61 | O25: 2 | P25: 0 | Q25: 79 | R25: 63 | S25: 66 | T25: 69 | U25: 69 | V25: 2 | W25: 2 | X25: 75 | Y25: 53 | Z25: 66 | AA25: 73 | AB25: 40 | AC25: 2 | AD25: 3 | AE25: 67 | AF25: 57
A26: ПЭТ/КТ ОМС | B26: 0 | C26: 2 | D26: 4 | E26: 36 | F26: 29 | G26: 31 | H26: 0 | I26: 0 | J26: 0 | K26: 0 | L26: 53 | M26: 42 | N26: 39 | O26: 0 | P26: 0 | Q26: 57 | R26: 41 | S26: 35 | T26: 43 | U26: 57 | V26: 0 | W26: 0 | X26: 57 | Y26: 37 | Z26: 49 | AA26: 53 | AB26: 28 | AC26: 0 | AD26: 0 | AE26: 49 | AF26: 40
A27: Очередь ПЭТ/КТ | B27: 789 | C27: 751 | D27: 714 | E27: 720 | F27: 729 | G27: 720 | H27: 722 | I27: 723 | J27: 679 | K27: 636 | L27: 647 | M27: 656 | N27: 670 | O27: 672 | P27: 672 | Q27: 705 | R27: 719 | S27: 738 | T27: 764 | U27: 786 | V27: 788 | W27: 790 | X27: 817 | Y27: 818 | Z27: 836 | AA27: 861 | AB27: 854 | AC27: 856 | AD27: 859 | AE27: 881 | AF27: 896
A28: Очередь КТ-Приморский | B28: 214 | C28: 195 | D28: 182 | E28: 207 | F28: 216 | G28: 204 | H28: 180 | I28: 168 | J28: 153 | K28: 140 | L28: 164 | M28: 160 | N28: 149 | O28: 136 | P28: 121 | Q28: 189 | R28: 188 | S28: 175 | T28: 165 | U28: 158 | V28: 145 | W28: 124 | X28: 123 | Y28: 117 | Z28: 108 | AA28: 104 | AB28: 134 | AC28: 119 | AD28: 103 | AE28: 119 | AF28: 141
A30: Кол-во операторов | B30: 3 | C30: 5 | D30: 5 | E30: 6 | F30: 6 | G30: 7 | H30: 3 | I30: 3 | J30: 4 | K30: 4 | L30: 6 | M30: 7 | N30: 7 | O30: 4 | P30: 4 | Q30: 7 | R30: 7 | S30: 7 | T30: 8 | U30: 6 | V30: 5 | W30: 4 | X30: 8 | Y30: 7 | Z30: 7 | AA30: 8 | AB30: 8 | AC30: 5 | AD30: 4 | AE30: 6 | AF30: 7
A31: сумма часов работы операторов | B31: 36 | C31: 60 | D31: 60 | E31: 64 | F31: 64 | G31: 76 | H31: 36 | I31: 36 | J31: 44 | K31: 48 | L31: 60 | M31: 72 | N31: 72 | O31: 48 | P31: 48 | Q31: 72 | R31: 72 | S31: 72 | T31: 84 | U31: 64 | V31: 60 | W31: 48 | X31: 83 | Y31: 72 | Z31: 72 | AA31: 84 | AB31: 84 | AC31: 60 | AD31: 48 | AE31: 68 | AF31: 76
A33: Время ожидания на линии (мин)
A34: 244-00-24 (среднее) | B34: =27/60 -> 0.45 | C34: =24/60 -> 0.4 | D34: =27/60 -> 0.45 | F34: =54/60 -> 0.9 | G34: =57/60 -> 0.95 | H34: =76/60 -> 1.266666667 | I34: =26/60 -> 0.4333333333 | J34: =20/60 -> 0.3333333333 | K34: =40/60 -> 0.6666666667 | L34: =144/60 -> 2.4 | M34: =44/60 -> 0.7333333333 | N34: =54/60 -> 0.9 | O34: =42/60 -> 0.7 | P34: =20/60 -> 0.3333333333 | Q34: =64/60 -> 1.066666667 | R34: =34/60 -> 0.5666666667 | S34: =47/60 -> 0.7833333333 | T34: =26/60 -> 0.4333333333 | U34: =150/60 -> 2.5 | V34: =19/60 -> 0.3166666667 | W34: =13/60 -> 0.2166666667 | X34: =39/60 -> 0.65 | Y34: =29/60 -> 0.4833333333 | Z34: =42/60 -> 0.7 | AA34: =39/60 -> 0.65 | AB34: =32/60 -> 0.5333333333 | AC34: =23/60 -> 0.3833333333 | AD34: =60/60 -> 1 | AE34: =48/60 -> 0.8 | AF34: =33/60 -> 0.55
A35: 244-31-27 (КТ Ковид, время среднее) | B35: =62/60 -> 1.033333333 | C35: =32/60 -> 0.5333333333 | D35: =92/60 -> 1.533333333
A37: Нажали кнопку "1" - перевод в Клинику | B37: 0 | C37: 7 | D37: 12 | E37: 10 | F37: 10 | G37: 14 | H37: 4 | I37: 0 | J37: 3 | K37: 8 | L37: 13 | M37: 8 | N37: 7 | O37: 4 | P37: 0 | Q37: 15 | R37: 10 | S37: 14 | T37: 16 | U37: 8 | V37: 3 | W37: 0 | X37: 18 | Y37: 8 | Z37: 9 | AA37: 9 | AB37: 11 | AC37: 2 | AD37: 0 | AE37: 10 | AF37: 19
A39: Отчет по КТ
A40: Записали КТ за день:
A41: Записаны сегодня на КТ (Советская) | B41: 9 | C41: 4 | D41: 17 | E41: 93 | F41: 19 | G41: 35 | H41: 21 | I41: 8 | J41: 14 | K41: 7 | L41: 58 | M41: 53 | N41: 38 | O41: 20 | P41: 2 | Q41: 118 | R41: 29 | S41: 28 | T41: 19 | U41: 36 | V41: 7 | W41: 11 | X41: 41 | Y41: 25 | Z41: 25 | AA41: 26 | AB41: 57 | AC41: 16 | AD41: 9 | AE41: 52 | AF41: 37
A42: из них ОМС | B42: 3 | C42: 1 | D42: 8 | E42: 72 | F42: 10 | G42: 20 | H42: 10 | I42: 3 | J42: 10 | K42: 4 | L42: 47 | M42: 43 | N42: 15 | O42: 13 | P42: 0 | Q42: 105 | R42: 19 | S42: 10 | T42: 5 | U42: 23 | V42: 4 | W42: 5 | X42: 21 | Y42: 11 | Z42: 7 | AA42: 11 | AB42: 43 | AC42: 7 | AD42: 2 | AE42: 32 | AF42: 24
A43: Записаны сегодня на КТ (Есенина) | B43: 7 | C43: 14 | D43: 6 | E43: 99 | F43: 56 | G43: 35 | H43: 10 | I43: 17 | J43: 9 | K43: 13 | L43: 80 | M43: 59 | N43: 48 | O43: 8 | P43: 4 | Q43: 127 | R43: 29 | S43: 25 | T43: 19 | U43: 24 | V43: 8 | W43: 3 | X43: 23 | Y43: 25 | Z43: 20 | AA43: 16 | AB43: 59 | AC43: 6 | AD43: 1 | AE43: 129 | AF43: 51
A44: из них ОМС | B44: 7 | C44: 11 | D44: 3 | E44: 92 | F44: 51 | G44: 30 | H44: 6 | I44: 15 | J44: 8 | K44: 10 | L44: 71 | M44: 48 | N44: 37 | O44: 6 | P44: 4 | Q44: 116 | R44: 23 | S44: 17 | T44: 15 | U44: 17 | V44: 3 | W44: 0 | X44: 15 | Y44: 13 | Z44: 16 | AA44: 12 | AB44: 46 | AC44: 2 | AD44: 0 | AE44: 124 | AF44: 44
A45: Записано платных (всего) | B45: =(B41+B43)-(B42+B44) -> 6 | C45: =(C41+C43)-(C42+C44) -> 6 | D45: 12 | E45: 28 | F45: 14 | G45: 20 | H45: 15 | I45: 7 | J45: 5 | K45: 6 | L45: 20 | M45: 21 | N45: 34 | O45: 9 | P45: 2 | Q45: 24 | R45: 16 | S45: 26 | T45: 18 | U45: 20 | V45: 8 | W45: 9 | X45: 28 | Y45: 26 | Z45: 22 | AA45: 19 | AB45: 27 | AC45: 13 | AD45: 8 | AE45: 25 | AF45: 20
A46: Всего записано за день: | B46: =SUM(B41+B43) -> 16 | C46: =SUM(C41+C43) -> 18 | D46: 23 | E46: 192 | F46: 75 | G46: 70 | H46: 31 | I46: 25 | J46: 23 | K46: 20 | L46: 138 | M46: 112 | N46: 86 | O46: 28 | P46: 6 | Q46: 245 | R46: =SUM(R41+R43) -> 58 | S46: =SUM(S41+S43) -> 53 | T46: =SUM(T41+T43) -> 38 | U46: 60 | V46: 15 | W46: 14 | X46: 64 | Y46: 50 | Z46: 45 | AA46: 42 | AB46: 116 | AC46: 22 | AD46: 10 | AE46: 181 | AF46: 88
A48: Очередь по записи КТ:
A49: Советская | B49: 283 | C49: 259 | D49: 246 | E49: 248 | F49: 238 | G49: 253 | H49: 254 | I49: 245 | J49: 237 | K49: 210 | L49: 174 | M49: 208 | N49: 221 | O49: 216 | P49: 193 | Q49: 288 | R49: 295 | S49: 226 | T49: 223 | U49: 231 | V49: 214 | W49: 202 | X49: 220 | Y49: 225 | Z49: 159 | AA49: 152 | AB49: 184 | AC49: 176 | AD49: 157 | AE49: 184 | AF49: 192
A50: Есенина | B50: 223 | C50: 220 | D50: 203 | E50: 282 | F50: 316 | G50: 256 | H50: 189 | I50: 186 | J50: 172 | K50: 165 | L50: 228 | M50: 261 | N50: 208 | O50: 141 | P50: 120 | Q50: 226 | R50: 233 | S50: 242 | T50: 241 | U50: 171 | V50: 170 | W50: 150 | X50: 156 | Y50: 162 | Z50: 163 | AA50: 159 | AB50: 125 | AC50: 106 | AD50: 87 | AE50: 198 | AF50: 229
A51: Всего в очереди: | B51: =SUM(B49:B50) -> 506 | C51: =SUM(C49:C50) -> 479 | D51: 449 | E51: 530 | F51: 554 | G51: 509 | H51: 443 | I51: 431 | J51: 409 | K51: 375 | L51: 402 | M51: 469 | N51: 429 | O51: 357 | P51: 313 | Q51: 514 | R51: 528 | S51: 468 | T51: 464 | U51: 402 | V51: 384 | W51: 352 | X51: 376 | Y51: 387 | Z51: 322 | AA51: 311 | AB51: 309 | AC51: 282 | AD51: 244 | AE51: 382 | AF51: 421
A53: Выполнено КТ за день:
A54: Советская | B54: 17 | C54: 22 | D54: 18 | E54: 75 | F54: 22 | G54: 17 | H54: 18 | I54: 15 | J54: 18 | K54: 18 | L54: 72 | M54: 20 | N54: 18 | O54: 21 | P54: 17 | Q54: 19 | R54: 16 | S54: 81 | T54: 19 | U54: 21 | V54: 19 | W54: 19 | X54: 18 | Y54: 16 | Z54: 73 | AA54: 26 | AB54: 17 | AC54: 19 | AD54: 21 | AE54: 19 | AF54: 24
A55: Есенина | B55: 18 | C55: 15 | D55: 13 | E55: 15 | F55: 18 | G55: 74 | H55: 68 | I55: 17 | J55: 17 | K55: 13 | L55: 14 | M55: 22 | N55: 76 | O55: 60 | P55: 16 | Q55: 19 | R55: 16 | S55: 15 | T55: 15 | U55: 68 | V55: 9 | W55: 18 | X55: 16 | Y55: 17 | Z55: 12 | AA55: 17 | AB55: 71 | AC55: 18 | AD55: 16 | AE55: 16 | AF55: 16
A56: Всего выполнено за день: | B56: =SUM(B54:B55) -> 35 | C56: =SUM(C54:C55) -> 37 | D56: 31 | E56: 90 | F56: 40 | G56: 91 | H56: 86 | I56: 32 | J56: 35 | K56: 31 | L56: 86 | M56: 42 | N56: 94 | O56: 81 | P56: 33 | Q56: 38 | R56: 32 | S56: 96 | T56: 34 | U56: 89 | V56: 28 | W56: 37 | X56: 34 | Y56: 33 | Z56: 85 | AA56: 43 | AB56: 88 | AC56: 37 | AD56: 37 | AE56: 35 | AF56: 40

Sheet Июнь 2022
A1: Отчет по call-центру
B2: 2022-06-01 | C2: 2022-06-02 | D2: 2022-06-03 | E2: 2022-06-04 | F2: 2022-06-05 | G2: 2022-06-06 | H2: 2022-06-07 | I2: 2022-06-08 | J2: 2022-06-09 | K2: 2022-06-10 | L2: 2022-06-11 | M2: 2022-06-12 | N2: 2022-06-13 | O2: 2022-06-14 | P2: 2022-06-15 | Q2: 2022-06-16 | R2: 2022-06-17 | S2: 2022-06-18 | T2: 2022-06-19 | U2: 2022-06-20 | V2: 2022-06-21 | W2: 2022-06-22 | X2: 2022-06-23 | Y2: 2022-06-24 | Z2: 2022-06-25 | AA2: 2022-06-26 | AB2: 2022-06-27 | AC2: 2022-06-28 | AD2: 2022-06-29 | AE2: 2022-06-30
A3: Кол-во обраб. звонков (Линия call-центр) | B3: 613 | C3: 572 | D3: 553 | E3: 283 | F3: 187 | G3: 623 | H3: 571 | I3: 551 | J3: 606 | K3: 565 | L3: 248 | M3: 200 | N3: 303 | O3: 623 | P3: 586 | Q3: 604 | R3: 505 | S3: 241 | T3: 200 | U3: 722 | V3: 605 | W3: 619 | X3: 590 | Y3: 500 | Z3: 265 | AA3: 172 | AB3: 597 | AC3: 581 | AD3: 506 | AE3: 482
A4: Кол-во пропущенных | B4: 30 | C4: 64 | D4: 29 | E4: 16 | F4: 3 | G4: 17 | H4: 33 | I4: 40 | J4: 33 | K4: 23 | L4: 10 | M4: 9 | N4: 8 | O4: 49 | P4: 26 | Q4: 36 | R4: 55 | S4: 10 | T4: 12 | U4: 60 | V4: 90 | W4: 51 | X4: 40 | Y4: 23 | Z4: 15 | AA4: 4 | AB4: 33 | AC4: 24 | AD4: 18 | AE4: 35
A5: Кол-во обраб. звонков (Линия КТ-Ковид) | B5: 34 | C5: 24 | D5: 36 | E5: 11 | F5: 3 | G5: 33 | H5: 37 | I5: 22 | J5: 24 | K5: 26 | L5: 12 | M5: 7 | N5: 12 | O5: 43 | P5: 30 | Q5: 21 | R5: 21 | S5: 25 | T5: 7 | U5: 33 | V5: 21 | W5: 32 | X5: 23 | Y5: 26 | Z5: 12 | AA5: 4 | AB5: 27 | AC5: 20 | AD5: 28 | AE5: 20
A6: Всего звонков (обе линии) | B6: =B3 -> 613 | C6: =C3 -> 572 | D6: =D3 -> 553 | E6: 283 | F6: 187 | G6: 623 | H6: 571 | I6: 551 | J6: 606 | K6: 565 | L6: 248 | M6: 200 | N6: 303 | O6: 623 | P6: 586 | Q6: 604 | R6: 505 | S6: 241 | T6: 200 | U6: 722 | V6: 605 | W6: 619 | X6: 590 | Y6: 500 | Z6: 265 | AA6: 172 | AB6: 597 | AC6: 581 | AD6: 506 | AE6: 482
A8: Заявки на сайте:
A9: Количество заявок на сайте (всего) | B9: 29 | C9: 40 | D9: 28 | E9: 17 | F9: 13 | G9: 28 | H9: 35 | I9: 33 | J9: 19 | K9: 15 | L9: 13 | M9: 4 | N9: 22 | O9: 43 | P9: 30 | Q9: 32 | R9: 39 | S9: 22 | T9: 13 | U9: 40 | V9: 26 | W9: 30 | X9: 23 | Y9: 15 | Z9: 9 | AA9: 18 | AB9: 16 | AC9: 21 | AD9: 23 | AE9: 19
A10: Со статусом "записался" | B10: 11 | C10: 18 | D10: 17 | E10: 10 | F10: 2 | G10: 16 | H10: 17 | I10: 20 | J10: 11 | K10: 9 | L10: 4 | M10: 4 | N10: 8 | O10: 22 | P10: 12 | Q10: 19 | R10: 23 | S10: 4 | T10: 7 | U10: 14 | V10: 12 | W10: 10 | X10: 13 | Y10: 7 | Z10: 4 | AA10: 5 | AB10: 6 | AC10: 12 | AD10: 18 | AE10: 9
A11: Заявки на сайте КТ Ковид | B11: 0 | C11: 0 | D11: 2 | E11: 1 | F11: 1 | G11: 2 | H11: 3 | I11: 1 | J11: 2 | K11: 2 | L11: 1 | M11: 0 | N11: 0 | O11: 5 | P11: 0 | Q11: 1 | R11: 3 | S11: 0 | T11: 1 | U11: 11
A12: Статус "записался" на КТ Ковид | B12: 0 | C12: 0 | D12: 2 | E12: 0 | F12: 0 | G12: 2 | H12: 2 | I12: 1 | J12: 1 | K12: 2 | L12: 1 | M12: 0 | N12: 0 | O12: 5 | P12: 0 | Q12: 1 | R12: 3 | S12: 0 | T12: 0 | U12: 2
A14: Записались в центр (МРТ+АПО):
A15: МРТ Skyra (Есенина) | B15: 62 | C15: 40 | D15: 32 | E15: 29 | F15: 9 | G15: 70 | H15: 47 | I15: 50 | J15: 38 | K15: 30 | L15: 20 | M15: 15 | N15: 25 | O15: 41 | P15: 44 | Q15: 49 | R15: 38 | S15: 19 | T15: 17 | U15: 46 | V15: 49 | W15: 53 | X15: 37 | Y15: 41 | Z15: 23 | AA15: 16 | AB15: 32 | AC15: 51 | AD15: 38 | AE15: 38
A16: МРТ Skyra (Советская) | B16: 40 | C16: 36 | D16: 32 | E16: 16 | F16: 6 | G16: 48 | H16: 21 | I16: 50 | J16: 36 | K16: 28 | L16: 18 | M16: 17 | N16: 11 | O16: 36 | P16: 30 | Q16: 33 | R16: 39 | S16: 18 | T16: 11 | U16: 45 | V16: 47 | W16: 40 | X16: 27 | Y16: 24 | Z16: 29 | AA16: 8 | AB16: 35 | AC16: 44 | AD16: 36 | AE16: 36
A17: МРТ Essenza | B17: 50 | C17: 36 | D17: 36 | E17: 12 | F17: 5 | G17: 38 | H17: 41 | I17: 38 | J17: 31 | K17: 33 | L17: 13 | M17: 11 | N17: 26 | O17: 60 | P17: 50 | Q17: 48 | R17: 28 | S17: 10 | T17: 6 | U17: 28 | V17: 31 | W17: 43 | X17: 45 | Y17: 20 | Z17: 9 | AA17: 7 | AB17: 39 | AC17: 50 | AD17: 34 | AE17: 27
A18: МРТ Солидарности | B18: 34 | C18: 31 | D18: 24 | E18: 13 | F18: 9 | G18: 30 | H18: 69 | I18: 50 | J18: 30 | K18: 35 | L18: 10 | M18: 7 | N18: 8 | O18: 108 | P18: 36 | Q18: 36 | R18: 25 | S18: 8 | T18: 7 | U18: 36 | V18: 114 | W18: 24 | X18: 42 | Y18: 11 | Z18: 6 | AA18: 11 | AB18: 33 | AC18: 105 | AD18: 36 | AE18: 21
A19: МРТ Костюшко | B19: 44 | C19: 38 | D19: 37 | E19: 18 | F19: 14 | G19: 62 | H19: 43 | I19: 84 | J19: 27 | K19: 38 | L19: 19 | M19: 17 | N19: 12 | O19: 28 | P19: 85 | Q19: 45 | R19: 25 | S19: 18 | T19: 15 | U19: 66 | V19: 53 | W19: 48 | X19: 35 | Y19: 41 | Z19: 10 | AA19: 5 | AB19: 69 | AC19: 29 | AD19: 33 | AE19: 27
A20: МРТ Удельный | B20: 16 | C20: 9 | D20: 21 | E20: 7 | F20: 2 | G20: 12 | H20: 33 | I20: 19 | J20: 8 | K20: 14 | L20: 7 | M20: 4 | N20: 10 | O20: 15 | P20: 59 | Q20: 8 | R20: 12 | S20: 5 | T20: 8 | U20: 51 | V20: 11 | W20: 46 | X20: 17 | Y20: 13 | Z20: 3 | AA20: 2 | AB20: 8 | AC20: 23 | AD20: 14 | AE20: 8
A21: Всего записано за день МРТ : | B21: =SUM(B15:B20) -> 246 | C21: =SUM(C15:C20) -> 190 | D21: =SUM(D15:D20) -> 182 | E21: 95 | F21: 45 | G21: 260 | H21: 254 | I21: 291 | J21: 170 | K21: 178 | L21: 87 | M21: 71 | N21: 92 | O21: 288 | P21: 304 | Q21: 219 | R21: 167 | S21: 78 | T21: 64 | U21: 272 | V21: 305 | W21: 254 | X21: 203 | Y21: 150 | Z21: 80 | AA21: 49 | AB21: 216 | AC21: 302 | AD21: 191 | AE21: 157
A22: Отменено клиентом + неявка (все центры МРТ) | B22: 42 | C22: 37 | D22: 28 | E22: 26 | F22: 33 | G22: 44 | H22: 38 | I22: 48 | J22: 35 | K22: 46 | L22: 36 | M22: 40 | N22: 29 | O22: 30 | P22: 45 | Q22: 26 | R22: 36 | S22: 34 | T22: 30 | U22: 28 | V22: 37 | W22: 49 | X22: 29 | Y22: 56 | Z22: 27 | AA22: 20 | AB22: 37 | AC22: 33 | AD22: 28 | AE22: 35
A23: АПО | B23: 52 | C23: 64 | D23: 80 | E23: 34 | F23: 12 | G23: 72 | H23: 86 | I23: 77 | J23: 84 | K23: 85 | L23: 35 | M23: 12 | N23: 43 | O23: 120 | P23: 97 | Q23: 82 | R23: 71 | S23: 29 | T23: 14 | U23: 79 | V23: 71 | W23: 81 | X23: 55 | Y23: 66 | Z23: 37 | AA23: 28 | AB23: 88 | AC23: 77 | AD23: 81 | AE23: 74
A24: Всего записано за день (МРТ + АПО): | B24: =SUM(B21+B23) -> 298 | C24: =SUM(C21+C23) -> 254 | D24: =SUM(D21+D23) -> 262 | E24: 129 | F24: 57 | G24: 332 | H24: 340 | I24: 368 | J24: 254 | K24: 263 | L24: 122 | M24: 83 | N24: 135 | O24: 408 | P24: 401 | Q24: 301 | R24: 238 | S24: 107 | T24: 78 | U24: 351 | V24: 376 | W24: 335 | X24: 258 | Y24: 216 | Z24: 117 | AA24: 77 | AB24: 304 | AC24: 379 | AD24: 272 | AE24: 231
A25: ПЭТ/КТ | B25: 47 | C25: 50 | D25: 51 | E25: 3 | F25: 1 | G25: 65 | H25: 57 | I25: 75 | J25: 68 | K25: 65 | L25: 2 | M25: 2 | N25: 4 | O25: 88 | P25: 88 | Q25: 69 | R25: 67 | S25: 1 | T25: 1 | U25: 65 | V25: 48 | W25: 47 | X25: 61 | Y25: 47 | Z25: 0 | AA25: 2 | AB25: 59 | AC25: 52 | AD25: 61 | AE25: 60
A26: ПЭТ/КТ ОМС | B26: 33 | C26: 30 | D26: 34 | E26: 0 | F26: 0 | G26: 44 | H26: 39 | I26: 54 | J26: 51 | K26: 46 | L26: 0 | M26: 0 | N26: 0 | O26: 71 | P26: 61 | Q26: 48 | R26: 45 | S26: 0 | T26: 0 | U26: 46 | V26: 31 | W26: 30 | X26: 47 | Y26: 37 | Z26: 0 | AA26: 0 | AB26: 43 | AC26: 22 | AD26: 45 | AE26: 43
A27: Очередь ПЭТ/КТ | B27: 897 | C27: 900 | D27: 907 | E27: 910 | F27: 911 | G27: 921 | H27: 931 | I27: 955 | J27: 969 | K27: 978 | L27: 980 | M27: 982 | N27: 927 | O27: 958 | P27: 993 | Q27: 1019 | R27: 1029 | S27: 1030 | T27: 1031 | U27: 1039 | V27: 1039 | W27: 1026 | X27: 1043 | Y27: 1043 | Z27: 1043 | AA27: 1045 | AB27: 1052 | AC27: 1059 | AD27: 1061 | AE27: 1074
A28: Очередь КТ-Приморский | B28: 186 | C28: 175 | D28: 162 | E28: 148 | F28: 130 | G28: 133 | H28: 166 | I28: 184 | J28: 188 | K28: 184 | L28: 168 | M28: 152 | N28: 136 | O28: 158 | P28: 142 | Q28: 144 | R28: 137 | S28: 119 | T28: 101 | U28: 164 | V28: 149 | W28: 183 | X28: 172 | Y28: 201 | Z28: 181 | AA28: 162 | AB28: 211 | AC28: 231 | AD28: 243 | AE28: 232
A30: Кол-во операторов | B30: 7 | C30: 7 | D30: 7 | E30: 4 | F30: 4 | G30: 7 | H30: 6 | I30: 6 | J30: 7 | K30: 7 | L30: 5 | M30: 4 | N30: 5 | O30: 6 | P30: 7 | Q30: 7 | R30: 7 | S30: 3 | T30: 4 | U30: 7 | V30: 6 | W30: 6 | X30: 6 | Y30: 6 | Z30: 3 | AA30: 3 | AB30: 7 | AC30: 7 | AD30: 6 | AE30: 6
A31: сумма часов работы операторов | B31: 72 | C31: 76 | D31: 72 | E31: 48 | F31: 48 | G31: 76 | H31: 71 | I31: 68 | J31: 76 | K31: 76 | L31: 60 | M31: 48 | N31: 52 | O31: 60 | P31: 72 | Q31: 72 | R31: 60 | S31: 36 | T31: 48 | U31: 72 | V31: 57 | W31: 60 | X31: 65 | Y31: 62 | Z31: 36 | AA31: 36 | AB31: 73 | AC31: 73 | AD31: 60 | AE31: 60
A33: Время ожидания на линии (мин)
A34: 244-00-24 (среднее) | B34: =35/60 -> 0.5833333333 | C34: =74/60 -> 1.233333333 | D34: =34/60 -> 0.5666666667 | E34: =56/60 -> 0.9333333333 | F34: =9/60 -> 0.15 | G34: =30/60 -> 0.5 | H34: =26/60 -> 0.4333333333 | I34: =30/60 -> 0.5 | J34: =36/60 -> 0.6 | K34: =23/60 -> 0.3833333333 | L34: =32/60 -> 0.5333333333 | M34: =17/60 -> 0.2833333333 | N34: =19/60 -> 0.3166666667 | O34: =64/60 -> 1.066666667 | P34: =41/60 -> 0.6833333333 | Q34: =50/60 -> 0.8333333333 | R34: =73/60 -> 1.216666667 | S34: =18/60 -> 0.3 | T34: =30/60 -> 0.5 | U34: =65/60 -> 1.083333333 | V34: =119/60 -> 1.983333333 | W34: =72/60 -> 1.2 | X34: =48/60 -> 0.8 | Y34: =28/60 -> 0.4666666667 | Z34: =40/60 -> 0.6666666667 | AA34: =20/60 -> 0.3333333333 | AB34: =47/60 -> 0.7833333333 | AC34: =39/60 -> 0.65 | AD34: =36/60 -> 0.6 | AE34: =55/60 -> 0.9166666667
A36: Нажали кнопку "1" - перевод в Клинику | B36: 15 | C36: 16 | D36: 12 | E36: 5 | F36: 0 | G36: 21 | H36: 22 | I36: 15 | J36: 15 | K36: 14 | L36: 7 | M36: 0 | N36: 0 | O36: 11 | P36: 11 | Q36: 21 | R36: 23 | S36: 5 | T36: 0 | U36: 12 | V36: 17 | W36: 11 | X36: 13 | Y36: 16 | Z36: 2 | AA36: 0 | AB36: 15 | AC36: 15 | AD36: 9 | AE36: 16
A38: Отчет по КТ
A39: Записали КТ за день:
A40: Записаны сегодня на КТ (Советская) | B40: 52 | C40: 27 | D40: 15 | E40: 9 | F40: 5 | G40: 63 | H40: 76 | I40: 56 | J40: 24 | K40: 34 | L40: 11 | M40: 6 | N40: 11 | O40: 106 | P40: 23 | Q40: 19 | R40: 24 | S40: 13 | T40: 8 | U40: 44 | V40: 88 | W40: 25 | X40: 20 | Y40: 9 | Z40: 10 | AA40: 3 | AB40: 49 | AC40: 31 | AD40: 23 | AE40: 16
A41: из них ОМС | B41: 32 | C41: 13 | D41: 4 | E41: 4 | F41: 1 | G41: 45 | H41: 63 | I41: 38 | J41: 7 | K41: 15 | L41: 4 | M41: 2 | N41: 6 | O41: 94 | P41: 13 | Q41: 4 | R41: 9 | S41: 7 | T41: 2 | U41: 26 | V41: 76 | W41: 11 | X41: 3 | Y41: 3 | Z41: 3 | AA41: 0 | AB41: 36 | AC41: 19 | AD41: 4 | AE41: 2
A42: Записаны сегодня на КТ (Есенина) | B42: 52 | C42: 15 | D42: 24 | E42: 6 | F42: 7 | G42: 41 | H42: 70 | I42: 20 | J42: 34 | K42: 16 | L42: 5 | M42: 4 | N42: 7 | O42: 60 | P42: 33 | Q42: 33 | R42: 18 | S42: 6 | T42: 4 | U42: 30 | V42: 60 | W42: 40 | X42: 25 | Y42: 27 | Z42: 3 | AA42: 4 | AB42: 33 | AC42: 84 | AD42: 26 | AE42: 42
A43: из них ОМС | B43: 41 | C43: 10 | D43: 16 | E43: 5 | F43: 1 | G43: 32 | H43: 66 | I43: 13 | J43: 27 | K43: 8 | L43: 2 | M43: 2 | N43: 3 | O43: 52 | P43: 28 | Q43: 27 | R43: 13 | S43: 6 | T43: 2 | U43: 18 | V43: 50 | W43: 37 | X43: 19 | Y43: 25 | Z43: 3 | AA43: 4 | AB43: 25 | AC43: 77 | AD43: 21 | AE43: 36
A44: Записано платных (всего) | B44: =(B40+B42)-(B41+B43) -> 31 | C44: =(C40+C42)-(C41+C43) -> 19 | D44: =(D40+D42)-(D41+D43) -> 19 | E44: 6 | F44: 10 | G44: 27 | H44: 17 | I44: 25 | J44: 24 | K44: 27 | L44: 10 | M44: 6 | N44: 9 | O44: 20 | P44: 15 | Q44: 21 | R44: 20 | S44: 6 | T44: 8 | U44: 30 | V44: 22 | W44: 17 | X44: 23 | Y44: 8 | Z44: 7 | AA44: 3 | AB44: 21 | AC44: 19 | AD44: 24 | AE44: 20
A45: Всего записано за день: | B45: =SUM(B40+B42) -> 104 | C45: =SUM(C40+C42) -> 42 | D45: =SUM(D40+D42) -> 39 | E45: 15 | F45: 12 | G45: 104 | H45: 146 | I45: 76 | J45: 58 | K45: 50 | L45: 16 | M45: 10 | N45: 18 | O45: 166 | P45: 56 | Q45: 52 | R45: 42 | S45: 19 | T45: 12 | U45: 74 | V45: 148 | W45: 65 | X45: 45 | Y45: 36 | Z45: 13 | AA45: 7 | AB45: 82 | AC45: 115 | AD45: 49 | AE45: 58
A47: Очередь по записи КТ:
A48: Советская | B48: 161 | C48: 161 | D48: 156 | E48: 144 | F48: 130 | G48: 169 | H48: 224 | I48: 201 | J48: 191 | K48: 201 | L48: 187 | M48: 171 | N48: 162 | O48: 242 | P48: 179 | Q48: 174 | R48: 172 | S48: 160 | T48: 146 | U48: 164 | V48: 231 | W48: 183 | X48: 180 | Y48: 164 | Z48: 149 | AA48: 131 | AB48: 152 | AC48: 157 | AD48: 128 | AE48: 118
A49: Есенина | B49: 261 | C49: 251 | D49: 251 | E49: 163 | F49: 149 | G49: 170 | H49: 221 | I49: 217 | J49: 234 | K49: 226 | L49: 191 | M49: 175 | N49: 167 | O49: 206 | P49: 215 | Q49: 229 | R49: 228 | S49: 143 | T49: 130 | U49: 143 | V49: 181 | W49: 204 | X49: 206 | Y49: 214 | Z49: 129 | AA49: 116 | AB49: 123 | AC49: 186 | AD49: 192 | AE49: 213
A50: Всего в очереди: | B50: =SUM(B48:B49) -> 422 | C50: =SUM(C48:C49) -> 412 | D50: =SUM(D48:D49) -> 407 | E50: 307 | F50: 279 | G50: 339 | H50: 445 | I50: 418 | J50: 425 | K50: 427 | L50: 378 | M50: 346 | N50: 329 | O50: 448 | P50: 394 | Q50: 403 | R50: 400 | S50: 303 | T50: 276 | U50: 307 | V50: 412 | W50: 387 | X50: 386 | Y50: 378 | Z50: 278 | AA50: 247 | AB50: 275 | AC50: 343 | AD50: 320 | AE50: 331
A52: Выполнено КТ за день:
A53: Советская | B53: 72 | C53: 18 | D53: 19 | E53: 19 | F53: 18 | G53: 19 | H53: 16 | I53: 69 | J53: 21 | K53: 17 | L53: 18 | M53: 19 | N53: 17 | O53: 23 | P53: 73 | Q53: 19 | R53: 20 | S53: 22 | T53: 21 | U53: 22 | V53: 19 | W53: 55 | X53: 20 | Y53: 21 | Z53: 19 | AA53: 18 | AB53: 20 | AC53: 21 | AD53: 42 | AE53: 18
A54: Есенина | B54: 18 | C54: 19 | D54: 19 | E54: 73 | F54: 14 | G54: 17 | H54: 16 | I54: 19 | J54: 13 | K54: 16 | L54: 18 | M54: 16 | N54: 13 | O54: 18 | P54: 17 | Q54: 15 | R54: 16 | S54: 74 | T54: 16 | U54: 16 | V54: 14 | W54: 14 | X54: 18 | Y54: 18 | Z54: 67 | AA54: 13 | AB54: 18 | AC54: 15 | AD54: 16 | AE54: 16
A55: Всего выполнено за день: | B55: =SUM(B53:B54) -> 90 | C55: =SUM(C53:C54) -> 37 | D55: =SUM(D53:D54) -> 38 | E55: 92 | F55: 32 | G55: 36 | H55: 32 | I55: 88 | J55: 34 | K55: 33 | L55: 36 | M55: 35 | N55: 30 | O55: 41 | P55: 90 | Q55: 34 | R55: 36 | S55: 96 | T55: 37 | U55: 38 | V55: 33 | W55: 69 | X55: 38 | Y55: 39 | Z55: 86 | AA55: 31 | AB55: 38 | AC55: 36 | AD55: 58 | AE55: 34

Sheet Июль 2022
A1: Отчет колл-центр
